Workbook

Sheet Formulaire
A1: 65 | B1: 90 ans et + | C1: Total | D1: 2024 | E1: 2029 | G1: =D2&"de la population"&C2&"des Laurentides et ses RLS pour l'année "&D1&" chez les "&A1&A3 -> Projections de la population des Laurentides et ses RLS pour l'année 2024 chez les 65 ans et plus | Q1: =D1&" - "&C3&" - "&A1&A3 -> 2024 - Sexes réunis - 65 ans et plus
A2: =IF(AND(A1<2,B2=" ans et plus")," an et plus",B2) -> ans et plus | B2: =VLOOKUP(B1,Correspondance!A1:C91,3) -> ans et plus | C2: =VLOOKUP(C1,Correspondance!K1:L3,2,0) ->  | D2: =VLOOKUP(D1,Correspondance!P1:Q41,2) -> Projections | E2: =VLOOKUP(E1,Correspondance!P1:Q41,2) -> Projections | G2: ="Variation (%) "&D3&"de la population"&C2&"des Laurentides et ses RLS, entre les années "&D1&" et "&E1&", chez les "&A1&A3 -> Variation (%) projetée de la population des Laurentides et ses RLS, entre les années 2024 et 2029, chez les 65 ans et plus | Q2: =D1&" et "&E1&" - "&C3&" - "&A1&A3 -> 2024 et 2029 - Sexes réunis - 65 ans et plus
A3: =IF(AND(A1=B1,A1<2)," an",IF(AND(A1=B1,A1>1)," ans",A2)) -> ans et plus | C3: =IF(C1="Total","Sexes réunis",C1) -> Sexes réunis | D3: =IF(OR(D2="Projections ", E2="Projections "),"projetée ","estimée ") -> projetée | E3: =IF(D2="Projections ","projetée ","estimée ") -> projetée | G3: ="Proportion (%) "&E3&"de la population"&C2&"des "&A1&A3&" des Laurentides et ses RLS pour l'année "&D1&" sur l'ensemble de la population" -> Proportion (%) projetée de la population des 65 ans et plus des Laurentides et ses RLS pour l'année 2024 sur l'ensemble de la population
A44: =Données!B1248 -> Version Mai 2024
A45: * Pour vous assurer d'avoir toujours les données les plus à jour, utilisez la dernière version de cet outil qui se retrouve sur le site santelaurentides.gouv.qc.ca/sante-publique/donnees-sur-la-population

Sheet Carte1Periode
A1: =Formulaire!G1 -> Projections de la population des Laurentides et ses RLS pour l'année 2024 chez les 65 ans et plus
I14: Population | J14: Répartition
F15: Province du Québec | I15: ='Résultats bruts'!B5 -> 1934960 | J15: selon les RLS
F16: Région des Laurentides | I16: ='Résultats bruts'!B6 -> 148340 | J16: %
F17: RLS Antoine-Labelle | I17: ='Résultats bruts'!B7 -> 12180 | J17: =(I17/$I$16)*100 -> 8.210866927
F18: RLS Laurentides | I18: ='Résultats bruts'!B8 -> 15800 | J18: =(I18/$I$16)*100 -> 10.65120669
F19: RLS Pays-d'en-Haut | I19: ='Résultats bruts'!B9 -> 15940 | J19: 10.74558447
F20: RLS Argenteuil | I20: ='Résultats bruts'!B10 -> 10030 | J20: 6.761493865
F21: RLS Deux-Montagnes - Mirabel-Sud | I21: ='Résultats bruts'!B11 -> 24700 | J21: 16.65093704
F22: RLS Rivière-du-Nord - Mirabel-Nord | I22: ='Résultats bruts'!B12 -> 37390 | J22: 25.20560874
F23: RLS Thérèse-De Blainville | I23: ='Résultats bruts'!B13 -> 32300 | J23: 21.77430228
I24: =Formulaire!Q1 -> 2024 - Sexes réunis - 65 ans et plus
A47: Source : | B47: =Données!B1246 -> Source : ISQ, estimations de population (1996-2022) : série produite en janvier 2023, et projections de population (2023-2041) : série produite en juillet 2023, pour le découpage géographique en vigueur en avril 2021.
A48: Référence : | B48: =Données!B1247 -> Équipe de surveillance, recherche et évaluation (SRÉ) de la Direction de santé publique, CISSS des Laurentides, Mai 2024

Sheet Carte2Periodes
A1: =Formulaire!G2 -> Variation (%) projetée de la population des Laurentides et ses RLS, entre les années 2024 et 2029, chez les 65 ans et plus
I6: Variation (%)
G7: Province du Québec | I7: ='Résultats bruts'!C33 -> 14.58479762
G8: Région des Laurentides | I8: ='Résultats bruts'!C34 -> 21.03950384
I13: Population (nombre) | L13: %
I14: =Formulaire!D1 -> 2024 | J14: =Formulaire!E1 -> 2029 | K14: Variation | L14: Variation
F15: Province du Québec | I15: ='Résultats bruts'!B5 -> 1934960 | J15: ='Résultats bruts'!B19 -> 2217170 | K15: =J15-I15 -> 282210 | L15: ='Résultats bruts'!C33 -> 14.58479762
F16: Région des Laurentides | I16: ='Résultats bruts'!B6 -> 148340 | J16: ='Résultats bruts'!B20 -> 179550 | K16: =J16-I16 -> 31210 | L16: ='Résultats bruts'!C34 -> 21.03950384
F17: RLS Antoine-Labelle | I17: ='Résultats bruts'!B7 -> 12180 | J17: ='Résultats bruts'!B21 -> 14260 | K17: =J17-I17 -> 2080 | L17: ='Résultats bruts'!C35 -> 17.0771757
F18: RLS Laurentides | I18: ='Résultats bruts'!B8 -> 15800 | J18: ='Résultats bruts'!B22 -> 19010 | K18: =J18-I18 -> 3210 | L18: ='Résultats bruts'!C36 -> 20.3164557
F19: RLS Pays-d'en-Haut | I19: ='Résultats bruts'!B9 -> 15940 | J19: ='Résultats bruts'!B23 -> 19150 | K19: 3210 | L19: ='Résultats bruts'!C37 -> 20.13801757
F20: RLS Argenteuil | I20: ='Résultats bruts'!B10 -> 10030 | J20: ='Résultats bruts'!B24 -> 11970 | K20: 1940 | L20: ='Résultats bruts'!C38 -> 19.34197408
F21: RLS Deux-Montagnes - Mirabel-Sud | I21: ='Résultats bruts'!B11 -> 24700 | J21: ='Résultats bruts'!B25 -> 29710 | K21: 5010 | L21: ='Résultats bruts'!C39 -> 20.28340081
F22: RLS Rivière-du-Nord - Mirabel-Nord | I22: ='Résultats bruts'!B12 -> 37390 | J22: ='Résultats bruts'!B26 -> 46360 | K22: 8970 | L22: ='Résultats bruts'!C40 -> 23.99037176
F23: RLS Thérèse-De Blainville | I23: ='Résultats bruts'!B13 -> 32300 | J23: ='Résultats bruts'!B27 -> 39080 | K23: 6780 | L23: ='Résultats bruts'!C41 -> 20.99071207
K24: =Formulaire!Q2 -> 2024 et 2029 - Sexes réunis - 65 ans et plus
A47: Source : | B47: =Données!B1246 -> Source : ISQ, estimations de population (1996-2022) : série produite en janvier 2023, et projections de population (2023-2041) : série produite en juillet 2023, pour le découpage géographique en vigueur en avril 2021.
A48: Référence : | B48: =Données!B1247 -> Équipe de surveillance, recherche et évaluation (SRÉ) de la Direction de santé publique, CISSS des Laurentides, Mai 2024

Sheet CarteProportionAge
A1: =Formulaire!G3 -> Proportion (%) projetée de la population des 65 ans et plus des Laurentides et ses RLS pour l'année 2024 sur l'ensemble de la population
H10: Proportion (%)
F11: Province du Québec | H11: ='Résultats bruts'!M47 -> 21.65988928
F12: Région des Laurentides | H12: ='Résultats bruts'!M48 -> 21.91406036
I14: Population | J14: Proportion
F15: Province du Québec | I15: ='Résultats bruts'!B5 -> 1934960 | J15: ='Résultats bruts'!M47 -> 21.65988928
F16: Région des Laurentides | I16: ='Résultats bruts'!B6 -> 148340 | J16: ='Résultats bruts'!M48 -> 21.91406036
F17: RLS Antoine-Labelle | I17: ='Résultats bruts'!B7 -> 12180 | J17: ='Résultats bruts'!M49 -> 32.28200371
F18: RLS Laurentides | I18: ='Résultats bruts'!B8 -> 15800 | J18: ='Résultats bruts'!M50 -> 30.0414496
F19: RLS Pays-d'en-Haut | I19: ='Résultats bruts'!B9 -> 15940 | J19: ='Résultats bruts'!M51 -> 32.07566154
F20: RLS Argenteuil | I20: ='Résultats bruts'!B10 -> 10030 | J20: ='Résultats bruts'!M52 -> 27.16316858
F21: RLS Deux-Montagnes - Mirabel-Sud | I21: ='Résultats bruts'!B11 -> 24700 | J21: ='Résultats bruts'!M53 -> 18.56151979
F22: RLS Rivière-du-Nord - Mirabel-Nord | I22: ='Résultats bruts'!B12 -> 37390 | J22: ='Résultats bruts'!M54 -> 19.17504731
F23: RLS Thérèse-De Blainville | I23: ='Résultats bruts'!B13 -> 32300 | J23: ='Résultats bruts'!M55 -> 18.78901046
I24: =Formulaire!Q1 -> 2024 - Sexes réunis - 65 ans et plus
A47: Source : | B47: =Données!B1246 -> Source : ISQ, estimations de population (1996-2022) : série produite en janvier 2023, et projections de population (2023-2041) : série produite en juillet 2023, pour le découpage géographique en vigueur en avril 2021.
A48: Référence : | B48: =Données!B1247 -> Équipe de surveillance, recherche et évaluation (SRÉ) de la Direction de santé publique, CISSS des Laurentides, Mai 2024

Sheet Données
A1: Niveau géographique | B1: Code du territoire | C1: Territoire | D1: Année | E1: Statut | F1: Sexe | G1: Tous les âges | H1: Moins un an | I1: 1 | J1: 2 | K1: 3 | L1: 4 | M1: 5 | N1: 6 | O1: 7 | P1: 8 | Q1: 9 | R1: 10 | S1: 11 | T1: 12 | U1: 13 | V1: 14 | W1: 15 | X1: 16 | Y1: 17 | Z1: 18 | AA1: 19 | AB1: 20 | AC1: 21 | AD1: 22 | AE1: 23 | AF1: 24 | AG1: 25 | AH1: 26 | AI1: 27 | AJ1: 28 | AK1: 29 | AL1: 30 | AM1: 31 | AN1: 32 | AO1: 33 | AP1: 34 | AQ1: 35 | AR1: 36 | AS1: 37 | AT1: 38 | AU1: 39 | AV1: 40 | AW1: 41 | AX1: 42 | AY1: 43 | AZ1: 44 | BA1: 45 | BB1: 46 | BC1: 47 | BD1: 48 | BE1: 49 | BF1: 50 | BG1: 51 | BH1: 52 | BI1: 53 | BJ1: 54 | BK1: 55 | BL1: 56 | BM1: 57 | BN1: 58 | BO1: 59 | BP1: 60 | BQ1: 61 | BR1: 62 | BS1: 63 | BT1: 64 | BU1: 65 | BV1: 66 | BW1: 67 | BX1: 68 | BY1: 69 | BZ1: 70 | CA1: 71 | CB1: 72 | CC1: 73 | CD1: 74 | CE1: 75 | CF1: 76 | CG1: 77 | CH1: 78 | CI1: 79 | CJ1: 80 | CK1: 81 | CL1: 82 | CM1: 83 | CN1: 84 | CO1: 85 | CP1: 86 | CQ1: 87 | CR1: 88 | CS1: 89 | CT1: 90 ans ou plus
A2: Québec | B2: 99 | C2: Ensemble du Québec | D2: 1996 | E2: Estimation | F2: Masculin | G2: 3568418 | H2: 44290 | I2: 45243 | J2: 46591 | K2: 48299 | L2: 49754 | M2: 50651 | N2: 49471 | O2: 46470 | P2: 44581 | Q2: 44469 | R2: 45707 | S2: 46523 | T2: 47237 | U2: 47359 | V2: 49533 | W2: 51669 | X2: 52513 | Y2: 51205 | Z2: 50234 | AA2: 50272 | AB2: 49995 | AC2: 49606 | AD2: 46977 | AE2: 46300 | AF2: 46950 | AG2: 48943 | AH2: 50142 | AI2: 50093 | AJ2: 50705 | AK2: 53861 | AL2: 58003 | AM2: 63072 | AN2: 64879 | AO2: 66048 | AP2: 65507 | AQ2: 66935 | AR2: 66579 | AS2: 66121 | AT2: 66591 | AU2: 65250 | AV2: 62768 | AW2: 62652 | AX2: 60574 | AY2: 57677 | AZ2: 56482 | BA2: 55738 | BB2: 54184 | BC2: 53527 | BD2: 52693 | BE2: 52290 | BF2: 48923 | BG2: 46038 | BH2: 44017 | BI2: 42728 | BJ2: 39825 | BK2: 38023 | BL2: 35149 | BM2: 34066 | BN2: 32231 | BO2: 30505 | BP2: 30593 | BQ2: 29868 | BR2: 29117 | BS2: 29939 | BT2: 30236 | BU2: 28619 | BV2: 27759 | BW2: 26136 | BX2: 25472 | BY2: 23969 | BZ2: 22937 | CA2: 21821 | CB2: 20183 | CC2: 18830 | CD2: 17764 | CE2: 15890 | CF2: 14117 | CG2: 12162 | CH2: 11239 | CI2: 9862 | CJ2: 9043 | CK2: 8219 | CL2: 7344 | CM2: 6369 | CN2: 5184 | CO2: 4424 | CP2: 3717 | CQ2: 2956 | CR2: 2420 | CS2: 1926 | CT2: 5585
A3: Québec | B3: 99 | C3: Ensemble du Québec | D3: 1996 | E3: Estimation | F3: Féminin | G3: 3678479 | H3: 42826 | I3: 43660 | J3: 44420 | K3: 46063 | L3: 48015 | M3: 48506 | N3: 47454 | O3: 44460 | P3: 42374 | Q3: 42643 | R3: 43633 | S3: 44051 | T3: 44675 | U3: 45198 | V3: 46640 | W3: 48997 | X3: 49359 | Y3: 48615 | Z3: 47785 | AA3: 48319 | AB3: 47541 | AC3: 47746 | AD3: 45545 | AE3: 44510 | AF3: 45287 | AG3: 47148 | AH3: 47995 | AI3: 48165 | AJ3: 49420 | AK3: 52178 | AL3: 55581 | AM3: 60788 | AN3: 62324 | AO3: 64328 | AP3: 63339 | AQ3: 65626 | AR3: 66080 | AS3: 65949 | AT3: 65488 | AU3: 64740 | AV3: 62068 | AW3: 62459 | AX3: 60769 | AY3: 58084 | AZ3: 56523 | BA3: 56058 | BB3: 54695 | BC3: 54598 | BD3: 53500 | BE3: 52887 | BF3: 49601 | BG3: 47086 | BH3: 45190 | BI3: 43374 | BJ3: 40658 | BK3: 38814 | BL3: 36541 | BM3: 35220 | BN3: 33515 | BO3: 32301 | BP3: 32745 | BQ3: 32137 | BR3: 31697 | BS3: 32496 | BT3: 32955 | BU3: 32574 | BV3: 31948 | BW3: 30756 | BX3: 30519 | BY3: 29307 | BZ3: 28984 | CA3: 28221 | CB3: 27177 | CC3: 25942 | CD3: 25157 | CE3: 23408 | CF3: 21453 | CG3: 19325 | CH3: 18297 | CI3: 17043 | CJ3: 16081 | CK3: 15189 | CL3: 13839 | CM3: 12487 | CN3: 11177 | CO3: 9869 | CP3: 8586 | CQ3: 7449 | CR3: 6268 | CS3: 5378 | CT3: 18603
A4: Québec | B4: 99 | C4: Ensemble du Québec | D4: 1996 | E4: Estimation | F4: Total | G4: 7246897 | H4: 87116 | I4: 88903 | J4: 91011 | K4: 94362 | L4: 97769 | M4: 99157 | N4: 96925 | O4: 90930 | P4: 86955 | Q4: 87112 | R4: 89340 | S4: 90574 | T4: 91912 | U4: 92557 | V4: 96173 | W4: 100666 | X4: 101872 | Y4: 99820 | Z4: 98019 | AA4: 98591 | AB4: 97536 | AC4: 97352 | AD4: 92522 | AE4: 90810 | AF4: 92237 | AG4: 96091 | AH4: 98137 | AI4: 98258 | AJ4: 100125 | AK4: 106039 | AL4: 113584 | AM4: 123860 | AN4: 127203 | AO4: 130376 | AP4: 128846 | AQ4: 132561 | AR4: 132659 | AS4: 132070 | AT4: 132079 | AU4: 129990 | AV4: 124836 | AW4: 125111 | AX4: 121343 | AY4: 115761 | AZ4: 113005 | BA4: 111796 | BB4: 108879 | BC4: 108125 | BD4: 106193 | BE4: 105177 | BF4: 98524 | BG4: 93124 | BH4: 89207 | BI4: 86102 | BJ4: 80483 | BK4: 76837 | BL4: 71690 | BM4: 69286 | BN4: 65746 | BO4: 62806 | BP4: 63338 | BQ4: 62005 | BR4: 60814 | BS4: 62435 | BT4: 63191 | BU4: 61193 | BV4: 59707 | BW4: 56892 | BX4: 55991 | BY4: 53276 | BZ4: 51921 | CA4: 50042 | CB4: 47360 | CC4: 44772 | CD4: 42921 | CE4: 39298 | CF4: 35570 | CG4: 31487 | CH4: 29536 | CI4: 26905 | CJ4: 25124 | CK4: 23408 | CL4: 21183 | CM4: 18856 | CN4: 16361 | CO4: 14293 | CP4: 12303 | CQ4: 10405 | CR4: 8688 | CS4: 7304 | CT4: 24188
A5: Québec | B5: 99 | C5: Ensemble du Québec | D5: 1997 | E5: Estimation | F5: Masculin | G5: 3585375 | H5: 42571 | I5: 44358 | J5: 45254 | K5: 46551 | L5: 48199 | M5: 49648 | N5: 50579 | O5: 49370 | P5: 46351 | Q5: 44378 | R5: 44392 | S5: 45731 | T5: 46554 | U5: 47342 | V5: 47343 | W5: 49523 | X5: 51874 | Y5: 52776 | Z5: 51384 | AA5: 50582 | AB5: 50603 | AC5: 50133 | AD5: 49718 | AE5: 46991 | AF5: 46394 | AG5: 47007 | AH5: 49142 | AI5: 50414 | AJ5: 50253 | AK5: 50917 | AL5: 53948 | AM5: 58020 | AN5: 63239 | AO5: 64921 | AP5: 66118 | AQ5: 65458 | AR5: 66973 | AS5: 66466 | AT5: 65990 | AU5: 66423 | AV5: 65083 | AW5: 62453 | AX5: 62386 | AY5: 60310 | AZ5: 57414 | BA5: 56233 | BB5: 55502 | BC5: 53967 | BD5: 53315 | BE5: 52434 | BF5: 52074 | BG5: 48608 | BH5: 45853 | BI5: 43824 | BJ5: 42500 | BK5: 39542 | BL5: 37803 | BM5: 34835 | BN5: 33759 | BO5: 31917 | BP5: 30139 | BQ5: 30229 | BR5: 29433 | BS5: 28618 | BT5: 29440 | BU5: 29727 | BV5: 28014 | BW5: 27078 | BX5: 25462 | BY5: 24783 | BZ5: 23178 | CA5: 22158 | CB5: 20979 | CC5: 19285 | CD5: 17894 | CE5: 16875 | CF5: 14958 | CG5: 13266 | CH5: 11354 | CI5: 10399 | CJ5: 9015 | CK5: 8233 | CL5: 7402 | CM5: 6542 | CN5: 5574 | CO5: 4490 | CP5: 3751 | CQ5: 3139 | CR5: 2445 | CS5: 2032 | CT5: 5783
A6: Québec | B6: 99 | C6: Ensemble du Québec | D6: 1997 | E6: Estimation | F6: Féminin | G6: 3689236 | H6: 39802 | I6: 43085 | J6: 43556 | K6: 44271 | L6: 45932 | M6: 47898 | N6: 48383 | O6: 47375 | P6: 44305 | Q6: 42283 | R6: 42536 | S6: 43587 | T6: 43993 | U6: 44672 | V6: 45080 | W6: 46577 | X6: 49179 | Y6: 49580 | Z6: 48818 | AA6: 47886 | AB6: 48465 | AC6: 47446 | AD6: 47655 | AE6: 45407 | AF6: 44356 | AG6: 45159 | AH6: 47021 | AI6: 47767 | AJ6: 47915 | AK6: 49240 | AL6: 51938 | AM6: 55392 | AN6: 60747 | AO6: 62179 | AP6: 64294 | AQ6: 63141 | AR6: 65474 | AS6: 65854 | AT6: 65763 | AU6: 65299 | AV6: 64601 | AW6: 61845 | AX6: 62374 | AY6: 60695 | AZ6: 57959 | BA6: 56421 | BB6: 56005 | BC6: 54497 | BD6: 54463 | BE6: 53297 | BF6: 52749 | BG6: 49379 | BH6: 46903 | BI6: 45009 | BJ6: 43218 | BK6: 40501 | BL6: 38711 | BM6: 36368 | BN6: 35041 | BO6: 33354 | BP6: 32080 | BQ6: 32578 | BR6: 31972 | BS6: 31406 | BT6: 32200 | BU6: 32661 | BV6: 32236 | BW6: 31598 | BX6: 30282 | BY6: 30106 | BZ6: 28788 | CA6: 28456 | CB6: 27660 | CC6: 26587 | CD6: 25262 | CE6: 24523 | CF6: 22720 | CG6: 20714 | CH6: 18564 | CI6: 17508 | CJ6: 16217 | CK6: 15191 | CL6: 14256 | CM6: 12940 | CN6: 11575 | CO6: 10274 | CP6: 8940 | CQ6: 7700 | CR6: 6556 | CS6: 5480 | CT6: 19506
A7: Québec | B7: 99 | C7: Ensemble du Québec | D7: 1997 | E7: Estimation | F7: Total | G7: 7274611 | H7: 82373 | I7: 87443 | J7: 88810 | K7: 90822 | L7: 94131 | M7: 97546 | N7: 98962 | O7: 96745 | P7: 90656 | Q7: 86661 | R7: 86928 | S7: 89318 | T7: 90547 | U7: 92014 | V7: 92423 | W7: 96100 | X7: 101053 | Y7: 102356 | Z7: 100202 | AA7: 98468 | AB7: 99068 | AC7: 97579 | AD7: 97373 | AE7: 92398 | AF7: 90750 | AG7: 92166 | AH7: 96163 | AI7: 98181 | AJ7: 98168 | AK7: 100157 | AL7: 105886 | AM7: 113412 | AN7: 123986 | AO7: 127100 | AP7: 130412 | AQ7: 128599 | AR7: 132447 | AS7: 132320 | AT7: 131753 | AU7: 131722 | AV7: 129684 | AW7: 124298 | AX7: 124760 | AY7: 121005 | AZ7: 115373 | BA7: 112654 | BB7: 111507 | BC7: 108464 | BD7: 107778 | BE7: 105731 | BF7: 104823 | BG7: 97987 | BH7: 92756 | BI7: 88833 | BJ7: 85718 | BK7: 80043 | BL7: 76514 | BM7: 71203 | BN7: 68800 | BO7: 65271 | BP7: 62219 | BQ7: 62807 | BR7: 61405 | BS7: 60024 | BT7: 61640 | BU7: 62388 | BV7: 60250 | BW7: 58676 | BX7: 55744 | BY7: 54889 | BZ7: 51966 | CA7: 50614 | CB7: 48639 | CC7: 45872 | CD7: 43156 | CE7: 41398 | CF7: 37678 | CG7: 33980 | CH7: 29918 | CI7: 27907 | CJ7: 25232 | CK7: 23424 | CL7: 21658 | CM7: 19482 | CN7: 17149 | CO7: 14764 | CP7: 12691 | CQ7: 10839 | CR7: 9001 | CS7: 7512 | CT7: 25289
A8: Québec | B8: 99 | C8: Ensemble du Québec | D8: 1998 | E8: Estimation | F8: Masculin | G8: 3593481 | H8: 39528 | I8: 42699 | J8: 44387 | K8: 45262 | L8: 46577 | M8: 48203 | N8: 49715 | O8: 50685 | P8: 49421 | Q8: 46392 | R8: 44352 | S8: 44492 | T8: 45901 | U8: 46703 | V8: 47573 | W8: 47412 | X8: 49649 | Y8: 52047 | Z8: 53145 | AA8: 51692 | AB8: 50805 | AC8: 50769 | AD8: 50104 | AE8: 49620 | AF8: 46774 | AG8: 46168 | AH8: 46698 | AI8: 48962 | AJ8: 50267 | AK8: 49938 | AL8: 50600 | AM8: 53628 | AN8: 57653 | AO8: 62961 | AP8: 64627 | AQ8: 65820 | AR8: 65185 | AS8: 66771 | AT8: 66102 | AU8: 65671 | AV8: 66089 | AW8: 64728 | AX8: 61984 | AY8: 62043 | AZ8: 59927 | BA8: 57025 | BB8: 55898 | BC8: 55189 | BD8: 53669 | BE8: 53054 | BF8: 52117 | BG8: 51862 | BH8: 48245 | BI8: 45614 | BJ8: 43546 | BK8: 42228 | BL8: 39252 | BM8: 37523 | BN8: 34461 | BO8: 33396 | BP8: 31564 | BQ8: 29705 | BR8: 29824 | BS8: 28939 | BT8: 28098 | BU8: 28968 | BV8: 29151 | BW8: 27333 | BX8: 26403 | BY8: 24734 | BZ8: 24060 | CA8: 22355 | CB8: 21348 | CC8: 20085 | CD8: 18398 | CE8: 16964 | CF8: 15947 | CG8: 14018 | CH8: 12379 | CI8: 10527 | CJ8: 9564 | CK8: 8145 | CL8: 7395 | CM8: 6561 | CN8: 5745 | CO8: 4861 | CP8: 3885 | CQ8: 3151 | CR8: 2605 | CS8: 1994 | CT8: 5967
A9: Québec | B9: 99 | C9: Ensemble du Québec | D9: 1998 | E9: Estimation | F9: Féminin | G9: 3702454 | H9: 37457 | I9: 40015 | J9: 43080 | K9: 43530 | L9: 44274 | M9: 45949 | N9: 47953 | O9: 48464 | P9: 47466 | Q9: 44334 | R9: 42329 | S9: 42591 | T9: 43671 | U9: 44062 | V9: 44760 | W9: 45103 | X9: 46680 | Y9: 49511 | Z9: 49957 | AA9: 49173 | AB9: 48015 | AC9: 48603 | AD9: 47394 | AE9: 47530 | AF9: 45263 | AG9: 44272 | AH9: 45064 | AI9: 46994 | AJ9: 47749 | AK9: 47874 | AL9: 49209 | AM9: 51897 | AN9: 55391 | AO9: 60865 | AP9: 62162 | AQ9: 64305 | AR9: 63022 | AS9: 65413 | AT9: 65772 | AU9: 65610 | AV9: 65172 | AW9: 64539 | AX9: 61685 | AY9: 62304 | AZ9: 60631 | BA9: 57855 | BB9: 56323 | BC9: 55939 | BD9: 54357 | BE9: 54345 | BF9: 53134 | BG9: 52640 | BH9: 49171 | BI9: 46731 | BJ9: 44835 | BK9: 43052 | BL9: 40353 | BM9: 38612 | BN9: 36185 | BO9: 34855 | BP9: 33133 | BQ9: 31877 | BR9: 32376 | BS9: 31763 | BT9: 31134 | BU9: 31930 | BV9: 32346 | BW9: 31858 | BX9: 31234 | BY9: 29794 | BZ9: 29638 | CA9: 28301 | CB9: 27918 | CC9: 27050 | CD9: 26004 | CE9: 24583 | CF9: 23846 | CG9: 21981 | CH9: 19929 | CI9: 17788 | CJ9: 16717 | CK9: 15359 | CL9: 14289 | CM9: 13312 | CN9: 11986 | CO9: 10600 | CP9: 9336 | CQ9: 7996 | CR9: 6801 | CS9: 5713 | CT9: 20381
A10: Québec | B10: 99 | C10: Ensemble du Québec | D10: 1998 | E10: Estimation | F10: Total | G10: 7295935 | H10: 76985 | I10: 82714 | J10: 87467 | K10: 88792 | L10: 90851 | M10: 94152 | N10: 97668 | O10: 99149 | P10: 96887 | Q10: 90726 | R10: 86681 | S10: 87083 | T10: 89572 | U10: 90765 | V10: 92333 | W10: 92515 | X10: 96329 | Y10: 101558 | Z10: 103102 | AA10: 100865 | AB10: 98820 | AC10: 99372 | AD10: 97498 | AE10: 97150 | AF10: 92037 | AG10: 90440 | AH10: 91762 | AI10: 95956 | AJ10: 98016 | AK10: 97812 | AL10: 99809 | AM10: 105525 | AN10: 113044 | AO10: 123826 | AP10: 126789 | AQ10: 130125 | AR10: 128207 | AS10: 132184 | AT10: 131874 | AU10: 131281 | AV10: 131261 | AW10: 129267 | AX10: 123669 | AY10: 124347 | AZ10: 120558 | BA10: 114880 | BB10: 112221 | BC10: 111128 | BD10: 108026 | BE10: 107399 | BF10: 105251 | BG10: 104502 | BH10: 97416 | BI10: 92345 | BJ10: 88381 | BK10: 85280 | BL10: 79605 | BM10: 76135 | BN10: 70646 | BO10: 68251 | BP10: 64697 | BQ10: 61582 | BR10: 62200 | BS10: 60702 | BT10: 59232 | BU10: 60898 | BV10: 61497 | BW10: 59191 | BX10: 57637 | BY10: 54528 | BZ10: 53698 | CA10: 50656 | CB10: 49266 | CC10: 47135 | CD10: 44402 | CE10: 41547 | CF10: 39793 | CG10: 35999 | CH10: 32308 | CI10: 28315 | CJ10: 26281 | CK10: 23504 | CL10: 21684 | CM10: 19873 | CN10: 17731 | CO10: 15461 | CP10: 13221 | CQ10: 11147 | CR10: 9406 | CS10: 7707 | CT10: 26348
A11: Québec | B11: 99 | C11: Ensemble du Québec | D11: 1999 | E11: Estimation | F11: Masculin | G11: 3607814 | H11: 37810 | I11: 39681 | J11: 42793 | K11: 44393 | L11: 45303 | M11: 46624 | N11: 48226 | O11: 49809 | P11: 50810 | Q11: 49495 | R11: 46432 | S11: 44340 | T11: 44582 | U11: 46041 | V11: 46812 | W11: 47787 | X11: 47482 | Y11: 49720 | Z11: 52367 | AA11: 53653 | AB11: 51981 | AC11: 51097 | AD11: 51061 | AE11: 50322 | AF11: 49819 | AG11: 46850 | AH11: 46241 | AI11: 46826 | AJ11: 49132 | AK11: 50491 | AL11: 50052 | AM11: 50693 | AN11: 53687 | AO11: 57699 | AP11: 63059 | AQ11: 64672 | AR11: 65843 | AS11: 65101 | AT11: 66764 | AU11: 65958 | AV11: 65517 | AW11: 65976 | AX11: 64525 | AY11: 61594 | AZ11: 61750 | BA11: 59621 | BB11: 56720 | BC11: 55580 | BD11: 54976 | BE11: 53418 | BF11: 52836 | BG11: 51838 | BH11: 51625 | BI11: 47950 | BJ11: 45381 | BK11: 43258 | BL11: 41952 | BM11: 38955 | BN11: 37242 | BO11: 34111 | BP11: 33045 | BQ11: 31173 | BR11: 29281 | BS11: 29428 | BT11: 28476 | BU11: 27568 | BV11: 28420 | BW11: 28555 | BX11: 26647 | BY11: 25699 | BZ11: 23973 | CA11: 23272 | CB11: 21553 | CC11: 20560 | CD11: 19183 | CE11: 17511 | CF11: 16042 | CG11: 15007 | CH11: 13142 | CI11: 11513 | CJ11: 9652 | CK11: 8700 | CL11: 7369 | CM11: 6601 | CN11: 5793 | CO11: 4991 | CP11: 4204 | CQ11: 3323 | CR11: 2591 | CS11: 2125 | CT11: 6084
A12: Québec | B12: 99 | C12: Ensemble du Québec | D12: 1999 | E12: Estimation | F12: Féminin | G12: 3715436 | H12: 36010 | I12: 37746 | J12: 40053 | K12: 43006 | L12: 43512 | M12: 44293 | N12: 45987 | O12: 48008 | P12: 48524 | Q12: 47551 | R12: 44306 | S12: 42343 | T12: 42648 | U12: 43776 | V12: 44078 | W12: 44881 | X12: 45124 | Y12: 46847 | Z12: 49906 | AA12: 50429 | AB12: 49517 | AC12: 48275 | AD12: 48837 | AE12: 47323 | AF12: 47483 | AG12: 45184 | AH12: 44207 | AI12: 45043 | AJ12: 47049 | AK12: 47817 | AL12: 47887 | AM12: 49232 | AN12: 51896 | AO12: 55370 | AP12: 61004 | AQ12: 62115 | AR12: 64374 | AS12: 62917 | AT12: 65407 | AU12: 65712 | AV12: 65521 | AW12: 65067 | AX12: 64474 | AY12: 61526 | AZ12: 62246 | BA12: 60511 | BB12: 57768 | BC12: 56204 | BD12: 55890 | BE12: 54180 | BF12: 54193 | BG12: 52955 | BH12: 52538 | BI12: 48963 | BJ12: 46566 | BK12: 44664 | BL12: 42880 | BM12: 40180 | BN12: 38503 | BO12: 35969 | BP12: 34678 | BQ12: 32897 | BR12: 31617 | BS12: 32189 | BT12: 31521 | BU12: 30851 | BV12: 31597 | BW12: 32011 | BX12: 31468 | BY12: 30871 | BZ12: 29329 | CA12: 29164 | CB12: 27771 | CC12: 27342 | CD12: 26376 | CE12: 25379 | CF12: 23894 | CG12: 23111 | CH12: 21212 | CI12: 19179 | CJ12: 16977 | CK12: 15928 | CL12: 14486 | CM12: 13380 | CN12: 12319 | CO12: 11062 | CP12: 9628 | CQ12: 8443 | CR12: 7084 | CS12: 5921 | CT12: 21276
A13: Québec | B13: 99 | C13: Ensemble du Québec | D13: 1999 | E13: Estimation | F13: Total | G13: 7323250 | H13: 73820 | I13: 77427 | J13: 82846 | K13: 87399 | L13: 88815 | M13: 90917 | N13: 94213 | O13: 97817 | P13: 99334 | Q13: 97046 | R13: 90738 | S13: 86683 | T13: 87230 | U13: 89817 | V13: 90890 | W13: 92668 | X13: 92606 | Y13: 96567 | Z13: 102273 | AA13: 104082 | AB13: 101498 | AC13: 99372 | AD13: 99898 | AE13: 97645 | AF13: 97302 | AG13: 92034 | AH13: 90448 | AI13: 91869 | AJ13: 96181 | AK13: 98308 | AL13: 97939 | AM13: 99925 | AN13: 105583 | AO13: 113069 | AP13: 124063 | AQ13: 126787 | AR13: 130217 | AS13: 128018 | AT13: 132171 | AU13: 131670 | AV13: 131038 | AW13: 131043 | AX13: 128999 | AY13: 123120 | AZ13: 123996 | BA13: 120132 | BB13: 114488 | BC13: 111784 | BD13: 110866 | BE13: 107598 | BF13: 107029 | BG13: 104793 | BH13: 104163 | BI13: 96913 | BJ13: 91947 | BK13: 87922 | BL13: 84832 | BM13: 79135 | BN13: 75745 | BO13: 70080 | BP13: 67723 | BQ13: 64070 | BR13: 60898 | BS13: 61617 | BT13: 59997 | BU13: 58419 | BV13: 60017 | BW13: 60566 | BX13: 58115 | BY13: 56570 | BZ13: 53302 | CA13: 52436 | CB13: 49324 | CC13: 47902 | CD13: 45559 | CE13: 42890 | CF13: 39936 | CG13: 38118 | CH13: 34354 | CI13: 30692 | CJ13: 26629 | CK13: 24628 | CL13: 21855 | CM13: 19981 | CN13: 18112 | CO13: 16053 | CP13: 13832 | CQ13: 11766 | CR13: 9675 | CS13: 8046 | CT13: 27360
A14: Québec | B14: 99 | C14: Ensemble du Québec | D14: 2000 | E14: Estimation | F14: Masculin | G14: 3626115 | H14: 37977 | I14: 37991 | J14: 39824 | K14: 42898 | L14: 44463 | M14: 45396 | N14: 46740 | O14: 48299 | P14: 49910 | Q14: 50921 | R14: 49634 | S14: 46507 | T14: 44353 | U14: 44680 | V14: 46168 | W14: 46958 | X14: 48014 | Y14: 47613 | Z14: 50007 | AA14: 52898 | AB14: 54161 | AC14: 52406 | AD14: 51649 | AE14: 51657 | AF14: 50639 | AG14: 50049 | AH14: 46917 | AI14: 46400 | AJ14: 46880 | AK14: 49474 | AL14: 50737 | AM14: 50293 | AN14: 50907 | AO14: 53752 | AP14: 57756 | AQ14: 63185 | AR14: 64715 | AS14: 65906 | AT14: 65085 | AU14: 66774 | AV14: 65872 | AW14: 65376 | AX14: 65819 | AY14: 64313 | AZ14: 61270 | BA14: 61449 | BB14: 59318 | BC14: 56437 | BD14: 55289 | BE14: 54721 | BF14: 53200 | BG14: 52628 | BH14: 51559 | BI14: 51399 | BJ14: 47652 | BK14: 45116 | BL14: 42991 | BM14: 41675 | BN14: 38603 | BO14: 36952 | BP14: 33718 | BQ14: 32670 | BR14: 30774 | BS14: 28832 | BT14: 28984 | BU14: 27970 | BV14: 27017 | BW14: 27863 | BX14: 27950 | BY14: 25935 | BZ14: 24981 | CA14: 23212 | CB14: 22534 | CC14: 20707 | CD14: 19760 | CE14: 18369 | CF14: 16598 | CG14: 15203 | CH14: 14145 | CI14: 12261 | CJ14: 10689 | CK14: 8900 | CL14: 7952 | CM14: 6681 | CN14: 5897 | CO14: 5107 | CP14: 4365 | CQ14: 3627 | CR14: 2797 | CS14: 2096 | CT14: 6289
A15: Québec | B15: 99 | C15: Ensemble du Québec | D15: 2000 | E15: Estimation | F15: Féminin | G15: 3730836 | H15: 35667 | I15: 36136 | J15: 37815 | K15: 40083 | L15: 42955 | M15: 43613 | N15: 44347 | O15: 46059 | P15: 48028 | Q15: 48620 | R15: 47587 | S15: 44312 | T15: 42363 | U15: 42717 | V15: 43885 | W15: 44114 | X15: 45009 | Y15: 45236 | Z15: 47106 | AA15: 50486 | AB15: 50922 | AC15: 49995 | AD15: 48633 | AE15: 49178 | AF15: 47407 | AG15: 47481 | AH15: 45197 | AI15: 44215 | AJ15: 45123 | AK15: 47172 | AL15: 47960 | AM15: 47980 | AN15: 49389 | AO15: 51897 | AP15: 55354 | AQ15: 61117 | AR15: 62154 | AS15: 64386 | AT15: 62867 | AU15: 65431 | AV15: 65721 | AW15: 65457 | AX15: 65024 | AY15: 64447 | AZ15: 61306 | BA15: 62185 | BB15: 60381 | BC15: 57664 | BD15: 56092 | BE15: 55819 | BF15: 54018 | BG15: 54084 | BH15: 52772 | BI15: 52434 | BJ15: 48746 | BK15: 46412 | BL15: 44475 | BM15: 42715 | BN15: 40016 | BO15: 38351 | BP15: 35769 | BQ15: 34459 | BR15: 32686 | BS15: 31382 | BT15: 31948 | BU15: 31273 | BV15: 30566 | BW15: 31269 | BX15: 31691 | BY15: 31080 | BZ15: 30520 | CA15: 28807 | CB15: 28696 | CC15: 27258 | CD15: 26766 | CE15: 25690 | CF15: 24657 | CG15: 23148 | CH15: 22394 | CI15: 20381 | CJ15: 18359 | CK15: 16167 | CL15: 15052 | CM15: 13631 | CN15: 12488 | CO15: 11390 | CP15: 10139 | CQ15: 8788 | CR15: 7573 | CS15: 6244 | CT15: 22450
A16: Québec | B16: 99 | C16: Ensemble du Québec | D16: 2000 | E16: Estimation | F16: Total | G16: 7356951 | H16: 73644 | I16: 74127 | J16: 77639 | K16: 82981 | L16: 87418 | M16: 89009 | N16: 91087 | O16: 94358 | P16: 97938 | Q16: 99541 | R16: 97221 | S16: 90819 | T16: 86716 | U16: 87397 | V16: 90053 | W16: 91072 | X16: 93023 | Y16: 92849 | Z16: 97113 | AA16: 103384 | AB16: 105083 | AC16: 102401 | AD16: 100282 | AE16: 100835 | AF16: 98046 | AG16: 97530 | AH16: 92114 | AI16: 90615 | AJ16: 92003 | AK16: 96646 | AL16: 98697 | AM16: 98273 | AN16: 100296 | AO16: 105649 | AP16: 113110 | AQ16: 124302 | AR16: 126869 | AS16: 130292 | AT16: 127952 | AU16: 132205 | AV16: 131593 | AW16: 130833 | AX16: 130843 | AY16: 128760 | AZ16: 122576 | BA16: 123634 | BB16: 119699 | BC16: 114101 | BD16: 111381 | BE16: 110540 | BF16: 107218 | BG16: 106712 | BH16: 104331 | BI16: 103833 | BJ16: 96398 | BK16: 91528 | BL16: 87466 | BM16: 84390 | BN16: 78619 | BO16: 75303 | BP16: 69487 | BQ16: 67129 | BR16: 63460 | BS16: 60214 | BT16: 60932 | BU16: 59243 | BV16: 57583 | BW16: 59132 | BX16: 59641 | BY16: 57015 | BZ16: 55501 | CA16: 52019 | CB16: 51230 | CC16: 47965 | CD16: 46526 | CE16: 44059 | CF16: 41255 | CG16: 38351 | CH16: 36539 | CI16: 32642 | CJ16: 29048 | CK16: 25067 | CL16: 23004 | CM16: 20312 | CN16: 18385 | CO16: 16497 | CP16: 14504 | CQ16: 12415 | CR16: 10370 | CS16: 8340 | CT16: 28739
A17: Québec | B17: 99 | C17: Ensemble du Québec | D17: 2001 | E17: Estimation | F17: Masculin | G17: 3647738 | H17: 37080 | I17: 38108 | J17: 38407 | K17: 40123 | L17: 42880 | M17: 44464 | N17: 45583 | O17: 46939 | P17: 48441 | Q17: 50008 | R17: 50888 | S17: 49619 | T17: 46800 | U17: 44589 | V17: 44930 | W17: 46309 | X17: 47164 | Y17: 48235 | Z17: 48129 | AA17: 50491 | AB17: 53321 | AC17: 54481 | AD17: 52836 | AE17: 52132 | AF17: 51969 | AG17: 50873 | AH17: 50169 | AI17: 47438 | AJ17: 46931 | AK17: 47509 | AL17: 49914 | AM17: 51058 | AN17: 50700 | AO17: 51480 | AP17: 54028 | AQ17: 58087 | AR17: 63079 | AS17: 64795 | AT17: 65887 | AU17: 65371 | AV17: 66700 | AW17: 65884 | AX17: 65428 | AY17: 65556 | AZ17: 64090 | BA17: 61249 | BB17: 60993 | BC17: 59024 | BD17: 56389 | BE17: 55129 | BF17: 54511 | BG17: 53108 | BH17: 52390 | BI17: 51355 | BJ17: 50810 | BK17: 47354 | BL17: 44927 | BM17: 42776 | BN17: 41192 | BO17: 38377 | BP17: 36569 | BQ17: 33498 | BR17: 32213 | BS17: 30400 | BT17: 28562 | BU17: 28485 | BV17: 27478 | BW17: 26620 | BX17: 27205 | BY17: 27126 | BZ17: 25309 | CA17: 24193 | CB17: 22518 | CC17: 21675 | CD17: 19905 | CE17: 18938 | CF17: 17483 | CG17: 15772 | CH17: 14344 | CI17: 13164 | CJ17: 11393 | CK17: 9822 | CL17: 8119 | CM17: 7167 | CN17: 6009 | CO17: 5194 | CP17: 4463 | CQ17: 3745 | CR17: 3062 | CS17: 2349 | CT17: 6471
A18: Québec | B18: 99 | C18: Ensemble du Québec | D18: 2001 | E18: Estimation | F18: Féminin | G18: 3748718 | H18: 34928 | I18: 35899 | J18: 36237 | K18: 38004 | L18: 40253 | M18: 42708 | N18: 43802 | O18: 44572 | P18: 46268 | Q18: 47987 | R18: 48567 | S18: 47509 | T18: 44513 | U18: 42697 | V18: 42927 | W18: 44035 | X18: 44360 | Y18: 45337 | Z18: 45679 | AA18: 47776 | AB18: 50901 | AC18: 51283 | AD18: 50393 | AE18: 49024 | AF18: 49316 | AG18: 47592 | AH18: 47356 | AI18: 45470 | AJ18: 44699 | AK18: 45509 | AL18: 47396 | AM18: 48243 | AN18: 48404 | AO18: 49757 | AP18: 52089 | AQ18: 55574 | AR18: 60906 | AS18: 62252 | AT18: 64181 | AU18: 63220 | AV18: 65337 | AW18: 65700 | AX18: 65436 | AY18: 64954 | AZ18: 64233 | BA18: 61487 | BB18: 61931 | BC18: 60224 | BD18: 57690 | BE18: 56101 | BF18: 55681 | BG18: 54014 | BH18: 53834 | BI18: 52673 | BJ18: 52046 | BK18: 48660 | BL18: 46369 | BM18: 44337 | BN18: 42439 | BO18: 39937 | BP18: 38172 | BQ18: 35622 | BR18: 34205 | BS18: 32502 | BT18: 31269 | BU18: 31565 | BV18: 31003 | BW18: 30313 | BX18: 30892 | BY18: 31238 | BZ18: 30636 | CA18: 30024 | CB18: 28357 | CC18: 28094 | CD18: 26733 | CE18: 26088 | CF18: 24990 | CG18: 23912 | CH18: 22441 | CI18: 21451 | CJ18: 19539 | CK18: 17521 | CL18: 15364 | CM18: 14171 | CN18: 12708 | CO18: 11561 | CP18: 10414 | CQ18: 9189 | CR18: 7835 | CS18: 6674 | CT18: 23529
A19: Québec | B19: 99 | C19: Ensemble du Québec | D19: 2001 | E19: Estimation | F19: Total | G19: 7396456 | H19: 72008 | I19: 74007 | J19: 74644 | K19: 78127 | L19: 83133 | M19: 87172 | N19: 89385 | O19: 91511 | P19: 94709 | Q19: 97995 | R19: 99455 | S19: 97128 | T19: 91313 | U19: 87286 | V19: 87857 | W19: 90344 | X19: 91524 | Y19: 93572 | Z19: 93808 | AA19: 98267 | AB19: 104222 | AC19: 105764 | AD19: 103229 | AE19: 101156 | AF19: 101285 | AG19: 98465 | AH19: 97525 | AI19: 92908 | AJ19: 91630 | AK19: 93018 | AL19: 97310 | AM19: 99301 | AN19: 99104 | AO19: 101237 | AP19: 106117 | AQ19: 113661 | AR19: 123985 | AS19: 127047 | AT19: 130068 | AU19: 128591 | AV19: 132037 | AW19: 131584 | AX19: 130864 | AY19: 130510 | AZ19: 128323 | BA19: 122736 | BB19: 122924 | BC19: 119248 | BD19: 114079 | BE19: 111230 | BF19: 110192 | BG19: 107122 | BH19: 106224 | BI19: 104028 | BJ19: 102856 | BK19: 96014 | BL19: 91296 | BM19: 87113 | BN19: 83631 | BO19: 78314 | BP19: 74741 | BQ19: 69120 | BR19: 66418 | BS19: 62902 | BT19: 59831 | BU19: 60050 | BV19: 58481 | BW19: 56933 | BX19: 58097 | BY19: 58364 | BZ19: 55945 | CA19: 54217 | CB19: 50875 | CC19: 49769 | CD19: 46638 | CE19: 45026 | CF19: 42473 | CG19: 39684 | CH19: 36785 | CI19: 34615 | CJ19: 30932 | CK19: 27343 | CL19: 23483 | CM19: 21338 | CN19: 18717 | CO19: 16755 | CP19: 14877 | CQ19: 12934 | CR19: 10897 | CS19: 9023 | CT19: 30000
A20: Québec | B20: 99 | C20: Ensemble du Québec | D20: 2002 | E20: Estimation | F20: Masculin | G20: 3673342 | H20: 37148 | I20: 37504 | J20: 38512 | K20: 38703 | L20: 40336 | M20: 43171 | N20: 44811 | O20: 45981 | P20: 47353 | Q20: 48787 | R20: 50368 | S20: 51274 | T20: 50071 | U20: 47159 | V20: 44636 | W20: 44881 | X20: 46676 | Y20: 47736 | Z20: 48790 | AA20: 48912 | AB20: 51171 | AC20: 53861 | AD20: 54872 | AE20: 53010 | AF20: 52198 | AG20: 51931 | AH20: 50993 | AI20: 50466 | AJ20: 47834 | AK20: 47356 | AL20: 47859 | AM20: 50392 | AN20: 51522 | AO20: 51216 | AP20: 51716 | AQ20: 54368 | AR20: 58411 | AS20: 63629 | AT20: 65203 | AU20: 66187 | AV20: 65465 | AW20: 66647 | AX20: 65800 | AY20: 65257 | AZ20: 65374 | BA20: 64081 | BB20: 61101 | BC20: 61037 | BD20: 58988 | BE20: 56248 | BF20: 54882 | BG20: 54265 | BH20: 52783 | BI20: 52073 | BJ20: 50926 | BK20: 50551 | BL20: 47022 | BM20: 44651 | BN20: 42544 | BO20: 40906 | BP20: 38096 | BQ20: 36306 | BR20: 33138 | BS20: 31839 | BT20: 29931 | BU20: 28057 | BV20: 28016 | BW20: 26991 | BX20: 26082 | BY20: 26527 | BZ20: 26341 | CA20: 24504 | CB20: 23464 | CC20: 21721 | CD20: 20858 | CE20: 19049 | CF20: 18103 | CG20: 16663 | CH20: 14898 | CI20: 13429 | CJ20: 12303 | CK20: 10559 | CL20: 8989 | CM20: 7400 | CN20: 6410 | CO20: 5270 | CP20: 4482 | CQ20: 3857 | CR20: 3140 | CS20: 2529 | CT20: 6785
A21: Québec | B21: 99 | C21: Ensemble du Québec | D21: 2002 | E21: Estimation | F21: Féminin | G21: 3768314 | H21: 35364 | I21: 35398 | J21: 36270 | K21: 36523 | L21: 38257 | M21: 40496 | N21: 43069 | O21: 44196 | P21: 44886 | Q21: 46586 | R21: 48226 | S21: 48950 | T21: 47834 | U21: 44753 | V21: 42793 | W21: 43031 | X21: 44338 | Y21: 44905 | Z21: 45900 | AA21: 46453 | AB21: 48387 | AC21: 51492 | AD21: 51607 | AE21: 50431 | AF21: 49226 | AG21: 49499 | AH21: 47766 | AI21: 47681 | AJ21: 45797 | AK21: 45002 | AL21: 45819 | AM21: 47741 | AN21: 48625 | AO21: 48789 | AP21: 50009 | AQ21: 52301 | AR21: 55834 | AS21: 61331 | AT21: 62568 | AU21: 64475 | AV21: 63302 | AW21: 65483 | AX21: 65667 | AY21: 65304 | AZ21: 64908 | BA21: 64153 | BB21: 61531 | BC21: 62044 | BD21: 60195 | BE21: 57517 | BF21: 55904 | BG21: 55529 | BH21: 53870 | BI21: 53636 | BJ21: 52365 | BK21: 51907 | BL21: 48557 | BM21: 46312 | BN21: 44246 | BO21: 42280 | BP21: 39747 | BQ21: 37942 | BR21: 35280 | BS21: 33859 | BT21: 32112 | BU21: 30811 | BV21: 31164 | BW21: 30617 | BX21: 29852 | BY21: 30333 | BZ21: 30684 | CA21: 30010 | CB21: 29362 | CC21: 27669 | CD21: 27338 | CE21: 25922 | CF21: 25307 | CG21: 24154 | CH21: 23032 | CI21: 21506 | CJ21: 20405 | CK21: 18554 | CL21: 16493 | CM21: 14422 | CN21: 13200 | CO21: 11724 | CP21: 10531 | CQ21: 9331 | CR21: 8091 | CS21: 6839 | CT21: 24705
A22: Québec | B22: 99 | C22: Ensemble du Québec | D22: 2002 | E22: Estimation | F22: Total | G22: 7441656 | H22: 72512 | I22: 72902 | J22: 74782 | K22: 75226 | L22: 78593 | M22: 83667 | N22: 87880 | O22: 90177 | P22: 92239 | Q22: 95373 | R22: 98594 | S22: 100224 | T22: 97905 | U22: 91912 | V22: 87429 | W22: 87912 | X22: 91014 | Y22: 92641 | Z22: 94690 | AA22: 95365 | AB22: 99558 | AC22: 105353 | AD22: 106479 | AE22: 103441 | AF22: 101424 | AG22: 101430 | AH22: 98759 | AI22: 98147 | AJ22: 93631 | AK22: 92358 | AL22: 93678 | AM22: 98133 | AN22: 100147 | AO22: 100005 | AP22: 101725 | AQ22: 106669 | AR22: 114245 | AS22: 124960 | AT22: 127771 | AU22: 130662 | AV22: 128767 | AW22: 132130 | AX22: 131467 | AY22: 130561 | AZ22: 130282 | BA22: 128234 | BB22: 122632 | BC22: 123081 | BD22: 119183 | BE22: 113765 | BF22: 110786 | BG22: 109794 | BH22: 106653 | BI22: 105709 | BJ22: 103291 | BK22: 102458 | BL22: 95579 | BM22: 90963 | BN22: 86790 | BO22: 83186 | BP22: 77843 | BQ22: 74248 | BR22: 68418 | BS22: 65698 | BT22: 62043 | BU22: 58868 | BV22: 59180 | BW22: 57608 | BX22: 55934 | BY22: 56860 | BZ22: 57025 | CA22: 54514 | CB22: 52826 | CC22: 49390 | CD22: 48196 | CE22: 44971 | CF22: 43410 | CG22: 40817 | CH22: 37930 | CI22: 34935 | CJ22: 32708 | CK22: 29113 | CL22: 25482 | CM22: 21822 | CN22: 19610 | CO22: 16994 | CP22: 15013 | CQ22: 13188 | CR22: 11231 | CS22: 9368 | CT22: 31490
A23: Québec | B23: 99 | C23: Ensemble du Québec | D23: 2003 | E23: Estimation | F23: Masculin | G23: 3697932 | H23: 37072 | I23: 37579 | J23: 37899 | K23: 38890 | L23: 38985 | M23: 40522 | N23: 43473 | O23: 45047 | P23: 46310 | Q23: 47682 | R23: 49091 | S23: 50651 | T23: 51621 | U23: 50458 | V23: 47463 | W23: 44673 | X23: 44826 | Y23: 47071 | Z23: 48411 | AA23: 49555 | AB23: 49587 | AC23: 51843 | AD23: 54351 | AE23: 55161 | AF23: 52942 | AG23: 52216 | AH23: 52025 | AI23: 51170 | AJ23: 50833 | AK23: 48291 | AL23: 47846 | AM23: 48253 | AN23: 50806 | AO23: 51968 | AP23: 51587 | AQ23: 51939 | AR23: 54642 | AS23: 58741 | AT23: 64055 | AU23: 65571 | AV23: 66454 | AW23: 65511 | AX23: 66545 | AY23: 65664 | AZ23: 65112 | BA23: 65186 | BB23: 63970 | BC23: 60862 | BD23: 60999 | BE23: 58920 | BF23: 56083 | BG23: 54615 | BH23: 53989 | BI23: 52432 | BJ23: 51758 | BK23: 50477 | BL23: 50259 | BM23: 46662 | BN23: 44413 | BO23: 42316 | BP23: 40578 | BQ23: 37747 | BR23: 36062 | BS23: 32723 | BT23: 31411 | BU23: 29443 | BV23: 27533 | BW23: 27497 | BX23: 26492 | BY23: 25461 | BZ23: 25828 | CA23: 25551 | CB23: 23729 | CC23: 22669 | CD23: 20908 | CE23: 20017 | CF23: 18160 | CG23: 17170 | CH23: 15836 | CI23: 14043 | CJ23: 12554 | CK23: 11423 | CL23: 9749 | CM23: 8132 | CN23: 6693 | CO23: 5705 | CP23: 4576 | CQ23: 3863 | CR23: 3223 | CS23: 2596 | CT23: 7227
A24: Québec | B24: 99 | C24: Ensemble du Québec | D24: 2003 | E24: Estimation | F24: Féminin | G24: 3787821 | H24: 35014 | I24: 35921 | J24: 35748 | K24: 36680 | L24: 36839 | M24: 38543 | N24: 40786 | O24: 43383 | P24: 44514 | Q24: 45151 | R24: 46850 | S24: 48469 | T24: 49295 | U24: 48131 | V24: 44961 | W24: 42876 | X24: 43156 | Y24: 44776 | Z24: 45587 | AA24: 46686 | AB24: 47099 | AC24: 48998 | AD24: 51813 | AE24: 51626 | AF24: 50561 | AG24: 49421 | AH24: 49864 | AI24: 47995 | AJ24: 48067 | AK24: 46147 | AL24: 45234 | AM24: 46104 | AN24: 48133 | AO24: 48990 | AP24: 49152 | AQ24: 50225 | AR24: 52466 | AS24: 56077 | AT24: 61760 | AU24: 62832 | AV24: 64675 | AW24: 63389 | AX24: 65600 | AY24: 65579 | AZ24: 65158 | BA24: 64795 | BB24: 64103 | BC24: 61507 | BD24: 62104 | BE24: 60172 | BF24: 57357 | BG24: 55706 | BH24: 55401 | BI24: 53714 | BJ24: 53428 | BK24: 52036 | BL24: 51723 | BM24: 48420 | BN24: 46274 | BO24: 44131 | BP24: 42098 | BQ24: 39536 | BR24: 37664 | BS24: 34953 | BT24: 33483 | BU24: 31689 | BV24: 30382 | BW24: 30733 | BX24: 30226 | BY24: 29363 | BZ24: 29760 | CA24: 30119 | CB24: 29388 | CC24: 28657 | CD24: 27041 | CE24: 26531 | CF24: 25082 | CG24: 24509 | CH24: 23345 | CI24: 22091 | CJ24: 20624 | CK24: 19402 | CL24: 17504 | CM24: 15474 | CN24: 13467 | CO24: 12211 | CP24: 10733 | CQ24: 9471 | CR24: 8237 | CS24: 7046 | CT24: 25800
A25: Québec | B25: 99 | C25: Ensemble du Québec | D25: 2003 | E25: Estimation | F25: Total | G25: 7485753 | H25: 72086 | I25: 73500 | J25: 73647 | K25: 75570 | L25: 75824 | M25: 79065 | N25: 84259 | O25: 88430 | P25: 90824 | Q25: 92833 | R25: 95941 | S25: 99120 | T25: 100916 | U25: 98589 | V25: 92424 | W25: 87549 | X25: 87982 | Y25: 91847 | Z25: 93998 | AA25: 96241 | AB25: 96686 | AC25: 100841 | AD25: 106164 | AE25: 106787 | AF25: 103503 | AG25: 101637 | AH25: 101889 | AI25: 99165 | AJ25: 98900 | AK25: 94438 | AL25: 93080 | AM25: 94357 | AN25: 98939 | AO25: 100958 | AP25: 100739 | AQ25: 102164 | AR25: 107108 | AS25: 114818 | AT25: 125815 | AU25: 128403 | AV25: 131129 | AW25: 128900 | AX25: 132145 | AY25: 131243 | AZ25: 130270 | BA25: 129981 | BB25: 128073 | BC25: 122369 | BD25: 123103 | BE25: 119092 | BF25: 113440 | BG25: 110321 | BH25: 109390 | BI25: 106146 | BJ25: 105186 | BK25: 102513 | BL25: 101982 | BM25: 95082 | BN25: 90687 | BO25: 86447 | BP25: 82676 | BQ25: 77283 | BR25: 73726 | BS25: 67676 | BT25: 64894 | BU25: 61132 | BV25: 57915 | BW25: 58230 | BX25: 56718 | BY25: 54824 | BZ25: 55588 | CA25: 55670 | CB25: 53117 | CC25: 51326 | CD25: 47949 | CE25: 46548 | CF25: 43242 | CG25: 41679 | CH25: 39181 | CI25: 36134 | CJ25: 33178 | CK25: 30825 | CL25: 27253 | CM25: 23606 | CN25: 20160 | CO25: 17916 | CP25: 15309 | CQ25: 13334 | CR25: 11460 | CS25: 9642 | CT25: 33027
A26: Québec | B26: 99 | C26: Ensemble du Québec | D26: 2004 | E26: Estimation | F26: Masculin | G26: 3725129 | H26: 38065 | I26: 37389 | J26: 37986 | K26: 38295 | L26: 39266 | M26: 39264 | N26: 40772 | O26: 43767 | P26: 45337 | Q26: 46636 | R26: 48052 | S26: 49462 | T26: 50967 | U26: 52032 | V26: 50900 | W26: 47763 | X26: 44829 | Y26: 44853 | Z26: 47610 | AA26: 49377 | AB26: 50261 | AC26: 50103 | AD26: 52359 | AE26: 54761 | AF26: 55306 | AG26: 52982 | AH26: 52351 | AI26: 52261 | AJ26: 51497 | AK26: 51340 | AL26: 48780 | AM26: 48292 | AN26: 48592 | AO26: 51215 | AP26: 52456 | AQ26: 51957 | AR26: 52308 | AS26: 54996 | AT26: 59026 | AU26: 64510 | AV26: 65995 | AW26: 66674 | AX26: 65562 | AY26: 66480 | AZ26: 65525 | BA26: 64945 | BB26: 64960 | BC26: 63867 | BD26: 60666 | BE26: 60959 | BF26: 58847 | BG26: 55915 | BH26: 54401 | BI26: 53717 | BJ26: 52100 | BK26: 51470 | BL26: 50015 | BM26: 49968 | BN26: 46302 | BO26: 44120 | BP26: 42014 | BQ26: 40206 | BR26: 37439 | BS26: 35764 | BT26: 32333 | BU26: 31001 | BV26: 28915 | BW26: 27011 | BX26: 26972 | BY26: 25973 | BZ26: 24895 | CA26: 25135 | CB26: 24790 | CC26: 22908 | CD26: 21892 | CE26: 19997 | CF26: 19055 | CG26: 17245 | CH26: 16252 | CI26: 14926 | CJ26: 13156 | CK26: 11639 | CL26: 10546 | CM26: 8893 | CN26: 7327 | CO26: 5964 | CP26: 4987 | CQ26: 3934 | CR26: 3240 | CS26: 2655 | CT26: 7602
A27: Québec | B27: 99 | C27: Ensemble du Québec | D27: 2004 | E27: Estimation | F27: Féminin | G27: 3810461 | H27: 36086 | I27: 35684 | J27: 36320 | K27: 36060 | L27: 37096 | M27: 37152 | N27: 38849 | O27: 41056 | P27: 43701 | Q27: 44872 | R27: 45442 | S27: 47167 | T27: 48752 | U27: 49660 | V27: 48438 | W27: 45256 | X27: 43049 | Y27: 43411 | Z27: 45217 | AA27: 46458 | AB27: 47386 | AC27: 47802 | AD27: 49607 | AE27: 52236 | AF27: 52019 | AG27: 50954 | AH27: 49945 | AI27: 50355 | AJ27: 48420 | AK27: 48564 | AL27: 46535 | AM27: 45599 | AN27: 46438 | AO27: 48592 | AP27: 49459 | AQ27: 49524 | AR27: 50508 | AS27: 52639 | AT27: 56292 | AU27: 62151 | AV27: 63139 | AW27: 64816 | AX27: 63431 | AY27: 65700 | AZ27: 65510 | BA27: 65020 | BB27: 64658 | BC27: 63993 | BD27: 61491 | BE27: 62155 | BF27: 60160 | BG27: 57195 | BH27: 55498 | BI27: 55308 | BJ27: 53572 | BK27: 53189 | BL27: 51687 | BM27: 51508 | BN27: 48274 | BO27: 46176 | BP27: 44011 | BQ27: 41918 | BR27: 39286 | BS27: 37375 | BT27: 34563 | BU27: 33092 | BV27: 31262 | BW27: 29956 | BX27: 30272 | BY27: 29781 | BZ27: 28859 | CA27: 29191 | CB27: 29483 | CC27: 28701 | CD27: 27969 | CE27: 26221 | CF27: 25672 | CG27: 24247 | CH27: 23628 | CI27: 22444 | CJ27: 21158 | CK27: 19584 | CL27: 18310 | CM27: 16481 | CN27: 14417 | CO27: 12405 | CP27: 11174 | CQ27: 9713 | CR27: 8417 | CS27: 7175 | CT27: 26465
A28: Québec | B28: 99 | C28: Ensemble du Québec | D28: 2004 | E28: Estimation | F28: Total | G28: 7535590 | H28: 74151 | I28: 73073 | J28: 74306 | K28: 74355 | L28: 76362 | M28: 76416 | N28: 79621 | O28: 84823 | P28: 89038 | Q28: 91508 | R28: 93494 | S28: 96629 | T28: 99719 | U28: 101692 | V28: 99338 | W28: 93019 | X28: 87878 | Y28: 88264 | Z28: 92827 | AA28: 95835 | AB28: 97647 | AC28: 97905 | AD28: 101966 | AE28: 106997 | AF28: 107325 | AG28: 103936 | AH28: 102296 | AI28: 102616 | AJ28: 99917 | AK28: 99904 | AL28: 95315 | AM28: 93891 | AN28: 95030 | AO28: 99807 | AP28: 101915 | AQ28: 101481 | AR28: 102816 | AS28: 107635 | AT28: 115318 | AU28: 126661 | AV28: 129134 | AW28: 131490 | AX28: 128993 | AY28: 132180 | AZ28: 131035 | BA28: 129965 | BB28: 129618 | BC28: 127860 | BD28: 122157 | BE28: 123114 | BF28: 119007 | BG28: 113110 | BH28: 109899 | BI28: 109025 | BJ28: 105672 | BK28: 104659 | BL28: 101702 | BM28: 101476 | BN28: 94576 | BO28: 90296 | BP28: 86025 | BQ28: 82124 | BR28: 76725 | BS28: 73139 | BT28: 66896 | BU28: 64093 | BV28: 60177 | BW28: 56967 | BX28: 57244 | BY28: 55754 | BZ28: 53754 | CA28: 54326 | CB28: 54273 | CC28: 51609 | CD28: 49861 | CE28: 46218 | CF28: 44727 | CG28: 41492 | CH28: 39880 | CI28: 37370 | CJ28: 34314 | CK28: 31223 | CL28: 28856 | CM28: 25374 | CN28: 21744 | CO28: 18369 | CP28: 16161 | CQ28: 13647 | CR28: 11657 | CS28: 9830 | CT28: 34067
A29: Québec | B29: 99 | C29: Ensemble du Québec | D29: 2005 | E29: Estimation | F29: Masculin | G29: 3750329 | H29: 38433 | I29: 38243 | J29: 37654 | K29: 38285 | L29: 38586 | M29: 39613 | N29: 39509 | O29: 40978 | P29: 44034 | Q29: 45581 | R29: 46988 | S29: 48404 | T29: 49773 | U29: 51278 | V29: 52393 | W29: 51339 | X29: 48086 | Y29: 44984 | Z29: 44956 | AA29: 48439 | AB29: 50184 | AC29: 50831 | AD29: 50647 | AE29: 52834 | AF29: 54946 | AG29: 55475 | AH29: 53007 | AI29: 52482 | AJ29: 52463 | AK29: 51725 | AL29: 51683 | AM29: 49178 | AN29: 48656 | AO29: 48816 | AP29: 51489 | AQ29: 52699 | AR29: 52237 | AS29: 52529 | AT29: 55202 | AU29: 59226 | AV29: 64817 | AW29: 66321 | AX29: 66826 | AY29: 65538 | AZ29: 66321 | BA29: 65332 | BB29: 64759 | BC29: 64715 | BD29: 63769 | BE29: 60441 | BF29: 60901 | BG29: 58744 | BH29: 55724 | BI29: 54130 | BJ29: 53489 | BK29: 51772 | BL29: 51132 | BM29: 49555 | BN29: 49662 | BO29: 45893 | BP29: 43841 | BQ29: 41698 | BR29: 39829 | BS29: 37085 | BT29: 35474 | BU29: 31893 | BV29: 30564 | BW29: 28374 | BX29: 26419 | BY29: 26399 | BZ29: 25466 | CA29: 24231 | CB29: 24421 | CC29: 24025 | CD29: 22076 | CE29: 21052 | CF29: 19117 | CG29: 18139 | CH29: 16277 | CI29: 15366 | CJ29: 14006 | CK29: 12315 | CL29: 10752 | CM29: 9719 | CN29: 8077 | CO29: 6506 | CP29: 5281 | CQ29: 4288 | CR29: 3317 | CS29: 2689 | CT29: 7927
A30: Québec | B30: 99 | C30: Ensemble du Québec | D30: 2005 | E30: Estimation | F30: Féminin | G30: 3831147 | H30: 36288 | I30: 36434 | J30: 35950 | K30: 36565 | L30: 36353 | M30: 37468 | N30: 37428 | O30: 39143 | P30: 41305 | Q30: 44016 | R30: 45209 | S30: 45767 | T30: 47493 | U30: 49051 | V30: 50047 | W30: 48750 | X30: 45599 | Y30: 43346 | Z30: 43756 | AA30: 46085 | AB30: 47252 | AC30: 48084 | AD30: 48158 | AE30: 49957 | AF30: 52633 | AG30: 52343 | AH30: 51347 | AI30: 50387 | AJ30: 50828 | AK30: 48679 | AL30: 48900 | AM30: 46786 | AN30: 45759 | AO30: 46550 | AP30: 48849 | AQ30: 49797 | AR30: 49814 | AS30: 50701 | AT30: 52814 | AU30: 56443 | AV30: 62481 | AW30: 63335 | AX30: 64961 | AY30: 63435 | AZ30: 65801 | BA30: 65374 | BB30: 64816 | BC30: 64489 | BD30: 63885 | BE30: 61462 | BF30: 62273 | BG30: 60116 | BH30: 57029 | BI30: 55288 | BJ30: 55160 | BK30: 53372 | BL30: 52949 | BM30: 51312 | BN30: 51299 | BO30: 48098 | BP30: 46054 | BQ30: 43857 | BR30: 41747 | BS30: 39039 | BT30: 37060 | BU30: 34211 | BV30: 32667 | BW30: 30848 | BX30: 29476 | BY30: 29776 | BZ30: 29299 | CA30: 28337 | CB30: 28574 | CC30: 28795 | CD30: 28013 | CE30: 27187 | CF30: 25462 | CG30: 24806 | CH30: 23358 | CI30: 22704 | CJ30: 21547 | CK30: 20146 | CL30: 18531 | CM30: 17159 | CN30: 15400 | CO30: 13282 | CP30: 11385 | CQ30: 10137 | CR30: 8672 | CS30: 7362 | CT30: 27187
A31: Québec | B31: 99 | C31: Ensemble du Québec | D31: 2005 | E31: Estimation | F31: Total | G31: 7581476 | H31: 74721 | I31: 74677 | J31: 73604 | K31: 74850 | L31: 74939 | M31: 77081 | N31: 76937 | O31: 80121 | P31: 85339 | Q31: 89597 | R31: 92197 | S31: 94171 | T31: 97266 | U31: 100329 | V31: 102440 | W31: 100089 | X31: 93685 | Y31: 88330 | Z31: 88712 | AA31: 94524 | AB31: 97436 | AC31: 98915 | AD31: 98805 | AE31: 102791 | AF31: 107579 | AG31: 107818 | AH31: 104354 | AI31: 102869 | AJ31: 103291 | AK31: 100404 | AL31: 100583 | AM31: 95964 | AN31: 94415 | AO31: 95366 | AP31: 100338 | AQ31: 102496 | AR31: 102051 | AS31: 103230 | AT31: 108016 | AU31: 115669 | AV31: 127298 | AW31: 129656 | AX31: 131787 | AY31: 128973 | AZ31: 132122 | BA31: 130706 | BB31: 129575 | BC31: 129204 | BD31: 127654 | BE31: 121903 | BF31: 123174 | BG31: 118860 | BH31: 112753 | BI31: 109418 | BJ31: 108649 | BK31: 105144 | BL31: 104081 | BM31: 100867 | BN31: 100961 | BO31: 93991 | BP31: 89895 | BQ31: 85555 | BR31: 81576 | BS31: 76124 | BT31: 72534 | BU31: 66104 | BV31: 63231 | BW31: 59222 | BX31: 55895 | BY31: 56175 | BZ31: 54765 | CA31: 52568 | CB31: 52995 | CC31: 52820 | CD31: 50089 | CE31: 48239 | CF31: 44579 | CG31: 42945 | CH31: 39635 | CI31: 38070 | CJ31: 35553 | CK31: 32461 | CL31: 29283 | CM31: 26878 | CN31: 23477 | CO31: 19788 | CP31: 16666 | CQ31: 14425 | CR31: 11989 | CS31: 10051 | CT31: 35114
A32: Québec | B32: 99 | C32: Ensemble du Québec | D32: 2006 | E32: Estimation | F32: Masculin | G32: 3777953 | H32: 40005 | I32: 38487 | J32: 38374 | K32: 37914 | L32: 38511 | M32: 38929 | N32: 39830 | O32: 39859 | P32: 41247 | Q32: 44146 | R32: 45783 | S32: 47350 | T32: 48750 | U32: 50081 | V32: 51532 | W32: 52522 | X32: 51643 | Y32: 48538 | Z32: 45714 | AA32: 45590 | AB32: 49100 | AC32: 50931 | AD32: 51306 | AE32: 51301 | AF32: 53226 | AG32: 55131 | AH32: 55256 | AI32: 53330 | AJ32: 52752 | AK32: 52515 | AL32: 51971 | AM32: 51847 | AN32: 49664 | AO32: 49085 | AP32: 49195 | AQ32: 51555 | AR32: 52779 | AS32: 52483 | AT32: 52811 | AU32: 55487 | AV32: 59470 | AW32: 64661 | AX32: 66468 | AY32: 66634 | AZ32: 65682 | BA32: 65968 | BB32: 65201 | BC32: 64639 | BD32: 64356 | BE32: 63565 | BF32: 60536 | BG32: 60657 | BH32: 58565 | BI32: 55657 | BJ32: 53925 | BK32: 53118 | BL32: 51504 | BM32: 50787 | BN32: 49227 | BO32: 49076 | BP32: 45659 | BQ32: 43575 | BR32: 41436 | BS32: 39301 | BT32: 36765 | BU32: 35017 | BV32: 31607 | BW32: 30037 | BX32: 27811 | BY32: 26008 | BZ32: 25755 | CA32: 24890 | CB32: 23795 | CC32: 23618 | CD32: 23099 | CE32: 21310 | CF32: 20150 | CG32: 18362 | CH32: 17192 | CI32: 15498 | CJ32: 14446 | CK32: 13201 | CL32: 11526 | CM32: 9941 | CN32: 8920 | CO32: 7363 | CP32: 5837 | CQ32: 4641 | CR32: 3747 | CS32: 2865 | CT32: 8355
A33: Québec | B33: 99 | C33: Ensemble du Québec | D33: 2006 | E33: Estimation | F33: Féminin | G33: 3854013 | H33: 37980 | I33: 36356 | J33: 36539 | K33: 36189 | L33: 36708 | M33: 36641 | N33: 37749 | O33: 37863 | P33: 39413 | Q33: 41560 | R33: 44177 | S33: 45487 | T33: 46182 | U33: 47804 | V33: 49244 | W33: 50321 | X33: 48967 | Y33: 46178 | Z33: 43922 | AA33: 44522 | AB33: 46741 | AC33: 48066 | AD33: 48526 | AE33: 48714 | AF33: 50552 | AG33: 52856 | AH33: 52602 | AI33: 51692 | AJ33: 50928 | AK33: 51026 | AL33: 49056 | AM33: 49008 | AN33: 47053 | AO33: 46017 | AP33: 46769 | AQ33: 48971 | AR33: 49958 | AS33: 50118 | AT33: 50943 | AU33: 53077 | AV33: 56697 | AW33: 62296 | AX33: 63471 | AY33: 64721 | AZ33: 63705 | BA33: 65646 | BB33: 65178 | BC33: 64640 | BD33: 64324 | BE33: 63527 | BF33: 61737 | BG33: 62058 | BH33: 59912 | BI33: 56948 | BJ33: 55165 | BK33: 54885 | BL33: 53312 | BM33: 52592 | BN33: 50978 | BO33: 50812 | BP33: 48023 | BQ33: 45961 | BR33: 43718 | BS33: 41465 | BT33: 38813 | BU33: 36708 | BV33: 33942 | BW33: 32220 | BX33: 30432 | BY33: 29113 | BZ33: 29191 | CA33: 28822 | CB33: 27914 | CC33: 27953 | CD33: 28047 | CE33: 27267 | CF33: 26321 | CG33: 24821 | CH33: 23867 | CI33: 22514 | CJ33: 21807 | CK33: 20730 | CL33: 19113 | CM33: 17593 | CN33: 15993 | CO33: 14355 | CP33: 12318 | CQ33: 10452 | CR33: 9136 | CS33: 7797 | CT33: 28528
A34: Québec | B34: 99 | C34: Ensemble du Québec | D34: 2006 | E34: Estimation | F34: Total | G34: 7631966 | H34: 77985 | I34: 74843 | J34: 74913 | K34: 74103 | L34: 75219 | M34: 75570 | N34: 77579 | O34: 77722 | P34: 80660 | Q34: 85706 | R34: 89960 | S34: 92837 | T34: 94932 | U34: 97885 | V34: 100776 | W34: 102843 | X34: 100610 | Y34: 94716 | Z34: 89636 | AA34: 90112 | AB34: 95841 | AC34: 98997 | AD34: 99832 | AE34: 100015 | AF34: 103778 | AG34: 107987 | AH34: 107858 | AI34: 105022 | AJ34: 103680 | AK34: 103541 | AL34: 101027 | AM34: 100855 | AN34: 96717 | AO34: 95102 | AP34: 95964 | AQ34: 100526 | AR34: 102737 | AS34: 102601 | AT34: 103754 | AU34: 108564 | AV34: 116167 | AW34: 126957 | AX34: 129939 | AY34: 131355 | AZ34: 129387 | BA34: 131614 | BB34: 130379 | BC34: 129279 | BD34: 128680 | BE34: 127092 | BF34: 122273 | BG34: 122715 | BH34: 118477 | BI34: 112605 | BJ34: 109090 | BK34: 108003 | BL34: 104816 | BM34: 103379 | BN34: 100205 | BO34: 99888 | BP34: 93682 | BQ34: 89536 | BR34: 85154 | BS34: 80766 | BT34: 75578 | BU34: 71725 | BV34: 65549 | BW34: 62257 | BX34: 58243 | BY34: 55121 | BZ34: 54946 | CA34: 53712 | CB34: 51709 | CC34: 51571 | CD34: 51146 | CE34: 48577 | CF34: 46471 | CG34: 43183 | CH34: 41059 | CI34: 38012 | CJ34: 36253 | CK34: 33931 | CL34: 30639 | CM34: 27534 | CN34: 24913 | CO34: 21718 | CP34: 18155 | CQ34: 15093 | CR34: 12883 | CS34: 10662 | CT34: 36883
A35: Québec | B35: 99 | C35: Ensemble du Québec | D35: 2007 | E35: Estimation | F35: Masculin | G35: 3808855 | H35: 42486 | I35: 40093 | J35: 38602 | K35: 38531 | L35: 38008 | M35: 38627 | N35: 39085 | O35: 39959 | P35: 39974 | Q35: 41398 | R35: 44294 | S35: 45942 | T35: 47517 | U35: 48867 | V35: 50123 | W35: 51591 | X35: 52741 | Y35: 52008 | Z35: 49169 | AA35: 46823 | AB35: 46628 | AC35: 49853 | AD35: 51269 | AE35: 51634 | AF35: 51461 | AG35: 53532 | AH35: 55550 | AI35: 55653 | AJ35: 53694 | AK35: 53104 | AL35: 52922 | AM35: 52297 | AN35: 52300 | AO35: 49933 | AP35: 49323 | AQ35: 49503 | AR35: 51859 | AS35: 53004 | AT35: 52634 | AU35: 52928 | AV35: 55481 | AW35: 59277 | AX35: 64493 | AY35: 66172 | AZ35: 66416 | BA35: 65496 | BB35: 66096 | BC35: 65277 | BD35: 64777 | BE35: 64563 | BF35: 63680 | BG35: 60601 | BH35: 60735 | BI35: 58608 | BJ35: 55628 | BK35: 53968 | BL35: 53217 | BM35: 51499 | BN35: 50851 | BO35: 49228 | BP35: 49125 | BQ35: 45402 | BR35: 43291 | BS35: 40987 | BT35: 38887 | BU35: 36195 | BV35: 34523 | BW35: 31033 | BX35: 29514 | BY35: 27326 | BZ35: 25492 | CA35: 25120 | CB35: 24190 | CC35: 22981 | CD35: 22882 | CE35: 22303 | CF35: 20463 | CG35: 19282 | CH35: 17467 | CI35: 16278 | CJ35: 14510 | CK35: 13473 | CL35: 12146 | CM35: 10508 | CN35: 8964 | CO35: 7988 | CP35: 6538 | CQ35: 5073 | CR35: 3977 | CS35: 3140 | CT35: 8815
A36: Québec | B36: 99 | C36: Ensemble du Québec | D36: 2007 | E36: Estimation | F36: Féminin | G36: 3884061 | H36: 40133 | I36: 38369 | J36: 36566 | K36: 36737 | L36: 36338 | M36: 36868 | N36: 36760 | O36: 37878 | P36: 37970 | Q36: 39598 | R36: 41790 | S36: 44431 | T36: 45833 | U36: 46594 | V36: 48245 | W36: 49780 | X36: 50860 | Y36: 49646 | Z36: 46817 | AA36: 45051 | AB36: 45401 | AC36: 47457 | AD36: 48583 | AE36: 49025 | AF36: 49203 | AG36: 50941 | AH36: 53333 | AI36: 53108 | AJ36: 52104 | AK36: 51342 | AL36: 51566 | AM36: 49561 | AN36: 49636 | AO36: 47582 | AP36: 46486 | AQ36: 47245 | AR36: 49391 | AS36: 50263 | AT36: 50374 | AU36: 51207 | AV36: 53264 | AW36: 56693 | AX36: 62331 | AY36: 63382 | AZ36: 64704 | BA36: 63597 | BB36: 65613 | BC36: 65238 | BD36: 64743 | BE36: 64269 | BF36: 63403 | BG36: 61301 | BH36: 61738 | BI36: 59491 | BJ36: 56550 | BK36: 54763 | BL36: 54520 | BM36: 52949 | BN36: 52341 | BO36: 50827 | BP36: 50717 | BQ36: 47616 | BR36: 45544 | BS36: 43305 | BT36: 41094 | BU36: 38514 | BV36: 36457 | BW36: 33706 | BX36: 31987 | BY36: 30267 | BZ36: 28890 | CA36: 28886 | CB36: 28405 | CC36: 27502 | CD36: 27560 | CE36: 27563 | CF36: 26752 | CG36: 25786 | CH36: 24138 | CI36: 23213 | CJ36: 21745 | CK36: 20953 | CL36: 19842 | CM36: 18094 | CN36: 16597 | CO36: 14931 | CP36: 13352 | CQ36: 11322 | CR36: 9419 | CS36: 8137 | CT36: 29978
A37: Québec | B37: 99 | C37: Ensemble du Québec | D37: 2007 | E37: Estimation | F37: Total | G37: 7692916 | H37: 82619 | I37: 78462 | J37: 75168 | K37: 75268 | L37: 74346 | M37: 75495 | N37: 75845 | O37: 77837 | P37: 77944 | Q37: 80996 | R37: 86084 | S37: 90373 | T37: 93350 | U37: 95461 | V37: 98368 | W37: 101371 | X37: 103601 | Y37: 101654 | Z37: 95986 | AA37: 91874 | AB37: 92029 | AC37: 97310 | AD37: 99852 | AE37: 100659 | AF37: 100664 | AG37: 104473 | AH37: 108883 | AI37: 108761 | AJ37: 105798 | AK37: 104446 | AL37: 104488 | AM37: 101858 | AN37: 101936 | AO37: 97515 | AP37: 95809 | AQ37: 96748 | AR37: 101250 | AS37: 103267 | AT37: 103008 | AU37: 104135 | AV37: 108745 | AW37: 115970 | AX37: 126824 | AY37: 129554 | AZ37: 131120 | BA37: 129093 | BB37: 131709 | BC37: 130515 | BD37: 129520 | BE37: 128832 | BF37: 127083 | BG37: 121902 | BH37: 122473 | BI37: 118099 | BJ37: 112178 | BK37: 108731 | BL37: 107737 | BM37: 104448 | BN37: 103192 | BO37: 100055 | BP37: 99842 | BQ37: 93018 | BR37: 88835 | BS37: 84292 | BT37: 79981 | BU37: 74709 | BV37: 70980 | BW37: 64739 | BX37: 61501 | BY37: 57593 | BZ37: 54382 | CA37: 54006 | CB37: 52595 | CC37: 50483 | CD37: 50442 | CE37: 49866 | CF37: 47215 | CG37: 45068 | CH37: 41605 | CI37: 39491 | CJ37: 36255 | CK37: 34426 | CL37: 31988 | CM37: 28602 | CN37: 25561 | CO37: 22919 | CP37: 19890 | CQ37: 16395 | CR37: 13396 | CS37: 11277 | CT37: 38793
A38: Québec | B38: 99 | C38: Ensemble du Québec | D38: 2008 | E38: Estimation | F38: Masculin | G38: 3843579 | H38: 43477 | I38: 42614 | J38: 40350 | K38: 38821 | L38: 38790 | M38: 38188 | N38: 38801 | O38: 39249 | P38: 40121 | Q38: 40115 | R38: 41562 | S38: 44428 | T38: 46136 | U38: 47701 | V38: 49015 | W38: 50208 | X38: 51712 | Y38: 53067 | Z38: 52623 | AA38: 50260 | AB38: 47767 | AC38: 47433 | AD38: 50238 | AE38: 51391 | AF38: 51729 | AG38: 51586 | AH38: 53718 | AI38: 55913 | AJ38: 56112 | AK38: 54246 | AL38: 53725 | AM38: 53511 | AN38: 52872 | AO38: 52998 | AP38: 50378 | AQ38: 49677 | AR38: 49891 | AS38: 52329 | AT38: 53328 | AU38: 52909 | AV38: 53059 | AW38: 55508 | AX38: 59173 | AY38: 64433 | AZ38: 65910 | BA38: 66208 | BB38: 65316 | BC38: 66257 | BD38: 65371 | BE38: 64905 | BF38: 64820 | BG38: 63810 | BH38: 60700 | BI38: 60821 | BJ38: 58598 | BK38: 55554 | BL38: 53961 | BM38: 53282 | BN38: 51523 | BO38: 50845 | BP38: 49236 | BQ38: 49098 | BR38: 45146 | BS38: 42929 | BT38: 40496 | BU38: 38412 | BV38: 35642 | BW38: 33926 | BX38: 30444 | BY38: 28991 | BZ38: 26876 | CA38: 24937 | CB38: 24485 | CC38: 23482 | CD38: 22206 | CE38: 22094 | CF38: 21455 | CG38: 19585 | CH38: 18468 | CI38: 16526 | CJ38: 15354 | CK38: 13562 | CL38: 12506 | CM38: 11118 | CN38: 9462 | CO38: 8081 | CP38: 7058 | CQ38: 5754 | CR38: 4337 | CS38: 3380 | CT38: 9490
A39: Québec | B39: 99 | C39: Ensemble du Québec | D39: 2008 | E39: Estimation | F39: Féminin | G39: 3918146 | H39: 41816 | I39: 40441 | J39: 38712 | K39: 36868 | L39: 36982 | M39: 36504 | N39: 37077 | O39: 36908 | P39: 38030 | Q39: 38134 | R39: 39832 | S39: 42028 | T39: 44735 | U39: 46183 | V39: 47024 | W39: 48762 | X39: 50371 | Y39: 51598 | Z39: 50480 | AA39: 47923 | AB39: 45933 | AC39: 46167 | AD39: 47947 | AE39: 48815 | AF39: 49467 | AG39: 49651 | AH39: 51364 | AI39: 53858 | AJ39: 53756 | AK39: 52684 | AL39: 51914 | AM39: 52240 | AN39: 50295 | AO39: 50418 | AP39: 48269 | AQ39: 47000 | AR39: 47709 | AS39: 49905 | AT39: 50677 | AU39: 50713 | AV39: 51470 | AW39: 53470 | AX39: 56708 | AY39: 62329 | AZ39: 63284 | BA39: 64633 | BB39: 63477 | BC39: 65602 | BD39: 65228 | BE39: 64780 | BF39: 64233 | BG39: 63274 | BH39: 60865 | BI39: 61356 | BJ39: 59047 | BK39: 56097 | BL39: 54378 | BM39: 54145 | BN39: 52586 | BO39: 52095 | BP39: 50619 | BQ39: 50543 | BR39: 47170 | BS39: 45116 | BT39: 42898 | BU39: 40724 | BV39: 38174 | BW39: 36197 | BX39: 33440 | BY39: 31748 | BZ39: 30055 | CA39: 28645 | CB39: 28529 | CC39: 27966 | CD39: 27036 | CE39: 27061 | CF39: 27050 | CG39: 26204 | CH39: 25115 | CI39: 23481 | CJ39: 22546 | CK39: 21013 | CL39: 20045 | CM39: 18913 | CN39: 17129 | CO39: 15552 | CP39: 13932 | CQ39: 12312 | CR39: 10295 | CS39: 8420 | CT39: 31971
A40: Québec | B40: 99 | C40: Ensemble du Québec | D40: 2008 | E40: Estimation | F40: Total | G40: 7761725 | H40: 85293 | I40: 83055 | J40: 79062 | K40: 75689 | L40: 75772 | M40: 74692 | N40: 75878 | O40: 76157 | P40: 78151 | Q40: 78249 | R40: 81394 | S40: 86456 | T40: 90871 | U40: 93884 | V40: 96039 | W40: 98970 | X40: 102083 | Y40: 104665 | Z40: 103103 | AA40: 98183 | AB40: 93700 | AC40: 93600 | AD40: 98185 | AE40: 100206 | AF40: 101196 | AG40: 101237 | AH40: 105082 | AI40: 109771 | AJ40: 109868 | AK40: 106930 | AL40: 105639 | AM40: 105751 | AN40: 103167 | AO40: 103416 | AP40: 98647 | AQ40: 96677 | AR40: 97600 | AS40: 102234 | AT40: 104005 | AU40: 103622 | AV40: 104529 | AW40: 108978 | AX40: 115881 | AY40: 126762 | AZ40: 129194 | BA40: 130841 | BB40: 128793 | BC40: 131859 | BD40: 130599 | BE40: 129685 | BF40: 129053 | BG40: 127084 | BH40: 121565 | BI40: 122177 | BJ40: 117645 | BK40: 111651 | BL40: 108339 | BM40: 107427 | BN40: 104109 | BO40: 102940 | BP40: 99855 | BQ40: 99641 | BR40: 92316 | BS40: 88045 | BT40: 83394 | BU40: 79136 | BV40: 73816 | BW40: 70123 | BX40: 63884 | BY40: 60739 | BZ40: 56931 | CA40: 53582 | CB40: 53014 | CC40: 51448 | CD40: 49242 | CE40: 49155 | CF40: 48505 | CG40: 45789 | CH40: 43583 | CI40: 40007 | CJ40: 37900 | CK40: 34575 | CL40: 32551 | CM40: 30031 | CN40: 26591 | CO40: 23633 | CP40: 20990 | CQ40: 18066 | CR40: 14632 | CS40: 11800 | CT40: 41461
A41: Québec | B41: 99 | C41: Ensemble du Québec | D41: 2009 | E41: Estimation | F41: Masculin | G41: 3887035 | H41: 45266 | I41: 43657 | J41: 42877 | K41: 40617 | L41: 39086 | M41: 39074 | N41: 38395 | O41: 39021 | P41: 39434 | Q41: 40328 | R41: 40294 | S41: 41749 | T41: 44617 | U41: 46380 | V41: 47899 | W41: 49213 | X41: 50381 | Y41: 51941 | Z41: 53731 | AA41: 53817 | AB41: 51177 | AC41: 48678 | AD41: 48283 | AE41: 50960 | AF41: 51808 | AG41: 52317 | AH41: 52134 | AI41: 54439 | AJ41: 56744 | AK41: 56980 | AL41: 55193 | AM41: 54566 | AN41: 54443 | AO41: 53637 | AP41: 53762 | AQ41: 50958 | AR41: 50208 | AS41: 50376 | AT41: 52829 | AU41: 53744 | AV41: 53131 | AW41: 53276 | AX41: 55631 | AY41: 59162 | AZ41: 64413 | BA41: 65721 | BB41: 66047 | BC41: 65202 | BD41: 66424 | BE41: 65509 | BF41: 65076 | BG41: 65075 | BH41: 63912 | BI41: 60809 | BJ41: 60945 | BK41: 58621 | BL41: 55478 | BM41: 53935 | BN41: 53318 | BO41: 51514 | BP41: 50830 | BQ41: 49220 | BR41: 49035 | BS41: 44904 | BT41: 42581 | BU41: 39996 | BV41: 37997 | BW41: 35030 | BX41: 33341 | BY41: 29840 | BZ41: 28446 | CA41: 26358 | CB41: 24354 | CC41: 23775 | CD41: 22707 | CE41: 21380 | CF41: 21316 | CG41: 20553 | CH41: 18702 | CI41: 17599 | CJ41: 15612 | CK41: 14397 | CL41: 12672 | CM41: 11464 | CN41: 10079 | CO41: 8470 | CP41: 7175 | CQ41: 6183 | CR41: 4961 | CS41: 3684 | CT41: 10162
A42: Québec | B42: 99 | C42: Ensemble du Québec | D42: 2009 | E42: Estimation | F42: Féminin | G42: 3956348 | H42: 42890 | I42: 42154 | J42: 40729 | K42: 39078 | L42: 37164 | M42: 37357 | N42: 36756 | O42: 37342 | P42: 37092 | Q42: 38258 | R42: 38321 | S42: 40118 | T42: 42317 | U42: 45102 | V42: 46605 | W42: 47531 | X42: 49363 | Y42: 51195 | Z42: 52419 | AA42: 51903 | AB42: 48911 | AC42: 46780 | AD42: 46845 | AE42: 48539 | AF42: 49411 | AG42: 50034 | AH42: 50344 | AI42: 52130 | AJ42: 54599 | AK42: 54580 | AL42: 53448 | AM42: 52715 | AN42: 52990 | AO42: 51091 | AP42: 51177 | AQ42: 48944 | AR42: 47565 | AS42: 48143 | AT42: 50374 | AU42: 51036 | AV42: 50945 | AW42: 51785 | AX42: 53646 | AY42: 56772 | AZ42: 62366 | BA42: 63211 | BB42: 64560 | BC42: 63335 | BD42: 65601 | BE42: 65245 | BF42: 64810 | BG42: 64198 | BH42: 63149 | BI42: 60420 | BJ42: 60926 | BK42: 58640 | BL42: 55679 | BM42: 53970 | BN42: 53751 | BO42: 52208 | BP42: 51827 | BQ42: 50409 | BR42: 50367 | BS42: 46701 | BT42: 44683 | BU42: 42504 | BV42: 40327 | BW42: 37850 | BX42: 35914 | BY42: 33162 | BZ42: 31446 | CA42: 29818 | CB42: 28301 | CC42: 28140 | CD42: 27513 | CE42: 26470 | CF42: 26537 | CG42: 26478 | CH42: 25551 | CI42: 24431 | CJ42: 22727 | CK42: 21813 | CL42: 20215 | CM42: 19119 | CN42: 17886 | CO42: 16056 | CP42: 14485 | CQ42: 12823 | CR42: 11211 | CS42: 9305 | CT42: 33712
A43: Québec | B43: 99 | C43: Ensemble du Québec | D43: 2009 | E43: Estimation | F43: Total | G43: 7843383 | H43: 88156 | I43: 85811 | J43: 83606 | K43: 79695 | L43: 76250 | M43: 76431 | N43: 75151 | O43: 76363 | P43: 76526 | Q43: 78586 | R43: 78615 | S43: 81867 | T43: 86934 | U43: 91482 | V43: 94504 | W43: 96744 | X43: 99744 | Y43: 103136 | Z43: 106150 | AA43: 105720 | AB43: 100088 | AC43: 95458 | AD43: 95128 | AE43: 99499 | AF43: 101219 | AG43: 102351 | AH43: 102478 | AI43: 106569 | AJ43: 111343 | AK43: 111560 | AL43: 108641 | AM43: 107281 | AN43: 107433 | AO43: 104728 | AP43: 104939 | AQ43: 99902 | AR43: 97773 | AS43: 98519 | AT43: 103203 | AU43: 104780 | AV43: 104076 | AW43: 105061 | AX43: 109277 | AY43: 115934 | AZ43: 126779 | BA43: 128932 | BB43: 130607 | BC43: 128537 | BD43: 132025 | BE43: 130754 | BF43: 129886 | BG43: 129273 | BH43: 127061 | BI43: 121229 | BJ43: 121871 | BK43: 117261 | BL43: 111157 | BM43: 107905 | BN43: 107069 | BO43: 103722 | BP43: 102657 | BQ43: 99629 | BR43: 99402 | BS43: 91605 | BT43: 87264 | BU43: 82500 | BV43: 78324 | BW43: 72880 | BX43: 69255 | BY43: 63002 | BZ43: 59892 | CA43: 56176 | CB43: 52655 | CC43: 51915 | CD43: 50220 | CE43: 47850 | CF43: 47853 | CG43: 47031 | CH43: 44253 | CI43: 42030 | CJ43: 38339 | CK43: 36210 | CL43: 32887 | CM43: 30583 | CN43: 27965 | CO43: 24526 | CP43: 21660 | CQ43: 19006 | CR43: 16172 | CS43: 12989 | CT43: 43874
A44: Québec | B44: 99 | C44: Ensemble du Québec | D44: 2010 | E44: Estimation | F44: Masculin | G44: 3931753 | H44: 44769 | I44: 45307 | J44: 43971 | K44: 43152 | L44: 40928 | M44: 39377 | N44: 39363 | O44: 38620 | P44: 39241 | Q44: 39588 | R44: 40545 | S44: 40440 | T44: 41934 | U44: 44761 | V44: 46603 | W44: 48129 | X44: 49429 | Y44: 50587 | Z44: 52539 | AA44: 54914 | AB44: 54690 | AC44: 51910 | AD44: 49539 | AE44: 49181 | AF44: 51619 | AG44: 52315 | AH44: 52989 | AI44: 52816 | AJ44: 55415 | AK44: 57771 | AL44: 58099 | AM44: 56303 | AN44: 55585 | AO44: 55416 | AP44: 54424 | AQ44: 54569 | AR44: 51604 | AS44: 50702 | AT44: 50813 | AU44: 53308 | AV44: 54105 | AW44: 53388 | AX44: 53499 | AY44: 55737 | AZ44: 59146 | BA44: 64294 | BB44: 65453 | BC44: 65892 | BD44: 65067 | BE44: 66513 | BF44: 65658 | BG44: 65228 | BH44: 65284 | BI44: 64087 | BJ44: 60892 | BK44: 61043 | BL44: 58635 | BM44: 55421 | BN44: 53925 | BO44: 53303 | BP44: 51470 | BQ44: 50777 | BR44: 49176 | BS44: 49005 | BT44: 44651 | BU44: 42205 | BV44: 39507 | BW44: 37504 | BX44: 34403 | BY44: 32702 | BZ44: 29253 | CA44: 27865 | CB44: 25801 | CC44: 23756 | CD44: 23130 | CE44: 21974 | CF44: 20518 | CG44: 20499 | CH44: 19661 | CI44: 17817 | CJ44: 16676 | CK44: 14678 | CL44: 13362 | CM44: 11693 | CN44: 10474 | CO44: 9059 | CP44: 7481 | CQ44: 6284 | CR44: 5360 | CS44: 4217 | CT44: 10960
A45: Québec | B45: 99 | C45: Ensemble du Québec | D45: 2010 | E45: Estimation | F45: Féminin | G45: 3997469 | H45: 42992 | I45: 43188 | J45: 42577 | K45: 41044 | L45: 39444 | M45: 37488 | N45: 37697 | O45: 36979 | P45: 37577 | Q45: 37254 | R45: 38444 | S45: 38512 | T45: 40358 | U45: 42568 | V45: 45446 | W45: 46994 | X45: 48119 | Y45: 50057 | Z45: 52106 | AA45: 53780 | AB45: 52958 | AC45: 49733 | AD45: 47536 | AE45: 47729 | AF45: 49386 | AG45: 50158 | AH45: 50962 | AI45: 51204 | AJ45: 53008 | AK45: 55549 | AL45: 55495 | AM45: 54390 | AN45: 53588 | AO45: 53827 | AP45: 52030 | AQ45: 51994 | AR45: 49673 | AS45: 48144 | AT45: 48659 | AU45: 50861 | AV45: 51424 | AW45: 51210 | AX45: 52016 | AY45: 53825 | AZ45: 56750 | BA45: 62384 | BB45: 63128 | BC45: 64479 | BD45: 63191 | BE45: 65607 | BF45: 65264 | BG45: 64865 | BH45: 64192 | BI45: 62957 | BJ45: 59992 | BK45: 60557 | BL45: 58221 | BM45: 55267 | BN45: 53592 | BO45: 53353 | BP45: 51831 | BQ45: 51552 | BR45: 50163 | BS45: 50173 | BT45: 46254 | BU45: 44212 | BV45: 42095 | BW45: 39938 | BX45: 37460 | BY45: 35590 | BZ45: 32889 | CA45: 31172 | CB45: 29545 | CC45: 28018 | CD45: 27786 | CE45: 27021 | CF45: 25939 | CG45: 25992 | CH45: 25859 | CI45: 24888 | CJ45: 23724 | CK45: 21938 | CL45: 21017 | CM45: 19301 | CN45: 18128 | CO45: 16805 | CP45: 14954 | CQ45: 13339 | CR45: 11753 | CS45: 10101 | CT45: 36250
A46: Québec | B46: 99 | C46: Ensemble du Québec | D46: 2010 | E46: Estimation | F46: Total | G46: 7929222 | H46: 87761 | I46: 88495 | J46: 86548 | K46: 84196 | L46: 80372 | M46: 76865 | N46: 77060 | O46: 75599 | P46: 76818 | Q46: 76842 | R46: 78989 | S46: 78952 | T46: 82292 | U46: 87329 | V46: 92049 | W46: 95123 | X46: 97548 | Y46: 100644 | Z46: 104645 | AA46: 108694 | AB46: 107648 | AC46: 101643 | AD46: 97075 | AE46: 96910 | AF46: 101005 | AG46: 102473 | AH46: 103951 | AI46: 104020 | AJ46: 108423 | AK46: 113320 | AL46: 113594 | AM46: 110693 | AN46: 109173 | AO46: 109243 | AP46: 106454 | AQ46: 106563 | AR46: 101277 | AS46: 98846 | AT46: 99472 | AU46: 104169 | AV46: 105529 | AW46: 104598 | AX46: 105515 | AY46: 109562 | AZ46: 115896 | BA46: 126678 | BB46: 128581 | BC46: 130371 | BD46: 128258 | BE46: 132120 | BF46: 130922 | BG46: 130093 | BH46: 129476 | BI46: 127044 | BJ46: 120884 | BK46: 121600 | BL46: 116856 | BM46: 110688 | BN46: 107517 | BO46: 106656 | BP46: 103301 | BQ46: 102329 | BR46: 99339 | BS46: 99178 | BT46: 90905 | BU46: 86417 | BV46: 81602 | BW46: 77442 | BX46: 71863 | BY46: 68292 | BZ46: 62142 | CA46: 59037 | CB46: 55346 | CC46: 51774 | CD46: 50916 | CE46: 48995 | CF46: 46457 | CG46: 46491 | CH46: 45520 | CI46: 42705 | CJ46: 40400 | CK46: 36616 | CL46: 34379 | CM46: 30994 | CN46: 28602 | CO46: 25864 | CP46: 22435 | CQ46: 19623 | CR46: 17113 | CS46: 14318 | CT46: 47210
A47: Québec | B47: 99 | C47: Ensemble du Québec | D47: 2011 | E47: Estimation | F47: Masculin | G47: 3971988 | H47: 45164 | I47: 44783 | J47: 45186 | K47: 44401 | L47: 43203 | M47: 41350 | N47: 39806 | O47: 39602 | P47: 38984 | Q47: 39376 | R47: 39854 | S47: 40615 | T47: 40770 | U47: 42293 | V47: 44792 | W47: 46853 | X47: 48354 | Y47: 49733 | Z47: 51120 | AA47: 53475 | AB47: 55545 | AC47: 55014 | AD47: 52583 | AE47: 50504 | AF47: 50288 | AG47: 51926 | AH47: 52461 | AI47: 53550 | AJ47: 53814 | AK47: 56326 | AL47: 58426 | AM47: 58693 | AN47: 57307 | AO47: 56441 | AP47: 56069 | AQ47: 55160 | AR47: 54872 | AS47: 52166 | AT47: 51105 | AU47: 51384 | AV47: 53631 | AW47: 54145 | AX47: 53672 | AY47: 53870 | AZ47: 55921 | BA47: 59216 | BB47: 63736 | BC47: 65067 | BD47: 65596 | BE47: 65070 | BF47: 66516 | BG47: 65717 | BH47: 65382 | BI47: 65408 | BJ47: 63912 | BK47: 61277 | BL47: 60817 | BM47: 58477 | BN47: 55410 | BO47: 53959 | BP47: 53168 | BQ47: 51443 | BR47: 50551 | BS47: 49199 | BT47: 48492 | BU47: 44413 | BV47: 41701 | BW47: 38970 | BX47: 36916 | BY47: 33867 | BZ47: 31869 | CA47: 28810 | CB47: 27168 | CC47: 25192 | CD47: 23265 | CE47: 22357 | CF47: 21103 | CG47: 19788 | CH47: 19536 | CI47: 18598 | CJ47: 16912 | CK47: 15592 | CL47: 13729 | CM47: 12360 | CN47: 10741 | CO47: 9384 | CP47: 8026 | CQ47: 6573 | CR47: 5507 | CS47: 4536 | CT47: 12075
A48: Québec | B48: 99 | C48: Ensemble du Québec | D48: 2011 | E48: Estimation | F48: Féminin | G48: 4033102 | H48: 43134 | I48: 43176 | J48: 43444 | K48: 42903 | L48: 41252 | M48: 39785 | N48: 38037 | O48: 37990 | P48: 37300 | Q48: 37748 | R48: 37553 | S48: 38529 | T48: 38870 | U48: 40663 | V48: 42819 | W48: 45612 | X48: 47316 | Y48: 48697 | Z48: 50719 | AA48: 53415 | AB48: 54486 | AC48: 53677 | AD48: 50435 | AE48: 48525 | AF48: 48676 | AG48: 49948 | AH48: 50655 | AI48: 51615 | AJ48: 52140 | AK48: 53736 | AL48: 56058 | AM48: 56266 | AN48: 55188 | AO48: 54414 | AP48: 54156 | AQ48: 52929 | AR48: 52485 | AS48: 50310 | AT48: 48796 | AU48: 49218 | AV48: 51032 | AW48: 51599 | AX48: 51404 | AY48: 52344 | AZ48: 54092 | BA48: 56951 | BB48: 61868 | BC48: 63055 | BD48: 64153 | BE48: 63439 | BF48: 65239 | BG48: 65212 | BH48: 64931 | BI48: 64065 | BJ48: 62750 | BK48: 59851 | BL48: 59904 | BM48: 57739 | BN48: 54984 | BO48: 53380 | BP48: 52825 | BQ48: 51505 | BR48: 51175 | BS48: 50052 | BT48: 49641 | BU48: 45877 | BV48: 43725 | BW48: 41670 | BX48: 39446 | BY48: 37136 | BZ48: 35132 | CA48: 32613 | CB48: 30816 | CC48: 29219 | CD48: 27734 | CE48: 27259 | CF48: 26415 | CG48: 25371 | CH48: 25317 | CI48: 25026 | CJ48: 24079 | CK48: 22919 | CL48: 21144 | CM48: 20060 | CN48: 18375 | CO48: 16984 | CP48: 15602 | CQ48: 13787 | CR48: 12149 | CS48: 10565 | CT48: 38817
A49: Québec | B49: 99 | C49: Ensemble du Québec | D49: 2011 | E49: Estimation | F49: Total | G49: 8005090 | H49: 88298 | I49: 87959 | J49: 88630 | K49: 87304 | L49: 84455 | M49: 81135 | N49: 77843 | O49: 77592 | P49: 76284 | Q49: 77124 | R49: 77407 | S49: 79144 | T49: 79640 | U49: 82956 | V49: 87611 | W49: 92465 | X49: 95670 | Y49: 98430 | Z49: 101839 | AA49: 106890 | AB49: 110031 | AC49: 108691 | AD49: 103018 | AE49: 99029 | AF49: 98964 | AG49: 101874 | AH49: 103116 | AI49: 105165 | AJ49: 105954 | AK49: 110062 | AL49: 114484 | AM49: 114959 | AN49: 112495 | AO49: 110855 | AP49: 110225 | AQ49: 108089 | AR49: 107357 | AS49: 102476 | AT49: 99901 | AU49: 100602 | AV49: 104663 | AW49: 105744 | AX49: 105076 | AY49: 106214 | AZ49: 110013 | BA49: 116167 | BB49: 125604 | BC49: 128122 | BD49: 129749 | BE49: 128509 | BF49: 131755 | BG49: 130929 | BH49: 130313 | BI49: 129473 | BJ49: 126662 | BK49: 121128 | BL49: 120721 | BM49: 116216 | BN49: 110394 | BO49: 107339 | BP49: 105993 | BQ49: 102948 | BR49: 101726 | BS49: 99251 | BT49: 98133 | BU49: 90290 | BV49: 85426 | BW49: 80640 | BX49: 76362 | BY49: 71003 | BZ49: 67001 | CA49: 61423 | CB49: 57984 | CC49: 54411 | CD49: 50999 | CE49: 49616 | CF49: 47518 | CG49: 45159 | CH49: 44853 | CI49: 43624 | CJ49: 40991 | CK49: 38511 | CL49: 34873 | CM49: 32420 | CN49: 29116 | CO49: 26368 | CP49: 23628 | CQ49: 20360 | CR49: 17656 | CS49: 15101 | CT49: 50892
A50: Québec | B50: 99 | C50: Ensemble du Québec | D50: 2012 | E50: Estimation | F50: Masculin | G50: 4003669 | H50: 44974 | I50: 45341 | J50: 45152 | K50: 45548 | L50: 44698 | M50: 43430 | N50: 41601 | O50: 40007 | P50: 39855 | Q50: 39234 | R50: 39678 | S50: 40178 | T50: 41020 | U50: 41197 | V50: 42656 | W50: 45135 | X50: 47148 | Y50: 48585 | Z50: 50322 | AA50: 52323 | AB50: 54392 | AC50: 56012 | AD50: 55343 | AE50: 52884 | AF50: 50680 | AG50: 50410 | AH50: 52206 | AI50: 52861 | AJ50: 54081 | AK50: 54228 | AL50: 56744 | AM50: 58850 | AN50: 59130 | AO50: 57620 | AP50: 56723 | AQ50: 56338 | AR50: 55420 | AS50: 55078 | AT50: 52292 | AU50: 51264 | AV50: 51482 | AW50: 53736 | AX50: 54195 | AY50: 53648 | AZ50: 53884 | BA50: 55958 | BB50: 59293 | BC50: 63861 | BD50: 65128 | BE50: 65668 | BF50: 65013 | BG50: 66533 | BH50: 65604 | BI50: 65208 | BJ50: 65265 | BK50: 63666 | BL50: 60980 | BM50: 60566 | BN50: 58151 | BO50: 55073 | BP50: 53604 | BQ50: 52804 | BR50: 50928 | BS50: 50021 | BT50: 48594 | BU50: 47912 | BV50: 43775 | BW50: 41056 | BX50: 38324 | BY50: 36306 | BZ50: 33238 | CA50: 31179 | CB50: 28129 | CC50: 26483 | CD50: 24420 | CE50: 22483 | CF50: 21622 | CG50: 20279 | CH50: 18956 | CI50: 18662 | CJ50: 17680 | CK50: 15959 | CL50: 14563 | CM50: 12671 | CN50: 11349 | CO50: 9738 | CP50: 8473 | CQ50: 7088 | CR50: 5701 | CS50: 4749 | CT50: 13373
A51: Québec | B51: 99 | C51: Ensemble du Québec | D51: 2012 | E51: Estimation | F51: Féminin | G51: 4057432 | H51: 42992 | I51: 43296 | J51: 43521 | K51: 43786 | L51: 43181 | M51: 41558 | N51: 40109 | O51: 38302 | P51: 38297 | Q51: 37616 | R51: 38118 | S51: 37898 | T51: 38967 | U51: 39184 | V51: 40875 | W51: 42952 | X51: 45729 | Y51: 47270 | Z51: 48824 | AA51: 51219 | AB51: 53531 | AC51: 54383 | AD51: 53515 | AE51: 50315 | AF51: 48599 | AG51: 48867 | AH51: 50167 | AI51: 51087 | AJ51: 52032 | AK51: 52533 | AL51: 54136 | AM51: 56434 | AN51: 56687 | AO51: 55550 | AP51: 54726 | AQ51: 54461 | AR51: 53119 | AS51: 52762 | AT51: 50537 | AU51: 49005 | AV51: 49455 | AW51: 51302 | AX51: 51897 | AY51: 51630 | AZ51: 52482 | BA51: 54273 | BB51: 57174 | BC51: 62188 | BD51: 63264 | BE51: 64386 | BF51: 63494 | BG51: 65333 | BH51: 65200 | BI51: 64970 | BJ51: 64110 | BK51: 62797 | BL51: 59811 | BM51: 59898 | BN51: 57699 | BO51: 54898 | BP51: 53254 | BQ51: 52658 | BR51: 51199 | BS51: 50872 | BT51: 49679 | BU51: 49222 | BV51: 45366 | BW51: 43135 | BX51: 41037 | BY51: 38808 | BZ51: 36404 | CA51: 34454 | CB51: 31885 | CC51: 30168 | CD51: 28508 | CE51: 26969 | CF51: 26566 | CG51: 25628 | CH51: 24541 | CI51: 24447 | CJ51: 24136 | CK51: 23097 | CL51: 21877 | CM51: 19930 | CN51: 18864 | CO51: 17128 | CP51: 15735 | CQ51: 14461 | CR51: 12579 | CS51: 10878 | CT51: 41546
A52: Québec | B52: 99 | C52: Ensemble du Québec | D52: 2012 | E52: Estimation | F52: Total | G52: 8061101 | H52: 87966 | I52: 88637 | J52: 88673 | K52: 89334 | L52: 87879 | M52: 84988 | N52: 81710 | O52: 78309 | P52: 78152 | Q52: 76850 | R52: 77796 | S52: 78076 | T52: 79987 | U52: 80381 | V52: 83531 | W52: 88087 | X52: 92877 | Y52: 95855 | Z52: 99146 | AA52: 103542 | AB52: 107923 | AC52: 110395 | AD52: 108858 | AE52: 103199 | AF52: 99279 | AG52: 99277 | AH52: 102373 | AI52: 103948 | AJ52: 106113 | AK52: 106761 | AL52: 110880 | AM52: 115284 | AN52: 115817 | AO52: 113170 | AP52: 111449 | AQ52: 110799 | AR52: 108539 | AS52: 107840 | AT52: 102829 | AU52: 100269 | AV52: 100937 | AW52: 105038 | AX52: 106092 | AY52: 105278 | AZ52: 106366 | BA52: 110231 | BB52: 116467 | BC52: 126049 | BD52: 128392 | BE52: 130054 | BF52: 128507 | BG52: 131866 | BH52: 130804 | BI52: 130178 | BJ52: 129375 | BK52: 126463 | BL52: 120791 | BM52: 120464 | BN52: 115850 | BO52: 109971 | BP52: 106858 | BQ52: 105462 | BR52: 102127 | BS52: 100893 | BT52: 98273 | BU52: 97134 | BV52: 89141 | BW52: 84191 | BX52: 79361 | BY52: 75114 | BZ52: 69642 | CA52: 65633 | CB52: 60014 | CC52: 56651 | CD52: 52928 | CE52: 49452 | CF52: 48188 | CG52: 45907 | CH52: 43497 | CI52: 43109 | CJ52: 41816 | CK52: 39056 | CL52: 36440 | CM52: 32601 | CN52: 30213 | CO52: 26866 | CP52: 24208 | CQ52: 21549 | CR52: 18280 | CS52: 15627 | CT52: 54919
A53: Québec | B53: 99 | C53: Ensemble du Québec | D53: 2013 | E53: Estimation | F53: Masculin | G53: 4032124 | H53: 45856 | I53: 45117 | J53: 45530 | K53: 45443 | L53: 45813 | M53: 44960 | N53: 43681 | O53: 41817 | P53: 40176 | Q53: 40081 | R53: 39484 | S53: 39994 | T53: 40526 | U53: 41429 | V53: 41612 | W53: 42963 | X53: 45497 | Y53: 47412 | Z53: 49291 | AA53: 51536 | AB53: 53232 | AC53: 54955 | AD53: 56444 | AE53: 55608 | AF53: 53057 | AG53: 50717 | AH53: 50605 | AI53: 52546 | AJ53: 53226 | AK53: 54419 | AL53: 54529 | AM53: 57096 | AN53: 58987 | AO53: 59336 | AP53: 57725 | AQ53: 56880 | AR53: 56507 | AS53: 55494 | AT53: 55243 | AU53: 52245 | AV53: 51280 | AW53: 51435 | AX53: 53725 | AY53: 54219 | AZ53: 53521 | BA53: 53723 | BB53: 55850 | BC53: 59257 | BD53: 63911 | BE53: 65151 | BF53: 65686 | BG53: 64851 | BH53: 66453 | BI53: 65434 | BJ53: 64989 | BK53: 65037 | BL53: 63357 | BM53: 60648 | BN53: 60276 | BO53: 57783 | BP53: 54686 | BQ53: 53185 | BR53: 52363 | BS53: 50358 | BT53: 49485 | BU53: 47935 | BV53: 47309 | BW53: 43106 | BX53: 40370 | BY53: 37714 | BZ53: 35660 | CA53: 32508 | CB53: 30446 | CC53: 27351 | CD53: 25719 | CE53: 23665 | CF53: 21727 | CG53: 20801 | CH53: 19418 | CI53: 18032 | CJ53: 17735 | CK53: 16694 | CL53: 14957 | CM53: 13479 | CN53: 11624 | CO53: 10259 | CP53: 8761 | CQ53: 7528 | CR53: 6208 | CS53: 4859 | CT53: 14527
A54: Québec | B54: 99 | C54: Ensemble du Québec | D54: 2013 | E54: Estimation | F54: Féminin | G54: 4078756 | H54: 42805 | I54: 43203 | J54: 43506 | K54: 43792 | L54: 44113 | M54: 43457 | N54: 41802 | O54: 40375 | P54: 38534 | Q54: 38583 | R54: 37891 | S54: 38460 | T54: 38241 | U54: 39372 | V54: 39482 | W54: 41202 | X54: 43130 | Y54: 45804 | Z54: 47615 | AA54: 49603 | AB54: 51434 | AC54: 53436 | AD54: 54244 | AE54: 53359 | AF54: 50208 | AG54: 48674 | AH54: 49065 | AI54: 50496 | AJ54: 51572 | AK54: 52341 | AL54: 52839 | AM54: 54445 | AN54: 56697 | AO54: 56955 | AP54: 55802 | AQ54: 54910 | AR54: 54675 | AS54: 53255 | AT54: 53032 | AU54: 50676 | AV54: 49131 | AW54: 49592 | AX54: 51478 | AY54: 52119 | AZ54: 51769 | BA54: 52586 | BB54: 54362 | BC54: 57327 | BD54: 62444 | BE54: 63440 | BF54: 64559 | BG54: 63489 | BH54: 65332 | BI54: 65163 | BJ54: 64886 | BK54: 64128 | BL54: 62805 | BM54: 59720 | BN54: 59903 | BO54: 57683 | BP54: 54773 | BQ54: 53099 | BR54: 52545 | BS54: 50850 | BT54: 50568 | BU54: 49290 | BV54: 48782 | BW54: 44841 | BX54: 42541 | BY54: 40354 | BZ54: 38081 | CA54: 35713 | CB54: 33744 | CC54: 31211 | CD54: 29451 | CE54: 27768 | CF54: 26148 | CG54: 25759 | CH54: 24795 | CI54: 23655 | CJ54: 23459 | CK54: 23109 | CL54: 21992 | CM54: 20655 | CN54: 18639 | CO54: 17618 | CP54: 15794 | CQ54: 14381 | CR54: 13123 | CS54: 11343 | CT54: 43674
A55: Québec | B55: 99 | C55: Ensemble du Québec | D55: 2013 | E55: Estimation | F55: Total | G55: 8110880 | H55: 88661 | I55: 88320 | J55: 89036 | K55: 89235 | L55: 89926 | M55: 88417 | N55: 85483 | O55: 82192 | P55: 78710 | Q55: 78664 | R55: 77375 | S55: 78454 | T55: 78767 | U55: 80801 | V55: 81094 | W55: 84165 | X55: 88627 | Y55: 93216 | Z55: 96906 | AA55: 101139 | AB55: 104666 | AC55: 108391 | AD55: 110688 | AE55: 108967 | AF55: 103265 | AG55: 99391 | AH55: 99670 | AI55: 103042 | AJ55: 104798 | AK55: 106760 | AL55: 107368 | AM55: 111541 | AN55: 115684 | AO55: 116291 | AP55: 113527 | AQ55: 111790 | AR55: 111182 | AS55: 108749 | AT55: 108275 | AU55: 102921 | AV55: 100411 | AW55: 101027 | AX55: 105203 | AY55: 106338 | AZ55: 105290 | BA55: 106309 | BB55: 110212 | BC55: 116584 | BD55: 126355 | BE55: 128591 | BF55: 130245 | BG55: 128340 | BH55: 131785 | BI55: 130597 | BJ55: 129875 | BK55: 129165 | BL55: 126162 | BM55: 120368 | BN55: 120179 | BO55: 115466 | BP55: 109459 | BQ55: 106284 | BR55: 104908 | BS55: 101208 | BT55: 100053 | BU55: 97225 | BV55: 96091 | BW55: 87947 | BX55: 82911 | BY55: 78068 | BZ55: 73741 | CA55: 68221 | CB55: 64190 | CC55: 58562 | CD55: 55170 | CE55: 51433 | CF55: 47875 | CG55: 46560 | CH55: 44213 | CI55: 41687 | CJ55: 41194 | CK55: 39803 | CL55: 36949 | CM55: 34134 | CN55: 30263 | CO55: 27877 | CP55: 24555 | CQ55: 21909 | CR55: 19331 | CS55: 16202 | CT55: 58201
A56: Québec | B56: 99 | C56: Ensemble du Québec | D56: 2014 | E56: Estimation | F56: Masculin | G56: 4053655 | H56: 44902 | I56: 45895 | J56: 45284 | K56: 45565 | L56: 45628 | M56: 46027 | N56: 45115 | O56: 43817 | P56: 41922 | Q56: 40313 | R56: 40300 | S56: 39676 | T56: 40241 | U56: 40797 | V56: 41807 | W56: 41961 | X56: 43290 | Y56: 45801 | Z56: 48179 | AA56: 50480 | AB56: 52191 | AC56: 53724 | AD56: 55490 | AE56: 56631 | AF56: 55602 | AG56: 52967 | AH56: 50531 | AI56: 50515 | AJ56: 52595 | AK56: 53345 | AL56: 54581 | AM56: 54534 | AN56: 57138 | AO56: 58970 | AP56: 59408 | AQ56: 57692 | AR56: 56833 | AS56: 56512 | AT56: 55440 | AU56: 55263 | AV56: 52101 | AW56: 51141 | AX56: 51287 | AY56: 53564 | AZ56: 54083 | BA56: 53285 | BB56: 53524 | BC56: 55659 | BD56: 59126 | BE56: 63882 | BF56: 65037 | BG56: 65585 | BH56: 64649 | BI56: 66348 | BJ56: 65216 | BK56: 64702 | BL56: 64716 | BM56: 63060 | BN56: 60279 | BO56: 59913 | BP56: 57407 | BQ56: 54230 | BR56: 52704 | BS56: 51902 | BT56: 49765 | BU56: 48871 | BV56: 47237 | BW56: 46702 | BX56: 42401 | BY56: 39691 | BZ56: 36980 | CA56: 34956 | CB56: 31842 | CC56: 29676 | CD56: 26554 | CE56: 24939 | CF56: 22890 | CG56: 20868 | CH56: 19966 | CI56: 18544 | CJ56: 17097 | CK56: 16808 | CL56: 15702 | CM56: 13935 | CN56: 12397 | CO56: 10656 | CP56: 9269 | CQ56: 7831 | CR56: 6666 | CS56: 5391 | CT56: 15659
A57: Québec | B57: 99 | C57: Ensemble du Québec | D57: 2014 | E57: Estimation | F57: Féminin | G57: 4096528 | H57: 43239 | I57: 43015 | J57: 43458 | K57: 43604 | L57: 43952 | M57: 44367 | N57: 43642 | O57: 41989 | P57: 40585 | Q57: 38685 | R57: 38798 | S57: 38137 | T57: 38713 | U57: 38527 | V57: 39717 | W57: 39770 | X57: 41470 | Y57: 43223 | Z57: 46294 | AA57: 48456 | AB57: 49729 | AC57: 51329 | AD57: 53136 | AE57: 53966 | AF57: 53033 | AG57: 50002 | AH57: 48506 | AI57: 49096 | AJ57: 50577 | AK57: 51725 | AL57: 52566 | AM57: 53081 | AN57: 54631 | AO57: 56949 | AP57: 57210 | AQ57: 56064 | AR57: 54991 | AS57: 54865 | AT57: 53355 | AU57: 53134 | AV57: 50712 | AW57: 49138 | AX57: 49696 | AY57: 51563 | AZ57: 52243 | BA57: 51846 | BB57: 52621 | BC57: 54428 | BD57: 57397 | BE57: 62636 | BF57: 63513 | BG57: 64642 | BH57: 63466 | BI57: 65273 | BJ57: 65091 | BK57: 64817 | BL57: 64128 | BM57: 62764 | BN57: 59644 | BO57: 59833 | BP57: 57595 | BQ57: 54601 | BR57: 52895 | BS57: 52364 | BT57: 50501 | BU57: 50214 | BV57: 48825 | BW57: 48325 | BX57: 44222 | BY57: 41921 | BZ57: 39650 | CA57: 37327 | CB57: 34983 | CC57: 33023 | CD57: 30446 | CE57: 28704 | CF57: 27005 | CG57: 25299 | CH57: 24925 | CI57: 23925 | CJ57: 22810 | CK57: 22448 | CL57: 22066 | CM57: 20859 | CN57: 19395 | CO57: 17377 | CP57: 16347 | CQ57: 14431 | CR57: 13133 | CS57: 11816 | CT57: 46059
A58: Québec | B58: 99 | C58: Ensemble du Québec | D58: 2014 | E58: Estimation | F58: Total | G58: 8150183 | H58: 88141 | I58: 88910 | J58: 88742 | K58: 89169 | L58: 89580 | M58: 90394 | N58: 88757 | O58: 85806 | P58: 82507 | Q58: 78998 | R58: 79098 | S58: 77813 | T58: 78954 | U58: 79324 | V58: 81524 | W58: 81731 | X58: 84760 | Y58: 89024 | Z58: 94473 | AA58: 98936 | AB58: 101920 | AC58: 105053 | AD58: 108626 | AE58: 110597 | AF58: 108635 | AG58: 102969 | AH58: 99037 | AI58: 99611 | AJ58: 103172 | AK58: 105070 | AL58: 107147 | AM58: 107615 | AN58: 111769 | AO58: 115919 | AP58: 116618 | AQ58: 113756 | AR58: 111824 | AS58: 111377 | AT58: 108795 | AU58: 108397 | AV58: 102813 | AW58: 100279 | AX58: 100983 | AY58: 105127 | AZ58: 106326 | BA58: 105131 | BB58: 106145 | BC58: 110087 | BD58: 116523 | BE58: 126518 | BF58: 128550 | BG58: 130227 | BH58: 128115 | BI58: 131621 | BJ58: 130307 | BK58: 129519 | BL58: 128844 | BM58: 125824 | BN58: 119923 | BO58: 119746 | BP58: 115002 | BQ58: 108831 | BR58: 105599 | BS58: 104266 | BT58: 100266 | BU58: 99085 | BV58: 96062 | BW58: 95027 | BX58: 86623 | BY58: 81612 | BZ58: 76630 | CA58: 72283 | CB58: 66825 | CC58: 62699 | CD58: 57000 | CE58: 53643 | CF58: 49895 | CG58: 46167 | CH58: 44891 | CI58: 42469 | CJ58: 39907 | CK58: 39256 | CL58: 37768 | CM58: 34794 | CN58: 31792 | CO58: 28033 | CP58: 25616 | CQ58: 22262 | CR58: 19799 | CS58: 17207 | CT58: 61718
A59: Québec | B59: 99 | C59: Ensemble du Québec | D59: 2015 | E59: Estimation | F59: Masculin | G59: 4067889 | H59: 44306 | I59: 44942 | J59: 45971 | K59: 45314 | L59: 45557 | M59: 45748 | N59: 46149 | O59: 45235 | P59: 43941 | Q59: 42035 | R59: 40409 | S59: 40504 | T59: 39904 | U59: 40475 | V59: 41105 | W59: 42170 | X59: 42331 | Y59: 43707 | Z59: 46682 | AA59: 49359 | AB59: 51133 | AC59: 52602 | AD59: 54089 | AE59: 55638 | AF59: 56482 | AG59: 55360 | AH59: 52571 | AI59: 50299 | AJ59: 50147 | AK59: 52463 | AL59: 53189 | AM59: 54340 | AN59: 54234 | AO59: 56969 | AP59: 58675 | AQ59: 59238 | AR59: 57478 | AS59: 56588 | AT59: 56338 | AU59: 55297 | AV59: 55139 | AW59: 51834 | AX59: 50943 | AY59: 51068 | AZ59: 53465 | BA59: 53934 | BB59: 53013 | BC59: 53243 | BD59: 55433 | BE59: 59034 | BF59: 63831 | BG59: 64932 | BH59: 65478 | BI59: 64473 | BJ59: 66191 | BK59: 64931 | BL59: 64439 | BM59: 64467 | BN59: 62774 | BO59: 59873 | BP59: 59542 | BQ59: 56975 | BR59: 53710 | BS59: 52208 | BT59: 51395 | BU59: 49151 | BV59: 48201 | BW59: 46469 | BX59: 45963 | BY59: 41555 | BZ59: 38905 | CA59: 36209 | CB59: 34178 | CC59: 31014 | CD59: 28855 | CE59: 25679 | CF59: 24056 | CG59: 22046 | CH59: 19953 | CI59: 19045 | CJ59: 17567 | CK59: 16068 | CL59: 15759 | CM59: 14581 | CN59: 12868 | CO59: 11306 | CP59: 9610 | CQ59: 8206 | CR59: 6853 | CS59: 5734 | CT59: 16759
A60: Québec | B60: 99 | C60: Ensemble du Québec | D60: 2015 | E60: Estimation | F60: Féminin | G60: 4107383 | H60: 42730 | I60: 43426 | J60: 43256 | K60: 43617 | L60: 43639 | M60: 44114 | N60: 44541 | O60: 43806 | P60: 42095 | Q60: 40749 | R60: 38797 | S60: 38975 | T60: 38345 | U60: 38987 | V60: 38853 | W60: 40141 | X60: 40167 | Y60: 41785 | Z60: 43924 | AA60: 47318 | AB60: 48804 | AC60: 49662 | AD60: 50987 | AE60: 52556 | AF60: 53424 | AG60: 52488 | AH60: 49441 | AI60: 48113 | AJ60: 48770 | AK60: 50459 | AL60: 51595 | AM60: 52484 | AN60: 53002 | AO60: 54626 | AP60: 56984 | AQ60: 57210 | AR60: 56061 | AS60: 54935 | AT60: 54885 | AU60: 53324 | AV60: 53195 | AW60: 50689 | AX60: 49110 | AY60: 49709 | AZ60: 51628 | BA60: 52334 | BB60: 51920 | BC60: 52676 | BD60: 54523 | BE60: 57479 | BF60: 62786 | BG60: 63565 | BH60: 64701 | BI60: 63362 | BJ60: 65226 | BK60: 65020 | BL60: 64753 | BM60: 64085 | BN60: 62749 | BO60: 59542 | BP60: 59737 | BQ60: 57456 | BR60: 54370 | BS60: 52640 | BT60: 52114 | BU60: 50032 | BV60: 49751 | BW60: 48310 | BX60: 47752 | BY60: 43627 | BZ60: 41249 | CA60: 38949 | CB60: 36529 | CC60: 34140 | CD60: 32245 | CE60: 29617 | CF60: 27863 | CG60: 26142 | CH60: 24407 | CI60: 24011 | CJ60: 22955 | CK60: 21775 | CL60: 21347 | CM60: 20871 | CN60: 19616 | CO60: 18057 | CP60: 16019 | CQ60: 15000 | CR60: 12961 | CS60: 11723 | CT60: 47991
A61: Québec | B61: 99 | C61: Ensemble du Québec | D61: 2015 | E61: Estimation | F61: Total | G61: 8175272 | H61: 87036 | I61: 88368 | J61: 89227 | K61: 88931 | L61: 89196 | M61: 89862 | N61: 90690 | O61: 89041 | P61: 86036 | Q61: 82784 | R61: 79206 | S61: 79479 | T61: 78249 | U61: 79462 | V61: 79958 | W61: 82311 | X61: 82498 | Y61: 85492 | Z61: 90606 | AA61: 96677 | AB61: 99937 | AC61: 102264 | AD61: 105076 | AE61: 108194 | AF61: 109906 | AG61: 107848 | AH61: 102012 | AI61: 98412 | AJ61: 98917 | AK61: 102922 | AL61: 104784 | AM61: 106824 | AN61: 107236 | AO61: 111595 | AP61: 115659 | AQ61: 116448 | AR61: 113539 | AS61: 111523 | AT61: 111223 | AU61: 108621 | AV61: 108334 | AW61: 102523 | AX61: 100053 | AY61: 100777 | AZ61: 105093 | BA61: 106268 | BB61: 104933 | BC61: 105919 | BD61: 109956 | BE61: 116513 | BF61: 126617 | BG61: 128497 | BH61: 130179 | BI61: 127835 | BJ61: 131417 | BK61: 129951 | BL61: 129192 | BM61: 128552 | BN61: 125523 | BO61: 119415 | BP61: 119279 | BQ61: 114431 | BR61: 108080 | BS61: 104848 | BT61: 103509 | BU61: 99183 | BV61: 97952 | BW61: 94779 | BX61: 93715 | BY61: 85182 | BZ61: 80154 | CA61: 75158 | CB61: 70707 | CC61: 65154 | CD61: 61100 | CE61: 55296 | CF61: 51919 | CG61: 48188 | CH61: 44360 | CI61: 43056 | CJ61: 40522 | CK61: 37843 | CL61: 37106 | CM61: 35452 | CN61: 32484 | CO61: 29363 | CP61: 25629 | CQ61: 23206 | CR61: 19814 | CS61: 17457 | CT61: 64750
A62: Québec | B62: 99 | C62: Ensemble du Québec | D62: 2016 | E62: Estimation | F62: Masculin | G62: 4095582 | H62: 44451 | I62: 44523 | J62: 45226 | K62: 45973 | L62: 45603 | M62: 45651 | N62: 46105 | O62: 46302 | P62: 45445 | Q62: 44054 | R62: 42295 | S62: 40812 | T62: 40767 | U62: 40309 | V62: 40886 | W62: 41509 | X62: 42579 | Y62: 43018 | Z62: 44837 | AA62: 48173 | AB62: 50334 | AC62: 52033 | AD62: 53210 | AE62: 54828 | AF62: 56289 | AG62: 56670 | AH62: 55457 | AI62: 52922 | AJ62: 50762 | AK62: 50631 | AL62: 52534 | AM62: 53408 | AN62: 54301 | AO62: 54507 | AP62: 56890 | AQ62: 58466 | AR62: 59031 | AS62: 57501 | AT62: 56637 | AU62: 56281 | AV62: 55356 | AW62: 54857 | AX62: 51993 | AY62: 51059 | AZ62: 51231 | BA62: 53219 | BB62: 53747 | BC62: 53013 | BD62: 53352 | BE62: 55482 | BF62: 59115 | BG62: 63480 | BH62: 64780 | BI62: 65216 | BJ62: 64579 | BK62: 65806 | BL62: 64727 | BM62: 64241 | BN62: 64042 | BO62: 62341 | BP62: 59747 | BQ62: 58898 | BR62: 56430 | BS62: 53406 | BT62: 51798 | BU62: 50740 | BV62: 48626 | BW62: 47553 | BX62: 45842 | BY62: 44826 | BZ62: 40913 | CA62: 38125 | CB62: 35499 | CC62: 33240 | CD62: 30309 | CE62: 27963 | CF62: 24957 | CG62: 23153 | CH62: 21139 | CI62: 19125 | CJ62: 18093 | CK62: 16627 | CL62: 15251 | CM62: 14673 | CN62: 13436 | CO62: 11808 | CP62: 10213 | CQ62: 8600 | CR62: 7316 | CS62: 6033 | CT62: 18397
A63: Québec | B63: 99 | C63: Ensemble du Québec | D63: 2016 | E63: Estimation | F63: Féminin | G63: 4130368 | H63: 42170 | I63: 43263 | J63: 43701 | K63: 43668 | L63: 43911 | M63: 43869 | N63: 44412 | O63: 44784 | P63: 43931 | Q63: 42378 | R63: 40957 | S63: 39238 | T63: 39191 | U63: 38806 | V63: 39313 | W63: 39432 | X63: 40679 | Y63: 40883 | Z63: 42879 | AA63: 45477 | AB63: 48088 | AC63: 49261 | AD63: 49779 | AE63: 50977 | AF63: 52417 | AG63: 53023 | AH63: 52167 | AI63: 49535 | AJ63: 48433 | AK63: 48970 | AL63: 50592 | AM63: 51807 | AN63: 52662 | AO63: 53221 | AP63: 54893 | AQ63: 56864 | AR63: 57214 | AS63: 56126 | AT63: 55097 | AU63: 54899 | AV63: 53488 | AW63: 53054 | AX63: 50878 | AY63: 49458 | AZ63: 49919 | BA63: 51617 | BB63: 52411 | BC63: 52156 | BD63: 52902 | BE63: 54744 | BF63: 57820 | BG63: 62466 | BH63: 63587 | BI63: 64538 | BJ63: 63627 | BK63: 64957 | BL63: 64918 | BM63: 64662 | BN63: 63948 | BO63: 62553 | BP63: 59746 | BQ63: 59368 | BR63: 57286 | BS63: 54305 | BT63: 52510 | BU63: 51719 | BV63: 49731 | BW63: 49213 | BX63: 47873 | BY63: 46838 | BZ63: 43223 | CA63: 40570 | CB63: 38208 | CC63: 35787 | CD63: 33391 | CE63: 31407 | CF63: 28816 | CG63: 27097 | CH63: 25252 | CI63: 23637 | CJ63: 23063 | CK63: 21949 | CL63: 20894 | CM63: 20214 | CN63: 19622 | CO63: 18320 | CP63: 16740 | CQ63: 14788 | CR63: 13639 | CS63: 11704 | CT63: 50788
A64: Québec | B64: 99 | C64: Ensemble du Québec | D64: 2016 | E64: Estimation | F64: Total | G64: 8225950 | H64: 86621 | I64: 87786 | J64: 88927 | K64: 89641 | L64: 89514 | M64: 89520 | N64: 90517 | O64: 91086 | P64: 89376 | Q64: 86432 | R64: 83252 | S64: 80050 | T64: 79958 | U64: 79115 | V64: 80199 | W64: 80941 | X64: 83258 | Y64: 83901 | Z64: 87716 | AA64: 93650 | AB64: 98422 | AC64: 101294 | AD64: 102989 | AE64: 105805 | AF64: 108706 | AG64: 109693 | AH64: 107624 | AI64: 102457 | AJ64: 99195 | AK64: 99601 | AL64: 103126 | AM64: 105215 | AN64: 106963 | AO64: 107728 | AP64: 111783 | AQ64: 115330 | AR64: 116245 | AS64: 113627 | AT64: 111734 | AU64: 111180 | AV64: 108844 | AW64: 107911 | AX64: 102871 | AY64: 100517 | AZ64: 101150 | BA64: 104836 | BB64: 106158 | BC64: 105169 | BD64: 106254 | BE64: 110226 | BF64: 116935 | BG64: 125946 | BH64: 128367 | BI64: 129754 | BJ64: 128206 | BK64: 130763 | BL64: 129645 | BM64: 128903 | BN64: 127990 | BO64: 124894 | BP64: 119493 | BQ64: 118266 | BR64: 113716 | BS64: 107711 | BT64: 104308 | BU64: 102459 | BV64: 98357 | BW64: 96766 | BX64: 93715 | BY64: 91664 | BZ64: 84136 | CA64: 78695 | CB64: 73707 | CC64: 69027 | CD64: 63700 | CE64: 59370 | CF64: 53773 | CG64: 50250 | CH64: 46391 | CI64: 42762 | CJ64: 41156 | CK64: 38576 | CL64: 36145 | CM64: 34887 | CN64: 33058 | CO64: 30128 | CP64: 26953 | CQ64: 23388 | CR64: 20955 | CS64: 17737 | CT64: 69185
A65: Québec | B65: 99 | C65: Ensemble du Québec | D65: 2017 | E65: Estimation | F65: Masculin | G65: 4136223 | H65: 43271 | I65: 44768 | J65: 44959 | K65: 45669 | L65: 46462 | M65: 46017 | N65: 46129 | O65: 46590 | P65: 46757 | Q65: 45841 | R65: 44427 | S65: 42620 | T65: 41133 | U65: 41044 | V65: 40632 | W65: 41221 | X65: 41937 | Y65: 43079 | Z65: 44055 | AA65: 46626 | AB65: 49522 | AC65: 51404 | AD65: 52942 | AE65: 54078 | AF65: 55656 | AG65: 57085 | AH65: 57507 | AI65: 56216 | AJ65: 53615 | AK65: 51585 | AL65: 51437 | AM65: 53370 | AN65: 54144 | AO65: 54983 | AP65: 55210 | AQ65: 57444 | AR65: 58992 | AS65: 59498 | AT65: 57921 | AU65: 57045 | AV65: 56640 | AW65: 55609 | AX65: 55098 | AY65: 52198 | AZ65: 51224 | BA65: 51341 | BB65: 53330 | BC65: 53830 | BD65: 53083 | BE65: 53356 | BF65: 55498 | BG65: 59076 | BH65: 63347 | BI65: 64599 | BJ65: 65072 | BK65: 64404 | BL65: 65577 | BM65: 64458 | BN65: 63916 | BO65: 63694 | BP65: 61979 | BQ65: 59379 | BR65: 58467 | BS65: 55995 | BT65: 53018 | BU65: 51292 | BV65: 50173 | BW65: 48033 | BX65: 46919 | BY65: 45203 | BZ65: 44138 | CA65: 40174 | CB65: 37450 | CC65: 34717 | CD65: 32426 | CE65: 29495 | CF65: 27153 | CG65: 24128 | CH65: 22322 | CI65: 20327 | CJ65: 18206 | CK65: 17146 | CL65: 15725 | CM65: 14295 | CN65: 13650 | CO65: 12330 | CP65: 10732 | CQ65: 9168 | CR65: 7615 | CS65: 6360 | CT65: 19967
A66: Québec | B66: 99 | C66: Ensemble du Québec | D66: 2017 | E66: Estimation | F66: Féminin | G66: 4165840 | H66: 41142 | I66: 42432 | J66: 43669 | K66: 44098 | L66: 44087 | M66: 44349 | N66: 44314 | O66: 44837 | P66: 45116 | Q66: 44243 | R66: 42704 | S66: 41266 | T66: 39515 | U66: 39421 | V66: 39129 | W66: 39657 | X66: 39846 | Y66: 41150 | Z66: 41917 | AA66: 44660 | AB66: 46692 | AC66: 48876 | AD66: 49763 | AE66: 50403 | AF66: 51679 | AG66: 53257 | AH66: 53771 | AI66: 53126 | AJ66: 50508 | AK66: 49376 | AL66: 49924 | AM66: 51486 | AN66: 52594 | AO66: 53325 | AP66: 53865 | AQ66: 55505 | AR66: 57426 | AS66: 57671 | AT66: 56493 | AU66: 55448 | AV66: 55240 | AW66: 53696 | AX66: 53282 | AY66: 51104 | AZ66: 49605 | BA66: 50023 | BB66: 51756 | BC66: 52517 | BD66: 52202 | BE66: 52923 | BF66: 54731 | BG66: 57788 | BH66: 62418 | BI66: 63478 | BJ66: 64433 | BK66: 63473 | BL66: 64835 | BM66: 64715 | BN66: 64479 | BO66: 63745 | BP66: 62303 | BQ66: 59507 | BR66: 59098 | BS66: 56976 | BT66: 53988 | BU66: 52232 | BV66: 51358 | BW66: 49359 | BX66: 48825 | BY66: 47434 | BZ66: 46344 | CA66: 42698 | CB66: 40070 | CC66: 37623 | CD66: 35160 | CE66: 32773 | CF66: 30701 | CG66: 28144 | CH66: 26435 | CI66: 24517 | CJ66: 22836 | CK66: 22270 | CL66: 21049 | CM66: 19931 | CN66: 19215 | CO66: 18534 | CP66: 17198 | CQ66: 15523 | CR66: 13534 | CS66: 12342 | CT66: 52680
A67: Québec | B67: 99 | C67: Ensemble du Québec | D67: 2017 | E67: Estimation | F67: Total | G67: 8302063 | H67: 84413 | I67: 87200 | J67: 88628 | K67: 89767 | L67: 90549 | M67: 90366 | N67: 90443 | O67: 91427 | P67: 91873 | Q67: 90084 | R67: 87131 | S67: 83886 | T67: 80648 | U67: 80465 | V67: 79761 | W67: 80878 | X67: 81783 | Y67: 84229 | Z67: 85972 | AA67: 91286 | AB67: 96214 | AC67: 100280 | AD67: 102705 | AE67: 104481 | AF67: 107335 | AG67: 110342 | AH67: 111278 | AI67: 109342 | AJ67: 104123 | AK67: 100961 | AL67: 101361 | AM67: 104856 | AN67: 106738 | AO67: 108308 | AP67: 109075 | AQ67: 112949 | AR67: 116418 | AS67: 117169 | AT67: 114414 | AU67: 112493 | AV67: 111880 | AW67: 109305 | AX67: 108380 | AY67: 103302 | AZ67: 100829 | BA67: 101364 | BB67: 105086 | BC67: 106347 | BD67: 105285 | BE67: 106279 | BF67: 110229 | BG67: 116864 | BH67: 125765 | BI67: 128077 | BJ67: 129505 | BK67: 127877 | BL67: 130412 | BM67: 129173 | BN67: 128395 | BO67: 127439 | BP67: 124282 | BQ67: 118886 | BR67: 117565 | BS67: 112971 | BT67: 107006 | BU67: 103524 | BV67: 101531 | BW67: 97392 | BX67: 95744 | BY67: 92637 | BZ67: 90482 | CA67: 82872 | CB67: 77520 | CC67: 72340 | CD67: 67586 | CE67: 62268 | CF67: 57854 | CG67: 52272 | CH67: 48757 | CI67: 44844 | CJ67: 41042 | CK67: 39416 | CL67: 36774 | CM67: 34226 | CN67: 32865 | CO67: 30864 | CP67: 27930 | CQ67: 24691 | CR67: 21149 | CS67: 18702 | CT67: 72647
A68: Québec | B68: 99 | C68: Ensemble du Québec | D68: 2018 | E68: Estimation | F68: Masculin | G68: 4190251 | H68: 42815 | I68: 43824 | J68: 45494 | K68: 45721 | L68: 46413 | M68: 47259 | N68: 46800 | O68: 46883 | P68: 47296 | Q68: 47381 | R68: 46396 | S68: 44956 | T68: 43067 | U68: 41584 | V68: 41479 | W68: 41117 | X68: 41718 | Y68: 42502 | Z68: 44416 | AA68: 46115 | AB68: 48088 | AC68: 50724 | AD68: 52486 | AE68: 54044 | AF68: 55154 | AG68: 56633 | AH68: 58165 | AI68: 58710 | AJ68: 57380 | AK68: 54726 | AL68: 52637 | AM68: 52614 | AN68: 54512 | AO68: 55273 | AP68: 56131 | AQ68: 56336 | AR68: 58555 | AS68: 59941 | AT68: 60331 | AU68: 58673 | AV68: 57874 | AW68: 57309 | AX68: 56222 | AY68: 55663 | AZ68: 52676 | BA68: 51682 | BB68: 51665 | BC68: 53614 | BD68: 54022 | BE68: 53247 | BF68: 53500 | BG68: 55590 | BH68: 59073 | BI68: 63343 | BJ68: 64544 | BK68: 64955 | BL68: 64270 | BM68: 65326 | BN68: 64238 | BO68: 63659 | BP68: 63355 | BQ68: 61586 | BR68: 58978 | BS68: 58024 | BT68: 55508 | BU68: 52593 | BV68: 50738 | BW68: 49597 | BX68: 47425 | BY68: 46235 | BZ68: 44457 | CA68: 43439 | CB68: 39460 | CC68: 36633 | CD68: 33883 | CE68: 31578 | CF68: 28681 | CG68: 26256 | CH68: 23221 | CI68: 21420 | CJ68: 19453 | CK68: 17279 | CL68: 16147 | CM68: 14752 | CN68: 13277 | CO68: 12521 | CP68: 11158 | CQ68: 9694 | CR68: 8078 | CS68: 6643 | CT68: 21361
A69: Québec | B69: 99 | C69: Ensemble du Québec | D69: 2018 | E69: Estimation | F69: Féminin | G69: 4211487 | H69: 41077 | I69: 41676 | J69: 43064 | K69: 44345 | L69: 44772 | M69: 44766 | N69: 45060 | O69: 44999 | P69: 45481 | Q69: 45717 | R69: 44787 | S69: 43192 | T69: 41731 | U69: 39905 | V69: 39823 | W69: 39612 | X69: 40193 | Y69: 40435 | Z69: 42570 | AA69: 43976 | AB69: 46003 | AC69: 47555 | AD69: 49455 | AE69: 50450 | AF69: 51095 | AG69: 52533 | AH69: 54126 | AI69: 54915 | AJ69: 54216 | AK69: 51552 | AL69: 50581 | AM69: 51056 | AN69: 52643 | AO69: 53686 | AP69: 54447 | AQ69: 54965 | AR69: 56468 | AS69: 58268 | AT69: 58461 | AU69: 57157 | AV69: 56078 | AW69: 55719 | AX69: 54155 | AY69: 53678 | AZ69: 51452 | BA69: 49962 | BB69: 50256 | BC69: 51948 | BD69: 52641 | BE69: 52329 | BF69: 52979 | BG69: 54783 | BH69: 57809 | BI69: 62401 | BJ69: 63459 | BK69: 64361 | BL69: 63338 | BM69: 64699 | BN69: 64611 | BO69: 64287 | BP69: 63508 | BQ69: 62062 | BR69: 59261 | BS69: 58803 | BT69: 56638 | BU69: 53648 | BV69: 51894 | BW69: 50948 | BX69: 48998 | BY69: 48411 | BZ69: 46990 | CA69: 45832 | CB69: 42129 | CC69: 39458 | CD69: 36989 | CE69: 34555 | CF69: 32141 | CG69: 30004 | CH69: 27435 | CI69: 25690 | CJ69: 23763 | CK69: 22008 | CL69: 21431 | CM69: 20053 | CN69: 18871 | CO69: 18065 | CP69: 17304 | CQ69: 15954 | CR69: 14137 | CS69: 12193 | CT69: 54556
A70: Québec | B70: 99 | C70: Ensemble du Québec | D70: 2018 | E70: Estimation | F70: Total | G70: 8401738 | H70: 83892 | I70: 85500 | J70: 88558 | K70: 90066 | L70: 91185 | M70: 92025 | N70: 91860 | O70: 91882 | P70: 92777 | Q70: 93098 | R70: 91183 | S70: 88148 | T70: 84798 | U70: 81489 | V70: 81302 | W70: 80729 | X70: 81911 | Y70: 82937 | Z70: 86986 | AA70: 90091 | AB70: 94091 | AC70: 98279 | AD70: 101941 | AE70: 104494 | AF70: 106249 | AG70: 109166 | AH70: 112291 | AI70: 113625 | AJ70: 111596 | AK70: 106278 | AL70: 103218 | AM70: 103670 | AN70: 107155 | AO70: 108959 | AP70: 110578 | AQ70: 111301 | AR70: 115023 | AS70: 118209 | AT70: 118792 | AU70: 115830 | AV70: 113952 | AW70: 113028 | AX70: 110377 | AY70: 109341 | AZ70: 104128 | BA70: 101644 | BB70: 101921 | BC70: 105562 | BD70: 106663 | BE70: 105576 | BF70: 106479 | BG70: 110373 | BH70: 116882 | BI70: 125744 | BJ70: 128003 | BK70: 129316 | BL70: 127608 | BM70: 130025 | BN70: 128849 | BO70: 127946 | BP70: 126863 | BQ70: 123648 | BR70: 118239 | BS70: 116827 | BT70: 112146 | BU70: 106241 | BV70: 102632 | BW70: 100545 | BX70: 96423 | BY70: 94646 | BZ70: 91447 | CA70: 89271 | CB70: 81589 | CC70: 76091 | CD70: 70872 | CE70: 66133 | CF70: 60822 | CG70: 56260 | CH70: 50656 | CI70: 47110 | CJ70: 43216 | CK70: 39287 | CL70: 37578 | CM70: 34805 | CN70: 32148 | CO70: 30586 | CP70: 28462 | CQ70: 25648 | CR70: 22215 | CS70: 18836 | CT70: 75917
A71: Québec | B71: 99 | C71: Ensemble du Québec | D71: 2019 | E71: Estimation | F71: Masculin | G71: 4246800 | H71: 42916 | I71: 43130 | J71: 44276 | K71: 46001 | L71: 46314 | M71: 47024 | N71: 47889 | O71: 47412 | P71: 47417 | Q71: 47832 | R71: 47909 | S71: 46850 | T71: 45356 | U71: 43486 | V71: 42007 | W71: 41932 | X71: 41623 | Y71: 42312 | Z71: 44241 | AA71: 47270 | AB71: 48112 | AC71: 49803 | AD71: 52494 | AE71: 54260 | AF71: 55786 | AG71: 56586 | AH71: 58021 | AI71: 59375 | AJ71: 59828 | AK71: 58602 | AL71: 55893 | AM71: 53667 | AN71: 53621 | AO71: 55458 | AP71: 56284 | AQ71: 57044 | AR71: 57282 | AS71: 59477 | AT71: 60696 | AU71: 61151 | AV71: 59373 | AW71: 58566 | AX71: 57894 | AY71: 56761 | AZ71: 56096 | BA71: 53135 | BB71: 52032 | BC71: 51930 | BD71: 53878 | BE71: 54279 | BF71: 53395 | BG71: 53604 | BH71: 55616 | BI71: 59114 | BJ71: 63304 | BK71: 64470 | BL71: 64847 | BM71: 64102 | BN71: 65068 | BO71: 63932 | BP71: 63320 | BQ71: 62978 | BR71: 61181 | BS71: 58561 | BT71: 57596 | BU71: 55012 | BV71: 52058 | BW71: 50256 | BX71: 48993 | BY71: 46838 | BZ71: 45533 | CA71: 43719 | CB71: 42678 | CC71: 38607 | CD71: 35819 | CE71: 33046 | CF71: 30646 | CG71: 27781 | CH71: 25339 | CI71: 22279 | CJ71: 20385 | CK71: 18492 | CL71: 16341 | CM71: 15173 | CN71: 13718 | CO71: 12277 | CP71: 11403 | CQ71: 10089 | CR71: 8639 | CS71: 7064 | CT71: 22946
A72: Québec | B72: 99 | C72: Ensemble du Québec | D72: 2019 | E72: Estimation | F72: Féminin | G72: 4256680 | H72: 40724 | I72: 41396 | J72: 42121 | K72: 43600 | L72: 44817 | M72: 45310 | N72: 45341 | O72: 45626 | P72: 45558 | Q72: 45993 | R72: 46221 | S72: 45189 | T72: 43636 | U72: 42189 | V72: 40310 | W72: 40228 | X72: 40074 | Y72: 40779 | Z72: 42072 | AA72: 45017 | AB72: 45472 | AC72: 47098 | AD72: 48324 | AE72: 50350 | AF72: 51463 | AG72: 52093 | AH72: 53666 | AI72: 55148 | AJ72: 55974 | AK72: 55271 | AL72: 52539 | AM72: 51526 | AN72: 52023 | AO72: 53490 | AP72: 54635 | AQ72: 55357 | AR72: 55798 | AS72: 57201 | AT72: 58934 | AU72: 59125 | AV72: 57727 | AW72: 56546 | AX72: 56121 | AY72: 54605 | AZ72: 54004 | BA72: 51745 | BB72: 50221 | BC72: 50527 | BD72: 52134 | BE72: 52815 | BF72: 52417 | BG72: 53046 | BH72: 54824 | BI72: 57859 | BJ72: 62379 | BK72: 63424 | BL72: 64308 | BM72: 63304 | BN72: 64577 | BO72: 64465 | BP72: 64122 | BQ72: 63264 | BR72: 61852 | BS72: 59046 | BT72: 58540 | BU72: 56362 | BV72: 53374 | BW72: 51541 | BX72: 50588 | BY72: 48602 | BZ72: 47955 | CA72: 46519 | CB72: 45228 | CC72: 41519 | CD72: 38836 | CE72: 36349 | CF72: 33886 | CG72: 31427 | CH72: 29318 | CI72: 26670 | CJ72: 24875 | CK72: 22975 | CL72: 21069 | CM72: 20447 | CN72: 19045 | CO72: 17789 | CP72: 16918 | CQ72: 15975 | CR72: 14669 | CS72: 12808 | CT72: 56376
A73: Québec | B73: 99 | C73: Ensemble du Québec | D73: 2019 | E73: Estimation | F73: Total | G73: 8503480 | H73: 83640 | I73: 84526 | J73: 86397 | K73: 89601 | L73: 91131 | M73: 92334 | N73: 93230 | O73: 93038 | P73: 92975 | Q73: 93825 | R73: 94130 | S73: 92039 | T73: 88992 | U73: 85675 | V73: 82317 | W73: 82160 | X73: 81697 | Y73: 83091 | Z73: 86313 | AA73: 92287 | AB73: 93584 | AC73: 96901 | AD73: 100818 | AE73: 104610 | AF73: 107249 | AG73: 108679 | AH73: 111687 | AI73: 114523 | AJ73: 115802 | AK73: 113873 | AL73: 108432 | AM73: 105193 | AN73: 105644 | AO73: 108948 | AP73: 110919 | AQ73: 112401 | AR73: 113080 | AS73: 116678 | AT73: 119630 | AU73: 120276 | AV73: 117100 | AW73: 115112 | AX73: 114015 | AY73: 111366 | AZ73: 110100 | BA73: 104880 | BB73: 102253 | BC73: 102457 | BD73: 106012 | BE73: 107094 | BF73: 105812 | BG73: 106650 | BH73: 110440 | BI73: 116973 | BJ73: 125683 | BK73: 127894 | BL73: 129155 | BM73: 127406 | BN73: 129645 | BO73: 128397 | BP73: 127442 | BQ73: 126242 | BR73: 123033 | BS73: 117607 | BT73: 116136 | BU73: 111374 | BV73: 105432 | BW73: 101797 | BX73: 99581 | BY73: 95440 | BZ73: 93488 | CA73: 90238 | CB73: 87906 | CC73: 80126 | CD73: 74655 | CE73: 69395 | CF73: 64532 | CG73: 59208 | CH73: 54657 | CI73: 48949 | CJ73: 45260 | CK73: 41467 | CL73: 37410 | CM73: 35620 | CN73: 32763 | CO73: 30066 | CP73: 28321 | CQ73: 26064 | CR73: 23308 | CS73: 19872 | CT73: 79322
A74: Québec | B74: 99 | C74: Ensemble du Québec | D74: 2020 | E74: Estimation | F74: Masculin | G74: 4287663 | H74: 43349 | I74: 43110 | J74: 43424 | K74: 44621 | L74: 46414 | M74: 46738 | N74: 47445 | O74: 48349 | P74: 47896 | Q74: 47852 | R74: 48250 | S74: 48315 | T74: 47197 | U74: 45668 | V74: 43805 | W74: 42327 | X74: 42313 | Y74: 42052 | Z74: 43912 | AA74: 47484 | AB74: 49529 | AC74: 49668 | AD74: 51152 | AE74: 53882 | AF74: 55261 | AG74: 56528 | AH74: 57284 | AI74: 58793 | AJ74: 59998 | AK74: 60387 | AL74: 59092 | AM74: 56444 | AN74: 54265 | AO74: 54228 | AP74: 56095 | AQ74: 56853 | AR74: 57582 | AS74: 57708 | AT74: 59980 | AU74: 61253 | AV74: 61655 | AW74: 59774 | AX74: 58861 | AY74: 58267 | AZ74: 57028 | BA74: 56312 | BB74: 53279 | BC74: 52189 | BD74: 52025 | BE74: 53968 | BF74: 54339 | BG74: 53410 | BH74: 53553 | BI74: 55532 | BJ74: 59024 | BK74: 63105 | BL74: 64244 | BM74: 64618 | BN74: 63778 | BO74: 64714 | BP74: 63551 | BQ74: 62883 | BR74: 62546 | BS74: 60689 | BT74: 58068 | BU74: 57030 | BV74: 54433 | BW74: 51449 | BX74: 49613 | BY74: 48298 | BZ74: 46132 | CA74: 44748 | CB74: 42899 | CC74: 41736 | CD74: 37657 | CE74: 34884 | CF74: 32091 | CG74: 29689 | CH74: 26799 | CI74: 24268 | CJ74: 21258 | CK74: 19319 | CL74: 17381 | CM74: 15284 | CN74: 14088 | CO74: 12569 | CP74: 11154 | CQ74: 10244 | CR74: 8875 | CS74: 7521 | CT74: 24329
A75: Québec | B75: 99 | C75: Ensemble du Québec | D75: 2020 | E75: Estimation | F75: Féminin | G75: 4288926 | H75: 40846 | I75: 40921 | J75: 41703 | K75: 42446 | L75: 43962 | M75: 45201 | N75: 45668 | O75: 45818 | P75: 46088 | Q75: 45962 | R75: 46385 | S75: 46606 | T75: 45523 | U75: 43972 | V75: 42489 | W75: 40698 | X75: 40616 | Y75: 40499 | Z75: 42294 | AA75: 44528 | AB75: 46497 | AC75: 46358 | AD75: 47478 | AE75: 48788 | AF75: 51078 | AG75: 52141 | AH75: 52784 | AI75: 54438 | AJ75: 55719 | AK75: 56577 | AL75: 55888 | AM75: 53121 | AN75: 52030 | AO75: 52613 | AP75: 54124 | AQ75: 55292 | AR75: 55960 | AS75: 56336 | AT75: 57664 | AU75: 59501 | AV75: 59607 | AW75: 58095 | AX75: 56832 | AY75: 56449 | AZ75: 54802 | BA75: 54251 | BB75: 51899 | BC75: 50398 | BD75: 50626 | BE75: 52220 | BF75: 52865 | BG75: 52466 | BH75: 53037 | BI75: 54799 | BJ75: 57834 | BK75: 62303 | BL75: 63349 | BM75: 64185 | BN75: 63098 | BO75: 64382 | BP75: 64241 | BQ75: 63853 | BR75: 62927 | BS75: 61550 | BT75: 58720 | BU75: 58221 | BV75: 55956 | BW75: 52970 | BX75: 51123 | BY75: 50097 | BZ75: 48038 | CA75: 47419 | CB75: 45922 | CC75: 44556 | CD75: 40825 | CE75: 38111 | CF75: 35632 | CG75: 33118 | CH75: 30626 | CI75: 28466 | CJ75: 25756 | CK75: 23955 | CL75: 22019 | CM75: 20053 | CN75: 19408 | CO75: 17830 | CP75: 16550 | CQ75: 15595 | CR75: 14593 | CS75: 13216 | CT75: 57471
A76: Québec | B76: 99 | C76: Ensemble du Québec | D76: 2020 | E76: Estimation | F76: Total | G76: 8576589 | H76: 84195 | I76: 84031 | J76: 85127 | K76: 87067 | L76: 90376 | M76: 91939 | N76: 93113 | O76: 94167 | P76: 93984 | Q76: 93814 | R76: 94635 | S76: 94921 | T76: 92720 | U76: 89640 | V76: 86294 | W76: 83025 | X76: 82929 | Y76: 82551 | Z76: 86206 | AA76: 92012 | AB76: 96026 | AC76: 96026 | AD76: 98630 | AE76: 102670 | AF76: 106339 | AG76: 108669 | AH76: 110068 | AI76: 113231 | AJ76: 115717 | AK76: 116964 | AL76: 114980 | AM76: 109565 | AN76: 106295 | AO76: 106841 | AP76: 110219 | AQ76: 112145 | AR76: 113542 | AS76: 114044 | AT76: 117644 | AU76: 120754 | AV76: 121262 | AW76: 117869 | AX76: 115693 | AY76: 114716 | AZ76: 111830 | BA76: 110563 | BB76: 105178 | BC76: 102587 | BD76: 102651 | BE76: 106188 | BF76: 107204 | BG76: 105876 | BH76: 106590 | BI76: 110331 | BJ76: 116858 | BK76: 125408 | BL76: 127593 | BM76: 128803 | BN76: 126876 | BO76: 129096 | BP76: 127792 | BQ76: 126736 | BR76: 125473 | BS76: 122239 | BT76: 116788 | BU76: 115251 | BV76: 110389 | BW76: 104419 | BX76: 100736 | BY76: 98395 | BZ76: 94170 | CA76: 92167 | CB76: 88821 | CC76: 86292 | CD76: 78482 | CE76: 72995 | CF76: 67723 | CG76: 62807 | CH76: 57425 | CI76: 52734 | CJ76: 47014 | CK76: 43274 | CL76: 39400 | CM76: 35337 | CN76: 33496 | CO76: 30399 | CP76: 27704 | CQ76: 25839 | CR76: 23468 | CS76: 20737 | CT76: 81800
A77: Québec | B77: 99 | C77: Ensemble du Québec | D77: 2021 | E77: Estimation | F77: Masculin | G77: 4301951 | H77: 42018 | I77: 43315 | J77: 43168 | K77: 43430 | L77: 44600 | M77: 46362 | N77: 46794 | O77: 47464 | P77: 48361 | Q77: 47904 | R77: 47835 | S77: 48224 | T77: 48265 | U77: 47200 | V77: 45645 | W77: 43849 | X77: 42434 | Y77: 42449 | Z77: 42636 | AA77: 45109 | AB77: 48207 | AC77: 49703 | AD77: 49467 | AE77: 51069 | AF77: 53659 | AG77: 55127 | AH77: 56476 | AI77: 57365 | AJ77: 58931 | AK77: 60101 | AL77: 60530 | AM77: 59355 | AN77: 56535 | AO77: 54524 | AP77: 54546 | AQ77: 56390 | AR77: 57116 | AS77: 57770 | AT77: 57951 | AU77: 60063 | AV77: 61459 | AW77: 61794 | AX77: 59893 | AY77: 58979 | AZ77: 58355 | BA77: 57063 | BB77: 56308 | BC77: 53266 | BD77: 52153 | BE77: 51953 | BF77: 53918 | BG77: 54233 | BH77: 53321 | BI77: 53427 | BJ77: 55366 | BK77: 58835 | BL77: 62902 | BM77: 63956 | BN77: 64293 | BO77: 63451 | BP77: 64335 | BQ77: 63124 | BR77: 62452 | BS77: 62083 | BT77: 60164 | BU77: 57477 | BV77: 56440 | BW77: 53782 | BX77: 50815 | BY77: 48890 | BZ77: 47585 | CA77: 45329 | CB77: 43918 | CC77: 41996 | CD77: 40718 | CE77: 36687 | CF77: 33889 | CG77: 31052 | CH77: 28639 | CI77: 25739 | CJ77: 23184 | CK77: 20244 | CL77: 18198 | CM77: 16339 | CN77: 14268 | CO77: 13021 | CP77: 11500 | CQ77: 10096 | CR77: 9068 | CS77: 7792 | CT77: 26255
A78: Québec | B78: 99 | C78: Ensemble du Québec | D78: 2021 | E78: Estimation | F78: Féminin | G78: 4300377 | H78: 39646 | I78: 40839 | J78: 40968 | K78: 41719 | L78: 42364 | M78: 43910 | N78: 45227 | O78: 45664 | P78: 45851 | Q78: 46075 | R78: 45936 | S78: 46374 | T78: 46565 | U78: 45575 | V78: 44020 | W78: 42563 | X78: 40807 | Y78: 40775 | Z78: 41065 | AA78: 43264 | AB78: 44935 | AC78: 46401 | AD78: 45846 | AE78: 47153 | AF78: 48702 | AG78: 51018 | AH78: 52147 | AI78: 52961 | AJ78: 54546 | AK78: 55932 | AL78: 56745 | AM78: 56143 | AN78: 53261 | AO78: 52254 | AP78: 52771 | AQ78: 54312 | AR78: 55422 | AS78: 56140 | AT78: 56458 | AU78: 57774 | AV78: 59558 | AW78: 59645 | AX78: 58223 | AY78: 56898 | AZ78: 56472 | BA78: 54826 | BB78: 54245 | BC78: 51862 | BD78: 50425 | BE78: 50625 | BF78: 52197 | BG78: 52802 | BH78: 52459 | BI78: 53033 | BJ78: 54750 | BK78: 57785 | BL78: 62227 | BM78: 63233 | BN78: 64029 | BO78: 62926 | BP78: 64160 | BQ78: 63970 | BR78: 63603 | BS78: 62632 | BT78: 61220 | BU78: 58350 | BV78: 57815 | BW78: 55580 | BX78: 52548 | BY78: 50688 | BZ78: 49635 | CA78: 47481 | CB78: 46841 | CC78: 45296 | CD78: 43853 | CE78: 40123 | CF78: 37415 | CG78: 34888 | CH78: 32307 | CI78: 29814 | CJ78: 27617 | CK78: 24913 | CL78: 23068 | CM78: 21072 | CN78: 19069 | CO78: 18331 | CP78: 16699 | CQ78: 15389 | CR78: 14348 | CS78: 13256 | CT78: 60048
A79: Québec | B79: 99 | C79: Ensemble du Québec | D79: 2021 | E79: Estimation | F79: Total | G79: 8602328 | H79: 81664 | I79: 84154 | J79: 84136 | K79: 85149 | L79: 86964 | M79: 90272 | N79: 92021 | O79: 93128 | P79: 94212 | Q79: 93979 | R79: 93771 | S79: 94598 | T79: 94830 | U79: 92775 | V79: 89665 | W79: 86412 | X79: 83241 | Y79: 83224 | Z79: 83701 | AA79: 88373 | AB79: 93142 | AC79: 96104 | AD79: 95313 | AE79: 98222 | AF79: 102361 | AG79: 106145 | AH79: 108623 | AI79: 110326 | AJ79: 113477 | AK79: 116033 | AL79: 117275 | AM79: 115498 | AN79: 109796 | AO79: 106778 | AP79: 107317 | AQ79: 110702 | AR79: 112538 | AS79: 113910 | AT79: 114409 | AU79: 117837 | AV79: 121017 | AW79: 121439 | AX79: 118116 | AY79: 115877 | AZ79: 114827 | BA79: 111889 | BB79: 110553 | BC79: 105128 | BD79: 102578 | BE79: 102578 | BF79: 106115 | BG79: 107035 | BH79: 105780 | BI79: 106460 | BJ79: 110116 | BK79: 116620 | BL79: 125129 | BM79: 127189 | BN79: 128322 | BO79: 126377 | BP79: 128495 | BQ79: 127094 | BR79: 126055 | BS79: 124715 | BT79: 121384 | BU79: 115827 | BV79: 114255 | BW79: 109362 | BX79: 103363 | BY79: 99578 | BZ79: 97220 | CA79: 92810 | CB79: 90759 | CC79: 87292 | CD79: 84571 | CE79: 76810 | CF79: 71304 | CG79: 65940 | CH79: 60946 | CI79: 55553 | CJ79: 50801 | CK79: 45157 | CL79: 41266 | CM79: 37411 | CN79: 33337 | CO79: 31352 | CP79: 28199 | CQ79: 25485 | CR79: 23416 | CS79: 21048 | CT79: 86303
A80: Québec | B80: 99 | C80: Ensemble du Québec | D80: 2022 | E80: Estimation | F80: Masculin | G80: 4352888 | H80: 42803 | I80: 42383 | J80: 43722 | K80: 43664 | L80: 43840 | M80: 44899 | N80: 46815 | O80: 47302 | P80: 47817 | Q80: 48680 | R80: 48250 | S80: 48133 | T80: 48483 | U80: 48558 | V80: 47465 | W80: 46000 | X80: 44245 | Y80: 42998 | Z80: 43840 | AA80: 45135 | AB80: 47397 | AC80: 49585 | AD80: 51112 | AE80: 51162 | AF80: 52791 | AG80: 54976 | AH80: 56389 | AI80: 57929 | AJ80: 58717 | AK80: 60233 | AL80: 61365 | AM80: 61821 | AN80: 60630 | AO80: 57770 | AP80: 55665 | AQ80: 55775 | AR80: 57403 | AS80: 58054 | AT80: 58567 | AU80: 58661 | AV80: 60747 | AW80: 62092 | AX80: 62356 | AY80: 60328 | AZ80: 59351 | BA80: 58657 | BB80: 57388 | BC80: 56550 | BD80: 53448 | BE80: 52297 | BF80: 52156 | BG80: 54007 | BH80: 54231 | BI80: 53313 | BJ80: 53381 | BK80: 55356 | BL80: 58726 | BM80: 62724 | BN80: 63773 | BO80: 64049 | BP80: 63174 | BQ80: 64022 | BR80: 62746 | BS80: 62031 | BT80: 61656 | BU80: 59669 | BV80: 56905 | BW80: 55903 | BX80: 53168 | BY80: 50161 | BZ80: 48166 | CA80: 46796 | CB80: 44517 | CC80: 43004 | CD80: 41031 | CE80: 39707 | CF80: 35639 | CG80: 32824 | CH80: 29898 | CI80: 27518 | CJ80: 24605 | CK80: 22027 | CL80: 19118 | CM80: 17088 | CN80: 15235 | CO80: 13149 | CP80: 11869 | CQ80: 10350 | CR80: 8934 | CS80: 7981 | CT80: 28033
A81: Québec | B81: 99 | C81: Ensemble du Québec | D81: 2022 | E81: Estimation | F81: Féminin | G81: 4342764 | H81: 40484 | I81: 39978 | J81: 41245 | K81: 41440 | L81: 42079 | M81: 42651 | N81: 44319 | O81: 45654 | P81: 46086 | Q81: 46200 | R81: 46376 | S81: 46153 | T81: 46737 | U81: 46876 | V81: 45900 | W81: 44338 | X81: 43015 | Y81: 41342 | Z81: 42286 | AA81: 43455 | AB81: 45195 | AC81: 46326 | AD81: 47503 | AE81: 47092 | AF81: 48502 | AG81: 49945 | AH81: 52174 | AI81: 53184 | AJ81: 54141 | AK81: 55640 | AL81: 56995 | AM81: 57766 | AN81: 57081 | AO81: 54188 | AP81: 53050 | AQ81: 53533 | AR81: 55019 | AS81: 55948 | AT81: 56681 | AU81: 56928 | AV81: 58247 | AW81: 59997 | AX81: 59993 | AY81: 58490 | AZ81: 57179 | BA81: 56658 | BB81: 55048 | BC81: 54352 | BD81: 52012 | BE81: 50586 | BF81: 50713 | BG81: 52305 | BH81: 52893 | BI81: 52531 | BJ81: 53143 | BK81: 54773 | BL81: 57768 | BM81: 62170 | BN81: 63124 | BO81: 63949 | BP81: 62800 | BQ81: 64016 | BR81: 63752 | BS81: 63391 | BT81: 62450 | BU81: 60925 | BV81: 58028 | BW81: 57494 | BX81: 55290 | BY81: 52170 | BZ81: 50202 | CA81: 49058 | CB81: 46957 | CC81: 46264 | CD81: 44603 | CE81: 43094 | CF81: 39362 | CG81: 36649 | CH81: 34087 | CI81: 31417 | CJ81: 28930 | CK81: 26627 | CL81: 23908 | CM81: 22076 | CN81: 20038 | CO81: 17917 | CP81: 17185 | CQ81: 15420 | CR81: 14106 | CS81: 13015 | CT81: 62097
A82: Québec | B82: 99 | C82: Ensemble du Québec | D82: 2022 | E82: Estimation | F82: Total | G82: 8695652 | H82: 83287 | I82: 82361 | J82: 84967 | K82: 85104 | L82: 85919 | M82: 87550 | N82: 91134 | O82: 92956 | P82: 93903 | Q82: 94880 | R82: 94626 | S82: 94286 | T82: 95220 | U82: 95434 | V82: 93365 | W82: 90338 | X82: 87260 | Y82: 84340 | Z82: 86126 | AA82: 88590 | AB82: 92592 | AC82: 95911 | AD82: 98615 | AE82: 98254 | AF82: 101293 | AG82: 104921 | AH82: 108563 | AI82: 111113 | AJ82: 112858 | AK82: 115873 | AL82: 118360 | AM82: 119587 | AN82: 117711 | AO82: 111958 | AP82: 108715 | AQ82: 109308 | AR82: 112422 | AS82: 114002 | AT82: 115248 | AU82: 115589 | AV82: 118994 | AW82: 122089 | AX82: 122349 | AY82: 118818 | AZ82: 116530 | BA82: 115315 | BB82: 112436 | BC82: 110902 | BD82: 105460 | BE82: 102883 | BF82: 102869 | BG82: 106312 | BH82: 107124 | BI82: 105844 | BJ82: 106524 | BK82: 110129 | BL82: 116494 | BM82: 124894 | BN82: 126897 | BO82: 127998 | BP82: 125974 | BQ82: 128038 | BR82: 126498 | BS82: 125422 | BT82: 124106 | BU82: 120594 | BV82: 114933 | BW82: 113397 | BX82: 108458 | BY82: 102331 | BZ82: 98368 | CA82: 95854 | CB82: 91474 | CC82: 89268 | CD82: 85634 | CE82: 82801 | CF82: 75001 | CG82: 69473 | CH82: 63985 | CI82: 58935 | CJ82: 53535 | CK82: 48654 | CL82: 43026 | CM82: 39164 | CN82: 35273 | CO82: 31066 | CP82: 29054 | CQ82: 25770 | CR82: 23040 | CS82: 20996 | CT82: 90130
A83: Québec | B83: 99 | C83: Ensemble du Québec | D83: 2023 | E83: Projection | F83: Masculin | G83: 4440453 | H83: 41744 | I83: 43460 | J83: 43247 | K83: 44600 | L83: 44449 | M83: 44539 | N83: 45689 | O83: 47581 | P83: 47964 | Q83: 48410 | R83: 49287 | S83: 48808 | T83: 48647 | U83: 48983 | V83: 49022 | W83: 47997 | X83: 46593 | Y83: 44924 | Z83: 45013 | AA83: 47799 | AB83: 48951 | AC83: 50602 | AD83: 52517 | AE83: 54222 | AF83: 54430 | AG83: 55715 | AH83: 57869 | AI83: 59401 | AJ83: 60675 | AK83: 61494 | AL83: 62918 | AM83: 63938 | AN83: 64296 | AO83: 62926 | AP83: 60039 | AQ83: 57768 | AR83: 57712 | AS83: 59157 | AT83: 59659 | AU83: 60086 | AV83: 59979 | AW83: 61991 | AX83: 63106 | AY83: 63269 | AZ83: 61174 | BA83: 60080 | BB83: 59263 | BC83: 57929 | BD83: 56975 | BE83: 53846 | BF83: 52607 | BG83: 52373 | BH83: 54115 | BI83: 54335 | BJ83: 53389 | BK83: 53397 | BL83: 55299 | BM83: 58603 | BN83: 62540 | BO83: 63548 | BP83: 63779 | BQ83: 62862 | BR83: 63660 | BS83: 62333 | BT83: 61576 | BU83: 61133 | BV83: 59113 | BW83: 56315 | BX83: 55251 | BY83: 52487 | BZ83: 49460 | CA83: 47403 | CB83: 45994 | CC83: 43643 | CD83: 42087 | CE83: 40063 | CF83: 38648 | CG83: 34577 | CH83: 31731 | CI83: 28790 | CJ83: 26380 | CK83: 23467 | CL83: 20895 | CM83: 18012 | CN83: 15974 | CO83: 14115 | CP83: 12073 | CQ83: 10784 | CR83: 9286 | CS83: 7915 | CT83: 29698
A84: Québec | B84: 99 | C84: Ensemble du Québec | D84: 2023 | E84: Projection | F84: Féminin | G84: 4408498 | H84: 39665 | I84: 41143 | J84: 40790 | K84: 42098 | L84: 42166 | M84: 42772 | N84: 43383 | O84: 45049 | P84: 46337 | Q84: 46674 | R84: 46745 | S84: 46894 | T84: 46666 | U84: 47213 | V84: 47317 | W84: 46394 | X84: 44897 | Y84: 43657 | Z84: 43250 | AA84: 45634 | AB84: 46392 | AC84: 47600 | AD84: 48069 | AE84: 49390 | AF84: 49382 | AG84: 50773 | AH84: 52297 | AI84: 54491 | AJ84: 55393 | AK84: 56344 | AL84: 57639 | AM84: 58968 | AN84: 59533 | AO84: 58733 | AP84: 55800 | AQ84: 54569 | AR84: 54951 | AS84: 56240 | AT84: 57020 | AU84: 57637 | AV84: 57773 | AW84: 58976 | AX84: 60604 | AY84: 60553 | AZ84: 58965 | BA84: 57615 | BB84: 57048 | BC84: 55327 | BD84: 54611 | BE84: 52216 | BF84: 50716 | BG84: 50813 | BH84: 52375 | BI84: 52941 | BJ84: 52567 | BK84: 53123 | BL84: 54746 | BM84: 57698 | BN84: 62046 | BO84: 62988 | BP84: 63774 | BQ84: 62589 | BR84: 63780 | BS84: 63480 | BT84: 63096 | BU84: 62111 | BV84: 60550 | BW84: 57632 | BX84: 57082 | BY84: 54811 | BZ84: 51662 | CA84: 49665 | CB84: 48471 | CC84: 46340 | CD84: 45566 | CE84: 43852 | CF84: 42282 | CG84: 38527 | CH84: 35791 | CI84: 33180 | CJ84: 30483 | CK84: 27963 | CL84: 25635 | CM84: 22895 | CN84: 21022 | CO84: 18962 | CP84: 16813 | CQ84: 15993 | CR84: 14210 | CS84: 12843 | CT84: 63772
A85: Québec | B85: 99 | C85: Ensemble du Québec | D85: 2023 | E85: Projection | F85: Total | G85: 8848951 | H85: 81409 | I85: 84603 | J85: 84037 | K85: 86698 | L85: 86615 | M85: 87311 | N85: 89072 | O85: 92630 | P85: 94301 | Q85: 95084 | R85: 96032 | S85: 95702 | T85: 95313 | U85: 96196 | V85: 96339 | W85: 94391 | X85: 91490 | Y85: 88581 | Z85: 88263 | AA85: 93433 | AB85: 95343 | AC85: 98202 | AD85: 100586 | AE85: 103612 | AF85: 103812 | AG85: 106488 | AH85: 110166 | AI85: 113892 | AJ85: 116068 | AK85: 117838 | AL85: 120557 | AM85: 122906 | AN85: 123829 | AO85: 121659 | AP85: 115839 | AQ85: 112337 | AR85: 112663 | AS85: 115397 | AT85: 116679 | AU85: 117723 | AV85: 117752 | AW85: 120967 | AX85: 123710 | AY85: 123822 | AZ85: 120139 | BA85: 117695 | BB85: 116311 | BC85: 113256 | BD85: 111586 | BE85: 106062 | BF85: 103323 | BG85: 103186 | BH85: 106490 | BI85: 107276 | BJ85: 105956 | BK85: 106520 | BL85: 110045 | BM85: 116301 | BN85: 124586 | BO85: 126536 | BP85: 127553 | BQ85: 125451 | BR85: 127440 | BS85: 125813 | BT85: 124672 | BU85: 123244 | BV85: 119663 | BW85: 113947 | BX85: 112333 | BY85: 107298 | BZ85: 101122 | CA85: 97068 | CB85: 94465 | CC85: 89983 | CD85: 87653 | CE85: 83915 | CF85: 80930 | CG85: 73104 | CH85: 67522 | CI85: 61970 | CJ85: 56863 | CK85: 51430 | CL85: 46530 | CM85: 40907 | CN85: 36996 | CO85: 33077 | CP85: 28886 | CQ85: 26777 | CR85: 23496 | CS85: 20758 | CT85: 93470
A86: Québec | B86: 99 | C86: Ensemble du Québec | D86: 2024 | E86: Projection | F86: Masculin | G86: 4487489 | H86: 43592 | I86: 42346 | J86: 44209 | K86: 43967 | L86: 45190 | M86: 44915 | N86: 45097 | O86: 46198 | P86: 47964 | Q86: 48284 | R86: 48762 | S86: 49589 | T86: 49069 | U86: 48912 | V86: 49238 | W86: 49361 | X86: 48384 | Y86: 47062 | Z86: 46815 | AA86: 48726 | AB86: 50807 | AC86: 50889 | AD86: 52048 | AE86: 54051 | AF86: 55819 | AG86: 55548 | AH86: 56798 | AI86: 59091 | AJ86: 60360 | AK86: 61733 | AL86: 62521 | AM86: 63919 | AN86: 64922 | AO86: 65179 | AP86: 63874 | AQ86: 60893 | AR86: 58531 | AS86: 58367 | AT86: 59742 | AU86: 60238 | AV86: 60531 | AW86: 60431 | AX86: 62243 | AY86: 63340 | AZ86: 63466 | BA86: 61307 | BB86: 60141 | BC86: 59317 | BD86: 57908 | BE86: 56953 | BF86: 53793 | BG86: 52506 | BH86: 52213 | BI86: 53996 | BJ86: 54201 | BK86: 53222 | BL86: 53189 | BM86: 55055 | BN86: 58329 | BO86: 62228 | BP86: 63199 | BQ86: 63392 | BR86: 62451 | BS86: 63189 | BT86: 61836 | BU86: 61023 | BV86: 60524 | BW86: 58467 | BX86: 55646 | BY86: 54536 | BZ86: 51746 | CA86: 48666 | CB86: 46591 | CC86: 45090 | CD86: 42722 | CE86: 41098 | CF86: 39005 | CG86: 37509 | CH86: 33449 | CI86: 30567 | CJ86: 27615 | CK86: 25181 | CL86: 22270 | CM86: 19695 | CN86: 16851 | CO86: 14838 | CP86: 12983 | CQ86: 10982 | CR86: 9696 | CS86: 8242 | CT86: 31051
A87: Québec | B87: 99 | C87: Ensemble du Québec | D87: 2024 | E87: Projection | F87: Féminin | G87: 4445890 | H87: 41419 | I87: 40269 | J87: 41857 | K87: 41488 | L87: 42615 | M87: 42626 | N87: 43281 | O87: 43882 | P87: 45481 | Q87: 46669 | R87: 46970 | S87: 47019 | T87: 47177 | U87: 46925 | V87: 47447 | W87: 47621 | X87: 46760 | Y87: 45340 | Z87: 45437 | AA87: 46311 | AB87: 47799 | AC87: 47707 | AD87: 48099 | AE87: 48757 | AF87: 50506 | AG87: 50426 | AH87: 51888 | AI87: 53360 | AJ87: 55457 | AK87: 56393 | AL87: 57171 | AM87: 58533 | AN87: 59690 | AO87: 60238 | AP87: 59483 | AQ87: 56520 | AR87: 55230 | AS87: 55459 | AT87: 56657 | AU87: 57372 | AV87: 57929 | AW87: 58004 | AX87: 59122 | AY87: 60749 | AZ87: 60658 | BA87: 59061 | BB87: 57693 | BC87: 57047 | BD87: 55351 | BE87: 54590 | BF87: 52159 | BG87: 50665 | BH87: 50750 | BI87: 52320 | BJ87: 52869 | BK87: 52460 | BL87: 53022 | BM87: 54603 | BN87: 57514 | BO87: 61860 | BP87: 62770 | BQ87: 63515 | BR87: 62323 | BS87: 63459 | BT87: 63140 | BU87: 62713 | BV87: 61695 | BW87: 60098 | BX87: 57184 | BY87: 56551 | BZ87: 54266 | CA87: 51108 | CB87: 49057 | CC87: 47822 | CD87: 45628 | CE87: 44795 | CF87: 43020 | CG87: 41378 | CH87: 37628 | CI87: 34833 | CJ87: 32197 | CK87: 29469 | CL87: 26933 | CM87: 24551 | CN87: 21804 | CO87: 19891 | CP87: 17798 | CQ87: 15654 | CR87: 14753 | CS87: 12971 | CT87: 65121
A88: Québec | B88: 99 | C88: Ensemble du Québec | D88: 2024 | E88: Projection | F88: Total | G88: 8933379 | H88: 85011 | I88: 82615 | J88: 86066 | K88: 85455 | L88: 87805 | M88: 87541 | N88: 88378 | O88: 90080 | P88: 93445 | Q88: 94953 | R88: 95732 | S88: 96608 | T88: 96246 | U88: 95837 | V88: 96685 | W88: 96982 | X88: 95144 | Y88: 92402 | Z88: 92252 | AA88: 95037 | AB88: 98606 | AC88: 98596 | AD88: 100147 | AE88: 102808 | AF88: 106325 | AG88: 105974 | AH88: 108686 | AI88: 112451 | AJ88: 115817 | AK88: 118126 | AL88: 119692 | AM88: 122452 | AN88: 124612 | AO88: 125417 | AP88: 123357 | AQ88: 117413 | AR88: 113761 | AS88: 113826 | AT88: 116399 | AU88: 117610 | AV88: 118460 | AW88: 118435 | AX88: 121365 | AY88: 124089 | AZ88: 124124 | BA88: 120368 | BB88: 117834 | BC88: 116364 | BD88: 113259 | BE88: 111543 | BF88: 105952 | BG88: 103171 | BH88: 102963 | BI88: 106316 | BJ88: 107070 | BK88: 105682 | BL88: 106211 | BM88: 109658 | BN88: 115843 | BO88: 124088 | BP88: 125969 | BQ88: 126907 | BR88: 124774 | BS88: 126648 | BT88: 124976 | BU88: 123736 | BV88: 122219 | BW88: 118565 | BX88: 112830 | BY88: 111087 | BZ88: 106012 | CA88: 99774 | CB88: 95648 | CC88: 92912 | CD88: 88350 | CE88: 85893 | CF88: 82025 | CG88: 78887 | CH88: 71077 | CI88: 65400 | CJ88: 59812 | CK88: 54650 | CL88: 49203 | CM88: 44246 | CN88: 38655 | CO88: 34729 | CP88: 30781 | CQ88: 26636 | CR88: 24449 | CS88: 21213 | CT88: 96172
A89: Québec | B89: 99 | C89: Ensemble du Québec | D89: 2025 | E89: Projection | F89: Masculin | G89: 4533230 | H89: 44609 | I89: 44222 | J89: 43138 | K89: 44965 | L89: 44567 | M89: 45654 | N89: 45500 | O89: 45623 | P89: 46587 | Q89: 48282 | R89: 48643 | S89: 49064 | T89: 49845 | U89: 49341 | V89: 49163 | W89: 49571 | X89: 49755 | Y89: 48870 | Z89: 49030 | AA89: 50715 | AB89: 51836 | AC89: 52748 | AD89: 52295 | AE89: 53531 | AF89: 55585 | AG89: 56829 | AH89: 56537 | AI89: 57937 | AJ89: 59952 | AK89: 61319 | AL89: 62676 | AM89: 63443 | AN89: 64815 | AO89: 65721 | AP89: 66064 | AQ89: 64656 | AR89: 61576 | AS89: 59111 | AT89: 58888 | AU89: 60261 | AV89: 60620 | AW89: 60918 | AX89: 60625 | AY89: 62424 | AZ89: 63495 | BA89: 63559 | BB89: 61328 | BC89: 60143 | BD89: 59251 | BE89: 57848 | BF89: 56871 | BG89: 53661 | BH89: 52323 | BI89: 52074 | BJ89: 53852 | BK89: 54025 | BL89: 53000 | BM89: 52948 | BN89: 54786 | BO89: 58028 | BP89: 61888 | BQ89: 62812 | BR89: 62974 | BS89: 61988 | BT89: 62682 | BU89: 61279 | BV89: 60424 | BW89: 59875 | BX89: 57778 | BY89: 54937 | BZ89: 53777 | CA89: 50929 | CB89: 47845 | CC89: 45689 | CD89: 44159 | CE89: 41737 | CF89: 40033 | CG89: 37873 | CH89: 36304 | CI89: 32239 | CJ89: 29344 | CK89: 26380 | CL89: 23914 | CM89: 21019 | CN89: 18445 | CO89: 15667 | CP89: 13652 | CQ89: 11835 | CR89: 9895 | CS89: 8618 | CT89: 32536
A90: Québec | B90: 99 | C90: Ensemble du Québec | D90: 2025 | E90: Projection | F90: Féminin | G90: 4482898 | H90: 42381 | I90: 42048 | J90: 41013 | K90: 42590 | L90: 42026 | M90: 43081 | N90: 43154 | O90: 43779 | P90: 44324 | Q90: 45810 | R90: 46959 | S90: 47238 | T90: 47316 | U90: 47439 | V90: 47149 | W90: 47744 | X90: 47996 | Y90: 47214 | Z90: 47199 | AA90: 48632 | AB90: 48520 | AC90: 49098 | AD90: 48129 | AE90: 48715 | AF90: 49832 | AG90: 51505 | AH90: 51486 | AI90: 52900 | AJ90: 54264 | AK90: 56395 | AL90: 57163 | AM90: 58018 | AN90: 59213 | AO90: 60365 | AP90: 60948 | AQ90: 60149 | AR90: 57151 | AS90: 55705 | AT90: 55833 | AU90: 56977 | AV90: 57638 | AW90: 58137 | AX90: 58127 | AY90: 59254 | AZ90: 60835 | BA90: 60734 | BB90: 59132 | BC90: 57674 | BD90: 57041 | BE90: 55324 | BF90: 54518 | BG90: 52080 | BH90: 50588 | BI90: 50682 | BJ90: 52245 | BK90: 52754 | BL90: 52348 | BM90: 52887 | BN90: 54432 | BO90: 57354 | BP90: 61636 | BQ90: 62509 | BR90: 63227 | BS90: 62017 | BT90: 63139 | BU90: 62775 | BV90: 62295 | BW90: 61240 | BX90: 59646 | BY90: 56666 | BZ90: 56003 | CA90: 53673 | CB90: 50485 | CC90: 48408 | CD90: 47100 | CE90: 44870 | CF90: 43952 | CG90: 42118 | CH90: 40419 | CI90: 36625 | CJ90: 33823 | CK90: 31149 | CL90: 28390 | CM90: 25802 | CN90: 23402 | CO90: 20651 | CP90: 18698 | CQ90: 16592 | CR90: 14471 | CS90: 13478 | CT90: 66397
A91: Québec | B91: 99 | C91: Ensemble du Québec | D91: 2025 | E91: Projection | F91: Total | G91: 9016128 | H91: 86990 | I91: 86270 | J91: 84151 | K91: 87555 | L91: 86593 | M91: 88735 | N91: 88654 | O91: 89402 | P91: 90911 | Q91: 94092 | R91: 95602 | S91: 96302 | T91: 97161 | U91: 96780 | V91: 96312 | W91: 97315 | X91: 97751 | Y91: 96084 | Z91: 96229 | AA91: 99347 | AB91: 100356 | AC91: 101846 | AD91: 100424 | AE91: 102246 | AF91: 105417 | AG91: 108334 | AH91: 108023 | AI91: 110837 | AJ91: 114216 | AK91: 117714 | AL91: 119839 | AM91: 121461 | AN91: 124028 | AO91: 126086 | AP91: 127012 | AQ91: 124805 | AR91: 118727 | AS91: 114816 | AT91: 114721 | AU91: 117238 | AV91: 118258 | AW91: 119055 | AX91: 118752 | AY91: 121678 | AZ91: 124330 | BA91: 124293 | BB91: 120460 | BC91: 117817 | BD91: 116292 | BE91: 113172 | BF91: 111389 | BG91: 105741 | BH91: 102911 | BI91: 102756 | BJ91: 106097 | BK91: 106779 | BL91: 105348 | BM91: 105835 | BN91: 109218 | BO91: 115382 | BP91: 123524 | BQ91: 125321 | BR91: 126201 | BS91: 124005 | BT91: 125821 | BU91: 124054 | BV91: 122719 | BW91: 121115 | BX91: 117424 | BY91: 111603 | BZ91: 109780 | CA91: 104602 | CB91: 98330 | CC91: 94097 | CD91: 91259 | CE91: 86607 | CF91: 83985 | CG91: 79991 | CH91: 76723 | CI91: 68864 | CJ91: 63167 | CK91: 57529 | CL91: 52304 | CM91: 46821 | CN91: 41847 | CO91: 36318 | CP91: 32350 | CQ91: 28427 | CR91: 24366 | CS91: 22096 | CT91: 98933
A92: Québec | B92: 99 | C92: Ensemble du Québec | D92: 2026 | E92: Projection | F92: Masculin | G92: 4577499 | H92: 45524 | I92: 45263 | J92: 45033 | K92: 43918 | L92: 45594 | M92: 45052 | N92: 46244 | O92: 46030 | P92: 46024 | Q92: 46910 | R92: 48637 | S92: 48937 | T92: 49318 | U92: 50110 | V92: 49592 | W92: 49512 | X92: 49984 | Y92: 50250 | Z92: 50916 | AA92: 53087 | AB92: 53902 | AC92: 53768 | AD92: 54091 | AE92: 53715 | AF92: 54985 | AG92: 56473 | AH92: 57704 | AI92: 57592 | AJ92: 58707 | AK92: 60829 | AL92: 62186 | AM92: 63505 | AN92: 64271 | AO92: 65543 | AP92: 66546 | AQ92: 66766 | AR92: 65254 | AS92: 62070 | AT92: 59567 | AU92: 59364 | AV92: 60590 | AW92: 60958 | AX92: 61052 | AY92: 60751 | AZ92: 62533 | BA92: 63528 | BB92: 63524 | BC92: 61285 | BD92: 60042 | BE92: 59148 | BF92: 57744 | BG92: 56708 | BH92: 53430 | BI92: 52163 | BJ92: 51924 | BK92: 53658 | BL92: 53790 | BM92: 52750 | BN92: 52680 | BO92: 54503 | BP92: 57716 | BQ92: 61501 | BR92: 62387 | BS92: 62514 | BT92: 61495 | BU92: 62137 | BV92: 60685 | BW92: 59783 | BX92: 59189 | BY92: 57058 | BZ92: 54186 | CA92: 52951 | CB92: 50080 | CC92: 46949 | CD92: 44764 | CE92: 43161 | CF92: 40675 | CG92: 38899 | CH92: 36678 | CI92: 35020 | CJ92: 30976 | CK92: 28062 | CL92: 25083 | CM92: 22597 | CN92: 19718 | CO92: 17172 | CP92: 14446 | CQ92: 12467 | CR92: 10679 | CS92: 8804 | CT92: 34133
A93: Québec | B93: 99 | C93: Ensemble du Québec | D93: 2026 | E93: Projection | F93: Féminin | G93: 4519441 | H93: 43247 | I93: 43047 | J93: 42826 | K93: 41778 | L93: 43138 | M93: 42511 | N93: 43634 | O93: 43672 | P93: 44240 | Q93: 44652 | R93: 46104 | S93: 47227 | T93: 47529 | U93: 47567 | V93: 47661 | W93: 47461 | X93: 48132 | Y93: 48457 | Z93: 49139 | AA93: 50501 | AB93: 50876 | AC93: 49805 | AD93: 49436 | AE93: 48680 | AF93: 49755 | AG93: 50779 | AH93: 52514 | AI93: 52474 | AJ93: 53754 | AK93: 55178 | AL93: 57124 | AM93: 57965 | AN93: 58655 | AO93: 59844 | AP93: 61052 | AQ93: 61594 | AR93: 60750 | AS93: 57587 | AT93: 56056 | AU93: 56128 | AV93: 57217 | AW93: 57814 | AX93: 58222 | AY93: 58231 | AZ93: 59316 | BA93: 60890 | BB93: 60779 | BC93: 59086 | BD93: 57660 | BE93: 56995 | BF93: 55228 | BG93: 54425 | BH93: 51997 | BI93: 50515 | BJ93: 50613 | BK93: 52114 | BL93: 52645 | BM93: 52214 | BN93: 52717 | BO93: 54278 | BP93: 57142 | BQ93: 61386 | BR93: 62243 | BS93: 62926 | BT93: 61687 | BU93: 62754 | BV93: 62359 | BW93: 61839 | BX93: 60779 | BY93: 59107 | BZ93: 56115 | CA93: 55389 | CB93: 53031 | CC93: 49833 | CD93: 47687 | CE93: 46319 | CF93: 44039 | CG93: 43045 | CH93: 41146 | CI93: 39359 | CJ93: 35572 | CK93: 32728 | CL93: 30019 | CM93: 27223 | CN93: 24605 | CO93: 22176 | CP93: 19420 | CQ93: 17446 | CR93: 15336 | CS93: 13229 | CT93: 68017
A94: Québec | B94: 99 | C94: Ensemble du Québec | D94: 2026 | E94: Projection | F94: Total | G94: 9096940 | H94: 88771 | I94: 88310 | J94: 87859 | K94: 85696 | L94: 88732 | M94: 87563 | N94: 89878 | O94: 89702 | P94: 90264 | Q94: 91562 | R94: 94741 | S94: 96164 | T94: 96847 | U94: 97677 | V94: 97253 | W94: 96973 | X94: 98116 | Y94: 98707 | Z94: 100055 | AA94: 103588 | AB94: 104778 | AC94: 103573 | AD94: 103527 | AE94: 102395 | AF94: 104740 | AG94: 107252 | AH94: 110218 | AI94: 110066 | AJ94: 112461 | AK94: 116007 | AL94: 119310 | AM94: 121470 | AN94: 122926 | AO94: 125387 | AP94: 127598 | AQ94: 128360 | AR94: 126004 | AS94: 119657 | AT94: 115623 | AU94: 115492 | AV94: 117807 | AW94: 118772 | AX94: 119274 | AY94: 118982 | AZ94: 121849 | BA94: 124418 | BB94: 124303 | BC94: 120371 | BD94: 117702 | BE94: 116143 | BF94: 112972 | BG94: 111133 | BH94: 105427 | BI94: 102678 | BJ94: 102537 | BK94: 105772 | BL94: 106435 | BM94: 104964 | BN94: 105397 | BO94: 108781 | BP94: 114858 | BQ94: 122887 | BR94: 124630 | BS94: 125440 | BT94: 123182 | BU94: 124891 | BV94: 123044 | BW94: 121622 | BX94: 119968 | BY94: 116165 | BZ94: 110301 | CA94: 108340 | CB94: 103111 | CC94: 96782 | CD94: 92451 | CE94: 89480 | CF94: 84714 | CG94: 81944 | CH94: 77824 | CI94: 74379 | CJ94: 66548 | CK94: 60790 | CL94: 55102 | CM94: 49820 | CN94: 44323 | CO94: 39348 | CP94: 33866 | CQ94: 29913 | CR94: 26015 | CS94: 22033 | CT94: 102150
A95: Québec | B95: 99 | C95: Ensemble du Québec | D95: 2027 | E95: Projection | F95: Masculin | G95: 4619708 | H95: 46030 | I95: 46195 | J95: 46108 | K95: 45844 | L95: 44557 | M95: 46083 | N95: 45666 | O95: 46781 | P95: 46423 | Q95: 46329 | R95: 47272 | S95: 48952 | T95: 49199 | U95: 49588 | V95: 50366 | W95: 49942 | X95: 49917 | Y95: 50479 | Z95: 52368 | AA95: 55082 | AB95: 56337 | AC95: 55818 | AD95: 55064 | AE95: 55444 | AF95: 55095 | AG95: 55786 | AH95: 57262 | AI95: 58667 | AJ95: 58260 | AK95: 59495 | AL95: 61609 | AM95: 62935 | AN95: 64261 | AO95: 64922 | AP95: 66307 | AQ95: 67185 | AR95: 67296 | AS95: 65685 | AT95: 62468 | AU95: 59982 | AV95: 59632 | AW95: 60880 | AX95: 61039 | AY95: 61131 | AZ95: 60820 | BA95: 62515 | BB95: 63440 | BC95: 63430 | BD95: 61133 | BE95: 59914 | BF95: 59012 | BG95: 57536 | BH95: 56447 | BI95: 53254 | BJ95: 51994 | BK95: 51724 | BL95: 53408 | BM95: 53523 | BN95: 52476 | BO95: 52403 | BP95: 54196 | BQ95: 57351 | BR95: 61102 | BS95: 61956 | BT95: 62024 | BU95: 60955 | BV95: 61538 | BW95: 60060 | BX95: 59110 | BY95: 58457 | BZ95: 56290 | CA95: 53357 | CB95: 52080 | CC95: 49144 | CD95: 46007 | CE95: 43770 | CF95: 42081 | CG95: 39538 | CH95: 37686 | CI95: 35400 | CJ95: 33657 | CK95: 29635 | CL95: 26694 | CM95: 23716 | CN95: 21216 | CO95: 18372 | CP95: 15848 | CQ95: 13203 | CR95: 11272 | CS95: 9538 | CT95: 35685
A96: Québec | B96: 99 | C96: Ensemble du Québec | D96: 2027 | E96: Projection | F96: Féminin | G96: 4555233 | H96: 43738 | I96: 43934 | J96: 43845 | K96: 43603 | L96: 42344 | M96: 43629 | N96: 43082 | O96: 44157 | P96: 44128 | Q96: 44568 | R96: 44951 | S96: 46376 | T96: 47512 | U96: 47781 | V96: 47790 | W96: 47972 | X96: 47850 | Y96: 48594 | Z96: 50419 | AA96: 52527 | AB96: 52776 | AC96: 52139 | AD96: 50079 | AE96: 49925 | AF96: 49674 | AG96: 50651 | AH96: 51760 | AI96: 53454 | AJ96: 53287 | AK96: 54623 | AL96: 55871 | AM96: 57899 | AN96: 58571 | AO96: 59263 | AP96: 60509 | AQ96: 61675 | AR96: 62182 | AS96: 61162 | AT96: 57907 | AU96: 56318 | AV96: 56361 | AW96: 57372 | AX96: 57884 | AY96: 58320 | AZ96: 58281 | BA96: 59358 | BB96: 60913 | BC96: 60719 | BD96: 59056 | BE96: 57600 | BF96: 56882 | BG96: 55114 | BH96: 54327 | BI96: 51908 | BJ96: 50433 | BK96: 50487 | BL96: 52004 | BM96: 52504 | BN96: 52044 | BO96: 52563 | BP96: 54092 | BQ96: 56923 | BR96: 61121 | BS96: 61944 | BT96: 62612 | BU96: 61341 | BV96: 62349 | BW96: 61896 | BX96: 61382 | BY96: 60234 | BZ96: 58538 | CA96: 55527 | CB96: 54745 | CC96: 52350 | CD96: 49101 | CE96: 46912 | CF96: 45464 | CG96: 43143 | CH96: 42052 | CI96: 40084 | CJ96: 38242 | CK96: 34437 | CL96: 31555 | CM96: 28790 | CN96: 25974 | CO96: 23338 | CP96: 20873 | CQ96: 18142 | CR96: 16143 | CS96: 14041 | CT96: 69233
A97: Québec | B97: 99 | C97: Ensemble du Québec | D97: 2027 | E97: Projection | F97: Total | G97: 9174941 | H97: 89768 | I97: 90129 | J97: 89953 | K97: 89447 | L97: 86901 | M97: 89712 | N97: 88748 | O97: 90938 | P97: 90551 | Q97: 90897 | R97: 92223 | S97: 95328 | T97: 96711 | U97: 97369 | V97: 98156 | W97: 97914 | X97: 97767 | Y97: 99073 | Z97: 102787 | AA97: 107609 | AB97: 109113 | AC97: 107957 | AD97: 105143 | AE97: 105369 | AF97: 104769 | AG97: 106437 | AH97: 109022 | AI97: 112121 | AJ97: 111547 | AK97: 114118 | AL97: 117480 | AM97: 120834 | AN97: 122832 | AO97: 124185 | AP97: 126816 | AQ97: 128860 | AR97: 129478 | AS97: 126847 | AT97: 120375 | AU97: 116300 | AV97: 115993 | AW97: 118252 | AX97: 118923 | AY97: 119451 | AZ97: 119101 | BA97: 121873 | BB97: 124353 | BC97: 124149 | BD97: 120189 | BE97: 117514 | BF97: 115894 | BG97: 112650 | BH97: 110774 | BI97: 105162 | BJ97: 102427 | BK97: 102211 | BL97: 105412 | BM97: 106027 | BN97: 104520 | BO97: 104966 | BP97: 108288 | BQ97: 114274 | BR97: 122223 | BS97: 123900 | BT97: 124636 | BU97: 122296 | BV97: 123887 | BW97: 121956 | BX97: 120492 | BY97: 118691 | BZ97: 114828 | CA97: 108884 | CB97: 106825 | CC97: 101494 | CD97: 95108 | CE97: 90682 | CF97: 87545 | CG97: 82681 | CH97: 79738 | CI97: 75484 | CJ97: 71899 | CK97: 64072 | CL97: 58249 | CM97: 52506 | CN97: 47190 | CO97: 41710 | CP97: 36721 | CQ97: 31345 | CR97: 27415 | CS97: 23579 | CT97: 104918
A98: Québec | B98: 99 | C98: Ensemble du Québec | D98: 2028 | E98: Projection | F98: Masculin | G98: 4659414 | H98: 46151 | I98: 46732 | J98: 47066 | K98: 46925 | L98: 46488 | M98: 45053 | N98: 46696 | O98: 46210 | P98: 47180 | Q98: 46735 | R98: 46688 | S98: 47566 | T98: 49197 | U98: 49462 | V98: 49840 | W98: 50719 | X98: 50356 | Y98: 50423 | Z98: 52630 | AA98: 56618 | AB98: 58377 | AC98: 58221 | AD98: 57047 | AE98: 56330 | AF98: 56726 | AG98: 55775 | AH98: 56480 | AI98: 58129 | AJ98: 59225 | AK98: 58958 | AL98: 60195 | AM98: 62276 | AN98: 63600 | AO98: 64843 | AP98: 65614 | AQ98: 66882 | AR98: 67646 | AS98: 67656 | AT98: 66003 | AU98: 62825 | AV98: 60182 | AW98: 59877 | AX98: 60892 | AY98: 61063 | AZ98: 61154 | BA98: 60772 | BB98: 62393 | BC98: 63317 | BD98: 63249 | BE98: 60969 | BF98: 59740 | BG98: 58779 | BH98: 57246 | BI98: 56238 | BJ98: 53078 | BK98: 51789 | BL98: 51476 | BM98: 53143 | BN98: 53247 | BO98: 52206 | BP98: 52115 | BQ98: 53875 | BR98: 56976 | BS98: 60662 | BT98: 61466 | BU98: 61487 | BV98: 60391 | BW98: 60915 | BX98: 59393 | BY98: 58387 | BZ98: 57688 | CA98: 55459 | CB98: 52509 | CC98: 51125 | CD98: 48186 | CE98: 44999 | CF98: 42690 | CG98: 40931 | CH98: 38331 | CI98: 36392 | CJ98: 34062 | CK98: 32235 | CL98: 28218 | CM98: 25276 | CN98: 22295 | CO98: 19797 | CP98: 16980 | CQ98: 14514 | CR98: 11951 | CS98: 10075 | CT98: 37681
A99: Québec | B99: 99 | C99: Ensemble du Québec | D99: 2028 | E99: Projection | F99: Féminin | G99: 4589593 | H99: 43859 | I99: 44448 | J99: 44756 | K99: 44643 | L99: 44169 | M99: 42838 | N99: 44206 | O99: 43604 | P99: 44612 | Q99: 44453 | R99: 44847 | S99: 45216 | T99: 46654 | U99: 47772 | V99: 48005 | W99: 48096 | X99: 48363 | Y99: 48317 | Z99: 50608 | AA99: 53875 | AB99: 54812 | AC99: 53995 | AD99: 52334 | AE99: 50502 | AF99: 50871 | AG99: 50525 | AH99: 51599 | AI99: 52664 | AJ99: 54210 | AK99: 54114 | AL99: 55268 | AM99: 56601 | AN99: 58457 | AO99: 59147 | AP99: 59905 | AQ99: 61108 | AR99: 62227 | AS99: 62546 | AT99: 61441 | AU99: 58141 | AV99: 56518 | AW99: 56488 | AX99: 57401 | AY99: 57957 | AZ99: 58346 | BA99: 58304 | BB99: 59369 | BC99: 60844 | BD99: 60670 | BE99: 58988 | BF99: 57473 | BG99: 56772 | BH99: 55014 | BI99: 54232 | BJ99: 51828 | BK99: 50312 | BL99: 50381 | BM99: 51865 | BN99: 52335 | BO99: 51905 | BP99: 52394 | BQ99: 53886 | BR99: 56690 | BS99: 60834 | BT99: 61633 | BU99: 62254 | BV99: 60942 | BW99: 61903 | BX99: 61454 | BY99: 60844 | BZ99: 59654 | CA99: 57929 | CB99: 54871 | CC99: 54042 | CD99: 51599 | CE99: 48305 | CF99: 46063 | CG99: 44558 | CH99: 42169 | CI99: 40990 | CJ99: 38971 | CK99: 37033 | CL99: 33209 | CM99: 30278 | CN99: 27490 | CO99: 24643 | CP99: 21984 | CQ99: 19504 | CR99: 16800 | CS99: 14793 | CT99: 71064
A100: Québec | B100: 99 | C100: Ensemble du Québec | D100: 2028 | E100: Projection | F100: Total | G100: 9249007 | H100: 90010 | I100: 91180 | J100: 91822 | K100: 91568 | L100: 90657 | M100: 87891 | N100: 90902 | O100: 89814 | P100: 91792 | Q100: 91188 | R100: 91535 | S100: 92782 | T100: 95851 | U100: 97234 | V100: 97845 | W100: 98815 | X100: 98719 | Y100: 98740 | Z100: 103238 | AA100: 110493 | AB100: 113189 | AC100: 112216 | AD100: 109381 | AE100: 106832 | AF100: 107597 | AG100: 106300 | AH100: 108079 | AI100: 110793 | AJ100: 113435 | AK100: 113072 | AL100: 115463 | AM100: 118877 | AN100: 122057 | AO100: 123990 | AP100: 125519 | AQ100: 127990 | AR100: 129873 | AS100: 130202 | AT100: 127444 | AU100: 120966 | AV100: 116700 | AW100: 116365 | AX100: 118293 | AY100: 119020 | AZ100: 119500 | BA100: 119076 | BB100: 121762 | BC100: 124161 | BD100: 123919 | BE100: 119957 | BF100: 117213 | BG100: 115551 | BH100: 112260 | BI100: 110470 | BJ100: 104906 | BK100: 102101 | BL100: 101857 | BM100: 105008 | BN100: 105582 | BO100: 104111 | BP100: 104509 | BQ100: 107761 | BR100: 113666 | BS100: 121496 | BT100: 123099 | BU100: 123741 | BV100: 121333 | BW100: 122818 | BX100: 120847 | BY100: 119231 | BZ100: 117342 | CA100: 113388 | CB100: 107380 | CC100: 105167 | CD100: 99785 | CE100: 93304 | CF100: 88753 | CG100: 85489 | CH100: 80500 | CI100: 77382 | CJ100: 73033 | CK100: 69268 | CL100: 61427 | CM100: 55554 | CN100: 49785 | CO100: 44440 | CP100: 38964 | CQ100: 34018 | CR100: 28751 | CS100: 24868 | CT100: 108745
A101: Québec | B101: 99 | C101: Ensemble du Québec | D101: 2029 | E101: Projection | F101: Masculin | G101: 4695621 | H101: 46262 | I101: 46855 | J101: 47595 | K101: 47881 | L101: 47569 | M101: 46970 | N101: 45667 | O101: 47227 | P101: 46601 | Q101: 47482 | R101: 47081 | S101: 46977 | T101: 47793 | U101: 49440 | V101: 49696 | W101: 50184 | X101: 51125 | Y101: 50849 | Z101: 52601 | AA101: 56934 | AB101: 59906 | AC101: 60207 | AD101: 59368 | AE101: 58220 | AF101: 57522 | AG101: 57287 | AH101: 56357 | AI101: 57237 | AJ101: 58571 | AK101: 59804 | AL101: 59550 | AM101: 60754 | AN101: 62830 | AO101: 64084 | AP101: 65435 | AQ101: 66082 | AR101: 67235 | AS101: 67915 | AT101: 67890 | AU101: 66270 | AV101: 62937 | AW101: 60374 | AX101: 59822 | AY101: 60853 | AZ101: 61040 | BA101: 61047 | BB101: 60587 | BC101: 62234 | BD101: 63084 | BE101: 63050 | BF101: 60765 | BG101: 59479 | BH101: 58467 | BI101: 57025 | BJ101: 56037 | BK101: 52843 | BL101: 51528 | BM101: 51211 | BN101: 52860 | BO101: 52966 | BP101: 51911 | BQ101: 51795 | BR101: 53526 | BS101: 56578 | BT101: 60198 | BU101: 60936 | BV101: 60919 | BW101: 59778 | BX101: 60252 | BY101: 58680 | BZ101: 57638 | CA101: 56835 | CB101: 54577 | CC101: 51559 | CD101: 50140 | CE101: 47146 | CF101: 43910 | CG101: 41550 | CH101: 39693 | CI101: 37049 | CJ101: 35040 | CK101: 32639 | CL101: 30725 | CM101: 26741 | CN101: 23782 | CO101: 20821 | CP101: 18325 | CQ101: 15573 | CR101: 13176 | CS101: 10718 | CT101: 39889
A102: Québec | B102: 99 | C102: Ensemble du Québec | D102: 2029 | E102: Projection | F102: Féminin | G102: 4621825 | H102: 43953 | I102: 44563 | J102: 45268 | K102: 45552 | L102: 45195 | M102: 44654 | N102: 43407 | O102: 44723 | P102: 44060 | Q102: 44926 | R102: 44734 | S102: 45111 | T102: 45498 | U102: 46899 | V102: 47977 | W102: 48306 | X102: 48475 | Y102: 48820 | Z102: 50340 | AA102: 54084 | AB102: 56144 | AC102: 55981 | AD102: 54121 | AE102: 52681 | AF102: 51374 | AG102: 51643 | AH102: 51395 | AI102: 52439 | AJ102: 53356 | AK102: 54979 | AL102: 54692 | AM102: 55953 | AN102: 57110 | AO102: 58978 | AP102: 59717 | AQ102: 60454 | AR102: 61619 | AS102: 62555 | AT102: 62784 | AU102: 61622 | AV102: 58293 | AW102: 56614 | AX102: 56497 | AY102: 57457 | AZ102: 57961 | BA102: 58343 | BB102: 58304 | BC102: 59284 | BD102: 60776 | BE102: 60578 | BF102: 58839 | BG102: 57343 | BH102: 56650 | BI102: 54916 | BJ102: 54137 | BK102: 51698 | BL102: 50198 | BM102: 50252 | BN102: 51706 | BO102: 52196 | BP102: 51727 | BQ102: 52202 | BR102: 53669 | BS102: 56431 | BT102: 60538 | BU102: 61274 | BV102: 61858 | BW102: 60511 | BX102: 61460 | BY102: 60919 | BZ102: 60266 | CA102: 59042 | CB102: 57259 | CC102: 54193 | CD102: 53271 | CE102: 50772 | CF102: 47443 | CG102: 45149 | CH102: 43569 | CI102: 41105 | CJ102: 39857 | CK102: 37747 | CL102: 35741 | CM102: 31891 | CN102: 28936 | CO102: 26103 | CP102: 23244 | CQ102: 20564 | CR102: 18088 | CS102: 15416 | CT102: 73396
A103: Québec | B103: 99 | C103: Ensemble du Québec | D103: 2029 | E103: Projection | F103: Total | G103: 9317446 | H103: 90215 | I103: 91418 | J103: 92863 | K103: 93433 | L103: 92764 | M103: 91624 | N103: 89074 | O103: 91950 | P103: 90661 | Q103: 92408 | R103: 91815 | S103: 92088 | T103: 93291 | U103: 96339 | V103: 97673 | W103: 98490 | X103: 99600 | Y103: 99669 | Z103: 102941 | AA103: 111018 | AB103: 116050 | AC103: 116188 | AD103: 113489 | AE103: 110901 | AF103: 108896 | AG103: 108930 | AH103: 107752 | AI103: 109676 | AJ103: 111927 | AK103: 114783 | AL103: 114242 | AM103: 116707 | AN103: 119940 | AO103: 123062 | AP103: 125152 | AQ103: 126536 | AR103: 128854 | AS103: 130470 | AT103: 130674 | AU103: 127892 | AV103: 121230 | AW103: 116988 | AX103: 116319 | AY103: 118310 | AZ103: 119001 | BA103: 119390 | BB103: 118891 | BC103: 121518 | BD103: 123860 | BE103: 123628 | BF103: 119604 | BG103: 116822 | BH103: 115117 | BI103: 111941 | BJ103: 110174 | BK103: 104541 | BL103: 101726 | BM103: 101463 | BN103: 104566 | BO103: 105162 | BP103: 103638 | BQ103: 103997 | BR103: 107195 | BS103: 113009 | BT103: 120736 | BU103: 122210 | BV103: 122777 | BW103: 120289 | BX103: 121712 | BY103: 119599 | BZ103: 117904 | CA103: 115877 | CB103: 111836 | CC103: 105752 | CD103: 103411 | CE103: 97918 | CF103: 91353 | CG103: 86699 | CH103: 83262 | CI103: 78154 | CJ103: 74897 | CK103: 70386 | CL103: 66466 | CM103: 58632 | CN103: 52718 | CO103: 46924 | CP103: 41569 | CQ103: 36137 | CR103: 31264 | CS103: 26134 | CT103: 113285
A104: Québec | B104: 99 | C104: Ensemble du Québec | D104: 2030 | E104: Projection | F104: Masculin | G104: 4728394 | H104: 46327 | I104: 46964 | J104: 47733 | K104: 48421 | L104: 48514 | M104: 48045 | N104: 47579 | O104: 46193 | P104: 47605 | Q104: 46884 | R104: 47818 | S104: 47358 | T104: 47199 | U104: 48043 | V104: 49672 | W104: 50031 | X104: 50576 | Y104: 51601 | Z104: 53030 | AA104: 56927 | AB104: 60212 | AC104: 61683 | AD104: 61264 | AE104: 60441 | AF104: 59289 | AG104: 57959 | AH104: 57738 | AI104: 57004 | AJ104: 57564 | AK104: 59031 | AL104: 60273 | AM104: 59992 | AN104: 61219 | AO104: 63215 | AP104: 64587 | AQ104: 65816 | AR104: 66360 | AS104: 67415 | AT104: 68073 | AU104: 68072 | AV104: 66323 | AW104: 63059 | AX104: 60248 | AY104: 59736 | AZ104: 60780 | BA104: 60868 | BB104: 60825 | BC104: 60396 | BD104: 61963 | BE104: 62858 | BF104: 62822 | BG104: 60479 | BH104: 59150 | BI104: 58222 | BJ104: 56803 | BK104: 55790 | BL104: 52580 | BM104: 51250 | BN104: 50933 | BO104: 52569 | BP104: 52661 | BQ104: 51599 | BR104: 51465 | BS104: 53156 | BT104: 56144 | BU104: 59685 | BV104: 60374 | BW104: 60309 | BX104: 59151 | BY104: 59547 | BZ104: 57946 | CA104: 56805 | CB104: 55956 | CC104: 53614 | CD104: 50589 | CE104: 49085 | CF104: 46031 | CG104: 42752 | CH104: 40316 | CI104: 38389 | CJ104: 35683 | CK104: 33604 | CL104: 31128 | CM104: 29143 | CN104: 25188 | CO104: 22229 | CP104: 19298 | CQ104: 16826 | CR104: 14146 | CS104: 11822 | CT104: 42372
A105: Québec | B105: 99 | C105: Ensemble du Québec | D105: 2030 | E105: Projection | F105: Féminin | G105: 4651729 | H105: 44018 | I105: 44664 | J105: 45392 | K105: 46064 | L105: 46103 | M105: 45673 | N105: 45208 | O105: 43917 | P105: 45159 | Q105: 44354 | R105: 45190 | S105: 44978 | T105: 45377 | U105: 45726 | V105: 47102 | W105: 48268 | X105: 48677 | Y105: 48933 | Z105: 50852 | AA105: 53836 | AB105: 56330 | AC105: 57260 | AD105: 56027 | AE105: 54385 | AF105: 53484 | AG105: 52088 | AH105: 52445 | AI105: 52175 | AJ105: 53077 | AK105: 54058 | AL105: 55485 | AM105: 55312 | AN105: 56388 | AO105: 57568 | AP105: 59502 | AQ105: 60227 | AR105: 60917 | AS105: 61898 | AT105: 62745 | AU105: 62931 | AV105: 61749 | AW105: 58367 | AX105: 56593 | AY105: 56533 | AZ105: 57441 | BA105: 57940 | BB105: 58324 | BC105: 58194 | BD105: 59205 | BE105: 60679 | BF105: 60419 | BG105: 58696 | BH105: 57219 | BI105: 56543 | BJ105: 54813 | BK105: 53994 | BL105: 51576 | BM105: 50064 | BN105: 50080 | BO105: 51562 | BP105: 52010 | BQ105: 51536 | BR105: 51984 | BS105: 53420 | BT105: 56158 | BU105: 60204 | BV105: 60898 | BW105: 61424 | BX105: 60089 | BY105: 60929 | BZ105: 60342 | CA105: 59645 | CB105: 58374 | CC105: 56553 | CD105: 53412 | CE105: 52439 | CF105: 49875 | CG105: 46521 | CH105: 44155 | CI105: 42481 | CJ105: 39992 | CK105: 38619 | CL105: 36448 | CM105: 34333 | CN105: 30483 | CO105: 27489 | CP105: 24630 | CQ105: 21753 | CR105: 19083 | CS105: 16607 | CT105: 76059
A106: Québec | B106: 99 | C106: Ensemble du Québec | D106: 2030 | E106: Projection | F106: Total | G106: 9380123 | H106: 90345 | I106: 91628 | J106: 93125 | K106: 94485 | L106: 94617 | M106: 93718 | N106: 92787 | O106: 90110 | P106: 92764 | Q106: 91238 | R106: 93008 | S106: 92336 | T106: 92576 | U106: 93769 | V106: 96774 | W106: 98299 | X106: 99253 | Y106: 100534 | Z106: 103882 | AA106: 110763 | AB106: 116542 | AC106: 118943 | AD106: 117291 | AE106: 114826 | AF106: 112773 | AG106: 110047 | AH106: 110183 | AI106: 109179 | AJ106: 110641 | AK106: 113089 | AL106: 115758 | AM106: 115304 | AN106: 117607 | AO106: 120783 | AP106: 124089 | AQ106: 126043 | AR106: 127277 | AS106: 129313 | AT106: 130818 | AU106: 131003 | AV106: 128072 | AW106: 121426 | AX106: 116841 | AY106: 116269 | AZ106: 118221 | BA106: 118808 | BB106: 119149 | BC106: 118590 | BD106: 121168 | BE106: 123537 | BF106: 123241 | BG106: 119175 | BH106: 116369 | BI106: 114765 | BJ106: 111616 | BK106: 109784 | BL106: 104156 | BM106: 101314 | BN106: 101013 | BO106: 104131 | BP106: 104671 | BQ106: 103135 | BR106: 103449 | BS106: 106576 | BT106: 112302 | BU106: 119889 | BV106: 121272 | BW106: 121733 | BX106: 119240 | BY106: 120476 | BZ106: 118288 | CA106: 116450 | CB106: 114330 | CC106: 110167 | CD106: 104001 | CE106: 101524 | CF106: 95906 | CG106: 89273 | CH106: 84471 | CI106: 80870 | CJ106: 75675 | CK106: 72223 | CL106: 67576 | CM106: 63476 | CN106: 55671 | CO106: 49718 | CP106: 43928 | CQ106: 38579 | CR106: 33229 | CS106: 28429 | CT106: 118431
A107: Québec | B107: 99 | C107: Ensemble du Québec | D107: 2031 | E107: Projection | F107: Masculin | G107: 4757547 | H107: 46379 | I107: 47032 | J107: 47832 | K107: 48541 | L107: 49036 | M107: 48970 | N107: 48644 | O107: 48079 | P107: 46555 | Q107: 47872 | R107: 47199 | S107: 48071 | T107: 47567 | U107: 47432 | V107: 48265 | W107: 49995 | X107: 50412 | Y107: 51055 | Z107: 53778 | AA107: 57349 | AB107: 60158 | AC107: 61900 | AD107: 62638 | AE107: 62235 | AF107: 61393 | AG107: 59606 | AH107: 58283 | AI107: 58270 | AJ107: 57214 | AK107: 57921 | AL107: 59403 | AM107: 60600 | AN107: 60355 | AO107: 61506 | AP107: 63626 | AQ107: 64879 | AR107: 66007 | AS107: 66472 | AT107: 67501 | AU107: 68172 | AV107: 68050 | AW107: 66352 | AX107: 62877 | AY107: 60102 | AZ107: 59608 | BA107: 60575 | BB107: 60625 | BC107: 60600 | BD107: 60096 | BE107: 61714 | BF107: 62605 | BG107: 62499 | BH107: 60128 | BI107: 58888 | BJ107: 57986 | BK107: 56548 | BL107: 55496 | BM107: 52290 | BN107: 50973 | BO107: 50651 | BP107: 52282 | BQ107: 52346 | BR107: 51262 | BS107: 51107 | BT107: 52746 | BU107: 55677 | BV107: 59155 | BW107: 59796 | BX107: 59681 | BY107: 58465 | BZ107: 58799 | CA107: 57108 | CB107: 55938 | CC107: 54987 | CD107: 52611 | CE107: 49540 | CF107: 47939 | CG107: 44826 | CH107: 41506 | CI107: 39012 | CJ107: 37005 | CK107: 34250 | CL107: 32078 | CM107: 29558 | CN107: 27476 | CO107: 23581 | CP107: 20641 | CQ107: 17745 | CR107: 15308 | CS107: 12721 | CT107: 45536
A108: Québec | B108: 99 | C108: Ensemble du Québec | D108: 2031 | E108: Projection | F108: Féminin | G108: 4679395 | H108: 44063 | I108: 44731 | J108: 45484 | K108: 46180 | L108: 46607 | M108: 46565 | N108: 46218 | O108: 45717 | P108: 44341 | Q108: 45446 | R108: 44611 | S108: 45415 | T108: 45228 | U108: 45593 | V108: 45913 | W108: 47376 | X108: 48628 | Y108: 49115 | Z108: 50955 | AA108: 54331 | AB108: 56041 | AC108: 57392 | AD108: 57242 | AE108: 56228 | AF108: 55121 | AG108: 54123 | AH108: 52831 | AI108: 53150 | AJ108: 52746 | AK108: 53707 | AL108: 54504 | AM108: 56040 | AN108: 55700 | AO108: 56803 | AP108: 58056 | AQ108: 59952 | AR108: 60649 | AS108: 61165 | AT108: 62061 | AU108: 62858 | AV108: 63015 | AW108: 61777 | AX108: 58307 | AY108: 56602 | AZ108: 56489 | BA108: 57410 | BB108: 57904 | BC108: 58201 | BD108: 58105 | BE108: 59090 | BF108: 60502 | BG108: 60259 | BH108: 58562 | BI108: 57107 | BJ108: 56429 | BK108: 54665 | BL108: 53875 | BM108: 51434 | BN108: 49895 | BO108: 49946 | BP108: 51386 | BQ108: 51829 | BR108: 51323 | BS108: 51752 | BT108: 53179 | BU108: 55850 | BV108: 59824 | BW108: 60481 | BX108: 61006 | BY108: 59580 | BZ108: 60368 | CA108: 59742 | CB108: 58980 | CC108: 57655 | CD108: 55759 | CE108: 52591 | CF108: 51527 | CG108: 48905 | CH108: 45502 | CI108: 43078 | CJ108: 41336 | CK108: 38774 | CL108: 37304 | CM108: 35033 | CN108: 32839 | CO108: 28984 | CP108: 25955 | CQ108: 23076 | CR108: 20207 | CS108: 17539 | CT108: 79571
A109: Québec | B109: 99 | C109: Ensemble du Québec | D109: 2031 | E109: Projection | F109: Total | G109: 9436942 | H109: 90442 | I109: 91763 | J109: 93316 | K109: 94721 | L109: 95643 | M109: 95535 | N109: 94862 | O109: 93796 | P109: 90896 | Q109: 93318 | R109: 91810 | S109: 93486 | T109: 92795 | U109: 93025 | V109: 94178 | W109: 97371 | X109: 99040 | Y109: 100170 | Z109: 104733 | AA109: 111680 | AB109: 116199 | AC109: 119292 | AD109: 119880 | AE109: 118463 | AF109: 116514 | AG109: 113729 | AH109: 111114 | AI109: 111420 | AJ109: 109960 | AK109: 111628 | AL109: 113907 | AM109: 116640 | AN109: 116055 | AO109: 118309 | AP109: 121682 | AQ109: 124831 | AR109: 126656 | AS109: 127637 | AT109: 129562 | AU109: 131030 | AV109: 131065 | AW109: 128129 | AX109: 121184 | AY109: 116704 | AZ109: 116097 | BA109: 117985 | BB109: 118529 | BC109: 118801 | BD109: 118201 | BE109: 120804 | BF109: 123107 | BG109: 122758 | BH109: 118690 | BI109: 115995 | BJ109: 114415 | BK109: 111213 | BL109: 109371 | BM109: 103724 | BN109: 100868 | BO109: 100597 | BP109: 103668 | BQ109: 104175 | BR109: 102585 | BS109: 102859 | BT109: 105925 | BU109: 111527 | BV109: 118979 | BW109: 120277 | BX109: 120687 | BY109: 118045 | BZ109: 119167 | CA109: 116850 | CB109: 114918 | CC109: 112642 | CD109: 108370 | CE109: 102131 | CF109: 99466 | CG109: 93731 | CH109: 87008 | CI109: 82090 | CJ109: 78341 | CK109: 73024 | CL109: 69382 | CM109: 64591 | CN109: 60315 | CO109: 52565 | CP109: 46596 | CQ109: 40821 | CR109: 35515 | CS109: 30260 | CT109: 125107
A110: Québec | B110: 99 | C110: Ensemble du Québec | D110: 2032 | E110: Projection | F110: Masculin | G110: 4784176 | H110: 46417 | I110: 47083 | J110: 47899 | K110: 48647 | L110: 49162 | M110: 49496 | N110: 49562 | O110: 49130 | P110: 48426 | Q110: 46814 | R110: 48183 | S110: 47463 | T110: 48277 | U110: 47791 | V110: 47639 | W110: 48588 | X110: 50372 | Y110: 50884 | Z110: 53210 | AA110: 58077 | AB110: 60536 | AC110: 61808 | AD110: 62798 | AE110: 63537 | AF110: 63105 | AG110: 61628 | AH110: 59859 | AI110: 58743 | AJ110: 58387 | AK110: 57497 | AL110: 58223 | AM110: 59667 | AN110: 60904 | AO110: 60577 | AP110: 61864 | AQ110: 63866 | AR110: 65020 | AS110: 66059 | AT110: 66506 | AU110: 67569 | AV110: 68119 | AW110: 68049 | AX110: 66128 | AY110: 62688 | AZ110: 59952 | BA110: 59384 | BB110: 60298 | BC110: 60372 | BD110: 60287 | BE110: 59832 | BF110: 61446 | BG110: 62279 | BH110: 62126 | BI110: 59859 | BJ110: 58643 | BK110: 57718 | BL110: 56248 | BM110: 55191 | BN110: 52000 | BO110: 50684 | BP110: 50371 | BQ110: 51965 | BR110: 52015 | BS110: 50910 | BT110: 50725 | BU110: 52320 | BV110: 55185 | BW110: 58584 | BX110: 59186 | BY110: 59009 | BZ110: 57748 | CA110: 57982 | CB110: 56269 | CC110: 54981 | CD110: 53975 | CE110: 51547 | CF110: 48408 | CG110: 46707 | CH110: 43548 | CI110: 40187 | CJ110: 37628 | CK110: 35540 | CL110: 32719 | CM110: 30477 | CN110: 27896 | CO110: 25746 | CP110: 21918 | CQ110: 19009 | CR110: 16177 | CS110: 13798 | CT110: 49070
A111: Québec | B111: 99 | C111: Ensemble du Québec | D111: 2032 | E111: Projection | F111: Féminin | G111: 4705337 | H111: 44102 | I111: 44775 | J111: 45557 | K111: 46276 | L111: 46722 | M111: 47062 | N111: 47107 | O111: 46702 | P111: 46121 | Q111: 44621 | R111: 45677 | S111: 44832 | T111: 45660 | U111: 45440 | V111: 45776 | W111: 46185 | X111: 47742 | Y111: 49059 | Z111: 51131 | AA111: 54417 | AB111: 56513 | AC111: 57067 | AD111: 57316 | AE111: 57397 | AF111: 56925 | AG111: 55716 | AH111: 54816 | AI111: 53488 | AJ111: 53672 | AK111: 53348 | AL111: 54131 | AM111: 55045 | AN111: 56394 | AO111: 56085 | AP111: 57261 | AQ111: 58486 | AR111: 60355 | AS111: 60862 | AT111: 61296 | AU111: 62142 | AV111: 62932 | AW111: 63024 | AX111: 61705 | AY111: 58302 | AZ111: 56550 | BA111: 56451 | BB111: 57365 | BC111: 57774 | BD111: 58116 | BE111: 57997 | BF111: 58923 | BG111: 60346 | BH111: 60132 | BI111: 58444 | BJ111: 56994 | BK111: 56269 | BL111: 54533 | BM111: 53721 | BN111: 51263 | BO111: 49769 | BP111: 49784 | BQ111: 51202 | BR111: 51617 | BS111: 51101 | BT111: 51525 | BU111: 52897 | BV111: 55513 | BW111: 59414 | BX111: 60061 | BY111: 60488 | BZ111: 59036 | CA111: 59769 | CB111: 59074 | CC111: 58262 | CD111: 56859 | CE111: 54898 | CF111: 51683 | CG111: 50530 | CH111: 47854 | CI111: 44416 | CJ111: 41921 | CK111: 40092 | CL111: 37472 | CM111: 35879 | CN111: 33530 | CO111: 31246 | CP111: 27389 | CQ111: 24334 | CR111: 21455 | CS111: 18601 | CT111: 83546
A112: Québec | B112: 99 | C112: Ensemble du Québec | D112: 2032 | E112: Projection | F112: Total | G112: 9489513 | H112: 90519 | I112: 91858 | J112: 93456 | K112: 94923 | L112: 95884 | M112: 96558 | N112: 96669 | O112: 95832 | P112: 94547 | Q112: 91435 | R112: 93860 | S112: 92295 | T112: 93937 | U112: 93231 | V112: 93415 | W112: 94773 | X112: 98114 | Y112: 99943 | Z112: 104341 | AA112: 112494 | AB112: 117049 | AC112: 118875 | AD112: 120114 | AE112: 120934 | AF112: 120030 | AG112: 117344 | AH112: 114675 | AI112: 112231 | AJ112: 112059 | AK112: 110845 | AL112: 112354 | AM112: 114712 | AN112: 117298 | AO112: 116662 | AP112: 119125 | AQ112: 122352 | AR112: 125375 | AS112: 126921 | AT112: 127802 | AU112: 129711 | AV112: 131051 | AW112: 131073 | AX112: 127833 | AY112: 120990 | AZ112: 116502 | BA112: 115835 | BB112: 117663 | BC112: 118146 | BD112: 118403 | BE112: 117829 | BF112: 120369 | BG112: 122625 | BH112: 122258 | BI112: 118303 | BJ112: 115637 | BK112: 113987 | BL112: 110781 | BM112: 108912 | BN112: 103263 | BO112: 100453 | BP112: 100155 | BQ112: 103167 | BR112: 103632 | BS112: 102011 | BT112: 102250 | BU112: 105217 | BV112: 110698 | BW112: 117998 | BX112: 119247 | BY112: 119497 | BZ112: 116784 | CA112: 117751 | CB112: 115343 | CC112: 113243 | CD112: 110834 | CE112: 106445 | CF112: 100091 | CG112: 97237 | CH112: 91402 | CI112: 84603 | CJ112: 79549 | CK112: 75632 | CL112: 70191 | CM112: 66356 | CN112: 61426 | CO112: 56992 | CP112: 49307 | CQ112: 43343 | CR112: 37632 | CS112: 32399 | CT112: 132616
A113: Québec | B113: 99 | C113: Ensemble du Québec | D113: 2033 | E113: Projection | F113: Masculin | G113: 4810073 | H113: 46478 | I113: 47119 | J113: 47947 | K113: 48706 | L113: 49265 | M113: 49617 | N113: 50081 | O113: 50061 | P113: 49478 | Q113: 48694 | R113: 47130 | S113: 48431 | T113: 47662 | U113: 48507 | V113: 48012 | W113: 47960 | X113: 48961 | Y113: 50843 | Z113: 53046 | AA113: 57520 | AB113: 61268 | AC113: 62186 | AD113: 62705 | AE113: 63691 | AF113: 64409 | AG113: 63321 | AH113: 61876 | AI113: 60304 | AJ113: 58867 | AK113: 58674 | AL113: 57802 | AM113: 58496 | AN113: 59968 | AO113: 61127 | AP113: 60948 | AQ113: 62116 | AR113: 64024 | AS113: 65077 | AT113: 66104 | AU113: 66584 | AV113: 67507 | AW113: 68124 | AX113: 67823 | AY113: 65940 | AZ113: 62528 | BA113: 59730 | BB113: 59110 | BC113: 60044 | BD113: 60062 | BE113: 60022 | BF113: 59572 | BG113: 61118 | BH113: 61905 | BI113: 61852 | BJ113: 59617 | BK113: 58376 | BL113: 57422 | BM113: 55951 | BN113: 54911 | BO113: 51727 | BP113: 50414 | BQ113: 50067 | BR113: 51639 | BS113: 51661 | BT113: 50542 | BU113: 50318 | BV113: 51862 | BW113: 54675 | BX113: 57998 | BY113: 58517 | BZ113: 58301 | CA113: 56964 | CB113: 57134 | CC113: 55319 | CD113: 53991 | CE113: 52901 | CF113: 50376 | CG113: 47191 | CH113: 45398 | CI113: 42185 | CJ113: 38785 | CK113: 36165 | CL113: 33990 | CM113: 31116 | CN113: 28795 | CO113: 26167 | CP113: 23957 | CQ113: 20206 | CR113: 17351 | CS113: 14591 | CT113: 53091
A114: Québec | B114: 99 | C114: Ensemble du Québec | D114: 2033 | E114: Projection | F114: Féminin | G114: 4730505 | H114: 44161 | I114: 44813 | J114: 45597 | K114: 46340 | L114: 46806 | M114: 47172 | N114: 47603 | O114: 47587 | P114: 47120 | Q114: 46398 | R114: 44858 | S114: 45906 | T114: 45077 | U114: 45884 | V114: 45624 | W114: 46050 | X114: 46551 | Y114: 48171 | Z114: 51077 | AA114: 54594 | AB114: 56585 | AC114: 57536 | AD114: 57002 | AE114: 57478 | AF114: 58082 | AG114: 57512 | AH114: 56410 | AI114: 55474 | AJ114: 54020 | AK114: 54269 | AL114: 53766 | AM114: 54670 | AN114: 55392 | AO114: 56773 | AP114: 56548 | AQ114: 57693 | AR114: 58893 | AS114: 60572 | AT114: 60996 | AU114: 61389 | AV114: 62222 | AW114: 62943 | AX114: 62952 | AY114: 61683 | AZ114: 58249 | BA114: 56513 | BB114: 56395 | BC114: 57233 | BD114: 57687 | BE114: 58000 | BF114: 57823 | BG114: 58768 | BH114: 60210 | BI114: 60004 | BJ114: 58328 | BK114: 56829 | BL114: 56145 | BM114: 54383 | BN114: 53541 | BO114: 51126 | BP114: 49608 | BQ114: 49604 | BR114: 51002 | BS114: 51399 | BT114: 50878 | BU114: 51252 | BV114: 52579 | BW114: 55145 | BX114: 59018 | BY114: 59560 | BZ114: 59940 | CA114: 58465 | CB114: 59118 | CC114: 58378 | CD114: 57475 | CE114: 55997 | CF114: 53968 | CG114: 50712 | CH114: 49458 | CI114: 46725 | CJ114: 43241 | CK114: 40684 | CL114: 38761 | CM114: 36060 | CN114: 34354 | CO114: 31919 | CP114: 29540 | CQ114: 25703 | CR114: 22646 | CS114: 19760 | CT114: 88073
A115: Québec | B115: 99 | C115: Ensemble du Québec | D115: 2033 | E115: Projection | F115: Total | G115: 9540578 | H115: 90639 | I115: 91932 | J115: 93544 | K115: 95046 | L115: 96071 | M115: 96789 | N115: 97684 | O115: 97648 | P115: 96598 | Q115: 95092 | R115: 91988 | S115: 94337 | T115: 92739 | U115: 94391 | V115: 93636 | W115: 94010 | X115: 95512 | Y115: 99014 | Z115: 104123 | AA115: 112114 | AB115: 117853 | AC115: 119722 | AD115: 119707 | AE115: 121169 | AF115: 122491 | AG115: 120833 | AH115: 118286 | AI115: 115778 | AJ115: 112887 | AK115: 112943 | AL115: 111568 | AM115: 113166 | AN115: 115360 | AO115: 117900 | AP115: 117496 | AQ115: 119809 | AR115: 122917 | AS115: 125649 | AT115: 127100 | AU115: 127973 | AV115: 129729 | AW115: 131067 | AX115: 130775 | AY115: 127623 | AZ115: 120777 | BA115: 116243 | BB115: 115505 | BC115: 117277 | BD115: 117749 | BE115: 118022 | BF115: 117395 | BG115: 119886 | BH115: 122115 | BI115: 121856 | BJ115: 117945 | BK115: 115205 | BL115: 113567 | BM115: 110334 | BN115: 108452 | BO115: 102853 | BP115: 100022 | BQ115: 99671 | BR115: 102641 | BS115: 103060 | BT115: 101420 | BU115: 101570 | BV115: 104441 | BW115: 109820 | BX115: 117016 | BY115: 118077 | BZ115: 118241 | CA115: 115429 | CB115: 116252 | CC115: 113697 | CD115: 111466 | CE115: 108898 | CF115: 104344 | CG115: 97903 | CH115: 94856 | CI115: 88910 | CJ115: 82026 | CK115: 76849 | CL115: 72751 | CM115: 67176 | CN115: 63149 | CO115: 58086 | CP115: 53497 | CQ115: 45909 | CR115: 39997 | CS115: 34351 | CT115: 141164
A116: Québec | B116: 99 | C116: Ensemble du Québec | D116: 2034 | E116: Projection | F116: Masculin | G116: 4835209 | H116: 46596 | I116: 47179 | J116: 47993 | K116: 48758 | L116: 49328 | M116: 49717 | N116: 50198 | O116: 50572 | P116: 50402 | Q116: 49737 | R116: 49001 | S116: 47390 | T116: 48630 | U116: 47882 | V116: 48708 | W116: 48320 | X116: 48350 | Y116: 49430 | Z116: 53008 | AA116: 57353 | AB116: 60705 | AC116: 62917 | AD116: 63087 | AE116: 63596 | AF116: 64566 | AG116: 64636 | AH116: 63569 | AI116: 62310 | AJ116: 60423 | AK116: 59144 | AL116: 58967 | AM116: 58080 | AN116: 58805 | AO116: 60204 | AP116: 61490 | AQ116: 61206 | AR116: 62271 | AS116: 64083 | AT116: 65131 | AU116: 66177 | AV116: 66517 | AW116: 67513 | AX116: 67898 | AY116: 67633 | AZ116: 65765 | BA116: 62298 | BB116: 59453 | BC116: 58863 | BD116: 59742 | BE116: 59796 | BF116: 59763 | BG116: 59264 | BH116: 60761 | BI116: 61639 | BJ116: 61605 | BK116: 59350 | BL116: 58079 | BM116: 57117 | BN116: 55660 | BO116: 54616 | BP116: 51459 | BQ116: 50113 | BR116: 49767 | BS116: 51294 | BT116: 51296 | BU116: 50149 | BV116: 49885 | BW116: 51397 | BX116: 54130 | BY116: 57370 | BZ116: 57831 | CA116: 57524 | CB116: 56142 | CC116: 56192 | CD116: 54348 | CE116: 52928 | CF116: 51723 | CG116: 49145 | CH116: 45888 | CI116: 43992 | CJ116: 40737 | CK116: 37294 | CL116: 34607 | CM116: 32341 | CN116: 29424 | CO116: 27036 | CP116: 24386 | CQ116: 22125 | CR116: 18471 | CS116: 15678 | CT116: 57286
A117: Québec | B117: 99 | C117: Ensemble du Québec | D117: 2034 | E117: Projection | F117: Féminin | G117: 4754995 | H117: 44273 | I117: 44873 | J117: 45631 | K117: 46382 | L117: 46878 | M117: 47269 | N117: 47704 | O117: 48085 | P117: 48000 | Q117: 47389 | R117: 46634 | S117: 45085 | T117: 46147 | U117: 45293 | V117: 46057 | W117: 45905 | X117: 46416 | Y117: 46984 | Z117: 50181 | AA117: 54543 | AB117: 56773 | AC117: 57622 | AD117: 57463 | AE117: 57158 | AF117: 58166 | AG117: 58676 | AH117: 58191 | AI117: 57056 | AJ117: 55991 | AK117: 54623 | AL117: 54685 | AM117: 54315 | AN117: 55025 | AO117: 55783 | AP117: 57245 | AQ117: 56986 | AR117: 58102 | AS117: 59121 | AT117: 60712 | AU117: 61095 | AV117: 61456 | AW117: 62237 | AX117: 62868 | AY117: 62936 | AZ117: 61628 | BA117: 58212 | BB117: 56463 | BC117: 56280 | BD117: 57151 | BE117: 57565 | BF117: 57837 | BG117: 57673 | BH117: 58638 | BI117: 60088 | BJ117: 59894 | BK117: 58166 | BL117: 56703 | BM117: 55986 | BN117: 54208 | BO117: 53402 | BP117: 50968 | BQ117: 49432 | BR117: 49422 | BS117: 50773 | BT117: 51171 | BU117: 50617 | BV117: 50959 | BW117: 52230 | BX117: 54792 | BY117: 58542 | BZ117: 59032 | CA117: 59361 | CB117: 57840 | CC117: 58429 | CD117: 57586 | CE117: 56609 | CF117: 55056 | CG117: 52958 | CH117: 49645 | CI117: 48299 | CJ117: 45510 | CK117: 41966 | CL117: 39353 | CM117: 37317 | CN117: 34546 | CO117: 32733 | CP117: 30195 | CQ117: 27745 | CR117: 23940 | CS117: 20886 | CT117: 93175
A118: Québec | B118: 99 | C118: Ensemble du Québec | D118: 2034 | E118: Projection | F118: Total | G118: 9590204 | H118: 90869 | I118: 92052 | J118: 93624 | K118: 95140 | L118: 96206 | M118: 96986 | N118: 97902 | O118: 98657 | P118: 98402 | Q118: 97126 | R118: 95635 | S118: 92475 | T118: 94777 | U118: 93175 | V118: 94765 | W118: 94225 | X118: 94766 | Y118: 96414 | Z118: 103189 | AA118: 111896 | AB118: 117478 | AC118: 120539 | AD118: 120550 | AE118: 120754 | AF118: 122732 | AG118: 123312 | AH118: 121760 | AI118: 119366 | AJ118: 116414 | AK118: 113767 | AL118: 113652 | AM118: 112395 | AN118: 113830 | AO118: 115987 | AP118: 118735 | AQ118: 118192 | AR118: 120373 | AS118: 123204 | AT118: 125843 | AU118: 127272 | AV118: 127973 | AW118: 129750 | AX118: 130766 | AY118: 130569 | AZ118: 127393 | BA118: 120510 | BB118: 115916 | BC118: 115143 | BD118: 116893 | BE118: 117361 | BF118: 117600 | BG118: 116937 | BH118: 119399 | BI118: 121727 | BJ118: 121499 | BK118: 117516 | BL118: 114782 | BM118: 113103 | BN118: 109868 | BO118: 108018 | BP118: 102427 | BQ118: 99545 | BR118: 99189 | BS118: 102067 | BT118: 102467 | BU118: 100766 | BV118: 100844 | BW118: 103627 | BX118: 108922 | BY118: 115912 | BZ118: 116863 | CA118: 116885 | CB118: 113982 | CC118: 114621 | CD118: 111934 | CE118: 109537 | CF118: 106779 | CG118: 102103 | CH118: 95533 | CI118: 92291 | CJ118: 86247 | CK118: 79260 | CL118: 73960 | CM118: 69658 | CN118: 63970 | CO118: 59769 | CP118: 54581 | CQ118: 49870 | CR118: 42411 | CS118: 36564 | CT118: 150461
A119: Québec | B119: 99 | C119: Ensemble du Québec | D119: 2035 | E119: Projection | F119: Masculin | G119: 4859671 | H119: 46765 | I119: 47303 | J119: 48041 | K119: 48795 | L119: 49374 | M119: 49777 | N119: 50296 | O119: 50686 | P119: 50913 | Q119: 50654 | R119: 50044 | S119: 49246 | T119: 47587 | U119: 48857 | V119: 48096 | W119: 49033 | X119: 48706 | Y119: 48824 | Z119: 51598 | AA119: 57313 | AB119: 60551 | AC119: 62354 | AD119: 63811 | AE119: 63979 | AF119: 64475 | AG119: 64798 | AH119: 64868 | AI119: 64005 | AJ119: 62429 | AK119: 60704 | AL119: 59443 | AM119: 59251 | AN119: 58390 | AO119: 59039 | AP119: 60566 | AQ119: 61740 | AR119: 61361 | AS119: 62339 | AT119: 64132 | AU119: 65209 | AV119: 66120 | AW119: 66527 | AX119: 67291 | AY119: 67703 | AZ119: 67456 | BA119: 65536 | BB119: 62020 | BC119: 59210 | BD119: 58552 | BE119: 59478 | BF119: 59550 | BG119: 59451 | BH119: 58907 | BI119: 60496 | BJ119: 61395 | BK119: 61335 | BL119: 59055 | BM119: 57787 | BN119: 56836 | BO119: 55370 | BP119: 54333 | BQ119: 51162 | BR119: 49822 | BS119: 49439 | BT119: 50932 | BU119: 50888 | BV119: 49716 | BW119: 49444 | BX119: 50898 | BY119: 53559 | BZ119: 56702 | CA119: 57074 | CB119: 56703 | CC119: 55233 | CD119: 55205 | CE119: 53293 | CF119: 51776 | CG119: 50470 | CH119: 47797 | CI119: 44493 | CJ119: 42510 | CK119: 39198 | CL119: 35720 | CM119: 32959 | CN119: 30614 | CO119: 27652 | CP119: 25212 | CQ119: 22541 | CR119: 20259 | CS119: 16729 | CT119: 61911
A120: Québec | B120: 99 | C120: Ensemble du Québec | D120: 2035 | E120: Projection | F120: Féminin | G120: 4778829 | H120: 44430 | I120: 44980 | J120: 45696 | K120: 46428 | L120: 46926 | M120: 47326 | N120: 47810 | O120: 48203 | P120: 48497 | Q120: 48273 | R120: 47636 | S120: 46861 | T120: 45322 | U120: 46364 | V120: 45480 | W120: 46338 | X120: 46264 | Y120: 46842 | Z120: 49008 | AA120: 53660 | AB120: 56716 | AC120: 57797 | AD120: 57551 | AE120: 57618 | AF120: 57842 | AG120: 58755 | AH120: 59349 | AI120: 58835 | AJ120: 57566 | AK120: 56582 | AL120: 55039 | AM120: 55228 | AN120: 54670 | AO120: 55415 | AP120: 56254 | AQ120: 57682 | AR120: 57392 | AS120: 58338 | AT120: 59264 | AU120: 60805 | AV120: 61166 | AW120: 61481 | AX120: 62156 | AY120: 62862 | AZ120: 62879 | BA120: 61584 | BB120: 58163 | BC120: 56336 | BD120: 56194 | BE120: 57035 | BF120: 57414 | BG120: 57685 | BH120: 57550 | BI120: 58525 | BJ120: 59978 | BK120: 59727 | BL120: 58042 | BM120: 56554 | BN120: 55801 | BO120: 54063 | BP120: 53224 | BQ120: 50789 | BR120: 49244 | BS120: 49220 | BT120: 50569 | BU120: 50910 | BV120: 50324 | BW120: 50628 | BX120: 51903 | BY120: 54342 | BZ120: 58022 | CA120: 58470 | CB120: 58735 | CC120: 57174 | CD120: 57646 | CE120: 56747 | CF120: 55670 | CG120: 54036 | CH120: 51861 | CI120: 48493 | CJ120: 47063 | CK120: 44188 | CL120: 40625 | CM120: 37903 | CN120: 35773 | CO120: 32929 | CP120: 30982 | CQ120: 28386 | CR120: 25861 | CS120: 22094 | CT120: 98781
A121: Québec | B121: 99 | C121: Ensemble du Québec | D121: 2035 | E121: Projection | F121: Total | G121: 9638500 | H121: 91195 | I121: 92283 | J121: 93737 | K121: 95223 | L121: 96300 | M121: 97103 | N121: 98106 | O121: 98889 | P121: 99410 | Q121: 98927 | R121: 97680 | S121: 96107 | T121: 92909 | U121: 95221 | V121: 93576 | W121: 95371 | X121: 94970 | Y121: 95666 | Z121: 100606 | AA121: 110973 | AB121: 117267 | AC121: 120151 | AD121: 121362 | AE121: 121597 | AF121: 122317 | AG121: 123553 | AH121: 124217 | AI121: 122840 | AJ121: 119995 | AK121: 117286 | AL121: 114482 | AM121: 114479 | AN121: 113060 | AO121: 114454 | AP121: 116820 | AQ121: 119422 | AR121: 118753 | AS121: 120677 | AT121: 123396 | AU121: 126014 | AV121: 127286 | AW121: 128008 | AX121: 129447 | AY121: 130565 | AZ121: 130335 | BA121: 127120 | BB121: 120183 | BC121: 115546 | BD121: 114746 | BE121: 116513 | BF121: 116964 | BG121: 117136 | BH121: 116457 | BI121: 119021 | BJ121: 121373 | BK121: 121062 | BL121: 117097 | BM121: 114341 | BN121: 112637 | BO121: 109433 | BP121: 107557 | BQ121: 101951 | BR121: 99066 | BS121: 98659 | BT121: 101501 | BU121: 101798 | BV121: 100040 | BW121: 100072 | BX121: 102801 | BY121: 107901 | BZ121: 114724 | CA121: 115544 | CB121: 115438 | CC121: 112407 | CD121: 112851 | CE121: 110040 | CF121: 107446 | CG121: 104506 | CH121: 99658 | CI121: 92986 | CJ121: 89573 | CK121: 83386 | CL121: 76345 | CM121: 70862 | CN121: 66387 | CO121: 60581 | CP121: 56194 | CQ121: 50927 | CR121: 46120 | CS121: 38823 | CT121: 160692
A122: Québec | B122: 99 | C122: Ensemble du Québec | D122: 2036 | E122: Projection | F122: Masculin | G122: 4883622 | H122: 47007 | I122: 47475 | J122: 48167 | K122: 48859 | L122: 49416 | M122: 49824 | N122: 50371 | O122: 50795 | P122: 51038 | Q122: 51168 | R122: 50961 | S122: 50294 | T122: 49448 | U122: 47812 | V122: 49076 | W122: 48423 | X122: 49417 | Y122: 49180 | Z122: 50989 | AA122: 55907 | AB122: 60506 | AC122: 62190 | AD122: 63257 | AE122: 64702 | AF122: 64847 | AG122: 64690 | AH122: 65043 | AI122: 65295 | AJ122: 64114 | AK122: 62689 | AL122: 60996 | AM122: 59717 | AN122: 59553 | AO122: 58627 | AP122: 59420 | AQ122: 60832 | AR122: 61904 | AS122: 61435 | AT122: 62401 | AU122: 64226 | AV122: 65149 | AW122: 66128 | AX122: 66304 | AY122: 67100 | AZ122: 67533 | BA122: 67221 | BB122: 65242 | BC122: 61766 | BD122: 58900 | BE122: 58310 | BF122: 59233 | BG122: 59233 | BH122: 59092 | BI122: 58650 | BJ122: 60260 | BK122: 61131 | BL122: 61034 | BM122: 58756 | BN122: 57491 | BO122: 56540 | BP122: 55094 | BQ122: 54028 | BR122: 50861 | BS122: 49502 | BT122: 49100 | BU122: 50544 | BV122: 50472 | BW122: 49287 | BX122: 48965 | BY122: 50361 | BZ122: 52944 | CA122: 55968 | CB122: 56280 | CC122: 55798 | CD122: 54289 | CE122: 54165 | CF122: 52162 | CG122: 50542 | CH122: 49117 | CI122: 46381 | CJ122: 43018 | CK122: 40938 | CL122: 37562 | CM122: 34047 | CN122: 31232 | CO122: 28807 | CP122: 25825 | CQ122: 23343 | CR122: 20663 | CS122: 18365 | CT122: 66818
A123: Québec | B123: 99 | C123: Ensemble du Québec | D123: 2036 | E123: Projection | F123: Féminin | G123: 4801957 | H123: 44660 | I123: 45146 | J123: 45808 | K123: 46480 | L123: 46960 | M123: 47383 | N123: 47875 | O123: 48297 | P123: 48613 | Q123: 48765 | R123: 48504 | S123: 47847 | T123: 47099 | U123: 45538 | V123: 46548 | W123: 45751 | X123: 46697 | Y123: 46699 | Z123: 48872 | AA123: 52474 | AB123: 55839 | AC123: 57742 | AD123: 57731 | AE123: 57717 | AF123: 58314 | AG123: 58437 | AH123: 59442 | AI123: 59994 | AJ123: 59344 | AK123: 58156 | AL123: 56998 | AM123: 55579 | AN123: 55590 | AO123: 55064 | AP123: 55888 | AQ123: 56695 | AR123: 58088 | AS123: 57622 | AT123: 58474 | AU123: 59358 | AV123: 60880 | AW123: 61189 | AX123: 61407 | AY123: 62155 | AZ123: 62795 | BA123: 62820 | BB123: 61517 | BC123: 58036 | BD123: 56258 | BE123: 56082 | BF123: 56878 | BG123: 57260 | BH123: 57558 | BI123: 57433 | BJ123: 58420 | BK123: 59813 | BL123: 59592 | BM123: 57883 | BN123: 56373 | BO123: 55666 | BP123: 53898 | BQ123: 53043 | BR123: 50604 | BS123: 49051 | BT123: 49013 | BU123: 50315 | BV123: 50624 | BW123: 49991 | BX123: 50313 | BY123: 51488 | BZ123: 53877 | CA123: 57479 | CB123: 57866 | CC123: 58064 | CD123: 56428 | CE123: 56809 | CF123: 55809 | CG123: 54658 | CH123: 52934 | CI123: 50682 | CJ123: 47261 | CK123: 45711 | CL123: 42780 | CM123: 39144 | CN123: 36355 | CO123: 34121 | CP123: 31194 | CQ123: 29143 | CR123: 26486 | CS123: 23897 | CT123: 104816
A124: Québec | B124: 99 | C124: Ensemble du Québec | D124: 2036 | E124: Projection | F124: Total | G124: 9685579 | H124: 91667 | I124: 92621 | J124: 93975 | K124: 95339 | L124: 96376 | M124: 97207 | N124: 98246 | O124: 99092 | P124: 99651 | Q124: 99933 | R124: 99465 | S124: 98141 | T124: 96547 | U124: 93350 | V124: 95624 | W124: 94174 | X124: 96114 | Y124: 95879 | Z124: 99861 | AA124: 108381 | AB124: 116345 | AC124: 119932 | AD124: 120988 | AE124: 122419 | AF124: 123161 | AG124: 123127 | AH124: 124485 | AI124: 125289 | AJ124: 123458 | AK124: 120845 | AL124: 117994 | AM124: 115296 | AN124: 115143 | AO124: 113691 | AP124: 115308 | AQ124: 117527 | AR124: 119992 | AS124: 119057 | AT124: 120875 | AU124: 123584 | AV124: 126029 | AW124: 127317 | AX124: 127711 | AY124: 129255 | AZ124: 130328 | BA124: 130041 | BB124: 126759 | BC124: 119802 | BD124: 115158 | BE124: 114392 | BF124: 116111 | BG124: 116493 | BH124: 116650 | BI124: 116083 | BJ124: 118680 | BK124: 120944 | BL124: 120626 | BM124: 116639 | BN124: 113864 | BO124: 112206 | BP124: 108992 | BQ124: 107071 | BR124: 101465 | BS124: 98553 | BT124: 98113 | BU124: 100859 | BV124: 101096 | BW124: 99278 | BX124: 99278 | BY124: 101849 | BZ124: 106821 | CA124: 113447 | CB124: 114146 | CC124: 113862 | CD124: 110717 | CE124: 110974 | CF124: 107971 | CG124: 105200 | CH124: 102051 | CI124: 97063 | CJ124: 90279 | CK124: 86649 | CL124: 80342 | CM124: 73191 | CN124: 67587 | CO124: 62928 | CP124: 57019 | CQ124: 52486 | CR124: 47149 | CS124: 42262 | CT124: 171634
A125: Québec | B125: 99 | C125: Ensemble du Québec | D125: 2037 | E125: Projection | F125: Masculin | G125: 4907017 | H125: 47280 | I125: 47709 | J125: 48332 | K125: 48982 | L125: 49480 | M125: 49873 | N125: 50412 | O125: 50858 | P125: 51132 | Q125: 51289 | R125: 51476 | S125: 51212 | T125: 50493 | U125: 49669 | V125: 48032 | W125: 49405 | X125: 48811 | Y125: 49889 | Z125: 51352 | AA125: 55298 | AB125: 59103 | AC125: 62160 | AD125: 63096 | AE125: 64149 | AF125: 65572 | AG125: 65075 | AH125: 64932 | AI125: 65465 | AJ125: 65401 | AK125: 64370 | AL125: 62982 | AM125: 61261 | AN125: 60021 | AO125: 59795 | AP125: 58999 | AQ125: 59677 | AR125: 60979 | AS125: 61968 | AT125: 61494 | AU125: 62488 | AV125: 64167 | AW125: 65170 | AX125: 65905 | AY125: 66124 | AZ125: 66940 | BA125: 67294 | BB125: 66932 | BC125: 64988 | BD125: 61455 | BE125: 58651 | BF125: 58051 | BG125: 58931 | BH125: 58881 | BI125: 58842 | BJ125: 58423 | BK125: 60000 | BL125: 60842 | BM125: 60730 | BN125: 58469 | BO125: 57209 | BP125: 56263 | BQ125: 54782 | BR125: 53720 | BS125: 50534 | BT125: 49169 | BU125: 48732 | BV125: 50138 | BW125: 50037 | BX125: 48824 | BY125: 48474 | BZ125: 49812 | CA125: 52270 | CB125: 55203 | CC125: 55394 | CD125: 54867 | CE125: 53279 | CF125: 53023 | CG125: 50928 | CH125: 49215 | CI125: 47678 | CJ125: 44867 | CK125: 41447 | CL125: 39253 | CM125: 35832 | CN125: 32282 | CO125: 29418 | CP125: 26924 | CQ125: 23932 | CR125: 21427 | CS125: 18770 | CT125: 72548
A126: Québec | B126: 99 | C126: Ensemble du Québec | D126: 2037 | E126: Projection | F126: Féminin | G126: 4824527 | H126: 44928 | I126: 45372 | J126: 45972 | K126: 46593 | L126: 47026 | M126: 47422 | N126: 47924 | O126: 48366 | P126: 48707 | Q126: 48873 | R126: 49000 | S126: 48726 | T126: 48084 | U126: 47310 | V126: 45725 | W126: 46823 | X126: 46116 | Y126: 47130 | Z126: 48723 | AA126: 52341 | AB126: 54653 | AC126: 56864 | AD126: 57684 | AE126: 57893 | AF126: 58385 | AG126: 58902 | AH126: 59123 | AI126: 60077 | AJ126: 60493 | AK126: 59927 | AL126: 58560 | AM126: 57530 | AN126: 55934 | AO126: 55982 | AP126: 55540 | AQ126: 56333 | AR126: 57094 | AS126: 58319 | AT126: 57764 | AU126: 58572 | AV126: 59433 | AW126: 60899 | AX126: 61116 | AY126: 61398 | AZ126: 62088 | BA126: 62752 | BB126: 62768 | BC126: 61405 | BD126: 57964 | BE126: 56144 | BF126: 55925 | BG126: 56730 | BH126: 57145 | BI126: 57448 | BJ126: 57339 | BK126: 58259 | BL126: 59684 | BM126: 59439 | BN126: 57705 | BO126: 56231 | BP126: 55494 | BQ126: 53708 | BR126: 52852 | BS126: 50403 | BT126: 48847 | BU126: 48775 | BV126: 50037 | BW126: 50306 | BX126: 49708 | BY126: 49917 | BZ126: 51053 | CA126: 53379 | CB126: 56879 | CC126: 57213 | CD126: 57314 | CE126: 55613 | CF126: 55886 | CG126: 54806 | CH126: 53560 | CI126: 51742 | CJ126: 49409 | CK126: 45923 | CL126: 44265 | CM126: 41234 | CN126: 37563 | CO126: 34692 | CP126: 32344 | CQ126: 29369 | CR126: 27204 | CS126: 24489 | CT126: 111881
A127: Québec | B127: 99 | C127: Ensemble du Québec | D127: 2037 | E127: Projection | F127: Total | G127: 9731544 | H127: 92208 | I127: 93081 | J127: 94304 | K127: 95575 | L127: 96506 | M127: 97295 | N127: 98336 | O127: 99224 | P127: 99839 | Q127: 100162 | R127: 100476 | S127: 99938 | T127: 98577 | U127: 96979 | V127: 93757 | W127: 96228 | X127: 94927 | Y127: 97019 | Z127: 100075 | AA127: 107639 | AB127: 113756 | AC127: 119024 | AD127: 120780 | AE127: 122042 | AF127: 123957 | AG127: 123977 | AH127: 124055 | AI127: 125542 | AJ127: 125894 | AK127: 124297 | AL127: 121542 | AM127: 118791 | AN127: 115955 | AO127: 115777 | AP127: 114539 | AQ127: 116010 | AR127: 118073 | AS127: 120287 | AT127: 119258 | AU127: 121060 | AV127: 123600 | AW127: 126069 | AX127: 127021 | AY127: 127522 | AZ127: 129028 | BA127: 130046 | BB127: 129700 | BC127: 126393 | BD127: 119419 | BE127: 114795 | BF127: 113976 | BG127: 115661 | BH127: 116026 | BI127: 116290 | BJ127: 115762 | BK127: 118259 | BL127: 120526 | BM127: 120169 | BN127: 116174 | BO127: 113440 | BP127: 111757 | BQ127: 108490 | BR127: 106572 | BS127: 100937 | BT127: 98016 | BU127: 97507 | BV127: 100175 | BW127: 100343 | BX127: 98532 | BY127: 98391 | BZ127: 100865 | CA127: 105649 | CB127: 112082 | CC127: 112607 | CD127: 112181 | CE127: 108892 | CF127: 108909 | CG127: 105734 | CH127: 102775 | CI127: 99420 | CJ127: 94276 | CK127: 87370 | CL127: 83518 | CM127: 77066 | CN127: 69845 | CO127: 64110 | CP127: 59268 | CQ127: 53301 | CR127: 48631 | CS127: 43259 | CT127: 184429
A128: Québec | B128: 99 | C128: Ensemble du Québec | D128: 2038 | E128: Projection | F128: Masculin | G128: 4930029 | H128: 47596 | I128: 47991 | J128: 48583 | K128: 49148 | L128: 49595 | M128: 49938 | N128: 50459 | O128: 50910 | P128: 51205 | Q128: 51392 | R128: 51597 | S128: 51725 | T128: 51401 | U128: 50709 | V128: 49883 | W128: 48347 | X128: 49781 | Y128: 49276 | Z128: 52058 | AA128: 55653 | AB128: 58503 | AC128: 60758 | AD128: 63055 | AE128: 63996 | AF128: 65025 | AG128: 65805 | AH128: 65316 | AI128: 65362 | AJ128: 65563 | AK128: 65656 | AL128: 64659 | AM128: 63239 | AN128: 61567 | AO128: 60267 | AP128: 60163 | AQ128: 59282 | AR128: 59839 | AS128: 61062 | AT128: 62034 | AU128: 61592 | AV128: 62446 | AW128: 64188 | AX128: 64949 | AY128: 65730 | AZ128: 65964 | BA128: 66702 | BB128: 67011 | BC128: 66674 | BD128: 64671 | BE128: 61206 | BF128: 58405 | BG128: 57756 | BH128: 58574 | BI128: 58634 | BJ128: 58617 | BK128: 58177 | BL128: 59721 | BM128: 60543 | BN128: 60438 | BO128: 58176 | BP128: 56925 | BQ128: 55952 | BR128: 54470 | BS128: 53384 | BT128: 50205 | BU128: 48800 | BV128: 48339 | BW128: 49714 | BX128: 49581 | BY128: 48327 | BZ128: 47945 | CA128: 49184 | CB128: 51574 | CC128: 54360 | CD128: 54480 | CE128: 53859 | CF128: 52181 | CG128: 51800 | CH128: 49620 | CI128: 47792 | CJ128: 46147 | CK128: 43251 | CL128: 39777 | CM128: 37475 | CN128: 34001 | CO128: 30434 | CP128: 27517 | CQ128: 24983 | CR128: 22007 | CS128: 19478 | CT128: 77895
A129: Québec | B129: 99 | C129: Ensemble du Québec | D129: 2038 | E129: Projection | F129: Féminin | G129: 4846433 | H129: 45218 | I129: 45631 | J129: 46196 | K129: 46764 | L129: 47137 | M129: 47478 | N129: 47958 | O129: 48406 | P129: 48769 | Q129: 48973 | R129: 49120 | S129: 49211 | T129: 48955 | U129: 48304 | V129: 47492 | W129: 46001 | X129: 47177 | Y129: 46546 | Z129: 49156 | AA129: 52194 | AB129: 54528 | AC129: 55688 | AD129: 56800 | AE129: 57838 | AF129: 58578 | AG129: 58985 | AH129: 59588 | AI129: 59764 | AJ129: 60581 | AK129: 61079 | AL129: 60329 | AM129: 59092 | AN129: 57885 | AO129: 56325 | AP129: 56454 | AQ129: 55987 | AR129: 56742 | AS129: 57332 | AT129: 58456 | AU129: 57872 | AV129: 58644 | AW129: 59456 | AX129: 60817 | AY129: 61105 | AZ129: 61344 | BA129: 62040 | BB129: 62697 | BC129: 62646 | BD129: 61308 | BE129: 57842 | BF129: 55998 | BG129: 55790 | BH129: 56612 | BI129: 57032 | BJ129: 57343 | BK129: 57179 | BL129: 58139 | BM129: 59530 | BN129: 59254 | BO129: 57561 | BP129: 56059 | BQ129: 55315 | BR129: 53522 | BS129: 52644 | BT129: 50202 | BU129: 48608 | BV129: 48506 | BW129: 49725 | BX129: 50005 | BY129: 49321 | BZ129: 49496 | CA129: 50590 | CB129: 52841 | CC129: 56260 | CD129: 56483 | CE129: 56497 | CF129: 54723 | CG129: 54897 | CH129: 53716 | CI129: 52356 | CJ129: 50465 | CK129: 48031 | CL129: 44493 | CM129: 42693 | CN129: 39579 | CO129: 35866 | CP129: 32908 | CQ129: 30470 | CR129: 27444 | CS129: 25181 | CT129: 118611
A130: Québec | B130: 99 | C130: Ensemble du Québec | D130: 2038 | E130: Projection | F130: Total | G130: 9776462 | H130: 92814 | I130: 93622 | J130: 94779 | K130: 95912 | L130: 96732 | M130: 97416 | N130: 98417 | O130: 99316 | P130: 99974 | Q130: 100365 | R130: 100717 | S130: 100936 | T130: 100356 | U130: 99013 | V130: 97375 | W130: 94348 | X130: 96958 | Y130: 95822 | Z130: 101214 | AA130: 107847 | AB130: 113031 | AC130: 116446 | AD130: 119855 | AE130: 121834 | AF130: 123603 | AG130: 124790 | AH130: 124904 | AI130: 125126 | AJ130: 126144 | AK130: 126735 | AL130: 124988 | AM130: 122331 | AN130: 119452 | AO130: 116592 | AP130: 116617 | AQ130: 115269 | AR130: 116581 | AS130: 118394 | AT130: 120490 | AU130: 119464 | AV130: 121090 | AW130: 123644 | AX130: 125766 | AY130: 126835 | AZ130: 127308 | BA130: 128742 | BB130: 129708 | BC130: 129320 | BD130: 125979 | BE130: 119048 | BF130: 114403 | BG130: 113546 | BH130: 115186 | BI130: 115666 | BJ130: 115960 | BK130: 115356 | BL130: 117860 | BM130: 120073 | BN130: 119692 | BO130: 115737 | BP130: 112984 | BQ130: 111267 | BR130: 107992 | BS130: 106028 | BT130: 100407 | BU130: 97408 | BV130: 96845 | BW130: 99439 | BX130: 99586 | BY130: 97648 | BZ130: 97441 | CA130: 99774 | CB130: 104415 | CC130: 110620 | CD130: 110963 | CE130: 110356 | CF130: 106904 | CG130: 106697 | CH130: 103336 | CI130: 100148 | CJ130: 96612 | CK130: 91282 | CL130: 84270 | CM130: 80168 | CN130: 73580 | CO130: 66300 | CP130: 60425 | CQ130: 55453 | CR130: 49451 | CS130: 44659 | CT130: 196506
A131: Québec | B131: 99 | C131: Ensemble du Québec | D131: 2039 | E131: Projection | F131: Masculin | G131: 4952542 | H131: 47925 | I131: 48302 | J131: 48856 | K131: 49392 | L131: 49766 | M131: 50052 | N131: 50520 | O131: 50942 | P131: 51266 | Q131: 51458 | R131: 51692 | S131: 51840 | T131: 51922 | U131: 51627 | V131: 50917 | W131: 50206 | X131: 48732 | Y131: 50252 | Z131: 51446 | AA131: 56355 | AB131: 58855 | AC131: 60158 | AD131: 61660 | AE131: 63956 | AF131: 64877 | AG131: 65253 | AH131: 66041 | AI131: 65747 | AJ131: 65471 | AK131: 65823 | AL131: 65947 | AM131: 64910 | AN131: 63539 | AO131: 61791 | AP131: 60629 | AQ131: 60431 | AR131: 59435 | AS131: 59927 | AT131: 61125 | AU131: 62129 | AV131: 61546 | AW131: 62466 | AX131: 63970 | AY131: 64759 | AZ131: 65569 | BA131: 65727 | BB131: 66422 | BC131: 66753 | BD131: 66359 | BE131: 64412 | BF131: 60953 | BG131: 58106 | BH131: 57403 | BI131: 58323 | BJ131: 58411 | BK131: 58364 | BL131: 57898 | BM131: 59432 | BN131: 60256 | BO131: 60150 | BP131: 57900 | BQ131: 56619 | BR131: 55643 | BS131: 54146 | BT131: 53032 | BU131: 49829 | BV131: 48424 | BW131: 47947 | BX131: 49263 | BY131: 49088 | BZ131: 47822 | CA131: 47355 | CB131: 48529 | CC131: 50788 | CD131: 53478 | CE131: 53503 | CF131: 52768 | CG131: 50988 | CH131: 50480 | CI131: 48202 | CJ131: 46279 | CK131: 44514 | CL131: 41536 | CM131: 37997 | CN131: 35587 | CO131: 32081 | CP131: 28504 | CQ131: 25574 | CR131: 22999 | CS131: 20042 | CT131: 83174
A132: Québec | B132: 99 | C132: Ensemble du Québec | D132: 2039 | E132: Projection | F132: Féminin | G132: 4867884 | H132: 45532 | I132: 45932 | J132: 46473 | K132: 46984 | L132: 47301 | M132: 47589 | N132: 48017 | O132: 48444 | P132: 48824 | Q132: 49039 | R132: 49214 | S132: 49331 | T132: 49455 | U132: 49174 | V132: 48483 | W132: 47766 | X132: 46363 | Y132: 47613 | Z132: 48568 | AA132: 52618 | AB132: 54373 | AC132: 55556 | AD132: 55629 | AE132: 56958 | AF132: 58526 | AG132: 59171 | AH132: 59671 | AI132: 60235 | AJ132: 60278 | AK132: 61163 | AL132: 61475 | AM132: 60857 | AN132: 59445 | AO132: 58270 | AP132: 56793 | AQ132: 56895 | AR132: 56398 | AS132: 56986 | AT132: 57483 | AU132: 58562 | AV132: 57948 | AW132: 58672 | AX132: 59387 | AY132: 60817 | AZ132: 61048 | BA132: 61295 | BB132: 61997 | BC132: 62561 | BD132: 62555 | BE132: 61197 | BF132: 57686 | BG132: 55858 | BH132: 55668 | BI132: 56506 | BJ132: 56934 | BK132: 57195 | BL132: 57066 | BM132: 57992 | BN132: 59349 | BO132: 59102 | BP132: 57382 | BQ132: 55867 | BR132: 55109 | BS132: 53314 | BT132: 52423 | BU132: 49955 | BV132: 48357 | BW132: 48212 | BX132: 49436 | BY132: 49623 | BZ132: 48918 | CA132: 49056 | CB132: 50090 | CC132: 52271 | CD132: 55554 | CE132: 55687 | CF132: 55607 | CG132: 53756 | CH132: 53814 | CI132: 52527 | CJ132: 51066 | CK132: 49067 | CL132: 46543 | CM132: 42926 | CN132: 41011 | CO132: 37816 | CP132: 34042 | CQ132: 31019 | CR132: 28493 | CS132: 25426 | CT132: 125240
A133: Québec | B133: 99 | C133: Ensemble du Québec | D133: 2039 | E133: Projection | F133: Total | G133: 9820426 | H133: 93457 | I133: 94234 | J133: 95329 | K133: 96376 | L133: 97067 | M133: 97641 | N133: 98537 | O133: 99386 | P133: 100090 | Q133: 100497 | R133: 100906 | S133: 101171 | T133: 101377 | U133: 100801 | V133: 99400 | W133: 97972 | X133: 95095 | Y133: 97865 | Z133: 100014 | AA133: 108973 | AB133: 113228 | AC133: 115714 | AD133: 117289 | AE133: 120914 | AF133: 123403 | AG133: 124424 | AH133: 125712 | AI133: 125982 | AJ133: 125749 | AK133: 126986 | AL133: 127422 | AM133: 125767 | AN133: 122984 | AO133: 120061 | AP133: 117422 | AQ133: 117326 | AR133: 115833 | AS133: 116913 | AT133: 118608 | AU133: 120691 | AV133: 119494 | AW133: 121138 | AX133: 123357 | AY133: 125576 | AZ133: 126617 | BA133: 127022 | BB133: 128419 | BC133: 129314 | BD133: 128914 | BE133: 125609 | BF133: 118639 | BG133: 113964 | BH133: 113071 | BI133: 114829 | BJ133: 115345 | BK133: 115559 | BL133: 114964 | BM133: 117424 | BN133: 119605 | BO133: 119252 | BP133: 115282 | BQ133: 112486 | BR133: 110752 | BS133: 107460 | BT133: 105455 | BU133: 99784 | BV133: 96781 | BW133: 96159 | BX133: 98699 | BY133: 98711 | BZ133: 96740 | CA133: 96411 | CB133: 98619 | CC133: 103059 | CD133: 109032 | CE133: 109190 | CF133: 108375 | CG133: 104744 | CH133: 104294 | CI133: 100729 | CJ133: 97345 | CK133: 93581 | CL133: 88079 | CM133: 80923 | CN133: 76598 | CO133: 69897 | CP133: 62546 | CQ133: 56593 | CR133: 51492 | CS133: 45468 | CT133: 208414
A134: Québec | B134: 99 | C134: Ensemble du Québec | D134: 2040 | E134: Projection | F134: Masculin | G134: 4974720 | H134: 48263 | I134: 48630 | J134: 49166 | K134: 49666 | L134: 50017 | M134: 50224 | N134: 50639 | O134: 51020 | P134: 51295 | Q134: 51511 | R134: 51765 | S134: 51941 | T134: 52034 | U134: 52139 | V134: 51839 | W134: 51242 | X134: 50584 | Y134: 49205 | Z134: 52418 | AA134: 55754 | AB134: 59565 | AC134: 60517 | AD134: 61064 | AE134: 62559 | AF134: 64832 | AG134: 65101 | AH134: 65499 | AI134: 66466 | AJ134: 65860 | AK134: 65732 | AL134: 66110 | AM134: 66205 | AN134: 65199 | AO134: 63765 | AP134: 62172 | AQ134: 60892 | AR134: 60597 | AS134: 59522 | AT134: 59990 | AU134: 61230 | AV134: 62083 | AW134: 61586 | AX134: 62258 | AY134: 63786 | AZ134: 64611 | BA134: 65333 | BB134: 65448 | BC134: 66165 | BD134: 66440 | BE134: 66096 | BF134: 64160 | BG134: 60645 | BH134: 57765 | BI134: 57171 | BJ134: 58104 | BK134: 58164 | BL134: 58099 | BM134: 57619 | BN134: 59158 | BO134: 59965 | BP134: 59861 | BQ134: 57589 | BR134: 56319 | BS134: 55307 | BT134: 53799 | BU134: 52652 | BV134: 49453 | BW134: 48031 | BX134: 47524 | BY134: 48788 | BZ134: 48579 | CA134: 47238 | CB134: 46745 | CC134: 47799 | CD134: 49972 | CE134: 52525 | CF134: 52431 | CG134: 51573 | CH134: 49718 | CI134: 49080 | CJ134: 46705 | CK134: 44661 | CL134: 42760 | CM134: 39700 | CN134: 36112 | CO134: 33611 | CP134: 30076 | CQ134: 26512 | CR134: 23561 | CS134: 20969 | CT134: 88185
A135: Québec | B135: 99 | C135: Ensemble du Québec | D135: 2040 | E135: Projection | F135: Féminin | G135: 4888773 | H135: 45855 | I135: 46244 | J135: 46764 | K135: 47253 | L135: 47527 | M135: 47753 | N135: 48146 | O135: 48514 | P135: 48857 | Q135: 49086 | R135: 49271 | S135: 49425 | T135: 49574 | U135: 49661 | V135: 49351 | W135: 48755 | X135: 48129 | Y135: 46796 | Z135: 49639 | AA135: 52032 | AB135: 54804 | AC135: 55401 | AD135: 55494 | AE135: 55797 | AF135: 57651 | AG135: 59126 | AH135: 59849 | AI135: 60309 | AJ135: 60736 | AK135: 60850 | AL135: 61563 | AM135: 62001 | AN135: 61204 | AO135: 59828 | AP135: 58740 | AQ135: 57248 | AR135: 57300 | AS135: 56632 | AT135: 57126 | AU135: 57577 | AV135: 58645 | AW135: 57975 | AX135: 58605 | AY135: 59380 | AZ135: 60763 | BA135: 61008 | BB135: 61247 | BC135: 61865 | BD135: 62477 | BE135: 62430 | BF135: 61037 | BG135: 57542 | BH135: 55737 | BI135: 55569 | BJ135: 56408 | BK135: 56780 | BL135: 57080 | BM135: 56921 | BN135: 57810 | BO135: 59203 | BP135: 58917 | BQ135: 57201 | BR135: 55680 | BS135: 54894 | BT135: 53097 | BU135: 52181 | BV135: 49698 | BW135: 48065 | BX135: 47937 | BY135: 49072 | BZ135: 49222 | CA135: 48488 | CB135: 48578 | CC135: 49556 | CD135: 51616 | CE135: 54777 | CF135: 54822 | CG135: 54638 | CH135: 52713 | CI135: 52638 | CJ135: 51257 | CK135: 49680 | CL135: 47561 | CM135: 44924 | CN135: 41248 | CO135: 39190 | CP135: 35918 | CQ135: 32117 | CR135: 29037 | CS135: 26423 | CT135: 131278
A136: Québec | B136: 99 | C136: Ensemble du Québec | D136: 2040 | E136: Projection | F136: Total | G136: 9863493 | H136: 94118 | I136: 94874 | J136: 95930 | K136: 96919 | L136: 97544 | M136: 97977 | N136: 98785 | O136: 99534 | P136: 100152 | Q136: 100597 | R136: 101036 | S136: 101366 | T136: 101608 | U136: 101800 | V136: 101190 | W136: 99997 | X136: 98713 | Y136: 96001 | Z136: 102057 | AA136: 107786 | AB136: 114369 | AC136: 115918 | AD136: 116558 | AE136: 118356 | AF136: 122483 | AG136: 124227 | AH136: 125348 | AI136: 126775 | AJ136: 126596 | AK136: 126582 | AL136: 127673 | AM136: 128206 | AN136: 126403 | AO136: 123593 | AP136: 120912 | AQ136: 118140 | AR136: 117897 | AS136: 116154 | AT136: 117116 | AU136: 118807 | AV136: 120728 | AW136: 119561 | AX136: 120863 | AY136: 123166 | AZ136: 125374 | BA136: 126341 | BB136: 126695 | BC136: 128030 | BD136: 128917 | BE136: 128526 | BF136: 125197 | BG136: 118187 | BH136: 113502 | BI136: 112740 | BJ136: 114512 | BK136: 114944 | BL136: 115179 | BM136: 114540 | BN136: 116968 | BO136: 119168 | BP136: 118778 | BQ136: 114790 | BR136: 111999 | BS136: 110201 | BT136: 106896 | BU136: 104833 | BV136: 99151 | BW136: 96096 | BX136: 95461 | BY136: 97860 | BZ136: 97801 | CA136: 95726 | CB136: 95323 | CC136: 97355 | CD136: 101588 | CE136: 107302 | CF136: 107253 | CG136: 106211 | CH136: 102431 | CI136: 101718 | CJ136: 97962 | CK136: 94341 | CL136: 90321 | CM136: 84624 | CN136: 77360 | CO136: 72801 | CP136: 65994 | CQ136: 58629 | CR136: 52598 | CS136: 47392 | CT136: 219463
A137: Québec | B137: 99 | C137: Ensemble du Québec | D137: 2041 | E137: Projection | F137: Masculin | G137: 4996515 | H137: 48580 | I137: 48972 | J137: 49496 | K137: 49976 | L137: 50293 | M137: 50456 | N137: 50814 | O137: 51133 | P137: 51361 | Q137: 51555 | R137: 51814 | S137: 52008 | T137: 52137 | U137: 52260 | V137: 52355 | W137: 52151 | X137: 51621 | Y137: 51055 | Z137: 51371 | AA137: 56733 | AB137: 58959 | AC137: 61217 | AD137: 61421 | AE137: 61962 | AF137: 63453 | AG137: 65067 | AH137: 65345 | AI137: 65916 | AJ137: 66574 | AK137: 66118 | AL137: 66014 | AM137: 66357 | AN137: 66491 | AO137: 65429 | AP137: 64131 | AQ137: 62429 | AR137: 61056 | AS137: 60673 | AT137: 59592 | AU137: 60098 | AV137: 61188 | AW137: 62114 | AX137: 61367 | AY137: 62080 | AZ137: 63642 | BA137: 64385 | BB137: 65053 | BC137: 65197 | BD137: 65857 | BE137: 66175 | BF137: 65841 | BG137: 63846 | BH137: 60303 | BI137: 57518 | BJ137: 56950 | BK137: 57874 | BL137: 57902 | BM137: 57812 | BN137: 57351 | BO137: 58868 | BP137: 59696 | BQ137: 59559 | BR137: 57282 | BS137: 55985 | BT137: 54957 | BU137: 53423 | BV137: 52251 | BW137: 49059 | BX137: 47605 | BY137: 47062 | BZ137: 48291 | CA137: 47998 | CB137: 46644 | CC137: 46059 | CD137: 47059 | CE137: 49111 | CF137: 51493 | CG137: 51282 | CH137: 50309 | CI137: 48347 | CJ137: 47564 | CK137: 45096 | CL137: 42937 | CM137: 40906 | CN137: 37759 | CO137: 34136 | CP137: 31547 | CQ137: 28002 | CR137: 24459 | CS137: 21517 | CT137: 93354
A138: Québec | B138: 99 | C138: Ensemble du Québec | D138: 2041 | E138: Projection | F138: Féminin | G138: 4909164 | H138: 46149 | I138: 46565 | J138: 47079 | K138: 47549 | L138: 47791 | M138: 47983 | N138: 48296 | O138: 48617 | P138: 48926 | Q138: 49132 | R138: 49323 | S138: 49492 | T138: 49671 | U138: 49786 | V138: 49843 | W138: 49620 | X138: 49122 | Y138: 48565 | Z138: 48817 | AA138: 53100 | AB138: 54216 | AC138: 55832 | AD138: 55342 | AE138: 55657 | AF138: 56495 | AG138: 58249 | AH138: 59797 | AI138: 60494 | AJ138: 60819 | AK138: 61311 | AL138: 61258 | AM138: 62083 | AN138: 62352 | AO138: 61577 | AP138: 60298 | AQ138: 59177 | AR138: 57656 | AS138: 57539 | AT138: 56786 | AU138: 57231 | AV138: 57663 | AW138: 58666 | AX138: 57906 | AY138: 58607 | AZ138: 59330 | BA138: 60719 | BB138: 60959 | BC138: 61123 | BD138: 61777 | BE138: 62360 | BF138: 62273 | BG138: 60890 | BH138: 57419 | BI138: 55636 | BJ138: 55469 | BK138: 56267 | BL138: 56674 | BM138: 56941 | BN138: 56753 | BO138: 57672 | BP138: 59025 | BQ138: 58742 | BR138: 56995 | BS138: 55455 | BT138: 54674 | BU138: 52852 | BV138: 51906 | BW138: 49401 | BX138: 47795 | BY138: 47592 | BZ138: 48669 | CA138: 48795 | CB138: 48020 | CC138: 48060 | CD138: 48952 | CE138: 50913 | CF138: 53931 | CG138: 53882 | CH138: 53590 | CI138: 51585 | CJ138: 51383 | CK138: 49875 | CL138: 48170 | CM138: 45929 | CN138: 43183 | CO138: 39446 | CP138: 37245 | CQ138: 33908 | CR138: 30071 | CS138: 26942 | CT138: 137479
A139: Québec | B139: 99 | C139: Ensemble du Québec | D139: 2041 | E139: Projection | F139: Total | G139: 9905679 | H139: 94729 | I139: 95537 | J139: 96575 | K139: 97525 | L139: 98084 | M139: 98439 | N139: 99110 | O139: 99750 | P139: 100287 | Q139: 100687 | R139: 101137 | S139: 101500 | T139: 101808 | U139: 102046 | V139: 102198 | W139: 101771 | X139: 100743 | Y139: 99620 | Z139: 100188 | AA139: 109833 | AB139: 113175 | AC139: 117049 | AD139: 116763 | AE139: 117619 | AF139: 119948 | AG139: 123316 | AH139: 125142 | AI139: 126410 | AJ139: 127393 | AK139: 127429 | AL139: 127272 | AM139: 128440 | AN139: 128843 | AO139: 127006 | AP139: 124429 | AQ139: 121606 | AR139: 118712 | AS139: 118212 | AT139: 116378 | AU139: 117329 | AV139: 118851 | AW139: 120780 | AX139: 119273 | AY139: 120687 | AZ139: 122972 | BA139: 125104 | BB139: 126012 | BC139: 126320 | BD139: 127634 | BE139: 128535 | BF139: 128114 | BG139: 124736 | BH139: 117722 | BI139: 113154 | BJ139: 112419 | BK139: 114141 | BL139: 114576 | BM139: 114753 | BN139: 114104 | BO139: 116540 | BP139: 118721 | BQ139: 118301 | BR139: 114277 | BS139: 111440 | BT139: 109631 | BU139: 106275 | BV139: 104157 | BW139: 98460 | BX139: 95400 | BY139: 94654 | BZ139: 96960 | CA139: 96793 | CB139: 94664 | CC139: 94119 | CD139: 96011 | CE139: 100024 | CF139: 105424 | CG139: 105164 | CH139: 103899 | CI139: 99932 | CJ139: 98947 | CK139: 94971 | CL139: 91107 | CM139: 86835 | CN139: 80942 | CO139: 73582 | CP139: 68792 | CQ139: 61910 | CR139: 54530 | CS139: 48459 | CT139: 230833
A140: RSS | B140: 15 | C140: 15 Laurentides | D140: 1996 | E140: Estimation | F140: Masculin | G140: 220071 | H140: 2906 | I140: 3059 | J140: 3182 | K140: 3462 | L140: 3595 | M140: 3677 | N140: 3475 | O140: 3236 | P140: 3070 | Q140: 3069 | R140: 2994 | S140: 3098 | T140: 3109 | U140: 3022 | V140: 3165 | W140: 3197 | X140: 3226 | Y140: 3076 | Z140: 2984 | AA140: 2779 | AB140: 2718 | AC140: 2633 | AD140: 2420 | AE140: 2271 | AF140: 2347 | AG140: 2527 | AH140: 2673 | AI140: 2731 | AJ140: 2914 | AK140: 3193 | AL140: 3663 | AM140: 4033 | AN140: 4216 | AO140: 4265 | AP140: 4211 | AQ140: 4411 | AR140: 4429 | AS140: 4440 | AT140: 4367 | AU140: 4252 | AV140: 3931 | AW140: 4108 | AX140: 3943 | AY140: 3647 | AZ140: 3475 | BA140: 3488 | BB140: 3280 | BC140: 3311 | BD140: 3286 | BE140: 3285 | BF140: 3064 | BG140: 2846 | BH140: 2706 | BI140: 2687 | BJ140: 2504 | BK140: 2358 | BL140: 2105 | BM140: 2085 | BN140: 1951 | BO140: 1796 | BP140: 1869 | BQ140: 1801 | BR140: 1741 | BS140: 1721 | BT140: 1767 | BU140: 1715 | BV140: 1611 | BW140: 1504 | BX140: 1514 | BY140: 1355 | BZ140: 1335 | CA140: 1211 | CB140: 1068 | CC140: 1018 | CD140: 933 | CE140: 804 | CF140: 708 | CG140: 635 | CH140: 580 | CI140: 484 | CJ140: 467 | CK140: 403 | CL140: 363 | CM140: 315 | CN140: 245 | CO140: 211 | CP140: 157 | CQ140: 126 | CR140: 119 | CS140: 91 | CT140: 249
A141: RSS | B141: 15 | C141: 15 Laurentides | D141: 1996 | E141: Estimation | F141: Féminin | G141: 219540 | H141: 2842 | I141: 2921 | J141: 3186 | K141: 3242 | L141: 3484 | M141: 3442 | N141: 3472 | O141: 3081 | P141: 2906 | Q141: 2924 | R141: 2908 | S141: 2904 | T141: 2859 | U141: 2880 | V141: 3032 | W141: 3181 | X141: 3072 | Y141: 2877 | Z141: 2679 | AA141: 2608 | AB141: 2384 | AC141: 2370 | AD141: 2224 | AE141: 2225 | AF141: 2309 | AG141: 2566 | AH141: 2737 | AI141: 2807 | AJ141: 3005 | AK141: 3220 | AL141: 3629 | AM141: 4081 | AN141: 4181 | AO141: 4361 | AP141: 4299 | AQ141: 4418 | AR141: 4405 | AS141: 4270 | AT141: 4291 | AU141: 4219 | AV141: 3900 | AW141: 3952 | AX141: 3717 | AY141: 3561 | AZ141: 3360 | BA141: 3366 | BB141: 3291 | BC141: 3200 | BD141: 3174 | BE141: 3100 | BF141: 3002 | BG141: 2726 | BH141: 2658 | BI141: 2629 | BJ141: 2376 | BK141: 2257 | BL141: 2022 | BM141: 2034 | BN141: 1858 | BO141: 1801 | BP141: 1809 | BQ141: 1728 | BR141: 1676 | BS141: 1777 | BT141: 1843 | BU141: 1727 | BV141: 1667 | BW141: 1665 | BX141: 1600 | BY141: 1496 | BZ141: 1443 | CA141: 1362 | CB141: 1371 | CC141: 1214 | CD141: 1188 | CE141: 1077 | CF141: 983 | CG141: 874 | CH141: 809 | CI141: 733 | CJ141: 693 | CK141: 625 | CL141: 591 | CM141: 496 | CN141: 460 | CO141: 381 | CP141: 319 | CQ141: 297 | CR141: 248 | CS141: 221 | CT141: 682
A142: RSS | B142: 15 | C142: 15 Laurentides | D142: 1996 | E142: Estimation | F142: Total | G142: 439611 | H142: 5748 | I142: 5980 | J142: 6368 | K142: 6704 | L142: 7079 | M142: 7119 | N142: 6947 | O142: 6317 | P142: 5976 | Q142: 5993 | R142: 5902 | S142: 6002 | T142: 5968 | U142: 5902 | V142: 6197 | W142: 6378 | X142: 6298 | Y142: 5953 | Z142: 5663 | AA142: 5387 | AB142: 5102 | AC142: 5003 | AD142: 4644 | AE142: 4496 | AF142: 4656 | AG142: 5093 | AH142: 5410 | AI142: 5538 | AJ142: 5919 | AK142: 6413 | AL142: 7292 | AM142: 8114 | AN142: 8397 | AO142: 8626 | AP142: 8510 | AQ142: 8829 | AR142: 8834 | AS142: 8710 | AT142: 8658 | AU142: 8471 | AV142: 7831 | AW142: 8060 | AX142: 7660 | AY142: 7208 | AZ142: 6835 | BA142: 6854 | BB142: 6571 | BC142: 6511 | BD142: 6460 | BE142: 6385 | BF142: 6066 | BG142: 5572 | BH142: 5364 | BI142: 5316 | BJ142: 4880 | BK142: 4615 | BL142: 4127 | BM142: 4119 | BN142: 3809 | BO142: 3597 | BP142: 3678 | BQ142: 3529 | BR142: 3417 | BS142: 3498 | BT142: 3610 | BU142: 3442 | BV142: 3278 | BW142: 3169 | BX142: 3114 | BY142: 2851 | BZ142: 2778 | CA142: 2573 | CB142: 2439 | CC142: 2232 | CD142: 2121 | CE142: 1881 | CF142: 1691 | CG142: 1509 | CH142: 1389 | CI142: 1217 | CJ142: 1160 | CK142: 1028 | CL142: 954 | CM142: 811 | CN142: 705 | CO142: 592 | CP142: 476 | CQ142: 423 | CR142: 367 | CS142: 312 | CT142: 931
A143: RSS | B143: 15 | C143: 15 Laurentides | D143: 1997 | E143: Estimation | F143: Masculin | G143: 223322 | H143: 2822 | I143: 2955 | J143: 3132 | K143: 3245 | L143: 3520 | M143: 3654 | N143: 3713 | O143: 3510 | P143: 3275 | Q143: 3103 | R143: 3086 | S143: 3023 | T143: 3114 | U143: 3128 | V143: 3024 | W143: 3139 | X143: 3171 | Y143: 3181 | Z143: 3024 | AA143: 2916 | AB143: 2768 | AC143: 2680 | AD143: 2661 | AE143: 2429 | AF143: 2315 | AG143: 2407 | AH143: 2610 | AI143: 2731 | AJ143: 2779 | AK143: 2959 | AL143: 3229 | AM143: 3719 | AN143: 4085 | AO143: 4289 | AP143: 4360 | AQ143: 4291 | AR143: 4479 | AS143: 4483 | AT143: 4492 | AU143: 4388 | AV143: 4291 | AW143: 3953 | AX143: 4093 | AY143: 3945 | AZ143: 3664 | BA143: 3489 | BB143: 3488 | BC143: 3287 | BD143: 3310 | BE143: 3287 | BF143: 3307 | BG143: 3065 | BH143: 2863 | BI143: 2725 | BJ143: 2701 | BK143: 2522 | BL143: 2381 | BM143: 2114 | BN143: 2090 | BO143: 1973 | BP143: 1791 | BQ143: 1873 | BR143: 1798 | BS143: 1734 | BT143: 1718 | BU143: 1758 | BV143: 1691 | BW143: 1585 | BX143: 1486 | BY143: 1494 | BZ143: 1318 | CA143: 1286 | CB143: 1175 | CC143: 1020 | CD143: 957 | CE143: 882 | CF143: 747 | CG143: 669 | CH143: 588 | CI143: 532 | CJ143: 440 | CK143: 428 | CL143: 364 | CM143: 311 | CN143: 281 | CO143: 188 | CP143: 184 | CQ143: 125 | CR143: 97 | CS143: 106 | CT143: 259
A144: RSS | B144: 15 | C144: 15 Laurentides | D144: 1997 | E144: Estimation | F144: Féminin | G144: 223035 | H144: 2693 | I144: 2935 | J144: 2992 | K144: 3257 | L144: 3295 | M144: 3540 | N144: 3483 | O144: 3513 | P144: 3104 | Q144: 2934 | R144: 2934 | S144: 2919 | T144: 2902 | U144: 2871 | V144: 2863 | W144: 2999 | X144: 3122 | Y144: 3016 | Z144: 2774 | AA144: 2610 | AB144: 2584 | AC144: 2392 | AD144: 2421 | AE144: 2292 | AF144: 2296 | AG144: 2403 | AH144: 2653 | AI144: 2812 | AJ144: 2842 | AK144: 3056 | AL144: 3264 | AM144: 3695 | AN144: 4155 | AO144: 4248 | AP144: 4426 | AQ144: 4366 | AR144: 4465 | AS144: 4475 | AT144: 4319 | AU144: 4335 | AV144: 4260 | AW144: 3924 | AX144: 3981 | AY144: 3718 | AZ144: 3559 | BA144: 3363 | BB144: 3376 | BC144: 3291 | BD144: 3226 | BE144: 3200 | BF144: 3126 | BG144: 3020 | BH144: 2764 | BI144: 2674 | BJ144: 2667 | BK144: 2399 | BL144: 2291 | BM144: 2033 | BN144: 2052 | BO144: 1881 | BP144: 1804 | BQ144: 1824 | BR144: 1723 | BS144: 1677 | BT144: 1784 | BU144: 1839 | BV144: 1720 | BW144: 1650 | BX144: 1644 | BY144: 1585 | BZ144: 1463 | CA144: 1413 | CB144: 1327 | CC144: 1337 | CD144: 1183 | CE144: 1156 | CF144: 1041 | CG144: 955 | CH144: 838 | CI144: 770 | CJ144: 704 | CK144: 657 | CL144: 584 | CM144: 554 | CN144: 470 | CO144: 428 | CP144: 348 | CQ144: 292 | CR144: 272 | CS144: 207 | CT144: 726
A145: RSS | B145: 15 | C145: 15 Laurentides | D145: 1997 | E145: Estimation | F145: Total | G145: 446357 | H145: 5515 | I145: 5890 | J145: 6124 | K145: 6502 | L145: 6815 | M145: 7194 | N145: 7196 | O145: 7023 | P145: 6379 | Q145: 6037 | R145: 6020 | S145: 5942 | T145: 6016 | U145: 5999 | V145: 5887 | W145: 6138 | X145: 6293 | Y145: 6197 | Z145: 5798 | AA145: 5526 | AB145: 5352 | AC145: 5072 | AD145: 5082 | AE145: 4721 | AF145: 4611 | AG145: 4810 | AH145: 5263 | AI145: 5543 | AJ145: 5621 | AK145: 6015 | AL145: 6493 | AM145: 7414 | AN145: 8240 | AO145: 8537 | AP145: 8786 | AQ145: 8657 | AR145: 8944 | AS145: 8958 | AT145: 8811 | AU145: 8723 | AV145: 8551 | AW145: 7877 | AX145: 8074 | AY145: 7663 | AZ145: 7223 | BA145: 6852 | BB145: 6864 | BC145: 6578 | BD145: 6536 | BE145: 6487 | BF145: 6433 | BG145: 6085 | BH145: 5627 | BI145: 5399 | BJ145: 5368 | BK145: 4921 | BL145: 4672 | BM145: 4147 | BN145: 4142 | BO145: 3854 | BP145: 3595 | BQ145: 3697 | BR145: 3521 | BS145: 3411 | BT145: 3502 | BU145: 3597 | BV145: 3411 | BW145: 3235 | BX145: 3130 | BY145: 3079 | BZ145: 2781 | CA145: 2699 | CB145: 2502 | CC145: 2357 | CD145: 2140 | CE145: 2038 | CF145: 1788 | CG145: 1624 | CH145: 1426 | CI145: 1302 | CJ145: 1144 | CK145: 1085 | CL145: 948 | CM145: 865 | CN145: 751 | CO145: 616 | CP145: 532 | CQ145: 417 | CR145: 369 | CS145: 313 | CT145: 985
A146: RSS | B146: 15 | C146: 15 Laurentides | D146: 1998 | E146: Estimation | F146: Masculin | G146: 226439 | H146: 2572 | I146: 2871 | J146: 3020 | K146: 3183 | L146: 3307 | M146: 3564 | N146: 3692 | O146: 3754 | P146: 3540 | Q146: 3311 | R146: 3135 | S146: 3117 | T146: 3031 | U146: 3138 | V146: 3158 | W146: 3013 | X146: 3107 | Y146: 3143 | Z146: 3150 | AA146: 2952 | AB146: 2870 | AC146: 2736 | AD146: 2661 | AE146: 2651 | AF146: 2458 | AG146: 2371 | AH146: 2476 | AI146: 2699 | AJ146: 2803 | AK146: 2860 | AL146: 3002 | AM146: 3286 | AN146: 3785 | AO146: 4173 | AP146: 4361 | AQ146: 4446 | AR146: 4356 | AS146: 4525 | AT146: 4540 | AU146: 4528 | AV146: 4426 | AW146: 4318 | AX146: 3953 | AY146: 4109 | AZ146: 3949 | BA146: 3670 | BB146: 3501 | BC146: 3496 | BD146: 3275 | BE146: 3313 | BF146: 3285 | BG146: 3325 | BH146: 3073 | BI146: 2878 | BJ146: 2740 | BK146: 2730 | BL146: 2541 | BM146: 2411 | BN146: 2124 | BO146: 2104 | BP146: 1971 | BQ146: 1794 | BR146: 1875 | BS146: 1797 | BT146: 1722 | BU146: 1718 | BV146: 1737 | BW146: 1662 | BX146: 1572 | BY146: 1459 | BZ146: 1450 | CA146: 1277 | CB146: 1242 | CC146: 1139 | CD146: 975 | CE146: 916 | CF146: 831 | CG146: 688 | CH146: 622 | CI146: 545 | CJ146: 476 | CK146: 396 | CL146: 385 | CM146: 325 | CN146: 275 | CO146: 237 | CP146: 164 | CQ146: 157 | CR146: 106 | CS146: 80 | CT146: 280
A147: RSS | B147: 15 | C147: 15 Laurentides | D147: 1998 | E147: Estimation | F147: Féminin | G147: 226424 | H147: 2456 | I147: 2764 | J147: 3018 | K147: 3045 | L147: 3312 | M147: 3339 | N147: 3581 | O147: 3522 | P147: 3555 | Q147: 3113 | R147: 2956 | S147: 2957 | T147: 2934 | U147: 2910 | V147: 2879 | W147: 2840 | X147: 2960 | Y147: 3074 | Z147: 2944 | AA147: 2694 | AB147: 2576 | AC147: 2584 | AD147: 2425 | AE147: 2488 | AF147: 2355 | AG147: 2389 | AH147: 2487 | AI147: 2740 | AJ147: 2873 | AK147: 2900 | AL147: 3114 | AM147: 3308 | AN147: 3768 | AO147: 4230 | AP147: 4318 | AQ147: 4506 | AR147: 4407 | AS147: 4528 | AT147: 4531 | AU147: 4355 | AV147: 4365 | AW147: 4297 | AX147: 3937 | AY147: 4003 | AZ147: 3724 | BA147: 3563 | BB147: 3387 | BC147: 3388 | BD147: 3327 | BE147: 3250 | BF147: 3237 | BG147: 3145 | BH147: 3047 | BI147: 2787 | BJ147: 2704 | BK147: 2714 | BL147: 2430 | BM147: 2329 | BN147: 2054 | BO147: 2073 | BP147: 1902 | BQ147: 1810 | BR147: 1840 | BS147: 1729 | BT147: 1685 | BU147: 1781 | BV147: 1841 | BW147: 1700 | BX147: 1617 | BY147: 1612 | BZ147: 1562 | CA147: 1434 | CB147: 1382 | CC147: 1291 | CD147: 1307 | CE147: 1154 | CF147: 1121 | CG147: 1003 | CH147: 921 | CI147: 781 | CJ147: 737 | CK147: 668 | CL147: 616 | CM147: 547 | CN147: 507 | CO147: 444 | CP147: 394 | CQ147: 316 | CR147: 247 | CS147: 232 | CT147: 747
A148: RSS | B148: 15 | C148: 15 Laurentides | D148: 1998 | E148: Estimation | F148: Total | G148: 452863 | H148: 5028 | I148: 5635 | J148: 6038 | K148: 6228 | L148: 6619 | M148: 6903 | N148: 7273 | O148: 7276 | P148: 7095 | Q148: 6424 | R148: 6091 | S148: 6074 | T148: 5965 | U148: 6048 | V148: 6037 | W148: 5853 | X148: 6067 | Y148: 6217 | Z148: 6094 | AA148: 5646 | AB148: 5446 | AC148: 5320 | AD148: 5086 | AE148: 5139 | AF148: 4813 | AG148: 4760 | AH148: 4963 | AI148: 5439 | AJ148: 5676 | AK148: 5760 | AL148: 6116 | AM148: 6594 | AN148: 7553 | AO148: 8403 | AP148: 8679 | AQ148: 8952 | AR148: 8763 | AS148: 9053 | AT148: 9071 | AU148: 8883 | AV148: 8791 | AW148: 8615 | AX148: 7890 | AY148: 8112 | AZ148: 7673 | BA148: 7233 | BB148: 6888 | BC148: 6884 | BD148: 6602 | BE148: 6563 | BF148: 6522 | BG148: 6470 | BH148: 6120 | BI148: 5665 | BJ148: 5444 | BK148: 5444 | BL148: 4971 | BM148: 4740 | BN148: 4178 | BO148: 4177 | BP148: 3873 | BQ148: 3604 | BR148: 3715 | BS148: 3526 | BT148: 3407 | BU148: 3499 | BV148: 3578 | BW148: 3362 | BX148: 3189 | BY148: 3071 | BZ148: 3012 | CA148: 2711 | CB148: 2624 | CC148: 2430 | CD148: 2282 | CE148: 2070 | CF148: 1952 | CG148: 1691 | CH148: 1543 | CI148: 1326 | CJ148: 1213 | CK148: 1064 | CL148: 1001 | CM148: 872 | CN148: 782 | CO148: 681 | CP148: 558 | CQ148: 473 | CR148: 353 | CS148: 312 | CT148: 1027
A149: RSS | B149: 15 | C149: 15 Laurentides | D149: 1999 | E149: Estimation | F149: Masculin | G149: 229279 | H149: 2480 | I149: 2626 | J149: 2923 | K149: 3079 | L149: 3246 | M149: 3359 | N149: 3581 | O149: 3732 | P149: 3794 | Q149: 3571 | R149: 3346 | S149: 3161 | T149: 3124 | U149: 3053 | V149: 3165 | W149: 3176 | X149: 3006 | Y149: 3075 | Z149: 3125 | AA149: 3092 | AB149: 2909 | AC149: 2821 | AD149: 2738 | AE149: 2629 | AF149: 2671 | AG149: 2496 | AH149: 2447 | AI149: 2551 | AJ149: 2794 | AK149: 2912 | AL149: 2959 | AM149: 3090 | AN149: 3351 | AO149: 3876 | AP149: 4262 | AQ149: 4402 | AR149: 4503 | AS149: 4375 | AT149: 4566 | AU149: 4574 | AV149: 4582 | AW149: 4450 | AX149: 4324 | AY149: 3956 | AZ149: 4110 | BA149: 3937 | BB149: 3668 | BC149: 3503 | BD149: 3467 | BE149: 3258 | BF149: 3305 | BG149: 3276 | BH149: 3332 | BI149: 3074 | BJ149: 2896 | BK149: 2755 | BL149: 2751 | BM149: 2548 | BN149: 2425 | BO149: 2144 | BP149: 2103 | BQ149: 1981 | BR149: 1800 | BS149: 1861 | BT149: 1789 | BU149: 1713 | BV149: 1719 | BW149: 1709 | BX149: 1625 | BY149: 1547 | BZ149: 1422 | CA149: 1397 | CB149: 1224 | CC149: 1189 | CD149: 1086 | CE149: 924 | CF149: 836 | CG149: 788 | CH149: 642 | CI149: 575 | CJ149: 480 | CK149: 434 | CL149: 349 | CM149: 346 | CN149: 282 | CO149: 240 | CP149: 204 | CQ149: 143 | CR149: 128 | CS149: 89 | CT149: 253
A150: RSS | B150: 15 | C150: 15 Laurentides | D150: 1999 | E150: Estimation | F150: Féminin | G150: 229430 | H150: 2411 | I150: 2542 | J150: 2833 | K150: 3086 | L150: 3086 | M150: 3354 | N150: 3366 | O150: 3614 | P150: 3554 | Q150: 3594 | R150: 3114 | S150: 2976 | T150: 2980 | U150: 2950 | V150: 2908 | W150: 2879 | X150: 2815 | Y150: 2930 | Z150: 2993 | AA150: 2867 | AB150: 2625 | AC150: 2523 | AD150: 2552 | AE150: 2434 | AF150: 2520 | AG150: 2418 | AH150: 2453 | AI150: 2582 | AJ150: 2828 | AK150: 2969 | AL150: 2977 | AM150: 3194 | AN150: 3384 | AO150: 3850 | AP150: 4318 | AQ150: 4387 | AR150: 4539 | AS150: 4456 | AT150: 4583 | AU150: 4581 | AV150: 4372 | AW150: 4396 | AX150: 4325 | AY150: 3946 | AZ150: 4022 | BA150: 3729 | BB150: 3568 | BC150: 3395 | BD150: 3401 | BE150: 3327 | BF150: 3264 | BG150: 3265 | BH150: 3174 | BI150: 3056 | BJ150: 2819 | BK150: 2727 | BL150: 2751 | BM150: 2453 | BN150: 2361 | BO150: 2079 | BP150: 2086 | BQ150: 1923 | BR150: 1813 | BS150: 1852 | BT150: 1726 | BU150: 1684 | BV150: 1778 | BW150: 1816 | BX150: 1670 | BY150: 1578 | BZ150: 1581 | CA150: 1528 | CB150: 1395 | CC150: 1340 | CD150: 1251 | CE150: 1266 | CF150: 1106 | CG150: 1076 | CH150: 960 | CI150: 877 | CJ150: 757 | CK150: 699 | CL150: 616 | CM150: 577 | CN150: 504 | CO150: 469 | CP150: 409 | CQ150: 356 | CR150: 284 | CS150: 203 | CT150: 795
A151: RSS | B151: 15 | C151: 15 Laurentides | D151: 1999 | E151: Estimation | F151: Total | G151: 458709 | H151: 4891 | I151: 5168 | J151: 5756 | K151: 6165 | L151: 6332 | M151: 6713 | N151: 6947 | O151: 7346 | P151: 7348 | Q151: 7165 | R151: 6460 | S151: 6137 | T151: 6104 | U151: 6003 | V151: 6073 | W151: 6055 | X151: 5821 | Y151: 6005 | Z151: 6118 | AA151: 5959 | AB151: 5534 | AC151: 5344 | AD151: 5290 | AE151: 5063 | AF151: 5191 | AG151: 4914 | AH151: 4900 | AI151: 5133 | AJ151: 5622 | AK151: 5881 | AL151: 5936 | AM151: 6284 | AN151: 6735 | AO151: 7726 | AP151: 8580 | AQ151: 8789 | AR151: 9042 | AS151: 8831 | AT151: 9149 | AU151: 9155 | AV151: 8954 | AW151: 8846 | AX151: 8649 | AY151: 7902 | AZ151: 8132 | BA151: 7666 | BB151: 7236 | BC151: 6898 | BD151: 6868 | BE151: 6585 | BF151: 6569 | BG151: 6541 | BH151: 6506 | BI151: 6130 | BJ151: 5715 | BK151: 5482 | BL151: 5502 | BM151: 5001 | BN151: 4786 | BO151: 4223 | BP151: 4189 | BQ151: 3904 | BR151: 3613 | BS151: 3713 | BT151: 3515 | BU151: 3397 | BV151: 3497 | BW151: 3525 | BX151: 3295 | BY151: 3125 | BZ151: 3003 | CA151: 2925 | CB151: 2619 | CC151: 2529 | CD151: 2337 | CE151: 2190 | CF151: 1942 | CG151: 1864 | CH151: 1602 | CI151: 1452 | CJ151: 1237 | CK151: 1133 | CL151: 965 | CM151: 923 | CN151: 786 | CO151: 709 | CP151: 613 | CQ151: 499 | CR151: 412 | CS151: 292 | CT151: 1048
A152: RSS | B152: 15 | C152: 15 Laurentides | D152: 2000 | E152: Estimation | F152: Masculin | G152: 232502 | H152: 2548 | I152: 2532 | J152: 2699 | K152: 2982 | L152: 3151 | M152: 3306 | N152: 3399 | O152: 3614 | P152: 3776 | Q152: 3831 | R152: 3601 | S152: 3380 | T152: 3178 | U152: 3139 | V152: 3074 | W152: 3164 | X152: 3191 | Y152: 2990 | Z152: 3049 | AA152: 3077 | AB152: 3062 | AC152: 2855 | AD152: 2806 | AE152: 2710 | AF152: 2607 | AG152: 2686 | AH152: 2538 | AI152: 2517 | AJ152: 2640 | AK152: 2922 | AL152: 3036 | AM152: 3097 | AN152: 3181 | AO152: 3448 | AP152: 3968 | AQ152: 4335 | AR152: 4435 | AS152: 4544 | AT152: 4403 | AU152: 4582 | AV152: 4629 | AW152: 4620 | AX152: 4444 | AY152: 4335 | AZ152: 3955 | BA152: 4108 | BB152: 3915 | BC152: 3677 | BD152: 3482 | BE152: 3460 | BF152: 3256 | BG152: 3309 | BH152: 3285 | BI152: 3346 | BJ152: 3093 | BK152: 2917 | BL152: 2778 | BM152: 2767 | BN152: 2561 | BO152: 2458 | BP152: 2145 | BQ152: 2111 | BR152: 2001 | BS152: 1792 | BT152: 1850 | BU152: 1779 | BV152: 1701 | BW152: 1702 | BX152: 1673 | BY152: 1584 | BZ152: 1527 | CA152: 1388 | CB152: 1363 | CC152: 1179 | CD152: 1140 | CE152: 1042 | CF152: 859 | CG152: 798 | CH152: 720 | CI152: 595 | CJ152: 517 | CK152: 443 | CL152: 393 | CM152: 319 | CN152: 313 | CO152: 248 | CP152: 212 | CQ152: 178 | CR152: 125 | CS152: 115 | CT152: 242
A153: RSS | B153: 15 | C153: 15 Laurentides | D153: 2000 | E153: Estimation | F153: Féminin | G153: 232977 | H153: 2422 | I153: 2493 | J153: 2629 | K153: 2892 | L153: 3149 | M153: 3132 | N153: 3394 | O153: 3390 | P153: 3648 | Q153: 3593 | R153: 3632 | S153: 3136 | T153: 3002 | U153: 2997 | V153: 2960 | W153: 2902 | X153: 2876 | Y153: 2803 | Z153: 2865 | AA153: 2923 | AB153: 2820 | AC153: 2573 | AD153: 2496 | AE153: 2550 | AF153: 2465 | AG153: 2605 | AH153: 2486 | AI153: 2550 | AJ153: 2671 | AK153: 2939 | AL153: 3088 | AM153: 3076 | AN153: 3298 | AO153: 3473 | AP153: 3936 | AQ153: 4408 | AR153: 4417 | AS153: 4594 | AT153: 4503 | AU153: 4633 | AV153: 4613 | AW153: 4392 | AX153: 4420 | AY153: 4353 | AZ153: 3947 | BA153: 4042 | BB153: 3735 | BC153: 3565 | BD153: 3412 | BE153: 3409 | BF153: 3347 | BG153: 3288 | BH153: 3302 | BI153: 3196 | BJ153: 3084 | BK153: 2838 | BL153: 2744 | BM153: 2789 | BN153: 2478 | BO153: 2391 | BP153: 2097 | BQ153: 2105 | BR153: 1941 | BS153: 1819 | BT153: 1861 | BU153: 1717 | BV153: 1688 | BW153: 1772 | BX153: 1811 | BY153: 1656 | BZ153: 1566 | CA153: 1555 | CB153: 1508 | CC153: 1370 | CD153: 1311 | CE153: 1206 | CF153: 1222 | CG153: 1052 | CH153: 1046 | CI153: 920 | CJ153: 846 | CK153: 716 | CL153: 648 | CM153: 588 | CN153: 548 | CO153: 468 | CP153: 431 | CQ153: 364 | CR153: 312 | CS153: 245 | CT153: 824
A154: RSS | B154: 15 | C154: 15 Laurentides | D154: 2000 | E154: Estimation | F154: Total | G154: 465479 | H154: 4970 | I154: 5025 | J154: 5328 | K154: 5874 | L154: 6300 | M154: 6438 | N154: 6793 | O154: 7004 | P154: 7424 | Q154: 7424 | R154: 7233 | S154: 6516 | T154: 6180 | U154: 6136 | V154: 6034 | W154: 6066 | X154: 6067 | Y154: 5793 | Z154: 5914 | AA154: 6000 | AB154: 5882 | AC154: 5428 | AD154: 5302 | AE154: 5260 | AF154: 5072 | AG154: 5291 | AH154: 5024 | AI154: 5067 | AJ154: 5311 | AK154: 5861 | AL154: 6124 | AM154: 6173 | AN154: 6479 | AO154: 6921 | AP154: 7904 | AQ154: 8743 | AR154: 8852 | AS154: 9138 | AT154: 8906 | AU154: 9215 | AV154: 9242 | AW154: 9012 | AX154: 8864 | AY154: 8688 | AZ154: 7902 | BA154: 8150 | BB154: 7650 | BC154: 7242 | BD154: 6894 | BE154: 6869 | BF154: 6603 | BG154: 6597 | BH154: 6587 | BI154: 6542 | BJ154: 6177 | BK154: 5755 | BL154: 5522 | BM154: 5556 | BN154: 5039 | BO154: 4849 | BP154: 4242 | BQ154: 4216 | BR154: 3942 | BS154: 3611 | BT154: 3711 | BU154: 3496 | BV154: 3389 | BW154: 3474 | BX154: 3484 | BY154: 3240 | BZ154: 3093 | CA154: 2943 | CB154: 2871 | CC154: 2549 | CD154: 2451 | CE154: 2248 | CF154: 2081 | CG154: 1850 | CH154: 1766 | CI154: 1515 | CJ154: 1363 | CK154: 1159 | CL154: 1041 | CM154: 907 | CN154: 861 | CO154: 716 | CP154: 643 | CQ154: 542 | CR154: 437 | CS154: 360 | CT154: 1066
A155: RSS | B155: 15 | C155: 15 Laurentides | D155: 2001 | E155: Estimation | F155: Masculin | G155: 236307 | H155: 2420 | I155: 2583 | J155: 2623 | K155: 2793 | L155: 3029 | M155: 3225 | N155: 3344 | O155: 3477 | P155: 3646 | Q155: 3806 | R155: 3830 | S155: 3614 | T155: 3411 | U155: 3222 | V155: 3152 | W155: 3094 | X155: 3167 | Y155: 3185 | Z155: 3010 | AA155: 2995 | AB155: 3067 | AC155: 3022 | AD155: 2850 | AE155: 2772 | AF155: 2746 | AG155: 2622 | AH155: 2727 | AI155: 2632 | AJ155: 2650 | AK155: 2787 | AL155: 3059 | AM155: 3169 | AN155: 3247 | AO155: 3320 | AP155: 3581 | AQ155: 4035 | AR155: 4371 | AS155: 4442 | AT155: 4573 | AU155: 4454 | AV155: 4593 | AW155: 4652 | AX155: 4618 | AY155: 4456 | AZ155: 4319 | BA155: 4007 | BB155: 4083 | BC155: 3900 | BD155: 3687 | BE155: 3535 | BF155: 3464 | BG155: 3294 | BH155: 3334 | BI155: 3317 | BJ155: 3358 | BK155: 3128 | BL155: 2961 | BM155: 2816 | BN155: 2786 | BO155: 2589 | BP155: 2457 | BQ155: 2192 | BR155: 2119 | BS155: 2015 | BT155: 1820 | BU155: 1846 | BV155: 1768 | BW155: 1696 | BX155: 1681 | BY155: 1650 | BZ155: 1557 | CA155: 1489 | CB155: 1360 | CC155: 1311 | CD155: 1145 | CE155: 1085 | CF155: 985 | CG155: 824 | CH155: 736 | CI155: 660 | CJ155: 540 | CK155: 472 | CL155: 399 | CM155: 357 | CN155: 281 | CO155: 272 | CP155: 229 | CQ155: 189 | CR155: 144 | CS155: 112 | CT155: 267
A156: RSS | B156: 15 | C156: 15 Laurentides | D156: 2001 | E156: Estimation | F156: Féminin | G156: 236772 | H156: 2350 | I156: 2451 | J156: 2596 | K156: 2731 | L156: 2936 | M156: 3187 | N156: 3190 | O156: 3409 | P156: 3454 | Q156: 3657 | R156: 3638 | S156: 3634 | T156: 3189 | U156: 3053 | V156: 3010 | W156: 2971 | X156: 2890 | Y156: 2869 | Z156: 2774 | AA156: 2836 | AB156: 2858 | AC156: 2775 | AD156: 2559 | AE156: 2515 | AF156: 2540 | AG156: 2519 | AH156: 2646 | AI156: 2571 | AJ156: 2642 | AK156: 2805 | AL156: 3061 | AM156: 3200 | AN156: 3203 | AO156: 3410 | AP156: 3573 | AQ156: 4010 | AR156: 4421 | AS156: 4468 | AT156: 4597 | AU156: 4546 | AV156: 4645 | AW156: 4625 | AX156: 4421 | AY156: 4427 | AZ156: 4344 | BA156: 4003 | BB156: 4039 | BC156: 3766 | BD156: 3589 | BE156: 3446 | BF156: 3418 | BG156: 3382 | BH156: 3317 | BI156: 3338 | BJ156: 3233 | BK156: 3104 | BL156: 2904 | BM156: 2782 | BN156: 2813 | BO156: 2535 | BP156: 2413 | BQ156: 2151 | BR156: 2109 | BS156: 1976 | BT156: 1834 | BU156: 1866 | BV156: 1722 | BW156: 1706 | BX156: 1769 | BY156: 1794 | BZ156: 1650 | CA156: 1552 | CB156: 1525 | CC156: 1483 | CD156: 1351 | CE156: 1269 | CF156: 1168 | CG156: 1160 | CH156: 1024 | CI156: 996 | CJ156: 901 | CK156: 813 | CL156: 676 | CM156: 614 | CN156: 557 | CO156: 513 | CP156: 438 | CQ156: 380 | CR156: 331 | CS156: 263 | CT156: 893
A157: RSS | B157: 15 | C157: 15 Laurentides | D157: 2001 | E157: Estimation | F157: Total | G157: 473079 | H157: 4770 | I157: 5034 | J157: 5219 | K157: 5524 | L157: 5965 | M157: 6412 | N157: 6534 | O157: 6886 | P157: 7100 | Q157: 7463 | R157: 7468 | S157: 7248 | T157: 6600 | U157: 6275 | V157: 6162 | W157: 6065 | X157: 6057 | Y157: 6054 | Z157: 5784 | AA157: 5831 | AB157: 5925 | AC157: 5797 | AD157: 5409 | AE157: 5287 | AF157: 5286 | AG157: 5141 | AH157: 5373 | AI157: 5203 | AJ157: 5292 | AK157: 5592 | AL157: 6120 | AM157: 6369 | AN157: 6450 | AO157: 6730 | AP157: 7154 | AQ157: 8045 | AR157: 8792 | AS157: 8910 | AT157: 9170 | AU157: 9000 | AV157: 9238 | AW157: 9277 | AX157: 9039 | AY157: 8883 | AZ157: 8663 | BA157: 8010 | BB157: 8122 | BC157: 7666 | BD157: 7276 | BE157: 6981 | BF157: 6882 | BG157: 6676 | BH157: 6651 | BI157: 6655 | BJ157: 6591 | BK157: 6232 | BL157: 5865 | BM157: 5598 | BN157: 5599 | BO157: 5124 | BP157: 4870 | BQ157: 4343 | BR157: 4228 | BS157: 3991 | BT157: 3654 | BU157: 3712 | BV157: 3490 | BW157: 3402 | BX157: 3450 | BY157: 3444 | BZ157: 3207 | CA157: 3041 | CB157: 2885 | CC157: 2794 | CD157: 2496 | CE157: 2354 | CF157: 2153 | CG157: 1984 | CH157: 1760 | CI157: 1656 | CJ157: 1441 | CK157: 1285 | CL157: 1075 | CM157: 971 | CN157: 838 | CO157: 785 | CP157: 667 | CQ157: 569 | CR157: 475 | CS157: 375 | CT157: 1160
A158: RSS | B158: 15 | C158: 15 Laurentides | D158: 2002 | E158: Estimation | F158: Masculin | G158: 240590 | H158: 2582 | I158: 2505 | J158: 2681 | K158: 2716 | L158: 2863 | M158: 3100 | N158: 3289 | O158: 3414 | P158: 3543 | Q158: 3718 | R158: 3860 | S158: 3895 | T158: 3657 | U158: 3433 | V158: 3211 | W158: 3118 | X158: 3076 | Y158: 3158 | Z158: 3147 | AA158: 2968 | AB158: 2945 | AC158: 3043 | AD158: 3004 | AE158: 2843 | AF158: 2764 | AG158: 2769 | AH158: 2678 | AI158: 2824 | AJ158: 2744 | AK158: 2788 | AL158: 2909 | AM158: 3181 | AN158: 3273 | AO158: 3325 | AP158: 3377 | AQ158: 3648 | AR158: 4133 | AS158: 4480 | AT158: 4547 | AU158: 4682 | AV158: 4519 | AW158: 4634 | AX158: 4687 | AY158: 4646 | AZ158: 4487 | BA158: 4352 | BB158: 4032 | BC158: 4129 | BD158: 3928 | BE158: 3696 | BF158: 3541 | BG158: 3479 | BH158: 3311 | BI158: 3371 | BJ158: 3334 | BK158: 3374 | BL158: 3157 | BM158: 3001 | BN158: 2857 | BO158: 2816 | BP158: 2637 | BQ158: 2506 | BR158: 2210 | BS158: 2137 | BT158: 2002 | BU158: 1811 | BV158: 1832 | BW158: 1749 | BX158: 1676 | BY158: 1647 | BZ158: 1607 | CA158: 1517 | CB158: 1441 | CC158: 1301 | CD158: 1264 | CE158: 1093 | CF158: 1038 | CG158: 934 | CH158: 776 | CI158: 681 | CJ158: 623 | CK158: 520 | CL158: 436 | CM158: 366 | CN158: 307 | CO158: 237 | CP158: 226 | CQ158: 191 | CR158: 158 | CS158: 123 | CT158: 302
A159: RSS | B159: 15 | C159: 15 Laurentides | D159: 2002 | E159: Estimation | F159: Féminin | G159: 241337 | H159: 2491 | I159: 2444 | J159: 2549 | K159: 2679 | L159: 2791 | M159: 2985 | N159: 3252 | O159: 3238 | P159: 3471 | Q159: 3522 | R159: 3701 | S159: 3687 | T159: 3677 | U159: 3221 | V159: 3060 | W159: 3012 | X159: 2968 | Y159: 2877 | Z159: 2835 | AA159: 2736 | AB159: 2794 | AC159: 2823 | AD159: 2760 | AE159: 2586 | AF159: 2577 | AG159: 2664 | AH159: 2661 | AI159: 2788 | AJ159: 2712 | AK159: 2788 | AL159: 2909 | AM159: 3171 | AN159: 3304 | AO159: 3281 | AP159: 3490 | AQ159: 3633 | AR159: 4065 | AS159: 4502 | AT159: 4561 | AU159: 4675 | AV159: 4604 | AW159: 4712 | AX159: 4662 | AY159: 4454 | AZ159: 4466 | BA159: 4384 | BB159: 4052 | BC159: 4100 | BD159: 3802 | BE159: 3610 | BF159: 3461 | BG159: 3461 | BH159: 3420 | BI159: 3363 | BJ159: 3364 | BK159: 3294 | BL159: 3174 | BM159: 2964 | BN159: 2841 | BO159: 2862 | BP159: 2569 | BQ159: 2435 | BR159: 2161 | BS159: 2113 | BT159: 1977 | BU159: 1816 | BV159: 1860 | BW159: 1698 | BX159: 1686 | BY159: 1744 | BZ159: 1758 | CA159: 1612 | CB159: 1524 | CC159: 1480 | CD159: 1444 | CE159: 1310 | CF159: 1235 | CG159: 1133 | CH159: 1106 | CI159: 979 | CJ159: 950 | CK159: 860 | CL159: 758 | CM159: 616 | CN159: 563 | CO159: 510 | CP159: 474 | CQ159: 398 | CR159: 342 | CS159: 285 | CT159: 951
A160: RSS | B160: 15 | C160: 15 Laurentides | D160: 2002 | E160: Estimation | F160: Total | G160: 481927 | H160: 5073 | I160: 4949 | J160: 5230 | K160: 5395 | L160: 5654 | M160: 6085 | N160: 6541 | O160: 6652 | P160: 7014 | Q160: 7240 | R160: 7561 | S160: 7582 | T160: 7334 | U160: 6654 | V160: 6271 | W160: 6130 | X160: 6044 | Y160: 6035 | Z160: 5982 | AA160: 5704 | AB160: 5739 | AC160: 5866 | AD160: 5764 | AE160: 5429 | AF160: 5341 | AG160: 5433 | AH160: 5339 | AI160: 5612 | AJ160: 5456 | AK160: 5576 | AL160: 5818 | AM160: 6352 | AN160: 6577 | AO160: 6606 | AP160: 6867 | AQ160: 7281 | AR160: 8198 | AS160: 8982 | AT160: 9108 | AU160: 9357 | AV160: 9123 | AW160: 9346 | AX160: 9349 | AY160: 9100 | AZ160: 8953 | BA160: 8736 | BB160: 8084 | BC160: 8229 | BD160: 7730 | BE160: 7306 | BF160: 7002 | BG160: 6940 | BH160: 6731 | BI160: 6734 | BJ160: 6698 | BK160: 6668 | BL160: 6331 | BM160: 5965 | BN160: 5698 | BO160: 5678 | BP160: 5206 | BQ160: 4941 | BR160: 4371 | BS160: 4250 | BT160: 3979 | BU160: 3627 | BV160: 3692 | BW160: 3447 | BX160: 3362 | BY160: 3391 | BZ160: 3365 | CA160: 3129 | CB160: 2965 | CC160: 2781 | CD160: 2708 | CE160: 2403 | CF160: 2273 | CG160: 2067 | CH160: 1882 | CI160: 1660 | CJ160: 1573 | CK160: 1380 | CL160: 1194 | CM160: 982 | CN160: 870 | CO160: 747 | CP160: 700 | CQ160: 589 | CR160: 500 | CS160: 408 | CT160: 1253
A161: RSS | B161: 15 | C161: 15 Laurentides | D161: 2003 | E161: Estimation | F161: Masculin | G161: 245592 | H161: 2608 | I161: 2683 | J161: 2579 | K161: 2764 | L161: 2803 | M161: 2940 | N161: 3191 | O161: 3359 | P161: 3499 | Q161: 3622 | R161: 3793 | S161: 3922 | T161: 3970 | U161: 3700 | V161: 3454 | W161: 3197 | X161: 3093 | Y161: 3062 | Z161: 3153 | AA161: 3109 | AB161: 2938 | AC161: 2907 | AD161: 3009 | AE161: 3011 | AF161: 2843 | AG161: 2793 | AH161: 2844 | AI161: 2791 | AJ161: 2961 | AK161: 2887 | AL161: 2908 | AM161: 3014 | AN161: 3287 | AO161: 3358 | AP161: 3415 | AQ161: 3490 | AR161: 3735 | AS161: 4268 | AT161: 4594 | AU161: 4658 | AV161: 4786 | AW161: 4605 | AX161: 4693 | AY161: 4738 | AZ161: 4697 | BA161: 4519 | BB161: 4407 | BC161: 4048 | BD161: 4183 | BE161: 3967 | BF161: 3722 | BG161: 3533 | BH161: 3499 | BI161: 3310 | BJ161: 3398 | BK161: 3344 | BL161: 3406 | BM161: 3193 | BN161: 3045 | BO161: 2901 | BP161: 2845 | BQ161: 2668 | BR161: 2520 | BS161: 2210 | BT161: 2151 | BU161: 1985 | BV161: 1805 | BW161: 1837 | BX161: 1749 | BY161: 1662 | BZ161: 1629 | CA161: 1566 | CB161: 1496 | CC161: 1393 | CD161: 1237 | CE161: 1212 | CF161: 1050 | CG161: 978 | CH161: 880 | CI161: 732 | CJ161: 634 | CK161: 595 | CL161: 493 | CM161: 399 | CN161: 338 | CO161: 286 | CP161: 215 | CQ161: 189 | CR161: 157 | CS161: 137 | CT161: 338
A162: RSS | B162: 15 | C162: 15 Laurentides | D162: 2003 | E162: Estimation | F162: Féminin | G162: 245879 | H162: 2356 | I162: 2594 | J162: 2531 | K162: 2625 | L162: 2742 | M162: 2854 | N162: 3044 | O162: 3325 | P162: 3303 | Q162: 3538 | R162: 3596 | S162: 3753 | T162: 3747 | U162: 3727 | V162: 3252 | W162: 3064 | X162: 2991 | Y162: 2930 | Z162: 2843 | AA162: 2775 | AB162: 2657 | AC162: 2735 | AD162: 2788 | AE162: 2753 | AF162: 2615 | AG162: 2662 | AH162: 2807 | AI162: 2798 | AJ162: 2928 | AK162: 2831 | AL162: 2907 | AM162: 3013 | AN162: 3297 | AO162: 3425 | AP162: 3405 | AQ162: 3559 | AR162: 3697 | AS162: 4137 | AT162: 4588 | AU162: 4650 | AV162: 4744 | AW162: 4649 | AX162: 4769 | AY162: 4692 | AZ162: 4488 | BA162: 4504 | BB162: 4439 | BC162: 4116 | BD162: 4175 | BE162: 3845 | BF162: 3639 | BG162: 3483 | BH162: 3511 | BI162: 3445 | BJ162: 3398 | BK162: 3368 | BL162: 3346 | BM162: 3242 | BN162: 3012 | BO162: 2891 | BP162: 2889 | BQ162: 2597 | BR162: 2458 | BS162: 2175 | BT162: 2119 | BU162: 1984 | BV162: 1802 | BW162: 1854 | BX162: 1690 | BY162: 1671 | BZ162: 1710 | CA162: 1726 | CB162: 1582 | CC162: 1500 | CD162: 1455 | CE162: 1418 | CF162: 1283 | CG162: 1208 | CH162: 1102 | CI162: 1068 | CJ162: 935 | CK162: 910 | CL162: 818 | CM162: 700 | CN162: 567 | CO162: 542 | CP162: 469 | CQ162: 414 | CR162: 346 | CS162: 293 | CT162: 996
A163: RSS | B163: 15 | C163: 15 Laurentides | D163: 2003 | E163: Estimation | F163: Total | G163: 491471 | H163: 4964 | I163: 5277 | J163: 5110 | K163: 5389 | L163: 5545 | M163: 5794 | N163: 6235 | O163: 6684 | P163: 6802 | Q163: 7160 | R163: 7389 | S163: 7675 | T163: 7717 | U163: 7427 | V163: 6706 | W163: 6261 | X163: 6084 | Y163: 5992 | Z163: 5996 | AA163: 5884 | AB163: 5595 | AC163: 5642 | AD163: 5797 | AE163: 5764 | AF163: 5458 | AG163: 5455 | AH163: 5651 | AI163: 5589 | AJ163: 5889 | AK163: 5718 | AL163: 5815 | AM163: 6027 | AN163: 6584 | AO163: 6783 | AP163: 6820 | AQ163: 7049 | AR163: 7432 | AS163: 8405 | AT163: 9182 | AU163: 9308 | AV163: 9530 | AW163: 9254 | AX163: 9462 | AY163: 9430 | AZ163: 9185 | BA163: 9023 | BB163: 8846 | BC163: 8164 | BD163: 8358 | BE163: 7812 | BF163: 7361 | BG163: 7016 | BH163: 7010 | BI163: 6755 | BJ163: 6796 | BK163: 6712 | BL163: 6752 | BM163: 6435 | BN163: 6057 | BO163: 5792 | BP163: 5734 | BQ163: 5265 | BR163: 4978 | BS163: 4385 | BT163: 4270 | BU163: 3969 | BV163: 3607 | BW163: 3691 | BX163: 3439 | BY163: 3333 | BZ163: 3339 | CA163: 3292 | CB163: 3078 | CC163: 2893 | CD163: 2692 | CE163: 2630 | CF163: 2333 | CG163: 2186 | CH163: 1982 | CI163: 1800 | CJ163: 1569 | CK163: 1505 | CL163: 1311 | CM163: 1099 | CN163: 905 | CO163: 828 | CP163: 684 | CQ163: 603 | CR163: 503 | CS163: 430 | CT163: 1334
A164: RSS | B164: 15 | C164: 15 Laurentides | D164: 2004 | E164: Estimation | F164: Masculin | G164: 250622 | H164: 2587 | I164: 2689 | J164: 2765 | K164: 2646 | L164: 2839 | M164: 2899 | N164: 3012 | O164: 3267 | P164: 3423 | Q164: 3572 | R164: 3686 | S164: 3860 | T164: 3981 | U164: 4047 | V164: 3756 | W164: 3479 | X164: 3190 | Y164: 3075 | Z164: 3067 | AA164: 3164 | AB164: 3084 | AC164: 2900 | AD164: 2874 | AE164: 3002 | AF164: 2998 | AG164: 2897 | AH164: 2875 | AI164: 2956 | AJ164: 2939 | AK164: 3134 | AL164: 3016 | AM164: 3039 | AN164: 3102 | AO164: 3398 | AP164: 3451 | AQ164: 3502 | AR164: 3571 | AS164: 3809 | AT164: 4367 | AU164: 4684 | AV164: 4754 | AW164: 4878 | AX164: 4673 | AY164: 4741 | AZ164: 4780 | BA164: 4736 | BB164: 4546 | BC164: 4449 | BD164: 4086 | BE164: 4246 | BF164: 4019 | BG164: 3755 | BH164: 3567 | BI164: 3540 | BJ164: 3337 | BK164: 3440 | BL164: 3348 | BM164: 3439 | BN164: 3220 | BO164: 3074 | BP164: 2938 | BQ164: 2860 | BR164: 2690 | BS164: 2544 | BT164: 2210 | BU164: 2148 | BV164: 1964 | BW164: 1782 | BX164: 1833 | BY164: 1727 | BZ164: 1630 | CA164: 1595 | CB164: 1531 | CC164: 1455 | CD164: 1353 | CE164: 1177 | CF164: 1171 | CG164: 1000 | CH164: 930 | CI164: 841 | CJ164: 681 | CK164: 583 | CL164: 540 | CM164: 458 | CN164: 349 | CO164: 303 | CP164: 248 | CQ164: 188 | CR164: 151 | CS164: 131 | CT164: 381
A165: RSS | B165: 15 | C165: 15 Laurentides | D165: 2004 | E165: Estimation | F165: Féminin | G165: 250755 | H165: 2440 | I165: 2402 | J165: 2696 | K165: 2618 | L165: 2696 | M165: 2807 | N165: 2913 | O165: 3095 | P165: 3380 | Q165: 3360 | R165: 3602 | S165: 3667 | T165: 3810 | U165: 3812 | V165: 3784 | W165: 3287 | X165: 3070 | Y165: 2973 | Z165: 2914 | AA165: 2820 | AB165: 2719 | AC165: 2620 | AD165: 2729 | AE165: 2814 | AF165: 2784 | AG165: 2719 | AH165: 2796 | AI165: 2972 | AJ165: 2948 | AK165: 3070 | AL165: 2941 | AM165: 3001 | AN165: 3099 | AO165: 3408 | AP165: 3524 | AQ165: 3492 | AR165: 3636 | AS165: 3750 | AT165: 4206 | AU165: 4648 | AV165: 4734 | AW165: 4819 | AX165: 4711 | AY165: 4839 | AZ165: 4724 | BA165: 4530 | BB165: 4550 | BC165: 4474 | BD165: 4171 | BE165: 4239 | BF165: 3896 | BG165: 3662 | BH165: 3521 | BI165: 3567 | BJ165: 3496 | BK165: 3436 | BL165: 3387 | BM165: 3376 | BN165: 3297 | BO165: 3040 | BP165: 2940 | BQ165: 2925 | BR165: 2620 | BS165: 2464 | BT165: 2182 | BU165: 2122 | BV165: 1974 | BW165: 1787 | BX165: 1837 | BY165: 1679 | BZ165: 1650 | CA165: 1690 | CB165: 1691 | CC165: 1556 | CD165: 1464 | CE165: 1413 | CF165: 1381 | CG165: 1250 | CH165: 1161 | CI165: 1077 | CJ165: 1012 | CK165: 891 | CL165: 867 | CM165: 781 | CN165: 655 | CO165: 530 | CP165: 506 | CQ165: 414 | CR165: 357 | CS165: 297 | CT165: 1091
A166: RSS | B166: 15 | C166: 15 Laurentides | D166: 2004 | E166: Estimation | F166: Total | G166: 501377 | H166: 5027 | I166: 5091 | J166: 5461 | K166: 5264 | L166: 5535 | M166: 5706 | N166: 5925 | O166: 6362 | P166: 6803 | Q166: 6932 | R166: 7288 | S166: 7527 | T166: 7791 | U166: 7859 | V166: 7540 | W166: 6766 | X166: 6260 | Y166: 6048 | Z166: 5981 | AA166: 5984 | AB166: 5803 | AC166: 5520 | AD166: 5603 | AE166: 5816 | AF166: 5782 | AG166: 5616 | AH166: 5671 | AI166: 5928 | AJ166: 5887 | AK166: 6204 | AL166: 5957 | AM166: 6040 | AN166: 6201 | AO166: 6806 | AP166: 6975 | AQ166: 6994 | AR166: 7207 | AS166: 7559 | AT166: 8573 | AU166: 9332 | AV166: 9488 | AW166: 9697 | AX166: 9384 | AY166: 9580 | AZ166: 9504 | BA166: 9266 | BB166: 9096 | BC166: 8923 | BD166: 8257 | BE166: 8485 | BF166: 7915 | BG166: 7417 | BH166: 7088 | BI166: 7107 | BJ166: 6833 | BK166: 6876 | BL166: 6735 | BM166: 6815 | BN166: 6517 | BO166: 6114 | BP166: 5878 | BQ166: 5785 | BR166: 5310 | BS166: 5008 | BT166: 4392 | BU166: 4270 | BV166: 3938 | BW166: 3569 | BX166: 3670 | BY166: 3406 | BZ166: 3280 | CA166: 3285 | CB166: 3222 | CC166: 3011 | CD166: 2817 | CE166: 2590 | CF166: 2552 | CG166: 2250 | CH166: 2091 | CI166: 1918 | CJ166: 1693 | CK166: 1474 | CL166: 1407 | CM166: 1239 | CN166: 1004 | CO166: 833 | CP166: 754 | CQ166: 602 | CR166: 508 | CS166: 428 | CT166: 1472
A167: RSS | B167: 15 | C167: 15 Laurentides | D167: 2005 | E167: Estimation | F167: Masculin | G167: 255206 | H167: 2659 | I167: 2655 | J167: 2754 | K167: 2845 | L167: 2699 | M167: 2913 | N167: 2973 | O167: 3076 | P167: 3332 | Q167: 3478 | R167: 3648 | S167: 3738 | T167: 3926 | U167: 4045 | V167: 4117 | W167: 3805 | X167: 3512 | Y167: 3201 | Z167: 3064 | AA167: 3077 | AB167: 3170 | AC167: 3051 | AD167: 2866 | AE167: 2870 | AF167: 2989 | AG167: 3016 | AH167: 2949 | AI167: 2951 | AJ167: 3048 | AK167: 3050 | AL167: 3256 | AM167: 3128 | AN167: 3144 | AO167: 3182 | AP167: 3497 | AQ167: 3526 | AR167: 3567 | AS167: 3637 | AT167: 3865 | AU167: 4448 | AV167: 4766 | AW167: 4832 | AX167: 4943 | AY167: 4709 | AZ167: 4761 | BA167: 4792 | BB167: 4755 | BC167: 4568 | BD167: 4504 | BE167: 4103 | BF167: 4300 | BG167: 4056 | BH167: 3786 | BI167: 3584 | BJ167: 3568 | BK167: 3348 | BL167: 3469 | BM167: 3351 | BN167: 3451 | BO167: 3238 | BP167: 3112 | BQ167: 2964 | BR167: 2877 | BS167: 2727 | BT167: 2566 | BU167: 2201 | BV167: 2146 | BW167: 1934 | BX167: 1753 | BY167: 1807 | BZ167: 1710 | CA167: 1606 | CB167: 1564 | CC167: 1484 | CD167: 1409 | CE167: 1297 | CF167: 1121 | CG167: 1114 | CH167: 951 | CI167: 881 | CJ167: 794 | CK167: 647 | CL167: 533 | CM167: 497 | CN167: 424 | CO167: 313 | CP167: 267 | CQ167: 214 | CR167: 155 | CS167: 125 | CT167: 402
A168: RSS | B168: 15 | C168: 15 Laurentides | D168: 2005 | E168: Estimation | F168: Féminin | G168: 255192 | H168: 2483 | I168: 2474 | J168: 2442 | K168: 2786 | L168: 2697 | M168: 2778 | N168: 2871 | O168: 2966 | P168: 3146 | Q168: 3433 | R168: 3414 | S168: 3670 | T168: 3738 | U168: 3863 | V168: 3874 | W168: 3824 | X168: 3307 | Y168: 3046 | Z168: 2922 | AA168: 2869 | AB168: 2780 | AC168: 2668 | AD168: 2578 | AE168: 2748 | AF168: 2830 | AG168: 2829 | AH168: 2813 | AI168: 2904 | AJ168: 3104 | AK168: 3077 | AL168: 3193 | AM168: 3038 | AN168: 3097 | AO168: 3180 | AP168: 3499 | AQ168: 3607 | AR168: 3580 | AS168: 3694 | AT168: 3790 | AU168: 4261 | AV168: 4717 | AW168: 4805 | AX168: 4873 | AY168: 4751 | AZ168: 4889 | BA168: 4733 | BB168: 4546 | BC168: 4570 | BD168: 4509 | BE168: 4217 | BF168: 4309 | BG168: 3931 | BH168: 3704 | BI168: 3554 | BJ168: 3623 | BK168: 3527 | BL168: 3482 | BM168: 3407 | BN168: 3414 | BO168: 3351 | BP168: 3078 | BQ168: 2985 | BR168: 2960 | BS168: 2635 | BT168: 2472 | BU168: 2181 | BV168: 2115 | BW168: 1965 | BX168: 1763 | BY168: 1821 | BZ168: 1660 | CA168: 1634 | CB168: 1667 | CC168: 1670 | CD168: 1526 | CE168: 1434 | CF168: 1378 | CG168: 1339 | CH168: 1210 | CI168: 1130 | CJ168: 1042 | CK168: 980 | CL168: 853 | CM168: 820 | CN168: 738 | CO168: 610 | CP168: 495 | CQ168: 458 | CR168: 367 | CS168: 306 | CT168: 1115
A169: RSS | B169: 15 | C169: 15 Laurentides | D169: 2005 | E169: Estimation | F169: Total | G169: 510398 | H169: 5142 | I169: 5129 | J169: 5196 | K169: 5631 | L169: 5396 | M169: 5691 | N169: 5844 | O169: 6042 | P169: 6478 | Q169: 6911 | R169: 7062 | S169: 7408 | T169: 7664 | U169: 7908 | V169: 7991 | W169: 7629 | X169: 6819 | Y169: 6247 | Z169: 5986 | AA169: 5946 | AB169: 5950 | AC169: 5719 | AD169: 5444 | AE169: 5618 | AF169: 5819 | AG169: 5845 | AH169: 5762 | AI169: 5855 | AJ169: 6152 | AK169: 6127 | AL169: 6449 | AM169: 6166 | AN169: 6241 | AO169: 6362 | AP169: 6996 | AQ169: 7133 | AR169: 7147 | AS169: 7331 | AT169: 7655 | AU169: 8709 | AV169: 9483 | AW169: 9637 | AX169: 9816 | AY169: 9460 | AZ169: 9650 | BA169: 9525 | BB169: 9301 | BC169: 9138 | BD169: 9013 | BE169: 8320 | BF169: 8609 | BG169: 7987 | BH169: 7490 | BI169: 7138 | BJ169: 7191 | BK169: 6875 | BL169: 6951 | BM169: 6758 | BN169: 6865 | BO169: 6589 | BP169: 6190 | BQ169: 5949 | BR169: 5837 | BS169: 5362 | BT169: 5038 | BU169: 4382 | BV169: 4261 | BW169: 3899 | BX169: 3516 | BY169: 3628 | BZ169: 3370 | CA169: 3240 | CB169: 3231 | CC169: 3154 | CD169: 2935 | CE169: 2731 | CF169: 2499 | CG169: 2453 | CH169: 2161 | CI169: 2011 | CJ169: 1836 | CK169: 1627 | CL169: 1386 | CM169: 1317 | CN169: 1162 | CO169: 923 | CP169: 762 | CQ169: 672 | CR169: 522 | CS169: 431 | CT169: 1517
A170: RSS | B170: 15 | C170: 15 Laurentides | D170: 2006 | E170: Estimation | F170: Masculin | G170: 259123 | H170: 2687 | I170: 2665 | J170: 2737 | K170: 2808 | L170: 2896 | M170: 2765 | N170: 2947 | O170: 3042 | P170: 3119 | Q170: 3382 | R170: 3504 | S170: 3696 | T170: 3778 | U170: 3976 | V170: 4071 | W170: 4148 | X170: 3850 | Y170: 3536 | Z170: 3204 | AA170: 3028 | AB170: 3061 | AC170: 3136 | AD170: 2963 | AE170: 2827 | AF170: 2834 | AG170: 2970 | AH170: 3036 | AI170: 3012 | AJ170: 3031 | AK170: 3104 | AL170: 3176 | AM170: 3331 | AN170: 3237 | AO170: 3248 | AP170: 3274 | AQ170: 3565 | AR170: 3578 | AS170: 3631 | AT170: 3714 | AU170: 3923 | AV170: 4506 | AW170: 4815 | AX170: 4908 | AY170: 4987 | AZ170: 4784 | BA170: 4784 | BB170: 4800 | BC170: 4765 | BD170: 4592 | BE170: 4523 | BF170: 4158 | BG170: 4307 | BH170: 4084 | BI170: 3816 | BJ170: 3612 | BK170: 3590 | BL170: 3402 | BM170: 3495 | BN170: 3371 | BO170: 3451 | BP170: 3247 | BQ170: 3136 | BR170: 2978 | BS170: 2865 | BT170: 2744 | BU170: 2555 | BV170: 2212 | BW170: 2137 | BX170: 1904 | BY170: 1724 | BZ170: 1774 | CA170: 1682 | CB170: 1585 | CC170: 1522 | CD170: 1430 | CE170: 1366 | CF170: 1244 | CG170: 1076 | CH170: 1040 | CI170: 917 | CJ170: 830 | CK170: 736 | CL170: 613 | CM170: 484 | CN170: 448 | CO170: 391 | CP170: 278 | CQ170: 228 | CR170: 191 | CS170: 137 | CT170: 409
A171: RSS | B171: 15 | C171: 15 Laurentides | D171: 2006 | E171: Estimation | F171: Féminin | G171: 259485 | H171: 2620 | I171: 2534 | J171: 2533 | K171: 2488 | L171: 2836 | M171: 2784 | N171: 2843 | O171: 2919 | P171: 3009 | Q171: 3191 | R171: 3480 | S171: 3486 | T171: 3708 | U171: 3819 | V171: 3880 | W171: 3902 | X171: 3797 | Y171: 3331 | Z171: 3023 | AA171: 2874 | AB171: 2803 | AC171: 2737 | AD171: 2614 | AE171: 2584 | AF171: 2769 | AG171: 2876 | AH171: 2886 | AI171: 2928 | AJ171: 3019 | AK171: 3192 | AL171: 3182 | AM171: 3239 | AN171: 3125 | AO171: 3183 | AP171: 3255 | AQ171: 3562 | AR171: 3669 | AS171: 3688 | AT171: 3735 | AU171: 3861 | AV171: 4319 | AW171: 4747 | AX171: 4892 | AY171: 4920 | AZ171: 4812 | BA171: 4928 | BB171: 4734 | BC171: 4594 | BD171: 4592 | BE171: 4508 | BF171: 4306 | BG171: 4330 | BH171: 3987 | BI171: 3753 | BJ171: 3601 | BK171: 3681 | BL171: 3553 | BM171: 3530 | BN171: 3412 | BO171: 3449 | BP171: 3405 | BQ171: 3122 | BR171: 3035 | BS171: 2948 | BT171: 2664 | BU171: 2468 | BV171: 2197 | BW171: 2095 | BX171: 1959 | BY171: 1754 | BZ171: 1783 | CA171: 1655 | CB171: 1620 | CC171: 1630 | CD171: 1621 | CE171: 1479 | CF171: 1394 | CG171: 1329 | CH171: 1270 | CI171: 1169 | CJ171: 1081 | CK171: 1011 | CL171: 932 | CM171: 822 | CN171: 780 | CO171: 696 | CP171: 567 | CQ171: 465 | CR171: 418 | CS171: 344 | CT171: 1160
A172: RSS | B172: 15 | C172: 15 Laurentides | D172: 2006 | E172: Estimation | F172: Total | G172: 518608 | H172: 5307 | I172: 5199 | J172: 5270 | K172: 5296 | L172: 5732 | M172: 5549 | N172: 5790 | O172: 5961 | P172: 6128 | Q172: 6573 | R172: 6984 | S172: 7182 | T172: 7486 | U172: 7795 | V172: 7951 | W172: 8050 | X172: 7647 | Y172: 6867 | Z172: 6227 | AA172: 5902 | AB172: 5864 | AC172: 5873 | AD172: 5577 | AE172: 5411 | AF172: 5603 | AG172: 5846 | AH172: 5922 | AI172: 5940 | AJ172: 6050 | AK172: 6296 | AL172: 6358 | AM172: 6570 | AN172: 6362 | AO172: 6431 | AP172: 6529 | AQ172: 7127 | AR172: 7247 | AS172: 7319 | AT172: 7449 | AU172: 7784 | AV172: 8825 | AW172: 9562 | AX172: 9800 | AY172: 9907 | AZ172: 9596 | BA172: 9712 | BB172: 9534 | BC172: 9359 | BD172: 9184 | BE172: 9031 | BF172: 8464 | BG172: 8637 | BH172: 8071 | BI172: 7569 | BJ172: 7213 | BK172: 7271 | BL172: 6955 | BM172: 7025 | BN172: 6783 | BO172: 6900 | BP172: 6652 | BQ172: 6258 | BR172: 6013 | BS172: 5813 | BT172: 5408 | BU172: 5023 | BV172: 4409 | BW172: 4232 | BX172: 3863 | BY172: 3478 | BZ172: 3557 | CA172: 3337 | CB172: 3205 | CC172: 3152 | CD172: 3051 | CE172: 2845 | CF172: 2638 | CG172: 2405 | CH172: 2310 | CI172: 2086 | CJ172: 1911 | CK172: 1747 | CL172: 1545 | CM172: 1306 | CN172: 1228 | CO172: 1087 | CP172: 845 | CQ172: 693 | CR172: 609 | CS172: 481 | CT172: 1569
A173: RSS | B173: 15 | C173: 15 Laurentides | D173: 2007 | E173: Estimation | F173: Masculin | G173: 264626 | H173: 2829 | I173: 2801 | J173: 2776 | K173: 2826 | L173: 2884 | M173: 2950 | N173: 2825 | O173: 2994 | P173: 3109 | Q173: 3171 | R173: 3444 | S173: 3563 | T173: 3748 | U173: 3810 | V173: 4007 | W173: 4085 | X173: 4165 | Y173: 3849 | Z173: 3540 | AA173: 3206 | AB173: 3040 | AC173: 3052 | AD173: 3096 | AE173: 2963 | AF173: 2841 | AG173: 2916 | AH173: 3090 | AI173: 3191 | AJ173: 3187 | AK173: 3214 | AL173: 3262 | AM173: 3325 | AN173: 3459 | AO173: 3350 | AP173: 3363 | AQ173: 3393 | AR173: 3692 | AS173: 3679 | AT173: 3732 | AU173: 3777 | AV173: 3954 | AW173: 4527 | AX173: 4842 | AY173: 4938 | AZ173: 5027 | BA173: 4832 | BB173: 4852 | BC173: 4868 | BD173: 4831 | BE173: 4665 | BF173: 4579 | BG173: 4198 | BH173: 4362 | BI173: 4130 | BJ173: 3872 | BK173: 3671 | BL173: 3669 | BM173: 3473 | BN173: 3549 | BO173: 3427 | BP173: 3507 | BQ173: 3267 | BR173: 3158 | BS173: 2977 | BT173: 2863 | BU173: 2714 | BV173: 2530 | BW173: 2182 | BX173: 2103 | BY173: 1880 | BZ173: 1688 | CA173: 1714 | CB173: 1632 | CC173: 1538 | CD173: 1476 | CE173: 1384 | CF173: 1306 | CG173: 1183 | CH173: 1024 | CI173: 974 | CJ173: 858 | CK173: 768 | CL173: 677 | CM173: 555 | CN173: 435 | CO173: 395 | CP173: 345 | CQ173: 242 | CR173: 194 | CS173: 156 | CT173: 431
A174: RSS | B174: 15 | C174: 15 Laurentides | D174: 2007 | E174: Estimation | F174: Féminin | G174: 264689 | H174: 2797 | I174: 2727 | J174: 2616 | K174: 2631 | L174: 2568 | M174: 2909 | N174: 2836 | O174: 2885 | P174: 2969 | Q174: 3050 | R174: 3245 | S174: 3527 | T174: 3534 | U174: 3756 | V174: 3855 | W174: 3916 | X174: 3910 | Y174: 3788 | Z174: 3283 | AA174: 2991 | AB174: 2853 | AC174: 2774 | AD174: 2739 | AE174: 2655 | AF174: 2653 | AG174: 2885 | AH174: 3031 | AI174: 3051 | AJ174: 3083 | AK174: 3171 | AL174: 3335 | AM174: 3301 | AN174: 3380 | AO174: 3259 | AP174: 3306 | AQ174: 3365 | AR174: 3670 | AS174: 3768 | AT174: 3772 | AU174: 3811 | AV174: 3913 | AW174: 4352 | AX174: 4787 | AY174: 4906 | AZ174: 4946 | BA174: 4841 | BB174: 4958 | BC174: 4781 | BD174: 4626 | BE174: 4628 | BF174: 4531 | BG174: 4308 | BH174: 4341 | BI174: 4009 | BJ174: 3785 | BK174: 3643 | BL174: 3717 | BM174: 3593 | BN174: 3565 | BO174: 3456 | BP174: 3486 | BQ174: 3420 | BR174: 3123 | BS174: 3025 | BT174: 2946 | BU174: 2658 | BV174: 2470 | BW174: 2182 | BX174: 2093 | BY174: 1939 | BZ174: 1744 | CA174: 1769 | CB174: 1634 | CC174: 1604 | CD174: 1620 | CE174: 1591 | CF174: 1459 | CG174: 1365 | CH174: 1279 | CI174: 1231 | CJ174: 1127 | CK174: 1036 | CL174: 955 | CM174: 868 | CN174: 789 | CO174: 726 | CP174: 632 | CQ174: 504 | CR174: 415 | CS174: 371 | CT174: 1287
A175: RSS | B175: 15 | C175: 15 Laurentides | D175: 2007 | E175: Estimation | F175: Total | G175: 529315 | H175: 5626 | I175: 5528 | J175: 5392 | K175: 5457 | L175: 5452 | M175: 5859 | N175: 5661 | O175: 5879 | P175: 6078 | Q175: 6221 | R175: 6689 | S175: 7090 | T175: 7282 | U175: 7566 | V175: 7862 | W175: 8001 | X175: 8075 | Y175: 7637 | Z175: 6823 | AA175: 6197 | AB175: 5893 | AC175: 5826 | AD175: 5835 | AE175: 5618 | AF175: 5494 | AG175: 5801 | AH175: 6121 | AI175: 6242 | AJ175: 6270 | AK175: 6385 | AL175: 6597 | AM175: 6626 | AN175: 6839 | AO175: 6609 | AP175: 6669 | AQ175: 6758 | AR175: 7362 | AS175: 7447 | AT175: 7504 | AU175: 7588 | AV175: 7867 | AW175: 8879 | AX175: 9629 | AY175: 9844 | AZ175: 9973 | BA175: 9673 | BB175: 9810 | BC175: 9649 | BD175: 9457 | BE175: 9293 | BF175: 9110 | BG175: 8506 | BH175: 8703 | BI175: 8139 | BJ175: 7657 | BK175: 7314 | BL175: 7386 | BM175: 7066 | BN175: 7114 | BO175: 6883 | BP175: 6993 | BQ175: 6687 | BR175: 6281 | BS175: 6002 | BT175: 5809 | BU175: 5372 | BV175: 5000 | BW175: 4364 | BX175: 4196 | BY175: 3819 | BZ175: 3432 | CA175: 3483 | CB175: 3266 | CC175: 3142 | CD175: 3096 | CE175: 2975 | CF175: 2765 | CG175: 2548 | CH175: 2303 | CI175: 2205 | CJ175: 1985 | CK175: 1804 | CL175: 1632 | CM175: 1423 | CN175: 1224 | CO175: 1121 | CP175: 977 | CQ175: 746 | CR175: 609 | CS175: 527 | CT175: 1718
A176: RSS | B176: 15 | C176: 15 Laurentides | D176: 2008 | E176: Estimation | F176: Masculin | G176: 269132 | H176: 3040 | I176: 2881 | J176: 2862 | K176: 2833 | L176: 2872 | M176: 2910 | N176: 2985 | O176: 2863 | P176: 3021 | Q176: 3146 | R176: 3193 | S176: 3464 | T176: 3589 | U176: 3763 | V176: 3821 | W176: 4018 | X176: 4079 | Y176: 4142 | Z176: 3831 | AA176: 3532 | AB176: 3176 | AC176: 3021 | AD176: 3023 | AE176: 3062 | AF176: 2971 | AG176: 2882 | AH176: 3006 | AI176: 3199 | AJ176: 3326 | AK176: 3318 | AL176: 3350 | AM176: 3397 | AN176: 3434 | AO176: 3559 | AP176: 3440 | AQ176: 3445 | AR176: 3471 | AS176: 3778 | AT176: 3758 | AU176: 3813 | AV176: 3838 | AW176: 3994 | AX176: 4570 | AY176: 4875 | AZ176: 4975 | BA176: 5040 | BB176: 4836 | BC176: 4880 | BD176: 4909 | BE176: 4871 | BF176: 4735 | BG176: 4634 | BH176: 4256 | BI176: 4409 | BJ176: 4176 | BK176: 3910 | BL176: 3711 | BM176: 3714 | BN176: 3507 | BO176: 3574 | BP176: 3476 | BQ176: 3545 | BR176: 3284 | BS176: 3171 | BT176: 2966 | BU176: 2834 | BV176: 2691 | BW176: 2490 | BX176: 2158 | BY176: 2072 | BZ176: 1860 | CA176: 1672 | CB176: 1675 | CC176: 1585 | CD176: 1497 | CE176: 1429 | CF176: 1338 | CG176: 1235 | CH176: 1133 | CI176: 970 | CJ176: 927 | CK176: 781 | CL176: 706 | CM176: 607 | CN176: 491 | CO176: 385 | CP176: 359 | CQ176: 300 | CR176: 195 | CS176: 164 | CT176: 448
A177: RSS | B177: 15 | C177: 15 Laurentides | D177: 2008 | E177: Estimation | F177: Féminin | G177: 269240 | H177: 2883 | I177: 2869 | J177: 2794 | K177: 2671 | L177: 2704 | M177: 2621 | N177: 2962 | O177: 2871 | P177: 2909 | Q177: 3016 | R177: 3084 | S177: 3289 | T177: 3576 | U177: 3586 | V177: 3800 | W177: 3889 | X177: 3967 | Y177: 3913 | Z177: 3742 | AA177: 3228 | AB177: 2937 | AC177: 2788 | AD177: 2732 | AE177: 2725 | AF177: 2693 | AG177: 2748 | AH177: 3008 | AI177: 3178 | AJ177: 3209 | AK177: 3216 | AL177: 3293 | AM177: 3454 | AN177: 3404 | AO177: 3493 | AP177: 3359 | AQ177: 3388 | AR177: 3429 | AS177: 3749 | AT177: 3825 | AU177: 3815 | AV177: 3861 | AW177: 3957 | AX177: 4394 | AY177: 4832 | AZ177: 4940 | BA177: 4988 | BB177: 4865 | BC177: 4993 | BD177: 4833 | BE177: 4675 | BF177: 4675 | BG177: 4554 | BH177: 4308 | BI177: 4343 | BJ177: 4012 | BK177: 3789 | BL177: 3665 | BM177: 3731 | BN177: 3624 | BO177: 3600 | BP177: 3485 | BQ177: 3514 | BR177: 3420 | BS177: 3120 | BT177: 3009 | BU177: 2926 | BV177: 2648 | BW177: 2468 | BX177: 2157 | BY177: 2068 | BZ177: 1924 | CA177: 1726 | CB177: 1741 | CC177: 1615 | CD177: 1580 | CE177: 1580 | CF177: 1553 | CG177: 1429 | CH177: 1311 | CI177: 1239 | CJ177: 1186 | CK177: 1086 | CL177: 982 | CM177: 901 | CN177: 830 | CO177: 742 | CP177: 674 | CQ177: 598 | CR177: 478 | CS177: 379 | CT177: 1415
A178: RSS | B178: 15 | C178: 15 Laurentides | D178: 2008 | E178: Estimation | F178: Total | G178: 538372 | H178: 5923 | I178: 5750 | J178: 5656 | K178: 5504 | L178: 5576 | M178: 5531 | N178: 5947 | O178: 5734 | P178: 5930 | Q178: 6162 | R178: 6277 | S178: 6753 | T178: 7165 | U178: 7349 | V178: 7621 | W178: 7907 | X178: 8046 | Y178: 8055 | Z178: 7573 | AA178: 6760 | AB178: 6113 | AC178: 5809 | AD178: 5755 | AE178: 5787 | AF178: 5664 | AG178: 5630 | AH178: 6014 | AI178: 6377 | AJ178: 6535 | AK178: 6534 | AL178: 6643 | AM178: 6851 | AN178: 6838 | AO178: 7052 | AP178: 6799 | AQ178: 6833 | AR178: 6900 | AS178: 7527 | AT178: 7583 | AU178: 7628 | AV178: 7699 | AW178: 7951 | AX178: 8964 | AY178: 9707 | AZ178: 9915 | BA178: 10028 | BB178: 9701 | BC178: 9873 | BD178: 9742 | BE178: 9546 | BF178: 9410 | BG178: 9188 | BH178: 8564 | BI178: 8752 | BJ178: 8188 | BK178: 7699 | BL178: 7376 | BM178: 7445 | BN178: 7131 | BO178: 7174 | BP178: 6961 | BQ178: 7059 | BR178: 6704 | BS178: 6291 | BT178: 5975 | BU178: 5760 | BV178: 5339 | BW178: 4958 | BX178: 4315 | BY178: 4140 | BZ178: 3784 | CA178: 3398 | CB178: 3416 | CC178: 3200 | CD178: 3077 | CE178: 3009 | CF178: 2891 | CG178: 2664 | CH178: 2444 | CI178: 2209 | CJ178: 2113 | CK178: 1867 | CL178: 1688 | CM178: 1508 | CN178: 1321 | CO178: 1127 | CP178: 1033 | CQ178: 898 | CR178: 673 | CS178: 543 | CT178: 1863
A179: RSS | B179: 15 | C179: 15 Laurentides | D179: 2009 | E179: Estimation | F179: Masculin | G179: 273969 | H179: 3090 | I179: 3100 | J179: 2916 | K179: 2917 | L179: 2891 | M179: 2926 | N179: 2963 | O179: 3048 | P179: 2925 | Q179: 3089 | R179: 3196 | S179: 3239 | T179: 3506 | U179: 3630 | V179: 3813 | W179: 3853 | X179: 4046 | Y179: 4087 | Z179: 4127 | AA179: 3825 | AB179: 3492 | AC179: 3141 | AD179: 3026 | AE179: 2995 | AF179: 3030 | AG179: 3001 | AH179: 2956 | AI179: 3111 | AJ179: 3303 | AK179: 3461 | AL179: 3445 | AM179: 3487 | AN179: 3515 | AO179: 3530 | AP179: 3637 | AQ179: 3508 | AR179: 3502 | AS179: 3538 | AT179: 3858 | AU179: 3835 | AV179: 3894 | AW179: 3906 | AX179: 4042 | AY179: 4606 | AZ179: 4913 | BA179: 5013 | BB179: 5100 | BC179: 4889 | BD179: 4947 | BE179: 4974 | BF179: 4911 | BG179: 4802 | BH179: 4673 | BI179: 4284 | BJ179: 4435 | BK179: 4203 | BL179: 3952 | BM179: 3747 | BN179: 3759 | BO179: 3548 | BP179: 3610 | BQ179: 3505 | BR179: 3569 | BS179: 3298 | BT179: 3169 | BU179: 2967 | BV179: 2835 | BW179: 2661 | BX179: 2453 | BY179: 2123 | BZ179: 2020 | CA179: 1822 | CB179: 1627 | CC179: 1615 | CD179: 1537 | CE179: 1443 | CF179: 1362 | CG179: 1282 | CH179: 1164 | CI179: 1079 | CJ179: 928 | CK179: 849 | CL179: 725 | CM179: 644 | CN179: 546 | CO179: 434 | CP179: 330 | CQ179: 304 | CR179: 263 | CS179: 166 | CT179: 483
A180: RSS | B180: 15 | C180: 15 Laurentides | D180: 2009 | E180: Estimation | F180: Féminin | G180: 273762 | H180: 2944 | I180: 2963 | J180: 2922 | K180: 2852 | L180: 2718 | M180: 2761 | N180: 2673 | O180: 3008 | P180: 2909 | Q180: 2939 | R180: 3074 | S180: 3136 | T180: 3347 | U180: 3639 | V180: 3653 | W180: 3850 | X180: 3924 | Y180: 4005 | Z180: 3879 | AA180: 3702 | AB180: 3144 | AC180: 2877 | AD180: 2758 | AE180: 2726 | AF180: 2726 | AG180: 2752 | AH180: 2829 | AI180: 3121 | AJ180: 3315 | AK180: 3359 | AL180: 3350 | AM180: 3415 | AN180: 3550 | AO180: 3490 | AP180: 3602 | AQ180: 3456 | AR180: 3470 | AS180: 3502 | AT180: 3837 | AU180: 3894 | AV180: 3872 | AW180: 3922 | AX180: 4013 | AY180: 4429 | AZ180: 4862 | BA180: 4965 | BB180: 5021 | BC180: 4887 | BD180: 5020 | BE180: 4874 | BF180: 4708 | BG180: 4697 | BH180: 4581 | BI180: 4306 | BJ180: 4351 | BK180: 4022 | BL180: 3801 | BM180: 3674 | BN180: 3745 | BO180: 3645 | BP180: 3616 | BQ180: 3511 | BR180: 3527 | BS180: 3406 | BT180: 3114 | BU180: 2992 | BV180: 2919 | BW180: 2641 | BX180: 2475 | BY180: 2137 | BZ180: 2050 | CA180: 1903 | CB180: 1708 | CC180: 1730 | CD180: 1587 | CE180: 1544 | CF180: 1549 | CG180: 1514 | CH180: 1382 | CI180: 1265 | CJ180: 1191 | CK180: 1134 | CL180: 1028 | CM180: 931 | CN180: 846 | CO180: 758 | CP180: 691 | CQ180: 632 | CR180: 553 | CS180: 446 | CT180: 1516
A181: RSS | B181: 15 | C181: 15 Laurentides | D181: 2009 | E181: Estimation | F181: Total | G181: 547731 | H181: 6034 | I181: 6063 | J181: 5838 | K181: 5769 | L181: 5609 | M181: 5687 | N181: 5636 | O181: 6056 | P181: 5834 | Q181: 6028 | R181: 6270 | S181: 6375 | T181: 6853 | U181: 7269 | V181: 7466 | W181: 7703 | X181: 7970 | Y181: 8092 | Z181: 8006 | AA181: 7527 | AB181: 6636 | AC181: 6018 | AD181: 5784 | AE181: 5721 | AF181: 5756 | AG181: 5753 | AH181: 5785 | AI181: 6232 | AJ181: 6618 | AK181: 6820 | AL181: 6795 | AM181: 6902 | AN181: 7065 | AO181: 7020 | AP181: 7239 | AQ181: 6964 | AR181: 6972 | AS181: 7040 | AT181: 7695 | AU181: 7729 | AV181: 7766 | AW181: 7828 | AX181: 8055 | AY181: 9035 | AZ181: 9775 | BA181: 9978 | BB181: 10121 | BC181: 9776 | BD181: 9967 | BE181: 9848 | BF181: 9619 | BG181: 9499 | BH181: 9254 | BI181: 8590 | BJ181: 8786 | BK181: 8225 | BL181: 7753 | BM181: 7421 | BN181: 7504 | BO181: 7193 | BP181: 7226 | BQ181: 7016 | BR181: 7096 | BS181: 6704 | BT181: 6283 | BU181: 5959 | BV181: 5754 | BW181: 5302 | BX181: 4928 | BY181: 4260 | BZ181: 4070 | CA181: 3725 | CB181: 3335 | CC181: 3345 | CD181: 3124 | CE181: 2987 | CF181: 2911 | CG181: 2796 | CH181: 2546 | CI181: 2344 | CJ181: 2119 | CK181: 1983 | CL181: 1753 | CM181: 1575 | CN181: 1392 | CO181: 1192 | CP181: 1021 | CQ181: 936 | CR181: 816 | CS181: 612 | CT181: 1999
A182: RSS | B182: 15 | C182: 15 Laurentides | D182: 2010 | E182: Estimation | F182: Masculin | G182: 279068 | H182: 3051 | I182: 3157 | J182: 3173 | K182: 2975 | L182: 2978 | M182: 2954 | N182: 2978 | O182: 3017 | P182: 3094 | Q182: 2984 | R182: 3146 | S182: 3253 | T182: 3285 | U182: 3551 | V182: 3679 | W182: 3855 | X182: 3875 | Y182: 4067 | Z182: 4063 | AA182: 4094 | AB182: 3757 | AC182: 3444 | AD182: 3115 | AE182: 3036 | AF182: 3001 | AG182: 3053 | AH182: 3055 | AI182: 3047 | AJ182: 3221 | AK182: 3429 | AL182: 3590 | AM182: 3577 | AN182: 3607 | AO182: 3637 | AP182: 3633 | AQ182: 3734 | AR182: 3604 | AS182: 3587 | AT182: 3611 | AU182: 3948 | AV182: 3888 | AW182: 3965 | AX182: 3961 | AY182: 4074 | AZ182: 4633 | BA182: 4934 | BB182: 5049 | BC182: 5119 | BD182: 4916 | BE182: 4982 | BF182: 5010 | BG182: 4956 | BH182: 4861 | BI182: 4716 | BJ182: 4329 | BK182: 4484 | BL182: 4236 | BM182: 3992 | BN182: 3788 | BO182: 3792 | BP182: 3602 | BQ182: 3653 | BR182: 3566 | BS182: 3606 | BT182: 3306 | BU182: 3171 | BV182: 2971 | BW182: 2826 | BX182: 2615 | BY182: 2430 | BZ182: 2105 | CA182: 2002 | CB182: 1799 | CC182: 1600 | CD182: 1582 | CE182: 1487 | CF182: 1386 | CG182: 1305 | CH182: 1229 | CI182: 1093 | CJ182: 1024 | CK182: 874 | CL182: 797 | CM182: 678 | CN182: 580 | CO182: 497 | CP182: 394 | CQ182: 289 | CR182: 262 | CS182: 224 | CT182: 515
A183: RSS | B183: 15 | C183: 15 Laurentides | D183: 2010 | E183: Estimation | F183: Féminin | G183: 279003 | H183: 2973 | I183: 3018 | J183: 3059 | K183: 2985 | L183: 2916 | M183: 2766 | N183: 2828 | O183: 2739 | P183: 3073 | Q183: 2949 | R183: 2969 | S183: 3131 | T183: 3176 | U183: 3403 | V183: 3699 | W183: 3700 | X183: 3908 | Y183: 3963 | Z183: 4032 | AA183: 3864 | AB183: 3640 | AC183: 3075 | AD183: 2826 | AE183: 2757 | AF183: 2736 | AG183: 2804 | AH183: 2858 | AI183: 2976 | AJ183: 3266 | AK183: 3478 | AL183: 3511 | AM183: 3480 | AN183: 3530 | AO183: 3665 | AP183: 3587 | AQ183: 3697 | AR183: 3535 | AS183: 3550 | AT183: 3579 | AU183: 3912 | AV183: 3970 | AW183: 3944 | AX183: 4003 | AY183: 4085 | AZ183: 4475 | BA183: 4908 | BB183: 4994 | BC183: 5043 | BD183: 4904 | BE183: 5042 | BF183: 4920 | BG183: 4734 | BH183: 4736 | BI183: 4611 | BJ183: 4320 | BK183: 4367 | BL183: 4048 | BM183: 3827 | BN183: 3710 | BO183: 3776 | BP183: 3671 | BQ183: 3635 | BR183: 3541 | BS183: 3540 | BT183: 3395 | BU183: 3116 | BV183: 2991 | BW183: 2921 | BX183: 2626 | BY183: 2466 | BZ183: 2123 | CA183: 2041 | CB183: 1872 | CC183: 1688 | CD183: 1715 | CE183: 1572 | CF183: 1521 | CG183: 1515 | CH183: 1485 | CI183: 1338 | CJ183: 1225 | CK183: 1159 | CL183: 1094 | CM183: 974 | CN183: 882 | CO183: 784 | CP183: 698 | CQ183: 636 | CR183: 586 | CS183: 492 | CT183: 1671
A184: RSS | B184: 15 | C184: 15 Laurentides | D184: 2010 | E184: Estimation | F184: Total | G184: 558071 | H184: 6024 | I184: 6175 | J184: 6232 | K184: 5960 | L184: 5894 | M184: 5720 | N184: 5806 | O184: 5756 | P184: 6167 | Q184: 5933 | R184: 6115 | S184: 6384 | T184: 6461 | U184: 6954 | V184: 7378 | W184: 7555 | X184: 7783 | Y184: 8030 | Z184: 8095 | AA184: 7958 | AB184: 7397 | AC184: 6519 | AD184: 5941 | AE184: 5793 | AF184: 5737 | AG184: 5857 | AH184: 5913 | AI184: 6023 | AJ184: 6487 | AK184: 6907 | AL184: 7101 | AM184: 7057 | AN184: 7137 | AO184: 7302 | AP184: 7220 | AQ184: 7431 | AR184: 7139 | AS184: 7137 | AT184: 7190 | AU184: 7860 | AV184: 7858 | AW184: 7909 | AX184: 7964 | AY184: 8159 | AZ184: 9108 | BA184: 9842 | BB184: 10043 | BC184: 10162 | BD184: 9820 | BE184: 10024 | BF184: 9930 | BG184: 9690 | BH184: 9597 | BI184: 9327 | BJ184: 8649 | BK184: 8851 | BL184: 8284 | BM184: 7819 | BN184: 7498 | BO184: 7568 | BP184: 7273 | BQ184: 7288 | BR184: 7107 | BS184: 7146 | BT184: 6701 | BU184: 6287 | BV184: 5962 | BW184: 5747 | BX184: 5241 | BY184: 4896 | BZ184: 4228 | CA184: 4043 | CB184: 3671 | CC184: 3288 | CD184: 3297 | CE184: 3059 | CF184: 2907 | CG184: 2820 | CH184: 2714 | CI184: 2431 | CJ184: 2249 | CK184: 2033 | CL184: 1891 | CM184: 1652 | CN184: 1462 | CO184: 1281 | CP184: 1092 | CQ184: 925 | CR184: 848 | CS184: 716 | CT184: 2186
A185: RSS | B185: 15 | C185: 15 Laurentides | D185: 2011 | E185: Estimation | F185: Masculin | G185: 283682 | H185: 3046 | I185: 3109 | J185: 3211 | K185: 3228 | L185: 3042 | M185: 3026 | N185: 3013 | O185: 3011 | P185: 3055 | Q185: 3106 | R185: 3061 | S185: 3155 | T185: 3287 | U185: 3341 | V185: 3562 | W185: 3728 | X185: 3873 | Y185: 3907 | Z185: 4054 | AA185: 4045 | AB185: 3990 | AC185: 3698 | AD185: 3381 | AE185: 3087 | AF185: 3061 | AG185: 3026 | AH185: 3056 | AI185: 3138 | AJ185: 3161 | AK185: 3350 | AL185: 3532 | AM185: 3702 | AN185: 3683 | AO185: 3707 | AP185: 3717 | AQ185: 3736 | AR185: 3786 | AS185: 3700 | AT185: 3671 | AU185: 3728 | AV185: 4015 | AW185: 3980 | AX185: 4055 | AY185: 4045 | AZ185: 4163 | BA185: 4644 | BB185: 4944 | BC185: 5087 | BD185: 5109 | BE185: 4975 | BF185: 5023 | BG185: 5049 | BH185: 4990 | BI185: 4922 | BJ185: 4746 | BK185: 4434 | BL185: 4500 | BM185: 4260 | BN185: 4036 | BO185: 3848 | BP185: 3814 | BQ185: 3671 | BR185: 3652 | BS185: 3603 | BT185: 3592 | BU185: 3322 | BV185: 3161 | BW185: 2959 | BX185: 2799 | BY185: 2573 | BZ185: 2379 | CA185: 2102 | CB185: 1949 | CC185: 1756 | CD185: 1585 | CE185: 1524 | CF185: 1422 | CG185: 1321 | CH185: 1228 | CI185: 1161 | CJ185: 1019 | CK185: 947 | CL185: 826 | CM185: 735 | CN185: 619 | CO185: 529 | CP185: 436 | CQ185: 347 | CR185: 264 | CS185: 213 | CT185: 579
A186: RSS | B186: 15 | C186: 15 Laurentides | D186: 2011 | E186: Estimation | F186: Féminin | G186: 282979 | H186: 2907 | I186: 3027 | J186: 3076 | K186: 3141 | L186: 3026 | M186: 2967 | N186: 2813 | O186: 2874 | P186: 2837 | Q186: 3073 | R186: 3003 | S186: 3009 | T186: 3183 | U186: 3232 | V186: 3447 | W186: 3701 | X186: 3751 | Y186: 3915 | Z186: 3938 | AA186: 4021 | AB186: 3785 | AC186: 3557 | AD186: 3039 | AE186: 2856 | AF186: 2780 | AG186: 2804 | AH186: 2872 | AI186: 2961 | AJ186: 3106 | AK186: 3363 | AL186: 3574 | AM186: 3623 | AN186: 3580 | AO186: 3631 | AP186: 3729 | AQ186: 3678 | AR186: 3762 | AS186: 3637 | AT186: 3612 | AU186: 3654 | AV186: 3927 | AW186: 3993 | AX186: 3963 | AY186: 4039 | AZ186: 4156 | BA186: 4495 | BB186: 4895 | BC186: 4982 | BD186: 5041 | BE186: 4955 | BF186: 5020 | BG186: 4973 | BH186: 4798 | BI186: 4762 | BJ186: 4634 | BK186: 4357 | BL186: 4341 | BM186: 4084 | BN186: 3858 | BO186: 3746 | BP186: 3764 | BQ186: 3693 | BR186: 3635 | BS186: 3565 | BT186: 3538 | BU186: 3345 | BV186: 3134 | BW186: 2986 | BX186: 2885 | BY186: 2619 | BZ186: 2449 | CA186: 2113 | CB186: 2007 | CC186: 1843 | CD186: 1686 | CE186: 1650 | CF186: 1541 | CG186: 1482 | CH186: 1460 | CI186: 1429 | CJ186: 1299 | CK186: 1188 | CL186: 1110 | CM186: 1043 | CN186: 916 | CO186: 827 | CP186: 733 | CQ186: 643 | CR186: 573 | CS186: 514 | CT186: 1746
A187: RSS | B187: 15 | C187: 15 Laurentides | D187: 2011 | E187: Estimation | F187: Total | G187: 566661 | H187: 5953 | I187: 6136 | J187: 6287 | K187: 6369 | L187: 6068 | M187: 5993 | N187: 5826 | O187: 5885 | P187: 5892 | Q187: 6179 | R187: 6064 | S187: 6164 | T187: 6470 | U187: 6573 | V187: 7009 | W187: 7429 | X187: 7624 | Y187: 7822 | Z187: 7992 | AA187: 8066 | AB187: 7775 | AC187: 7255 | AD187: 6420 | AE187: 5943 | AF187: 5841 | AG187: 5830 | AH187: 5928 | AI187: 6099 | AJ187: 6267 | AK187: 6713 | AL187: 7106 | AM187: 7325 | AN187: 7263 | AO187: 7338 | AP187: 7446 | AQ187: 7414 | AR187: 7548 | AS187: 7337 | AT187: 7283 | AU187: 7382 | AV187: 7942 | AW187: 7973 | AX187: 8018 | AY187: 8084 | AZ187: 8319 | BA187: 9139 | BB187: 9839 | BC187: 10069 | BD187: 10150 | BE187: 9930 | BF187: 10043 | BG187: 10022 | BH187: 9788 | BI187: 9684 | BJ187: 9380 | BK187: 8791 | BL187: 8841 | BM187: 8344 | BN187: 7894 | BO187: 7594 | BP187: 7578 | BQ187: 7364 | BR187: 7287 | BS187: 7168 | BT187: 7130 | BU187: 6667 | BV187: 6295 | BW187: 5945 | BX187: 5684 | BY187: 5192 | BZ187: 4828 | CA187: 4215 | CB187: 3956 | CC187: 3599 | CD187: 3271 | CE187: 3174 | CF187: 2963 | CG187: 2803 | CH187: 2688 | CI187: 2590 | CJ187: 2318 | CK187: 2135 | CL187: 1936 | CM187: 1778 | CN187: 1535 | CO187: 1356 | CP187: 1169 | CQ187: 990 | CR187: 837 | CS187: 727 | CT187: 2325
A188: RSS | B188: 15 | C188: 15 Laurentides | D188: 2012 | E188: Estimation | F188: Masculin | G188: 286755 | H188: 3032 | I188: 3111 | J188: 3183 | K188: 3288 | L188: 3298 | M188: 3094 | N188: 3060 | O188: 3041 | P188: 3055 | Q188: 3098 | R188: 3154 | S188: 3097 | T188: 3191 | U188: 3336 | V188: 3360 | W188: 3564 | X188: 3712 | Y188: 3852 | Z188: 3847 | AA188: 4008 | AB188: 3963 | AC188: 3913 | AD188: 3626 | AE188: 3322 | AF188: 3057 | AG188: 3066 | AH188: 3045 | AI188: 3114 | AJ188: 3224 | AK188: 3240 | AL188: 3440 | AM188: 3616 | AN188: 3787 | AO188: 3742 | AP188: 3754 | AQ188: 3740 | AR188: 3774 | AS188: 3817 | AT188: 3710 | AU188: 3682 | AV188: 3737 | AW188: 4045 | AX188: 3990 | AY188: 4075 | AZ188: 4074 | BA188: 4181 | BB188: 4663 | BC188: 4952 | BD188: 5083 | BE188: 5124 | BF188: 4976 | BG188: 5050 | BH188: 5052 | BI188: 5008 | BJ188: 4933 | BK188: 4764 | BL188: 4444 | BM188: 4537 | BN188: 4292 | BO188: 4067 | BP188: 3870 | BQ188: 3841 | BR188: 3670 | BS188: 3664 | BT188: 3593 | BU188: 3580 | BV188: 3309 | BW188: 3104 | BX188: 2930 | BY188: 2772 | BZ188: 2542 | CA188: 2342 | CB188: 2074 | CC188: 1925 | CD188: 1731 | CE188: 1510 | CF188: 1496 | CG188: 1361 | CH188: 1259 | CI188: 1165 | CJ188: 1119 | CK188: 954 | CL188: 889 | CM188: 766 | CN188: 674 | CO188: 565 | CP188: 472 | CQ188: 375 | CR188: 291 | CS188: 221 | CT188: 631
A189: RSS | B189: 15 | C189: 15 Laurentides | D189: 2012 | E189: Estimation | F189: Féminin | G189: 286171 | H189: 2873 | I189: 2983 | J189: 3125 | K189: 3147 | L189: 3197 | M189: 3065 | N189: 3008 | O189: 2843 | P189: 2906 | Q189: 2860 | R189: 3133 | S189: 3048 | T189: 3052 | U189: 3221 | V189: 3232 | W189: 3428 | X189: 3650 | Y189: 3670 | Z189: 3807 | AA189: 3825 | AB189: 3881 | AC189: 3656 | AD189: 3450 | AE189: 2986 | AF189: 2850 | AG189: 2824 | AH189: 2868 | AI189: 2963 | AJ189: 3055 | AK189: 3186 | AL189: 3459 | AM189: 3634 | AN189: 3684 | AO189: 3647 | AP189: 3679 | AQ189: 3793 | AR189: 3732 | AS189: 3819 | AT189: 3687 | AU189: 3649 | AV189: 3690 | AW189: 3976 | AX189: 4041 | AY189: 3996 | AZ189: 4078 | BA189: 4177 | BB189: 4526 | BC189: 4940 | BD189: 5030 | BE189: 5083 | BF189: 4996 | BG189: 5065 | BH189: 5009 | BI189: 4834 | BJ189: 4795 | BK189: 4678 | BL189: 4394 | BM189: 4393 | BN189: 4154 | BO189: 3913 | BP189: 3798 | BQ189: 3806 | BR189: 3729 | BS189: 3662 | BT189: 3589 | BU189: 3546 | BV189: 3315 | BW189: 3111 | BX189: 2951 | BY189: 2868 | BZ189: 2558 | CA189: 2407 | CB189: 2054 | CC189: 1958 | CD189: 1805 | CE189: 1637 | CF189: 1601 | CG189: 1505 | CH189: 1434 | CI189: 1401 | CJ189: 1376 | CK189: 1251 | CL189: 1143 | CM189: 1056 | CN189: 991 | CO189: 842 | CP189: 773 | CQ189: 688 | CR189: 594 | CS189: 519 | CT189: 1860
A190: RSS | B190: 15 | C190: 15 Laurentides | D190: 2012 | E190: Estimation | F190: Total | G190: 572926 | H190: 5905 | I190: 6094 | J190: 6308 | K190: 6435 | L190: 6495 | M190: 6159 | N190: 6068 | O190: 5884 | P190: 5961 | Q190: 5958 | R190: 6287 | S190: 6145 | T190: 6243 | U190: 6557 | V190: 6592 | W190: 6992 | X190: 7362 | Y190: 7522 | Z190: 7654 | AA190: 7833 | AB190: 7844 | AC190: 7569 | AD190: 7076 | AE190: 6308 | AF190: 5907 | AG190: 5890 | AH190: 5913 | AI190: 6077 | AJ190: 6279 | AK190: 6426 | AL190: 6899 | AM190: 7250 | AN190: 7471 | AO190: 7389 | AP190: 7433 | AQ190: 7533 | AR190: 7506 | AS190: 7636 | AT190: 7397 | AU190: 7331 | AV190: 7427 | AW190: 8021 | AX190: 8031 | AY190: 8071 | AZ190: 8152 | BA190: 8358 | BB190: 9189 | BC190: 9892 | BD190: 10113 | BE190: 10207 | BF190: 9972 | BG190: 10115 | BH190: 10061 | BI190: 9842 | BJ190: 9728 | BK190: 9442 | BL190: 8838 | BM190: 8930 | BN190: 8446 | BO190: 7980 | BP190: 7668 | BQ190: 7647 | BR190: 7399 | BS190: 7326 | BT190: 7182 | BU190: 7126 | BV190: 6624 | BW190: 6215 | BX190: 5881 | BY190: 5640 | BZ190: 5100 | CA190: 4749 | CB190: 4128 | CC190: 3883 | CD190: 3536 | CE190: 3147 | CF190: 3097 | CG190: 2866 | CH190: 2693 | CI190: 2566 | CJ190: 2495 | CK190: 2205 | CL190: 2032 | CM190: 1822 | CN190: 1665 | CO190: 1407 | CP190: 1245 | CQ190: 1063 | CR190: 885 | CS190: 740 | CT190: 2491
A191: RSS | B191: 15 | C191: 15 Laurentides | D191: 2013 | E191: Estimation | F191: Masculin | G191: 289571 | H191: 3126 | I191: 3107 | J191: 3174 | K191: 3257 | L191: 3352 | M191: 3345 | N191: 3137 | O191: 3098 | P191: 3076 | Q191: 3101 | R191: 3143 | S191: 3193 | T191: 3120 | U191: 3214 | V191: 3358 | W191: 3368 | X191: 3561 | Y191: 3667 | Z191: 3800 | AA191: 3777 | AB191: 3940 | AC191: 3895 | AD191: 3848 | AE191: 3576 | AF191: 3277 | AG191: 3048 | AH191: 3071 | AI191: 3102 | AJ191: 3188 | AK191: 3292 | AL191: 3322 | AM191: 3489 | AN191: 3655 | AO191: 3820 | AP191: 3765 | AQ191: 3780 | AR191: 3759 | AS191: 3805 | AT191: 3862 | AU191: 3730 | AV191: 3700 | AW191: 3737 | AX191: 4062 | AY191: 3989 | AZ191: 4069 | BA191: 4073 | BB191: 4196 | BC191: 4688 | BD191: 4986 | BE191: 5112 | BF191: 5170 | BG191: 5003 | BH191: 5078 | BI191: 5080 | BJ191: 5042 | BK191: 4956 | BL191: 4787 | BM191: 4461 | BN191: 4573 | BO191: 4304 | BP191: 4074 | BQ191: 3876 | BR191: 3845 | BS191: 3644 | BT191: 3661 | BU191: 3570 | BV191: 3558 | BW191: 3286 | BX191: 3064 | BY191: 2896 | BZ191: 2733 | CA191: 2495 | CB191: 2285 | CC191: 2018 | CD191: 1879 | CE191: 1682 | CF191: 1450 | CG191: 1455 | CH191: 1288 | CI191: 1182 | CJ191: 1101 | CK191: 1049 | CL191: 886 | CM191: 814 | CN191: 698 | CO191: 617 | CP191: 513 | CQ191: 412 | CR191: 335 | CS191: 249 | CT191: 692
A192: RSS | B192: 15 | C192: 15 Laurentides | D192: 2013 | E192: Estimation | F192: Féminin | G192: 288461 | H192: 2852 | I192: 2921 | J192: 3021 | K192: 3181 | L192: 3191 | M192: 3242 | N192: 3110 | O192: 3053 | P192: 2880 | Q192: 2940 | R192: 2877 | S192: 3176 | T192: 3070 | U192: 3080 | V192: 3247 | W192: 3229 | X192: 3410 | Y192: 3592 | Z192: 3571 | AA192: 3689 | AB192: 3691 | AC192: 3733 | AD192: 3548 | AE192: 3364 | AF192: 2938 | AG192: 2843 | AH192: 2843 | AI192: 2903 | AJ192: 3001 | AK192: 3107 | AL192: 3255 | AM192: 3542 | AN192: 3696 | AO192: 3734 | AP192: 3691 | AQ192: 3703 | AR192: 3825 | AS192: 3764 | AT192: 3860 | AU192: 3711 | AV192: 3685 | AW192: 3717 | AX192: 4023 | AY192: 4081 | AZ192: 4028 | BA192: 4099 | BB192: 4187 | BC192: 4537 | BD192: 4978 | BE192: 5065 | BF192: 5129 | BG192: 5028 | BH192: 5112 | BI192: 5047 | BJ192: 4875 | BK192: 4848 | BL192: 4731 | BM192: 4449 | BN192: 4457 | BO192: 4224 | BP192: 3934 | BQ192: 3803 | BR192: 3807 | BS192: 3727 | BT192: 3666 | BU192: 3600 | BV192: 3527 | BW192: 3281 | BX192: 3081 | BY192: 2920 | BZ192: 2825 | CA192: 2502 | CB192: 2348 | CC192: 2006 | CD192: 1910 | CE192: 1755 | CF192: 1577 | CG192: 1545 | CH192: 1451 | CI192: 1374 | CJ192: 1332 | CK192: 1312 | CL192: 1195 | CM192: 1052 | CN192: 981 | CO192: 928 | CP192: 779 | CQ192: 702 | CR192: 642 | CS192: 539 | CT192: 1976
A193: RSS | B193: 15 | C193: 15 Laurentides | D193: 2013 | E193: Estimation | F193: Total | G193: 578032 | H193: 5978 | I193: 6028 | J193: 6195 | K193: 6438 | L193: 6543 | M193: 6587 | N193: 6247 | O193: 6151 | P193: 5956 | Q193: 6041 | R193: 6020 | S193: 6369 | T193: 6190 | U193: 6294 | V193: 6605 | W193: 6597 | X193: 6971 | Y193: 7259 | Z193: 7371 | AA193: 7466 | AB193: 7631 | AC193: 7628 | AD193: 7396 | AE193: 6940 | AF193: 6215 | AG193: 5891 | AH193: 5914 | AI193: 6005 | AJ193: 6189 | AK193: 6399 | AL193: 6577 | AM193: 7031 | AN193: 7351 | AO193: 7554 | AP193: 7456 | AQ193: 7483 | AR193: 7584 | AS193: 7569 | AT193: 7722 | AU193: 7441 | AV193: 7385 | AW193: 7454 | AX193: 8085 | AY193: 8070 | AZ193: 8097 | BA193: 8172 | BB193: 8383 | BC193: 9225 | BD193: 9964 | BE193: 10177 | BF193: 10299 | BG193: 10031 | BH193: 10190 | BI193: 10127 | BJ193: 9917 | BK193: 9804 | BL193: 9518 | BM193: 8910 | BN193: 9030 | BO193: 8528 | BP193: 8008 | BQ193: 7679 | BR193: 7652 | BS193: 7371 | BT193: 7327 | BU193: 7170 | BV193: 7085 | BW193: 6567 | BX193: 6145 | BY193: 5816 | BZ193: 5558 | CA193: 4997 | CB193: 4633 | CC193: 4024 | CD193: 3789 | CE193: 3437 | CF193: 3027 | CG193: 3000 | CH193: 2739 | CI193: 2556 | CJ193: 2433 | CK193: 2361 | CL193: 2081 | CM193: 1866 | CN193: 1679 | CO193: 1545 | CP193: 1292 | CQ193: 1114 | CR193: 977 | CS193: 788 | CT193: 2668
A194: RSS | B194: 15 | C194: 15 Laurentides | D194: 2014 | E194: Estimation | F194: Masculin | G194: 292087 | H194: 3051 | I194: 3198 | J194: 3166 | K194: 3219 | L194: 3319 | M194: 3392 | N194: 3376 | O194: 3166 | P194: 3124 | Q194: 3110 | R194: 3151 | S194: 3185 | T194: 3244 | U194: 3140 | V194: 3239 | W194: 3384 | X194: 3378 | Y194: 3563 | Z194: 3627 | AA194: 3775 | AB194: 3712 | AC194: 3864 | AD194: 3813 | AE194: 3776 | AF194: 3505 | AG194: 3252 | AH194: 3067 | AI194: 3093 | AJ194: 3155 | AK194: 3250 | AL194: 3355 | AM194: 3380 | AN194: 3563 | AO194: 3704 | AP194: 3891 | AQ194: 3811 | AR194: 3830 | AS194: 3797 | AT194: 3851 | AU194: 3907 | AV194: 3760 | AW194: 3740 | AX194: 3754 | AY194: 4091 | AZ194: 3999 | BA194: 4053 | BB194: 4068 | BC194: 4197 | BD194: 4694 | BE194: 4988 | BF194: 5111 | BG194: 5186 | BH194: 4992 | BI194: 5076 | BJ194: 5067 | BK194: 5068 | BL194: 4960 | BM194: 4816 | BN194: 4479 | BO194: 4599 | BP194: 4316 | BQ194: 4064 | BR194: 3875 | BS194: 3841 | BT194: 3625 | BU194: 3646 | BV194: 3542 | BW194: 3534 | BX194: 3256 | BY194: 3007 | BZ194: 2824 | CA194: 2684 | CB194: 2441 | CC194: 2215 | CD194: 1967 | CE194: 1815 | CF194: 1638 | CG194: 1384 | CH194: 1400 | CI194: 1219 | CJ194: 1103 | CK194: 1031 | CL194: 984 | CM194: 821 | CN194: 749 | CO194: 629 | CP194: 561 | CQ194: 437 | CR194: 363 | CS194: 278 | CT194: 757
A195: RSS | B195: 15 | C195: 15 Laurentides | D195: 2014 | E195: Estimation | F195: Féminin | G195: 290994 | H195: 3005 | I195: 2927 | J195: 2965 | K195: 3059 | L195: 3224 | M195: 3221 | N195: 3267 | O195: 3140 | P195: 3079 | Q195: 2903 | R195: 2963 | S195: 2894 | T195: 3219 | U195: 3100 | V195: 3110 | W195: 3273 | X195: 3215 | Y195: 3373 | Z195: 3513 | AA195: 3481 | AB195: 3557 | AC195: 3555 | AD195: 3594 | AE195: 3445 | AF195: 3286 | AG195: 2939 | AH195: 2889 | AI195: 2916 | AJ195: 2992 | AK195: 3087 | AL195: 3178 | AM195: 3334 | AN195: 3632 | AO195: 3779 | AP195: 3795 | AQ195: 3753 | AR195: 3764 | AS195: 3882 | AT195: 3810 | AU195: 3893 | AV195: 3736 | AW195: 3717 | AX195: 3733 | AY195: 4062 | AZ195: 4119 | BA195: 4043 | BB195: 4118 | BC195: 4201 | BD195: 4555 | BE195: 5008 | BF195: 5096 | BG195: 5151 | BH195: 5043 | BI195: 5122 | BJ195: 5049 | BK195: 4903 | BL195: 4874 | BM195: 4768 | BN195: 4484 | BO195: 4501 | BP195: 4250 | BQ195: 3948 | BR195: 3821 | BS195: 3814 | BT195: 3731 | BU195: 3665 | BV195: 3590 | BW195: 3507 | BX195: 3239 | BY195: 3019 | BZ195: 2876 | CA195: 2771 | CB195: 2457 | CC195: 2281 | CD195: 1934 | CE195: 1858 | CF195: 1702 | CG195: 1526 | CH195: 1491 | CI195: 1403 | CJ195: 1321 | CK195: 1262 | CL195: 1259 | CM195: 1131 | CN195: 993 | CO195: 930 | CP195: 876 | CQ195: 704 | CR195: 641 | CS195: 598 | CT195: 2102
A196: RSS | B196: 15 | C196: 15 Laurentides | D196: 2014 | E196: Estimation | F196: Total | G196: 583081 | H196: 6056 | I196: 6125 | J196: 6131 | K196: 6278 | L196: 6543 | M196: 6613 | N196: 6643 | O196: 6306 | P196: 6203 | Q196: 6013 | R196: 6114 | S196: 6079 | T196: 6463 | U196: 6240 | V196: 6349 | W196: 6657 | X196: 6593 | Y196: 6936 | Z196: 7140 | AA196: 7256 | AB196: 7269 | AC196: 7419 | AD196: 7407 | AE196: 7221 | AF196: 6791 | AG196: 6191 | AH196: 5956 | AI196: 6009 | AJ196: 6147 | AK196: 6337 | AL196: 6533 | AM196: 6714 | AN196: 7195 | AO196: 7483 | AP196: 7686 | AQ196: 7564 | AR196: 7594 | AS196: 7679 | AT196: 7661 | AU196: 7800 | AV196: 7496 | AW196: 7457 | AX196: 7487 | AY196: 8153 | AZ196: 8118 | BA196: 8096 | BB196: 8186 | BC196: 8398 | BD196: 9249 | BE196: 9996 | BF196: 10207 | BG196: 10337 | BH196: 10035 | BI196: 10198 | BJ196: 10116 | BK196: 9971 | BL196: 9834 | BM196: 9584 | BN196: 8963 | BO196: 9100 | BP196: 8566 | BQ196: 8012 | BR196: 7696 | BS196: 7655 | BT196: 7356 | BU196: 7311 | BV196: 7132 | BW196: 7041 | BX196: 6495 | BY196: 6026 | BZ196: 5700 | CA196: 5455 | CB196: 4898 | CC196: 4496 | CD196: 3901 | CE196: 3673 | CF196: 3340 | CG196: 2910 | CH196: 2891 | CI196: 2622 | CJ196: 2424 | CK196: 2293 | CL196: 2243 | CM196: 1952 | CN196: 1742 | CO196: 1559 | CP196: 1437 | CQ196: 1141 | CR196: 1004 | CS196: 876 | CT196: 2859
A197: RSS | B197: 15 | C197: 15 Laurentides | D197: 2015 | E197: Estimation | F197: Masculin | G197: 294669 | H197: 2950 | I197: 3124 | J197: 3262 | K197: 3217 | L197: 3254 | M197: 3374 | N197: 3443 | O197: 3416 | P197: 3202 | Q197: 3156 | R197: 3138 | S197: 3198 | T197: 3225 | U197: 3286 | V197: 3163 | W197: 3270 | X197: 3409 | Y197: 3394 | Z197: 3552 | AA197: 3587 | AB197: 3695 | AC197: 3608 | AD197: 3817 | AE197: 3775 | AF197: 3747 | AG197: 3487 | AH197: 3246 | AI197: 3085 | AJ197: 3127 | AK197: 3202 | AL197: 3334 | AM197: 3429 | AN197: 3452 | AO197: 3633 | AP197: 3767 | AQ197: 3942 | AR197: 3849 | AS197: 3871 | AT197: 3813 | AU197: 3889 | AV197: 3947 | AW197: 3786 | AX197: 3784 | AY197: 3778 | AZ197: 4119 | BA197: 4002 | BB197: 4051 | BC197: 4058 | BD197: 4185 | BE197: 4694 | BF197: 5004 | BG197: 5116 | BH197: 5215 | BI197: 5013 | BJ197: 5099 | BK197: 5074 | BL197: 5078 | BM197: 4975 | BN197: 4827 | BO197: 4483 | BP197: 4623 | BQ197: 4332 | BR197: 4056 | BS197: 3890 | BT197: 3839 | BU197: 3627 | BV197: 3631 | BW197: 3507 | BX197: 3505 | BY197: 3198 | BZ197: 2939 | CA197: 2773 | CB197: 2619 | CC197: 2363 | CD197: 2163 | CE197: 1908 | CF197: 1754 | CG197: 1593 | CH197: 1308 | CI197: 1338 | CJ197: 1153 | CK197: 1026 | CL197: 961 | CM197: 924 | CN197: 755 | CO197: 685 | CP197: 557 | CQ197: 500 | CR197: 369 | CS197: 300 | CT197: 797
A198: RSS | B198: 15 | C198: 15 Laurentides | D198: 2015 | E198: Estimation | F198: Féminin | G198: 293523 | H198: 2843 | I198: 3078 | J198: 3004 | K198: 3037 | L198: 3105 | M198: 3290 | N198: 3272 | O198: 3313 | P198: 3185 | Q198: 3119 | R198: 2940 | S198: 2984 | T198: 2910 | U198: 3260 | V198: 3123 | W198: 3132 | X198: 3281 | Y198: 3179 | Z198: 3326 | AA198: 3433 | AB198: 3357 | AC198: 3439 | AD198: 3446 | AE198: 3478 | AF198: 3376 | AG198: 3266 | AH198: 2942 | AI198: 2943 | AJ198: 2998 | AK198: 3069 | AL198: 3154 | AM198: 3242 | AN198: 3396 | AO198: 3698 | AP198: 3826 | AQ198: 3840 | AR198: 3799 | AS198: 3810 | AT198: 3929 | AU198: 3851 | AV198: 3922 | AW198: 3763 | AX198: 3728 | AY198: 3739 | AZ198: 4090 | BA198: 4151 | BB198: 4060 | BC198: 4153 | BD198: 4226 | BE198: 4585 | BF198: 5037 | BG198: 5134 | BH198: 5165 | BI198: 5059 | BJ198: 5155 | BK198: 5077 | BL198: 4951 | BM198: 4926 | BN198: 4813 | BO198: 4519 | BP198: 4546 | BQ198: 4298 | BR198: 3975 | BS198: 3855 | BT198: 3827 | BU198: 3726 | BV198: 3659 | BW198: 3577 | BX198: 3476 | BY198: 3198 | BZ198: 2974 | CA198: 2838 | CB198: 2748 | CC198: 2399 | CD198: 2213 | CE198: 1880 | CF198: 1814 | CG198: 1654 | CH198: 1473 | CI198: 1424 | CJ198: 1343 | CK198: 1245 | CL198: 1192 | CM198: 1195 | CN198: 1054 | CO198: 922 | CP198: 838 | CQ198: 811 | CR198: 634 | CS198: 583 | CT198: 2226
A199: RSS | B199: 15 | C199: 15 Laurentides | D199: 2015 | E199: Estimation | F199: Total | G199: 588192 | H199: 5793 | I199: 6202 | J199: 6266 | K199: 6254 | L199: 6359 | M199: 6664 | N199: 6715 | O199: 6729 | P199: 6387 | Q199: 6275 | R199: 6078 | S199: 6182 | T199: 6135 | U199: 6546 | V199: 6286 | W199: 6402 | X199: 6690 | Y199: 6573 | Z199: 6878 | AA199: 7020 | AB199: 7052 | AC199: 7047 | AD199: 7263 | AE199: 7253 | AF199: 7123 | AG199: 6753 | AH199: 6188 | AI199: 6028 | AJ199: 6125 | AK199: 6271 | AL199: 6488 | AM199: 6671 | AN199: 6848 | AO199: 7331 | AP199: 7593 | AQ199: 7782 | AR199: 7648 | AS199: 7681 | AT199: 7742 | AU199: 7740 | AV199: 7869 | AW199: 7549 | AX199: 7512 | AY199: 7517 | AZ199: 8209 | BA199: 8153 | BB199: 8111 | BC199: 8211 | BD199: 8411 | BE199: 9279 | BF199: 10041 | BG199: 10250 | BH199: 10380 | BI199: 10072 | BJ199: 10254 | BK199: 10151 | BL199: 10029 | BM199: 9901 | BN199: 9640 | BO199: 9002 | BP199: 9169 | BQ199: 8630 | BR199: 8031 | BS199: 7745 | BT199: 7666 | BU199: 7353 | BV199: 7290 | BW199: 7084 | BX199: 6981 | BY199: 6396 | BZ199: 5913 | CA199: 5611 | CB199: 5367 | CC199: 4762 | CD199: 4376 | CE199: 3788 | CF199: 3568 | CG199: 3247 | CH199: 2781 | CI199: 2762 | CJ199: 2496 | CK199: 2271 | CL199: 2153 | CM199: 2119 | CN199: 1809 | CO199: 1607 | CP199: 1395 | CQ199: 1311 | CR199: 1003 | CS199: 883 | CT199: 3023
A200: RSS | B200: 15 | C200: 15 Laurentides | D200: 2016 | E200: Estimation | F200: Masculin | G200: 298070 | H200: 3075 | I200: 3040 | J200: 3217 | K200: 3330 | L200: 3297 | M200: 3303 | N200: 3452 | O200: 3501 | P200: 3438 | Q200: 3263 | R200: 3191 | S200: 3158 | T200: 3239 | U200: 3252 | V200: 3308 | W200: 3194 | X200: 3294 | Y200: 3405 | Z200: 3406 | AA200: 3532 | AB200: 3515 | AC200: 3623 | AD200: 3545 | AE200: 3738 | AF200: 3747 | AG200: 3728 | AH200: 3530 | AI200: 3321 | AJ200: 3185 | AK200: 3189 | AL200: 3263 | AM200: 3420 | AN200: 3496 | AO200: 3560 | AP200: 3707 | AQ200: 3842 | AR200: 3997 | AS200: 3928 | AT200: 3907 | AU200: 3845 | AV200: 3919 | AW200: 3969 | AX200: 3799 | AY200: 3790 | AZ200: 3818 | BA200: 4104 | BB200: 4041 | BC200: 4053 | BD200: 4103 | BE200: 4261 | BF200: 4706 | BG200: 4996 | BH200: 5109 | BI200: 5205 | BJ200: 5039 | BK200: 5104 | BL200: 5081 | BM200: 5099 | BN200: 4991 | BO200: 4842 | BP200: 4541 | BQ200: 4588 | BR200: 4344 | BS200: 4061 | BT200: 3903 | BU200: 3836 | BV200: 3635 | BW200: 3618 | BX200: 3486 | BY200: 3430 | BZ200: 3172 | CA200: 2878 | CB200: 2735 | CC200: 2542 | CD200: 2317 | CE200: 2097 | CF200: 1867 | CG200: 1694 | CH200: 1527 | CI200: 1265 | CJ200: 1284 | CK200: 1090 | CL200: 967 | CM200: 891 | CN200: 847 | CO200: 704 | CP200: 601 | CQ200: 498 | CR200: 429 | CS200: 320 | CT200: 893
... 360 more rows

Sheet Résultats bruts
F1: Période 1 | G1: Sexe | I1: Âge 1 | J1: Âge 2
A2: 1ère période | F2: =Formulaire!$D$1 -> 2024 | G2: =Formulaire!$C$1 -> Total | H2: =F2&G2 -> 2024Total | I2: =Formulaire!A1 -> 65 | J2: =Formulaire!B1 -> 90 ans et +
F3: =VLOOKUP(F2,Correspondance!P1:Q41,2) -> Projections
A5: Québec | B5: =IF($F$3="Projections ",ROUND(K5,-1),K5) -> 1934960 | D5: 99 | E5: =D5&$H$2 -> 992024Total | F5: =VLOOKUP(E5,Correspondance!$H$1:$I$1243,2,0) -> 88 | G5: =VLOOKUP($I$2,Correspondance!$A$1:$B$91,2) -> BU | H5: =VLOOKUP($J$2,Correspondance!$A$1:$B$91,2) -> CT | I5: =G5&F5 -> BU88 | J5: =H5&F5 -> CT88 | K5: =SUM(INDIRECT("Données!"&I5):INDIRECT("Données!"&J5)) -> 1934961
A6: 15 Laurentides | B6: =IF($F$3="Projections ",ROUND(K6,-1),K6) -> 148340 | D6: 15 | E6: =D6&$H$2 -> 152024Total | F6: =VLOOKUP(E6,Correspondance!$H$1:$I$1243,2,0) -> 226 | G6: =VLOOKUP($I$2,Correspondance!$A$1:$B$91,2) -> BU | H6: =VLOOKUP($J$2,Correspondance!$A$1:$B$91,2) -> CT | I6: =G6&F6 -> BU226 | J6: =H6&F6 -> CT226 | K6: =SUM(INDIRECT("Données!"&I6):INDIRECT("Données!"&J6)) -> 148342
A7: 1511 RLS d'Antoine-Labelle | B7: =IF($F$3="Projections ",ROUND(K7,-1),K7) -> 12180 | D7: 1511 | E7: 15112024Total | F7: =VLOOKUP(E7,Correspondance!$H$1:$I$1243,2,0) -> 364 | G7: =VLOOKUP($I$2,Correspondance!$A$1:$B$91,2) -> BU | H7: =VLOOKUP($J$2,Correspondance!$A$1:$B$91,2) -> CT | I7: BU364 | J7: CT364 | K7: =SUM(INDIRECT("Données!"&I7):INDIRECT("Données!"&J7)) -> 12177
A8: 1512 RLS des Laurentides | B8: =IF($F$3="Projections ",ROUND(K8,-1),K8) -> 15800 | D8: 1512 | E8: 15122024Total | F8: =VLOOKUP(E8,Correspondance!$H$1:$I$1243,2,0) -> 502 | G8: =VLOOKUP($I$2,Correspondance!$A$1:$B$91,2) -> BU | H8: =VLOOKUP($J$2,Correspondance!$A$1:$B$91,2) -> CT | I8: BU502 | J8: CT502 | K8: =SUM(INDIRECT("Données!"&I8):INDIRECT("Données!"&J8)) -> 15797
A9: 1513 RLS des Pays-d'en-Haut | B9: 15940 | D9: 1513 | E9: 15132024Total | F9: =VLOOKUP(E9,Correspondance!$H$1:$I$1243,2,0) -> 640 | G9: =VLOOKUP($I$2,Correspondance!$A$1:$B$91,2) -> BU | H9: =VLOOKUP($J$2,Correspondance!$A$1:$B$91,2) -> CT | I9: BU640 | J9: CT640 | K9: =SUM(INDIRECT("Données!"&I9):INDIRECT("Données!"&J9)) -> 15944
A10: 1514 RLS d'Argenteuil | B10: 10030 | D10: 1514 | E10: 15142024Total | F10: =VLOOKUP(E10,Correspondance!$H$1:$I$1243,2,0) -> 778 | G10: =VLOOKUP($I$2,Correspondance!$A$1:$B$91,2) -> BU | H10: =VLOOKUP($J$2,Correspondance!$A$1:$B$91,2) -> CT | I10: BU778 | J10: CT778 | K10: =SUM(INDIRECT("Données!"&I10):INDIRECT("Données!"&J10)) -> 10033
A11: 1515 RLS de Deux-Montagnes - Mirabel-Sud | B11: 24700 | D11: 1515 | E11: 15152024Total | F11: =VLOOKUP(E11,Correspondance!$H$1:$I$1243,2,0) -> 916 | G11: =VLOOKUP($I$2,Correspondance!$A$1:$B$91,2) -> BU | H11: =VLOOKUP($J$2,Correspondance!$A$1:$B$91,2) -> CT | I11: BU916 | J11: CT916 | K11: =SUM(INDIRECT("Données!"&I11):INDIRECT("Données!"&J11)) -> 24698
A12: 1516 RLS de la Rivière-du-Nord - Mirabel-Nord | B12: 37390 | D12: 1516 | E12: 15162024Total | F12: =VLOOKUP(E12,Correspondance!$H$1:$I$1243,2,0) -> 1054 | G12: =VLOOKUP($I$2,Correspondance!$A$1:$B$91,2) -> BU | H12: =VLOOKUP($J$2,Correspondance!$A$1:$B$91,2) -> CT | I12: BU1054 | J12: CT1054 | K12: =SUM(INDIRECT("Données!"&I12):INDIRECT("Données!"&J12)) -> 37389
A13: 1517 RLS de Thérèse-De Blainville | B13: 32300 | D13: 1517 | E13: 15172024Total | F13: =VLOOKUP(E13,Correspondance!$H$1:$I$1243,2,0) -> 1192 | G13: =VLOOKUP($I$2,Correspondance!$A$1:$B$91,2) -> BU | H13: =VLOOKUP($J$2,Correspondance!$A$1:$B$91,2) -> CT | I13: BU1192 | J13: CT1192 | K13: =SUM(INDIRECT("Données!"&I13):INDIRECT("Données!"&J13)) -> 32304
A16: 2e période | F16: Période 2 | G16: Sexe
F17: =Formulaire!$E$1 -> 2029 | G17: =Formulaire!$C$1 -> Total | H17: =F17&G17 -> 2029Total
F18: =VLOOKUP(F17,Correspondance!P1:Q41,2) -> Projections
A19: Québec | B19: =IF($F$18="Projections ",ROUND(K19,-1),K19) -> 2217170 | D19: 99 | E19: =D19&$H$17 -> 992029Total | F19: =VLOOKUP(E19,Correspondance!$H$1:$I$1243,2,0) -> 103 | G19: =VLOOKUP($I$2,Correspondance!$A$1:$B$91,2) -> BU | H19: =VLOOKUP($J$2,Correspondance!$A$1:$B$91,2) -> CT | I19: =G19&F19 -> BU103 | J19: =H19&F19 -> CT103 | K19: =SUM(INDIRECT("Données!"&I19):INDIRECT("Données!"&J19)) -> 2217165
A20: 15 Laurentides | B20: =IF($F$18="Projections ",ROUND(K20,-1),K20) -> 179550 | D20: 15 | E20: =D20&$H$17 -> 152029Total | F20: =VLOOKUP(E20,Correspondance!$H$1:$I$1243,2,0) -> 241 | G20: =VLOOKUP($I$2,Correspondance!$A$1:$B$91,2) -> BU | H20: =VLOOKUP($J$2,Correspondance!$A$1:$B$91,2) -> CT | I20: =G20&F20 -> BU241 | J20: =H20&F20 -> CT241 | K20: =SUM(INDIRECT("Données!"&I20):INDIRECT("Données!"&J20)) -> 179547
A21: 1511 RLS d'Antoine-Labelle | B21: 14260 | D21: 1511 | E21: 15112029Total | F21: =VLOOKUP(E21,Correspondance!$H$1:$I$1243,2,0) -> 379 | G21: =VLOOKUP($I$2,Correspondance!$A$1:$B$91,2) -> BU | H21: =VLOOKUP($J$2,Correspondance!$A$1:$B$91,2) -> CT | I21: BU379 | J21: CT379 | K21: =SUM(INDIRECT("Données!"&I21):INDIRECT("Données!"&J21)) -> 14255
A22: 1512 RLS des Laurentides | B22: 19010 | D22: 1512 | E22: 15122029Total | F22: =VLOOKUP(E22,Correspondance!$H$1:$I$1243,2,0) -> 517 | G22: =VLOOKUP($I$2,Correspondance!$A$1:$B$91,2) -> BU | H22: =VLOOKUP($J$2,Correspondance!$A$1:$B$91,2) -> CT | I22: BU517 | J22: CT517 | K22: =SUM(INDIRECT("Données!"&I22):INDIRECT("Données!"&J22)) -> 19007
A23: 1513 RLS des Pays-d'en-Haut | B23: 19150 | D23: 1513 | E23: 15132029Total | F23: =VLOOKUP(E23,Correspondance!$H$1:$I$1243,2,0) -> 655 | G23: =VLOOKUP($I$2,Correspondance!$A$1:$B$91,2) -> BU | H23: =VLOOKUP($J$2,Correspondance!$A$1:$B$91,2) -> CT | I23: BU655 | J23: CT655 | K23: =SUM(INDIRECT("Données!"&I23):INDIRECT("Données!"&J23)) -> 19154
A24: 1514 RLS d'Argenteuil | B24: 11970 | D24: 1514 | E24: 15142029Total | F24: =VLOOKUP(E24,Correspondance!$H$1:$I$1243,2,0) -> 793 | G24: =VLOOKUP($I$2,Correspondance!$A$1:$B$91,2) -> BU | H24: =VLOOKUP($J$2,Correspondance!$A$1:$B$91,2) -> CT | I24: BU793 | J24: CT793 | K24: =SUM(INDIRECT("Données!"&I24):INDIRECT("Données!"&J24)) -> 11972
A25: 1515 RLS de Deux-Montagnes - Mirabel-Sud | B25: 29710 | D25: 1515 | E25: 15152029Total | F25: =VLOOKUP(E25,Correspondance!$H$1:$I$1243,2,0) -> 931 | G25: =VLOOKUP($I$2,Correspondance!$A$1:$B$91,2) -> BU | H25: =VLOOKUP($J$2,Correspondance!$A$1:$B$91,2) -> CT | I25: BU931 | J25: CT931 | K25: =SUM(INDIRECT("Données!"&I25):INDIRECT("Données!"&J25)) -> 29714
A26: 1516 RLS de la Rivière-du-Nord - Mirabel-Nord | B26: 46360 | D26: 1516 | E26: 15162029Total | F26: =VLOOKUP(E26,Correspondance!$H$1:$I$1243,2,0) -> 1069 | G26: =VLOOKUP($I$2,Correspondance!$A$1:$B$91,2) -> BU | H26: =VLOOKUP($J$2,Correspondance!$A$1:$B$91,2) -> CT | I26: BU1069 | J26: CT1069 | K26: =SUM(INDIRECT("Données!"&I26):INDIRECT("Données!"&J26)) -> 46362
A27: 1517 RLS de Thérèse-De Blainville | B27: 39080 | D27: 1517 | E27: 15172029Total | F27: =VLOOKUP(E27,Correspondance!$H$1:$I$1243,2,0) -> 1207 | G27: =VLOOKUP($I$2,Correspondance!$A$1:$B$91,2) -> BU | H27: =VLOOKUP($J$2,Correspondance!$A$1:$B$91,2) -> CT | I27: BU1207 | J27: CT1207 | K27: =SUM(INDIRECT("Données!"&I27):INDIRECT("Données!"&J27)) -> 39083
A30: Variation
A33: Québec | B33: =B19-B5 -> 282210 | C33: =B33/B5*100 -> 14.58479762
A34: 15 Laurentides | B34: =B20-B6 -> 31210 | C34: =B34/B6*100 -> 21.03950384
A35: 1511 RLS d'Antoine-Labelle | B35: 2080 | C35: =B35/B7*100 -> 17.0771757
A36: 1512 RLS des Laurentides | B36: 3210 | C36: =B36/B8*100 -> 20.3164557
A37: 1513 RLS des Pays-d'en-Haut | B37: 3210 | C37: 20.13801757
A38: 1514 RLS d'Argenteuil | B38: 1940 | C38: 19.34197408
A39: 1515 RLS de Deux-Montagnes - Mirabel-Sud | B39: 5010 | C39: 20.28340081
A40: 1516 RLS de la Rivière-du-Nord - Mirabel-Nord | B40: 8970 | C40: 23.99037176
A41: 1517 RLS de Thérèse-De Blainville | B41: 6780 | C41: 20.99071207
A44: Population totale | I44: Âge 1 | J44: Âge 2
I45: =Correspondance!A1 -> 0 | J45: =Correspondance!A91 -> 90 ans et + | M45: Proportion période 1 sur population totale
A47: Québec | B47: =ROUND(K47,-1) -> 8933380 | D47: 99 | E47: =D47&$H$2 -> 992024Total | F47: =VLOOKUP(E47,Correspondance!$H$1:$I$1243,2,0) -> 88 | G47: =VLOOKUP($I$45,Correspondance!$A$1:$B$91,2) -> H | H47: =VLOOKUP($J$45,Correspondance!$A$1:$B$91,2) -> CT | I47: =G47&F47 -> H88 | J47: =H47&F47 -> CT88 | K47: =SUM(INDIRECT("Données!"&I47):INDIRECT("Données!"&J47)) -> 8933379 | M47: =B5/K47*100 -> 21.65988928
A48: 15 Laurentides | B48: =ROUND(K48,-1) -> 676920 | D48: 15 | E48: =D48&$H$2 -> 152024Total | F48: =VLOOKUP(E48,Correspondance!$H$1:$I$1243,2,0) -> 226 | G48: =VLOOKUP($I$45,Correspondance!$A$1:$B$91,2) -> H | H48: =VLOOKUP($J$45,Correspondance!$A$1:$B$91,2) -> CT | I48: =G48&F48 -> H226 | J48: =H48&F48 -> CT226 | K48: =SUM(INDIRECT("Données!"&I48):INDIRECT("Données!"&J48)) -> 676917 | M48: =B6/K48*100 -> 21.91406036
A49: 1511 RLS d'Antoine-Labelle | B49: 37730 | D49: 1511 | E49: 15112024Total | F49: =VLOOKUP(E49,Correspondance!$H$1:$I$1243,2,0) -> 364 | G49: =VLOOKUP($I$45,Correspondance!$A$1:$B$91,2) -> H | H49: =VLOOKUP($J$45,Correspondance!$A$1:$B$91,2) -> CT | I49: H364 | J49: CT364 | K49: =SUM(INDIRECT("Données!"&I49):INDIRECT("Données!"&J49)) -> 37730 | M49: =B7/K49*100 -> 32.28200371
A50: 1512 RLS des Laurentides | B50: 52590 | D50: 1512 | E50: 15122024Total | F50: =VLOOKUP(E50,Correspondance!$H$1:$I$1243,2,0) -> 502 | G50: =VLOOKUP($I$45,Correspondance!$A$1:$B$91,2) -> H | H50: =VLOOKUP($J$45,Correspondance!$A$1:$B$91,2) -> CT | I50: H502 | J50: CT502 | K50: =SUM(INDIRECT("Données!"&I50):INDIRECT("Données!"&J50)) -> 52594 | M50: 30.0414496
A51: 1513 RLS des Pays-d'en-Haut | B51: 49700 | D51: 1513 | E51: 15132024Total | F51: =VLOOKUP(E51,Correspondance!$H$1:$I$1243,2,0) -> 640 | G51: =VLOOKUP($I$45,Correspondance!$A$1:$B$91,2) -> H | H51: =VLOOKUP($J$45,Correspondance!$A$1:$B$91,2) -> CT | I51: H640 | J51: CT640 | K51: =SUM(INDIRECT("Données!"&I51):INDIRECT("Données!"&J51)) -> 49695 | M51: 32.07566154
A52: 1514 RLS d'Argenteuil | B52: 36930 | D52: 1514 | E52: 15142024Total | F52: =VLOOKUP(E52,Correspondance!$H$1:$I$1243,2,0) -> 778 | G52: =VLOOKUP($I$45,Correspondance!$A$1:$B$91,2) -> H | H52: =VLOOKUP($J$45,Correspondance!$A$1:$B$91,2) -> CT | I52: H778 | J52: CT778 | K52: =SUM(INDIRECT("Données!"&I52):INDIRECT("Données!"&J52)) -> 36925 | M52: 27.16316858
A53: 1515 RLS de Deux-Montagnes - Mirabel-Sud | B53: 133070 | D53: 1515 | E53: 15152024Total | F53: =VLOOKUP(E53,Correspondance!$H$1:$I$1243,2,0) -> 916 | G53: =VLOOKUP($I$45,Correspondance!$A$1:$B$91,2) -> H | H53: =VLOOKUP($J$45,Correspondance!$A$1:$B$91,2) -> CT | I53: H916 | J53: CT916 | K53: =SUM(INDIRECT("Données!"&I53):INDIRECT("Données!"&J53)) -> 133071 | M53: 18.56151979
A54: 1516 RLS de la Rivière-du-Nord - Mirabel-Nord | B54: 194990 | D54: 1516 | E54: 15162024Total | F54: =VLOOKUP(E54,Correspondance!$H$1:$I$1243,2,0) -> 1054 | G54: =VLOOKUP($I$45,Correspondance!$A$1:$B$91,2) -> H | H54: =VLOOKUP($J$45,Correspondance!$A$1:$B$91,2) -> CT | I54: H1054 | J54: CT1054 | K54: =SUM(INDIRECT("Données!"&I54):INDIRECT("Données!"&J54)) -> 194993 | M54: 19.17504731
A55: 1517 RLS de Thérèse-De Blainville | B55: 171910 | D55: 1517 | E55: 15172024Total | F55: =VLOOKUP(E55,Correspondance!$H$1:$I$1243,2,0) -> 1192 | G55: =VLOOKUP($I$45,Correspondance!$A$1:$B$91,2) -> H | H55: =VLOOKUP($J$45,Correspondance!$A$1:$B$91,2) -> CT | I55: H1192 | J55: CT1192 | K55: =SUM(INDIRECT("Données!"&I55):INDIRECT("Données!"&J55)) -> 171909 | M55: 18.78901046

Sheet Correspondance
A1: 0 | B1: H | C1: =" à "&A1&" an" -> à 0 an | E1: 99 | F1: 1996 | G1: Masculin | H1: =E1&F1&G1 -> 991996Masculin | I1: 2 | K1: Masculin | L1: masculine | N1: 1996 | P1: 1996 | Q1: Estimations
A2: 1 | B2: I | C2: =" à "&A2&" an" -> à 1 an | E2: 99 | F2: 1996 | G2: Féminin | H2: 991996Féminin | I2: 3 | K2: Féminin | L2: féminine | N2: 1997 | P2: 1997 | Q2: Estimations
A3: 2 | B3: J | C3: =" à "&A3&" ans" -> à 2 ans | E3: 99 | F3: 1996 | G3: Total | H3: 991996Total | I3: 4 | K3: Total | N3: 1998 | P3: 1998 | Q3: Estimations
A4: 3 | B4: K | C4: à 3 ans | E4: 99 | F4: 1997 | G4: Masculin | H4: 991997Masculin | I4: 5 | L4: sexe réunis | N4: 1999 | P4: 1999 | Q4: Estimations
A5: 4 | B5: L | C5: =" à "&A5&" ans" -> à 4 ans | E5: 99 | F5: 1997 | G5: Féminin | H5: 991997Féminin | I5: 6 | N5: 2000 | P5: 2000 | Q5: Estimations
A6: 5 | B6: M | C6: à 5 ans | E6: 99 | F6: 1997 | G6: Total | H6: 991997Total | I6: 7 | N6: 2001 | P6: 2001 | Q6: Estimations
A7: 6 | B7: N | C7: à 6 ans | E7: 99 | F7: 1998 | G7: Masculin | H7: 991998Masculin | I7: 8 | N7: 2002 | P7: 2002 | Q7: Estimations
A8: 7 | B8: O | C8: à 7 ans | E8: 99 | F8: 1998 | G8: Féminin | H8: 991998Féminin | I8: 9 | N8: 2003 | P8: 2003 | Q8: Estimations
A9: 8 | B9: P | C9: à 8 ans | E9: 99 | F9: 1998 | G9: Total | H9: 991998Total | I9: 10 | N9: 2004 | P9: 2004 | Q9: Estimations
A10: 9 | B10: Q | C10: à 9 ans | E10: 99 | F10: 1999 | G10: Masculin | H10: 991999Masculin | I10: 11 | N10: 2005 | P10: 2005 | Q10: Estimations
A11: 10 | B11: R | C11: à 10 ans | E11: 99 | F11: 1999 | G11: Féminin | H11: 991999Féminin | I11: 12 | N11: 2006 | P11: 2006 | Q11: Estimations
A12: 11 | B12: S | C12: à 11 ans | E12: 99 | F12: 1999 | G12: Total | H12: 991999Total | I12: 13 | N12: 2007 | P12: 2007 | Q12: Estimations
A13: 12 | B13: T | C13: à 12 ans | E13: 99 | F13: 2000 | G13: Masculin | H13: 992000Masculin | I13: 14 | N13: 2008 | P13: 2008 | Q13: Estimations
A14: 13 | B14: U | C14: à 13 ans | E14: 99 | F14: 2000 | G14: Féminin | H14: 992000Féminin | I14: 15 | N14: 2009 | P14: 2009 | Q14: Estimations
A15: 14 | B15: V | C15: à 14 ans | E15: 99 | F15: 2000 | G15: Total | H15: 992000Total | I15: 16 | N15: 2010 | P15: 2010 | Q15: Estimations
A16: 15 | B16: W | C16: à 15 ans | E16: 99 | F16: 2001 | G16: Masculin | H16: 992001Masculin | I16: 17 | N16: 2011 | P16: 2011 | Q16: Estimations
A17: 16 | B17: X | C17: à 16 ans | E17: 99 | F17: 2001 | G17: Féminin | H17: 992001Féminin | I17: 18 | N17: 2012 | P17: 2012 | Q17: Estimations
A18: 17 | B18: Y | C18: à 17 ans | E18: 99 | F18: 2001 | G18: Total | H18: 992001Total | I18: 19 | N18: 2013 | P18: 2013 | Q18: Estimations
A19: 18 | B19: Z | C19: à 18 ans | E19: 99 | F19: 2002 | G19: Masculin | H19: 992002Masculin | I19: 20 | N19: 2014 | P19: 2014 | Q19: Estimations
A20: 19 | B20: AA | C20: à 19 ans | E20: 99 | F20: 2002 | G20: Féminin | H20: 992002Féminin | I20: 21 | N20: 2015 | P20: 2015 | Q20: Estimations
A21: 20 | B21: AB | C21: à 20 ans | E21: 99 | F21: 2002 | G21: Total | H21: 992002Total | I21: 22 | N21: 2016 | P21: 2016 | Q21: Estimations
A22: 21 | B22: AC | C22: à 21 ans | E22: 99 | F22: 2003 | G22: Masculin | H22: 992003Masculin | I22: 23 | N22: 2017 | P22: 2017 | Q22: Estimations
A23: 22 | B23: AD | C23: à 22 ans | E23: 99 | F23: 2003 | G23: Féminin | H23: 992003Féminin | I23: 24 | N23: 2018 | P23: 2018 | Q23: Estimations
A24: 23 | B24: AE | C24: à 23 ans | E24: 99 | F24: 2003 | G24: Total | H24: 992003Total | I24: 25 | N24: 2019 | P24: 2019 | Q24: Estimations
A25: 24 | B25: AF | C25: à 24 ans | E25: 99 | F25: 2004 | G25: Masculin | H25: 992004Masculin | I25: 26 | N25: 2020 | P25: 2020 | Q25: Estimations
A26: 25 | B26: AG | C26: à 25 ans | E26: 99 | F26: 2004 | G26: Féminin | H26: 992004Féminin | I26: 27 | N26: 2021 | P26: 2021 | Q26: Estimations
A27: 26 | B27: AH | C27: à 26 ans | E27: 99 | F27: 2004 | G27: Total | H27: 992004Total | I27: 28 | N27: 2022 | P27: 2022 | Q27: Estimations
A28: 27 | B28: AI | C28: à 27 ans | E28: 99 | F28: 2005 | G28: Masculin | H28: 992005Masculin | I28: 29 | N28: 2023 | P28: 2023 | Q28: Projections
A29: 28 | B29: AJ | C29: à 28 ans | E29: 99 | F29: 2005 | G29: Féminin | H29: 992005Féminin | I29: 30 | N29: 2024 | P29: 2024 | Q29: Projections
